Workbook

Sheet Enero 20224
B8: SERVICIOS REGIONALDE DE SALUD
B9: REGION V
B10: SAN PEDRO DE MACORIS, REPUBLICA DOMINICANA
B11: PERSONAL SPM
B12: Total de empleados contratado
B13: NOMINA CORRESPONDIENTE AL 30 DE ENERO AÑO 2024
B14: AREA SPM
B15: NOMBRE | C15: APELLIDO | D15: CEDULA | F15: CARGO | G15: DEPARTAMENTO | H15: LUGAR PRESTA SERVICIOS | I15: SUELDO BRUTO | J15: S/S | K15: SFS | L15: ISR | M15: D/A | N15: SUELDO NETO | O15: FECHA
A16: 1 | B16: PAULINO | C16: LUIS | D16: 024-0008005-3 | E16: 200011101179105 | F16: Vigilante | G16: Area SPM | H16: Clinica Quisqueya | I16: 5,000.00 | J16: =I16*2.87% -> 143.50 | K16: =I16*3.04% -> 152.00 | N16: =I16-J16-K16-M16 -> 4,704.50 | O16: 2007-05-08
A17: =A16+1 -> 2 | B17: PETRONILA ALT. | C17: PAYANO | D17: 023-0049840-5 | E17: 200011101178533 | F17: Conserje | G17: Area SPM | H17: Clinica Angelina | I17: 5,000.00 | J17: 143.50 | K17: 152.00 | M17: 0.00 | N17: 4,704.50 | O17: 2007-01-02
A18: =A17+1 -> 3 | B18: RUTH PRISCILA | C18: PEREZ | D18: 024-0009931-9 | E18: 200011101179118 | F18: Aux. Farmacia | G18: Area SPM | H18: Clinica Quisqueya | I18: 18,400.00 | J18: =I18*2.87% -> 528.08 | K18: =I18*3.04% -> 559.36 | M18: 0.00 | N18: 17,312.56 | O18: 2007-03-01
A19: 4 | B19: MARCELINO | C19: GUZMAN | D19: 024-0002608-0 | E19: 200011101179079 | F19: Sereno | G19: Area SPM | H19: Clinica El Puerto | I19: 5,000.00 | J19: 143.50 | K19: 152.00 | N19: 4,704.50 | O19: 2007-06-25
A20: 5 | B20: ANA MERCEDES | C20: DE LA CRUZ | D20: 023-0072812-4 | E20: 200011101178630 | F20: Conserje | G20: Area SPM | H20: Clinica Barrio Blanco | I20: 5,000.00 | J20: 143.50 | K20: 152.00 | N20: 4,704.50 | O20: 2007-06-01
A21: 6 | B21: FRANCISCA | C21: POMUCENO SORIANO | D21: 024-0004970-2 | E21: 200011101179095 | F21: Conserje | G21: Area SPM | H21: Clinica Guayabal | I21: 5,000.00 | J21: =I21*2.87% -> 143.50 | K21: =I21*3.04% -> 152.00 | N21: 4,704.50 | O21: 2007-07-02
A22: 7 | B22: SIMONA | C22: PEGUERO HERNANDEZ | D22: 024-0012760-7 | E22: 200011101179134 | F22: Conserje | G22: Area SPM | H22: Clinica Honduras | I22: 5,000.00 | J22: 143.50 | K22: 152.00 | N22: 4,704.50 | O22: 2007-07-02
A23: 8 | B23: SULEIKA PROVIDENCIA | C23: GOMEZ | D23: 024-0010359-0 | E23: 200011101179121 | F23: Bioanalista | G23: Area SPM | H23: Clínica Quisqueya | I23: 13,312.40 | J23: 382.07 | K23: 404.70 | M23: 1,512.45 | N23: 11,013.19 | O23: 2007-07-02
A24: 9 | B24: LEONEL | C24: DE LA CRUZ HERNANDEZ | D24: 024-0013605-3 | E24: 200011101179150 | F24: Sereno | G24: Area SPM | H24: Clinica Honduras | I24: 5,000.00 | J24: 143.50 | K24: 152.00 | N24: 4,704.50 | O24: 2007-07-02
A25: 10 | B25: JUAN JOSE | C25: JUAN JEAN | D25: 023-0137052-0 | E25: 200011101179053 | F25: Sereno | G25: Area SPM | H25: Unap Batey Esperanza | I25: 5,000.00 | J25: 143.50 | K25: 152.00 | N25: 4,704.50 | O25: 2007-07-18
A26: 11 | B26: RAMON A. | C26: PEGUERO AQUINO | D26: 023-0057845-3 | E26: 200011101178591 | F26: Sereno | G26: Area SPM | H26: Unap Angelina | I26: 5,000.00 | J26: 143.50 | K26: 152.00 | N26: 4,704.50 | O26: 2007-07-23
A27: 12 | B27: MARIA DEL C. | C27: LARA MENDEZ | D27: 023-0064326-5 | E27: 200011101180686 | F27: Atencion al Usuario | G27: Area SPM | H27: Clinica Porvenir | I27: 7,000.00 | J27: 200.90 | K27: 212.80 | N27: 6,586.30 | O27: 2007-08-01
A28: 13 | B28: ALEX | C28: ROMBLEY | D28: 023-0126548-0 | E28: 200011101180709 | F28: Sereno | G28: Area SPM | H28: Clinica Porvenir | I28: 8,318.04 | J28: =I28*2.87% -> 238.73 | K28: =I28*3.04% -> 252.87 | N28: 7,826.44 | O28: 2007-09-13
A29: 14 | B29: REYNA ISABEL | C29: MORLA DE A. | D29: 023-0066599-5 | E29: 200011101253636 | F29: Bioanalista | G29: Area SPM | H29: Clinica Barrio Lindo | I29: 18,312.00 | J29: =I29*2.87% -> 525.55 | K29: =I29*3.04% -> 556.68 | L29: 0.00 | M29: 0.00 | N29: 17,229.76 | O29: 2008-09-11
A30: 15 | B30: EVA | C30: MATEO FERRERAS | D30: 023-0011428-3 | E30: 200012700173856 | F30: Medico General | G30: Area SPM | H30: UNAP Uasd | I30: 28,657.01 | J30: 822.46 | K30: 871.17 | M30: 0.00 | N30: 26,963.38 | O30: 2007-08-08
A31: 16 | B31: JOSE | C31: CALAZAN CALMONA | D31: 027-0013504-5 | E31: 200011101209570 | F31: Sereno | G31: Area SPM | H31: UNAP las colinas | I31: 5,000.00 | J31: 143.50 | K31: 152.00 | N31: 4,704.50 | O31: 2008-02-21
A32: 17 | B32: BEATRIZ ALT. | C32: SEVERINO | D32: 023-0084459-0 | E32: 200011101224225 | F32: Odontologa | G32: Area SPM | H32: UNAP Barrio Blanco | I32: 24,000.00 | J32: =I32*2.87% -> 688.80 | K32: =I32*3.04% -> 729.60 | M32: 0.00 | N32: 22,581.60 | O32: 2008-03-17
A33: 18 | B33: CARIDAD TODMAN | C33: DE LOS SANTOS | D33: 023-0041126-7 | E33: 200011101224209 | F33: Enfermera Aux. | G33: Area SPM | H33: unap Monte coca | I33: 11,596.60 | J33: =I33*2.87% -> 332.82 | K33: =I33*3.04% -> 352.54 | M33: 0.00 | N33: 10,911.24 | O33: 2008-04-01
A34: 19 | B34: PEDRO | C34: ZORRILLA | D34: 023-0017693-6 | E34: 200011101231865 | F34: Sereno Clinica | G34: Area SPM | H34: UNAP Barrio Blanco | I34: 5,000.00 | J34: =I34*2.87% -> 143.50 | K34: =I34*3.04% -> 152.00 | N34: 4,704.50 | O34: 2008-04-30
A35: 20 | B35: FRANCISCO A | C35: CASTRO R. | D35: 023-0005830-8 | E35: 200011101245945 | F35: Auxiliar de almacen | G35: Area SPM | H35: Almacen Regional | I35: 9,600.00 | J35: =I35*2.87% -> 275.52 | K35: =I35*3.04% -> 291.84 | N35: 9,032.64 | O35: 2008-08-01
A36: 21 | B36: ODILE A. | C36: MILIAN MCCABE | D36: 023-0025423-8 | E36: 200011101253597 | F36: Aux. de Bioanalisis | G36: Area SPM | H36: Unap porvenir | I36: 22,000.00 | J36: =I36*2.87% -> 631.40 | K36: =I36*3.04% -> 668.80 | M36: 3,024.90 | N36: 17,674.90 | O36: 2008-09-01
A37: 22 | B37: JUANA | C37: MORLA POLANCO | D37: 026-0113870-0 | E37: 200011101253733 | F37: Conseje | G37: Area SPM | H37: UNAP Batey Jagual | I37: 5,000.00 | J37: 143.50 | K37: 152.00 | N37: 4,704.50 | O37: 2008-09-01
A38: 23 | B38: ANA JULIA | C38: MENDEZ BRITO | D38: 011-0000744-0 | E38: 200011101253568 | F38: Aux. Enfermera | G38: Area SPM | H38: Unap Evangelina Rodriguez | I38: 13,000.00 | J38: =I38*2.87% -> 373.10 | K38: =I38*3.04% -> 395.20 | L38: 0.00 | M38: 0.00 | N38: 12,231.70 | O38: 2008-10-08
A39: 24 | B39: YVELISSE E. | C39: ASTACIO PEÑA | D39: 023-0003063-8 | E39: 200011101278064 | F39: Conserje | G39: SRS ESTE | H39: Oficina Regional | I39: 8,050.00 | J39: =I39*2.87% -> 231.04 | K39: =I39*3.04% -> 244.72 | L39: 0.00 | M39: 1,512.45 | N39: 6,061.80 | O39: 2009-01-19
A40: 25 | B40: EPIFANIO | C40: CALDERON | D40: 023-0058958-3 | E40: 200011101272633 | F40: Sereno | G40: Area SPM | H40: Clinica Santa fe | I40: 5,000.00 | J40: 143.50 | K40: 152.00 | N40: 4,704.50 | O40: 2009-02-01
A41: 26 | B41: FRANCISCO DE J. | C41: MATICH CASTRO | D41: 023-0028027-4 | E41: 200011101272688 | F41: Auxiliar de almacen | G41: SRS ESTE | H41: Almacen Regional | I41: 9,600.00 | J41: =I41*2.87% -> 275.52 | K41: =I41*3.04% -> 291.84 | N41: 9,032.64 | O41: 2009-02-01
A42: 27 | B42: YERNIS NOEMIS | C42: POCHE F. | D42: 024-0022376-0 | E42: 200011101294556 | F42: Secretaria | G42: Area SPM | H42: clinica Quisqueya | I42: 8,000.00 | J42: 229.60 | K42: 243.20 | N42: 7,527.20 | O42: 2009-08-03
A43: 28 | B43: JOAQUIN | C43: EUSEBIO | D43: 024-0013633-5 | E43: 200011101310155 | F43: Sereno | G43: Area SPM | H43: Clinica Cayacoa | I43: 5,000.00 | J43: 143.50 | K43: 152.00 | N43: 4,704.50 | O43: 2009-12-01
A44: 29 | B44: ROSA SANCHEZ | C44: CABRERA | D44: 023-0109901-2 | E44: 200011101318759 | F44: Conserje | G44: Area SPM | H44: Clinica Porvenir | I44: 8,000.00 | J44: 229.60 | K44: 243.20 | N44: 7,527.20 | O44: 2010-02-01
A45: 30 | B45: GENOVEVA | C45: WILLIAMS DE LA CRUZ | D45: 023-0016490-8 | E45: 200011101325962 | F45: Conserje | G45: Area SPM | H45: UNAP Santa Clara | I45: 6,000.00 | J45: 172.20 | K45: 182.40 | N45: 5,645.40 | O45: 2010-04-01
A46: 31 | B46: BIENVENIDO | C46: BUSTAMANTE GUZMAN | D46: 023-0074695-1 | E46: 200011101358201 | F46: Soporte tecnico | G46: SRS ESTE | H46: Dpto. Publicidad | I46: 6,000.00 | J46: 172.20 | K46: 182.40 | M46: 0.00 | N46: 5,645.40 | O46: 2010-09-01
A47: 32 | B47: VICTOR | C47: NATERA | D47: 024-0006526-0 | E47: 200011101393460 | F47: Sereno | G47: Area SPM | H47: Unap Quisquella | I47: 5,000.00 | J47: 143.50 | K47: 152.00 | N47: 4,704.50 | O47: 2011-03-01
A48: 33 | B48: MIKI | C48: HEREDIA | D48: 023-0115037-7 | E48: 200011101420074 | F48: Aux. de farmacia | G48: Area SPM | H48: Unap Villa Faro | I48: 15,187.50 | J48: 435.88 | K48: 461.70 | N48: 14,289.92 | O48: 2012-10-12
A49: 34 | B49: ESTHER | C49: HINOJOSA | D49: 025-0009474-9 | E49: 200011101419959 | F49: Laboratorio | G49: Area SPM | H49: Unap Povenir | I49: 13,312.00 | J49: 382.05 | K49: 404.68 | N49: 12,525.26 | O49: 2012-10-05
A50: 35 | B50: ANA LUISA | C50: JEAN JOSEPH | D50: 027-0039773-6 | E50: 200011101479562 | F50: Conserje | G50: Area SPM | H50: unap Monte coca | I50: 5,000.00 | J50: 143.50 | K50: 152.00 | N50: 4,704.50 | O50: 2012-04-01
A51: 36 | B51: FROILAN | C51: VALDEZ LORENZO | D51: 011-0028087-2 | E51: 200011101571020 | F51: Sonografista | G51: Area SPM | H51: Centro de Diagnostico | I51: 30,000.00 | J51: 861.00 | K51: 912.00 | N51: 28,227.00 | O51: 2013-01-02
A52: 37 | B52: JOSE | C52: CASIMIRO | D52: 023-0097175-7 | E52: 200011101619623 | F52: Sereno | G52: Area SPM | H52: unap porvenir | I52: 5,000.00 | J52: 143.50 | K52: 152.00 | N52: 4,704.50 | O52: 2014-09-01
A53: 38 | B53: CARY ROSEMARY | C53: SANTANA JABALERA | D53: 023-0117440-1 | E53: 200011101632914 | F53: Enfermera | G53: Area SPM | H53: unap San Martin de Pobre | I53: 8,000.00 | J53: 229.60 | K53: 243.20 | N53: 7,527.20 | O53: 2015-04-01
A54: 39 | B54: NICOLAS | C54: DIAZ VALENZUELA | D54: 023-0103775-6 | E54: 200011101711644 | F54: Sereno | G54: Area SPM | H54: Unap barrio lindo | I54: 6,000.00 | J54: 172.20 | K54: 182.40 | N54: 5,645.40 | O54: 2014-01-01
A55: 40 | B55: MARIA ALT. | C55: POLANCO | D55: 024-0011102-3 | E55: 200011101711592 | F55: Conserje | G55: Area SPM | H55: Unap Quisqueya | I55: 5,000.00 | J55: 143.50 | K55: 152.00 | N55: 4,704.50 | O55: 2014-09-01
A56: 41 | B56: YUDELKIS | C56: FLEMING HODGE | D56: 023-0092307-1 | E56: 200011101711903 | F56: Conserje | G56: Area SPM | H56: unap cachena | I56: 5,000.00 | J56: 143.50 | K56: 152.00 | N56: 4,704.50 | O56: 2014-11-01
A57: 42 | B57: LICETTE | C57: JIMENEZ GARCIA | D57: 023-0020559-4 | E57: 200011101711628 | F57: Conserje | G57: Area SPM | H57: Unap San Martin de Porre | I57: 5,000.00 | J57: 143.50 | K57: 152.00 | N57: 4,704.50 | O57: 2015-05-01
A58: 43 | B58: BASILIA E. | C58: JOSE CIRIACO | D58: 023-0040467-6 | E58: 200011101711796 | F58: Conserje | G58: Area SPM | H58: Unap cachena | I58: 5,000.00 | J58: 143.50 | K58: 152.00 | N58: 4,704.50 | O58: 2015-06-01
A59: 44 | B59: BASILIO | C59: CALDERON MEDINA | D59: 027-0018363-1 | E59: 200011101711631 | F59: Sereno | G59: Area SPM | H59: Unap camara Junior | I59: 5,000.00 | J59: 143.50 | K59: 152.00 | N59: 4,704.50 | O59: 2016-02-02
A60: 45 | B60: NELCIDA YOLADIS | C60: LINARES | D60: 023-0153307-7 | E60: 200011101711851 | F60: Enfermera | G60: Area SPM | H60: Unap brisal | I60: 8,000.00 | J60: 229.60 | K60: 243.20 | N60: 7,527.20 | O60: 2016-01-01
A61: 46 | B61: MARIA | C61: NIEVES MARTE | D61: 023-0084538-1 | E61: 200011101711848 | F61: Conserje | G61: Area SPM | H61: Unap Juan Dolio | I61: 5,000.00 | J61: 143.50 | K61: 152.00 | N61: 4,704.50 | O61: 2014-04-01
A62: 47 | B62: MERCEDES | C62: DANIEL DELGADO | D62: 024-0013600-4 | E62: 200-01-110-173833-9 | F62: Conserje | G62: Area SPM | H62: Unap Hondura | I62: 5,000.00 | J62: =I62*2.87% -> 143.50 | K62: =I62*3.04% -> 152.00 | M62: 0.00 | N62: 4,704.50 | O62: 2014-06-01
A63: 48 | B63: DARIO FRANCISCO | C63: PIE BLAKE | D63: 023-0128257-6 | E63: 200-01-110-176947-6 | F63: Sereno | G63: Area SPM | H63: Unap consuelito | I63: 5,000.00 | J63: 143.50 | K63: 152.00 | N63: 4,704.50 | O63: 2016-07-01
A64: 49 | B64: ALTAGRACIA MEDISA | C64: SEGUIILIS | D64: 023-0077279-1 | E64: 200-01-110-176946-3 | F64: Conserje | G64: Area SPM | H64: Unap consuelito | I64: 5,000.00 | J64: 143.50 | K64: 152.00 | N64: 4,704.50 | O64: 2016-07-01
A65: 50 | B65: ROSMERY | C65: SERRA HERNANDEZ | D65: 023-0138681-5 | E65: 200-01-110-176948-9 | F65: Conserje | G65: Area SPM | H65: Unap Bo. Mexico | I65: 5,000.00 | J65: 143.50 | K65: 152.00 | N65: 4,704.50 | O65: 2017-01-01
A66: 51 | B66: DIONICIO MADRIGAL | C66: GARCIA | D66: 023-0065771-1 | E66: 200-01-960048618-2 | F66: Sereno | G66: Area SPM | H66: UNAP punta de garza | I66: 5,000.00 | J66: 143.50 | K66: 152.00 | N66: 4,704.50 | O66: 2017-07-01
A67: 52 | B67: HECTOR MIGUEL | C67: A.MEDRANO | D67: 023-0012798-8 | E67: 200-01-960-087688-8 | F67: Seguridad | G67: Area SPM | H67: unap Evan Rodriguez | I67: 6,000.00 | J67: 172.20 | K67: 182.40 | N67: 5,645.40 | O67: 2018-04-01
A68: 53 | B68: ESTALIN MARIA | C68: I.MORALES | D68: 024-0026614-0 | E68: 200-01-960-087688-9 | F68: Promotora | G68: Area SPM | H68: unap el puerto | I68: 5,000.00 | J68: 143.50 | K68: 152.00 | N68: 4,704.50 | O68: 2018-04-01
A69: 54 | B69: RAY LUIS | C69: JUSTO | D69: 402-2391439-7 | E69: 200-01-9603556921 | F69: Bionalista | G69: Area SPM | H69: Hosp. Alejo Martinez | I69: 24,000.00 | J69: 688.80 | K69: 729.60 | M69: 1,512.45 | N69: 21,069.15 | O69: 2018-04-01
A70: 55 | B70: MARLENYS RAMONA | C70: QUEVEDO ENCARNACION | D70: 011-347480-3 | E70: 200-01-9601807866 | F70: Medico Asistente | G70: Area SPM | H70: UNAP Don Juan | I70: 30,000.00 | J70: 861.00 | K70: 912.00 | N70: 28,227.00 | O70: 2018-05-19
A71: 56 | B71: LICITANIA | C71: MADRIGAL TEJEDA | D71: 024-0016779-3 | E71: 200-01-9601807868 | F71: Conserje | G71: Area SPM | H71: UNAP Quisqueya | I71: 5,000.00 | J71: =I71*2.87% -> 143.50 | K71: =I71*3.04% -> 152.00 | N71: 4,704.50 | O71: 2018-07-01
A72: 57 | B72: VICTOR MANUEL | C72: POLANCO | D72: 023-0022044-5 | E72: 200-01-1101346666 | F72: Medico Asistente | G72: Area SPM | H72: Monte Coca | I72: 30,000.00 | J72: 861.00 | K72: 912.00 | N72: 28,227.00 | O72: 2019-04-01
A73: 58 | B73: OSCAR ANDRES | C73: ENCARNACION MORALES | D73: 402-4204417-6 | E73: 200-01-9603057742 | F73: Digitador | G73: Area SPM | H73: Centro de Diagnostico | I73: 8,000.00 | J73: =I73*2.87% -> 229.60 | K73: =I73*3.04% -> 243.20 | N73: 7,527.20 | O73: 2019-07-01
A74: 59 | B74: RAMON | C74: GIL | D74: 023-0007034-5 | E74: 200-01-9603057696 | F74: Licencia a sereno | G74: Area SPM | H74: Oficina de area | I74: 5,000.00 | J74: =I74*2.87% -> 143.50 | K74: =I74*3.04% -> 152.00 | N74: 4,704.50 | O74: 2019-04-01
A75: 60 | B75: JACINTO | C75: ORTEGA | D75: 023-0032092-2 | E75: 200-01-9603057701 | F75: Sereno | G75: Area SPM | H75: Uunap cumayasa | I75: 6,500.00 | J75: =I75*2.87% -> 186.55 | K75: =I75*3.04% -> 197.60 | N75: 6,115.85 | O75: 2019-08-31
A76: 61 | B76: YENI ALT. | C76: GUERRERO MENDEZ | D76: 023-0117014-4 | E76: 200-01-9603057694 | F76: Conserje | G76: Area SPM | H76: Unap aleman | I76: 4,000.00 | N76: 4,000.00 | O76: 2019-10-01
A77: 62 | B77: FLOR MARIA | C77: SALICHE | D77: 023-0015353-9 | E77: 200-01-9603057693 | F77: Conserje | G77: Area SPM | H77: Centro de Diagnostico | I77: 5,000.00 | J77: =I77*2.87% -> 143.50 | K77: =I77*3.04% -> 152.00 | L77: 0.00 | N77: 4,704.50 | O77: 2020-01-02
A78: 63 | B78: JEANINA | C78: CASTILLO MUÑOZ | D78: 023-0135235-3 | E78: 200-01-9603057692 | F78: Conserje | G78: Area SPM | H78: Unap barrio Lindo SPM | I78: 8,000.00 | J78: 229.60 | K78: 243.20 | N78: 7,527.20 | O78: 2020-01-04
A79: 64 | B79: MASILLON | C79: BENJAMIN | D79: 030-0001180-3 | E79: 200-01-9603140108 | F79: Sereno | G79: SRS ESTE | H79: Unap Margarita | I79: 5,000.00 | J79: 143.50 | K79: 152.00 | N79: 4,704.50 | O79: 13/10/2020
A80: 65 | B80: EUNICE ELAYNE | C80: DE LA CRUZ CASTRO | D80: 4022056974-9 | E80: 200-01-9603202129 | F80: Aux. de farmacia | G80: Area SPM | H80: Unap pedro justo carrion | I80: 12,000.00 | J80: 344.40 | K80: 364.80 | N80: =I80-J80-K80-M80 -> 11,290.80 | O80: 2020-11-01
A81: 66 | B81: SANTA | C81: MEDINA | D81: 023-0164982-4 | E81: 200-01-960-3396546 | F81: Conserje | G81: Area SPM | H81: UNAP punta pescadora | I81: 5,000.00 | J81: 143.50 | K81: 152.00 | N81: 4,704.50 | O81: 2/Enero/2021
A82: =A81+1 -> 67 | B82: PORFIRIO | C82: ZORRILLA | D82: 024-0010756-7 | E82: 200-01-9603356888 | F82: Sereno | G82: SRS-ESTE | H82: Oficina Regional | I82: 10,000.00 | J82: 287.00 | K82: 304.00 | N82: 9,409.00 | O82: 2/Enero/2021
A83: 68 | B83: ANA | C83: SOLANO | D83: 402-2667422-0 | E83: 200-01-9603403020 | F83: Conserje | G83: Area SPM | H83: Unap punta pescadora | I83: 5,000.00 | J83: 143.50 | K83: 152.00 | N83: 4,704.50 | O83: 2/Enero/2021
A84: 69 | B84: ANGELA | C84: DELONEY RINCON | D84: 023-0050103-4 | E84: 200-01-9603551741 | F84: Conserje | G84: Area SPM | H84: Unap Angelina | I84: 5,000.00 | J84: 143.50 | K84: 152.00 | N84: 4,704.50 | O84: 2021-01-04
A85: 70 | B85: ROLANDO GREGORIO | C85: PASCUAL | D85: 027-0034973-7 | E85: 200-01-9603648040 | F85: Sereno | G85: Area SPM | H85: unap Monte coca | I85: 5,000.00 | J85: 143.50 | K85: 152.00 | N85: 4,704.50 | O85: 2021-01-04
A86: 71 | B86: MARITZA | C86: POLANCO | D86: 030-0003285-8 | E86: 200-01-9603691946 | F86: Conserje | G86: Area SPM | H86: Centro de Diagnostico | I86: 5,000.00 | J86: 143.50 | K86: 152.00 | N86: 4,704.50 | O86: 2021-01-02
A87: 72 | B87: GUILLERMO | C87: BAUTISTA RAMIREZ | D87: 008-0024361-0 | E87: 200-01-9603798315 | F87: Sereno | G87: Area SPM | H87: unap alejandro bass | I87: 5,000.00 | J87: 143.50 | K87: 152.00 | N87: 4,704.50 | O87: 2021-01-05
A88: 73 | B88: SADRACK YRBIN | C88: GUILLEN | D88: 023-0116102-8 | E88: 200-01-9603798311 | F88: Sereno | G88: Area SPM | H88: Placer Bonito | I88: 5,000.00 | J88: 143.50 | K88: 152.00 | N88: 4,704.50 | O88: 2021-01-05
A89: 74 | B89: EMELY PATRICIA | C89: RODRIGUEZ ORTEGA | D89: 402-1141418-6 | E89: 200-01-9603808655 | F89: Asistente de informacion | G89: Area SPM | H89: Gerencia de area | I89: 8,000.00 | J89: 229.60 | K89: 243.20 | N89: 7,527.20 | O89: 2021-01-06
A90: 75 | B90: MANUEL | C90: LOPEZ GONZALEZ | D90: 001-1032723-6 | E90: 200-01-9603964966 | F90: Sereno | G90: Area SPM | H90: Unap Gautier | I90: 7,000.00 | J90: 200.90 | K90: 212.80 | N90: 6,586.30 | O90: 2021-01-06
A91: 76 | B91: ROBERTO ANTONIO | C91: DE LA CRUZ | D91: 023-0004082-7 | E91: 200-01-9604126996 | F91: Chofer | G91: SRS-ESTE | H91: Dpto. de Odontologia | I91: 18,000.00 | J91: 516.60 | K91: 547.20 | N91: 16,936.20 | O91: 2021-10-01
A92: 77 | B92: DOROTEO | C92: DE LA CRUZ CARRASCO | D92: 049-0042143-1 | E92: 200-01-9604126997 | F92: Seguridad | G92: Area SPM | H92: Placer Bonito | I92: 7,000.00 | J92: 200.90 | K92: 212.80 | N92: 6,586.30 | O92: 2021-10-01
A93: 78 | B93: MANOLO | C93: MARTINEZ | D93: 001-1040251-8 | E93: 200-01-9604266453 | F93: Seguridad | G93: Area SPM | H93: Unap Villa Faro | I93: 5,000.00 | J93: 143.50 | K93: 152.00 | N93: 4,704.50 | O93: 2021-09-01
A94: 79 | B94: JOSE ANIIBAL | C94: FRANCISCO DANIEL | D94: 024-0027728-7 | E94: 200-01-9604334570 | F94: Seguridad | G94: Area SPM | H94: Unap Paloma | I94: 5,000.00 | J94: 143.50 | K94: 152.00 | N94: 4,704.50 | O94: 2021-12-01
A95: 80 | B95: MIGUEL | C95: NUÑEZ MAZARA | D95: 025-0001585-0 | E95: 200-01-9604334568 | F95: Seguridad | G95: SRS-ESTE | H95: Oficina Regional | I95: 7,000.00 | J95: 200.90 | K95: 212.80 | N95: 6,586.30 | O95: 2021-12-01
A96: 81 | B96: JESUS MANUEL | C96: GARCIA | D96: 402-2376092-3 | E96: 200-01-120225003-6 | F96: Seguridad | G96: SRS-ESTE | H96: Almacen Regional | I96: 5,000.00 | J96: 143.50 | K96: 152.00 | N96: 4,704.50 | O96: 2016-07-01
A97: 82 | B97: HIPOLITO | C97: TOLENTINO | D97: 023-0084491-3 | E97: 960-455925-7 | F97: Seguridad | G97: Area SPM | H97: Unap Villa Faro | I97: 5,000.00 | J97: 143.50 | K97: 152.00 | N97: 4,704.50 | O97: 2022-02-08
A98: 83 | B98: STARLYN | C98: ALCANTARA | D98: 023-0166567-1 | E98: 960-514422-6 | F98: Seguridad | G98: Area SPM | H98: Unap el Brisal | I98: 5,000.00 | J98: 143.50 | K98: 152.00 | N98: 4,704.50 | O98: 2022-09-01
A99: 84 | B99: YAQUELIN AUDILIA | C99: RICHARSON PEÑA | D99: 030-0003307-0 | E99: 960-525593-0 | F99: Conserje | G99: Area SPM | H99: Unap Batey soco | I99: 5,000.00 | J99: 143.50 | K99: 152.00 | N99: 4,704.50 | O99: 2022-10-01
A100: 85 | B100: MANUEL DE JESUS | C100: LORA | D100: 023-0020611-3 | E100: 960-532825-5 | F100: Seguridad | G100: SRS-ESTE | H100: Oficina Regional | I100: 7,000.00 | J100: 200.90 | K100: 212.80 | N100: 6,586.30 | O100: 2022-11-01
A101: 86 | B101: DIGNA | C101: ROSARIO JAVIER | D101: 023-0143527-3 | E101: 960540890-2 | F101: Conserje | G101: Area SPM | H101: UNAP Santa Fe | I101: 5,000.00 | J101: 143.50 | K101: 152.00 | N101: 4,704.50 | O101: 2022-12-01
A102: 87 | B102: AIDA | C102: PEREZ NATERA | D102: 011-714807-2 | E102: 960-506293-3 | F102: Conserje | G102: Area SPM | H102: Unap las Goutier | I102: 5,000.00 | J102: 143.50 | K102: 152.00 | N102: 4,704.50 | O102: 2023-03-01
A103: 88 | B103: ESTEBANIA | C103: MELLA WILLIAMS | D103: 402-2020200-2 | E103: 9605815583 | F103: Conserje | G103: Area SPM | H103: CPN IDSS Consuelo | I103: 5,000.00 | J103: 143.50 | K103: 152.00 | N103: =I103-J103-K103-M103 -> 4,704.50 | O103: 2023-04-01
A104: 89 | B104: FREDDY | C104: FELICIANO | D104: 027-0022474-0 | E104: 9606189132 | F104: Sereno | G104: Area SPM | H104: CPN el Brisal | I104: 5,000.00 | J104: 143.50 | K104: 152.00 | N104: =I104-J104-K104-M104 -> 4,704.50 | O104: 2023-05-01
A105: 90 | B105: ROSA | C105: HERNANDEZ | D105: 023-01286841 | E105: 9606377959 | F105: Conserje | G105: Area SPM | H105: CPN Esperanza | I105: 5,000.00 | J105: 143.50 | K105: 152.00 | N105: =I105-J105-K105-M105 -> 4,704.50 | O105: 1//10/2023
B106: Total de empleados contratado | I106: =SUM(I16:I105) -> 747,845.55 | J106: =SUM(J16:J105) -> 21,348.37 | K106: =SUM(K16:K105) -> 22,612.90 | L106: =SUM(L16:L102) -> 0.00 | M106: =SUM(M16:M102) -> 7,562.25 | N106: =SUM(N16:N105) -> 696,322.03
C113: LIC. YUDELKY JABALERA | H113: DR. RICARDO JULIO ROMERO
B114: ADMINISTRADORA | H114: DIRECTOR
B140: REGION V
B141: SAN PEDRO DE MACORIS, REPUBLICA DOMINICANA
B142: RNC 430041793
B143: NOMINA CORRESPONDIENTE AL 30 DE ENERO AÑO 2024
B144: PERSONAL AREA DE HATO MAYOR
B145: NOMBRE | C145: APELLIDO | D145: CEDULA | E145: No. CUENTA | F145: CARGO | G145: DEPARTAMENTO | H145: LUGAR PRESTA SERVICIOS | I145: SUELDO BRUTO | J145: S/S | K145: SFS | L145: ISR | M145: D/A | N145: SUELDO NETO | O145: FECHA
A146: 1 | B146: CARMEN I. | C146: SANTANA P. | D146: 027-0005223-2 | E146: 200011120165796 | F146: Aux. de enfermeria | G146: Area Hato Mayor | H146: Clinica Morquecho | I146: 11,786.00 | J146: =I146*2.87% -> 338.26 | K146: =I146*3.04% -> 358.29 | M146: 0.00 | N146: =I146-J146-K146-M146 -> 11,089.45 | O146: 2006-09-11
A147: =A146+1 -> 2 | B147: SULINDA | C147: MOTA DE SALAS | D147: 100-0007282-6 | E147: 200011120165880 | F147: Conserje | G147: Area Hato Mayor | H147: Clinica Yanigua | I147: 5,000.00 | J147: 143.50 | K147: 152.00 | N147: 4,704.50 | O147: 2007-01-02
A148: =A147+1 -> 3 | B148: DOMINGO A. | C148: PEGUERO LUNA | D148: 100-0002222-7 | E148: 200011120165864 | F148: Viglante | G148: Area Hato Mayor | H148: Clinica Yanigua | I148: 5,000.00 | J148: 143.50 | K148: 152.00 | N148: 4,704.50 | O148: 2007-04-02
A149: 4 | B149: MARIA | C149: NOLASCO | D149: 100-0000817-6 | E149: 200011120166148 | F149: Conserje | G149: Area Hato Mayor | H149: Clinica El valle | I149: 7,000.00 | J149: 143.50 | K149: 152.00 | N149: 6,704.50 | O149: 2007-02-01
A150: 5 | B150: NIURKA A. | C150: AQUINO JAVIER | D150: 100-0000180-9 | E150: 200011120165848 | F150: Tecnica Farmacia | G150: Area Hato Mayor | H150: Hospital el Valle | I150: 11,786.00 | J150: =I150*2.87% -> 338.26 | K150: =I150*3.04% -> 358.29 | M150: 0.00 | N150: =I150-J150-K150-M150 -> 11,089.45 | O150: 2007-08-01
A151: 6 | B151: ZENOVIA | C151: TRINIDAD MARTINEZ | D151: 023-0002962-2 | E151: 200011120165738 | F151: Conserje | G151: Area Hato Mayor | H151: Villa Navarro | I151: 5,000.00 | J151: 143.50 | K151: 152.00 | N151: 4,704.50 | O151: 2007-08-08
A152: 7 | B152: MIGUEL ISABEL | C152: VASQUEZ | D152: 027-0003867-8 | E152: 200011120143844 | F152: Chofer | G152: Area Hato Mayor | H152: Oficina area | I152: 8,000.00 | J152: 229.60 | K152: 243.20 | N152: 7,527.20 | O152: 2010-02-01
A153: 8 | B153: ANGELA | C153: RIVERA | D153: 027-0004711-7 | E153: 200011101333637 | F153: Conserje | G153: Area Hato Mayor | H153: UNAP Ondina | I153: 5,000.00 | J153: 143.50 | K153: 152.00 | N153: 4,704.50 | O153: 2010-06-01
A154: 9 | B154: FELIX | C154: CANARIO | D154: 027-0003530-2 | E154: 200011101393509 | F154: Sereno | G154: Area Hato Mayor | H154: Unap Ondina | I154: 5,000.00 | J154: =I154*2.87% -> 143.50 | K154: =I154*3.04% -> 152.00 | N154: =I154-J154-K154 -> 4,704.50 | O154: 2011-03-01
A155: 10 | B155: ELSA AURORA | C155: ZORRILLA | D155: 027-0028845-5 | E155: 200011101479559 | F155: Conserje | G155: Area Hato Mayor | H155: UNAP Punta de Garza | I155: 5,000.00 | J155: 143.50 | K155: 152.00 | N155: 4,704.50 | O155: 2012-06-01
A156: 11 | B156: CARMEN | C156: DE LA CRUZ TORREZ | D156: 027-0002151-8 | E156: 200011101479546 | F156: Conserje | G156: Area Hato Mayor | H156: Unap La China | I156: 5,000.00 | J156: 143.50 | K156: 152.00 | N156: 4,704.50 | O156: 2012-11-01
A157: 12 | B157: YAQUELIN | C157: CASTILLO MONEGRO | D157: 027-0039926-0 | E157: 200011120292627 | F157: Conserje | G157: Area Hato Mayor | H157: Unap la Javilla | I157: 5,000.00 | J157: 143.50 | K157: 152.00 | N157: 4,704.50 | O157: 2014-07-01
A158: 13 | B158: YARELIS | C158: GOMEZ REYES | D158: 027-0042030-6 | E158: 200011120292588 | F158: Conserje | G158: Area Hato Mayor | H158: Unap la plaza | I158: 5,000.00 | J158: 143.50 | K158: 152.00 | N158: 4,704.50 | O158: 2014-10-01
A159: 14 | B159: RUDELANIA | C159: OVALLE VEGA | D159: 023-0110894-6 | E159: 200011120292601 | F159: Medico asistente | G159: Area Hato Mayor | H159: Unap la plaza | I159: 20,000.00 | J159: 574.00 | K159: 608.00 | N159: 18,818.00 | O159: 2014-10-01
A160: 15 | B160: CLAUDIA M. | C160: RINCON COLIN | D160: 027-0046976-6 | E160: 200011120292591 | F160: Enfermera | G160: Area Hato Mayor | H160: Unap la plaza | I160: 7,000.00 | J160: 200.90 | K160: 212.80 | N160: 6,586.30 | O160: 2014-10-01
A161: 16 | B161: RAFAEL | C161: GONZALEZ | D161: 027-0024756-8 | E161: 200011101717211 | F161: Sereno | G161: Area Hato Mayor | H161: Unap km 15 Hato Mayor | I161: 5,000.00 | J161: 143.50 | K161: 152.00 | N161: 4,704.50 | O161: 2015-08-01
A162: 17 | B162: CARINYS MARIEL | C162: LOPEZ | D162: 402-2032423-6 | E162: 200-01-960048617-1 | F162: Promotora de salud | G162: Area Hato Mayor | H162: Oficina area | I162: 6,900.00 | J162: =I162*2.87% -> 198.03 | K162: =I162*3.04% -> 209.76 | M162: 0.00 | N162: =I162-J162-K162-M162 -> 6,492.21 | O162: 2017-10-01
A163: 18 | B163: YOHARKY | C163: LORENZO ABREU | D163: 025-0037069-3 | E163: 200-01-960-087689-0 | F163: Aux. de enfermeria | G163: Area Hato Mayor | I163: 9,000.00 | J163: 258.30 | K163: 273.60 | N163: =I163-J163-K163 -> 8,468.10 | O163: 2018-05-01
A164: 19 | B164: TAIRA MARIA | C164: GONZALEZ | D164: 100-0004525-1 | E164: 200-01-270-017401-7 | F164: Farmaceutica | G164: Area Hato Mayor | H164: Hospital el valle | I164: 18,400.00 | J164: 528.08 | K164: 559.36 | N164: =I164-J164-K164 -> 17,312.56 | O164: 2018-07-01
A165: 20 | B165: ISRAEL | C165: VASQUEZ ALEXANDER | D165: 138-0007689-8 | E165: 200-01-9603065740 | F165: Sereno | G165: Area Hato Mayor | H165: Gerencia de area | I165: 5,000.00 | J165: 143.50 | K165: 152.00 | N165: =SUM(I165-J165-K165) -> 4,704.50 | O165: 2019-07-01
A166: 21 | B166: GAUDY | C166: CRISOSTOMO | D166: 402-4018039-4 | E166: 200-01-9604269997 | F166: Conjerje | G166: Area Hato Mayor | H166: Unap ondina | I166: 5,000.00 | J166: 143.50 | K166: 152.00 | N166: =SUM(I166-J166-K166) -> 4,704.50 | O166: 2021-10-01
A167: 22 | B167: SAMUEL CRISTINO | C167: SALAZAR SOSA | D167: 402-0900247-2 | E167: 200-01-9604395130 | F167: Tecnico | G167: Area Hato Mayor | H167: Gerencia de area | I167: 30,000.00 | J167: 861.00 | K167: 912.00 | M167: 1,512.45 | N167: =SUM(I167-J167-K167-M167) -> 26,714.55 | O167: 2022-01-07
A168: 23 | B168: RICHARD | C168: SANTANA PADILLA | D168: 402-1195588-1 | E168: 200-01-9604716221 | F168: Mensajero | G168: Area Hato Mayor | H168: Gerencia de area | I168: 7,000.00 | J168: 200.90 | K168: 212.80 | N168: =SUM(I168-J168-K168) -> 6,586.30 | O168: 2022-04-01
A169: 24 | B169: REMY RAFAEL | C169: GERVACIO LOPEZ | D169: 067-0011062-7 | E169: 960-5265770 | F169: Sereno | G169: Area Hato Mayor | H169: Unap cañitas | I169: 5,000.00 | J169: 143.50 | K169: 152.00 | N169: =SUM(I169-J169-K169) -> 4,704.50 | O169: 2022-10-01
A170: 25 | B170: FRANCIASCA | C170: REYES LOPEZ | D170: 027-0017851-6 | E170: 960-5265769 | F170: Conserje | G170: Area Hato Mayor | H170: Unap Morquecho | I170: 5,000.00 | J170: 143.50 | K170: 152.00 | N170: 4,704.50 | O170: 2022-10-01
A171: 26 | B171: MAGALIS | C171: JIMENEZ | D171: 027-0030140-7 | E171: 960-5265764 | F171: Conserje | G171: Area Hato Mayor | H171: Unap jalonga | I171: 5,000.00 | J171: 143.50 | K171: 152.00 | N171: 4,704.50 | O171: 2022-10-01
A172: 27 | B172: DULCE MARIA | C172: DOMINGUEZ PEÑA | D172: 027-0046696-0 | E172: 960-5265766 | F172: Conserje | G172: Area Hato Mayor | H172: Unap Km 15 | I172: 5,000.00 | J172: 143.50 | K172: 152.00 | N172: 4,704.50 | O172: 2022-10-01
A173: 28 | B173: IRMA GRISEL | C173: REYES FELICIANO | D173: 027-0012399-1 | E173: 960-5265765 | F173: Conserje | G173: Area Hato Mayor | H173: Unap la Sierra | I173: 5,000.00 | J173: 143.50 | K173: 152.00 | N173: 4,704.50 | O173: 2022-10-01
A174: 29 | B174: RAFAEL | C174: FLOYD POLICIA | D174: 402-1139481-8 | E174: 960-5354300 | F174: Sereno | G174: Area Hato Mayor | H174: Unap jalonga | I174: 5,000.00 | J174: 143.50 | K174: 152.00 | N174: 4,704.50 | O174: 2022-11-01
A175: 30 | B175: JULIO ADRIANO | C175: DIAZ ACOSTA | D175: 067-0013604-4 | E175: 9605408903 | F175: Sereno | G175: Area Hato Mayor | H175: Unap Magua | I175: 5,000.00 | J175: 143.50 | K175: 152.00 | N175: 4,704.50 | O175: 2022-12-01
A176: 31 | B176: JUAN | C176: JAVIER | D176: 027-0015148-9 | E176: 9606157607 | F176: Viglante | G176: Area Hato Mayor | H176: Unap jalonga | I176: 5,000.00 | J176: 143.50 | K176: 152.00 | N176: 4,704.50 | O176: 2023-08-01
B177: TOTAL NOMINA HATO MAYOR | I177: =SUM(I146:I176) -> 236,872.00 | J177: =SUM(J146:J176) -> 6,740.83 | K177: =SUM(K146:K176) -> 7,140.11 | M177: =SUM(M146:M176) -> 1,512.45 | N177: =SUM(N146:N176) -> 221,478.61
C183: LIC. YUDELKY JABALERA | H183: DR. RICARDO JULIO ROMERO
B184: ADMINISTRADORA | H184: DIRECTOR
B210: REGION V
B211: SAN PEDRO DE MACORIS, REPUBLICA DOMINICANA
B212: RNC 430041793
B213: NOMINA CORRESPONDIENTE AL 30 DE ENERO AÑO 2024
B214: PERSONAL AREA EL SEYBO | J214: S/S | K214: SFS | L214: ISR | M214: D/A
B215: NOMBRE | C215: APELLIDO | D215: CEDULA | E215: No. CUENTA | F215: CARGO | G215: DEPARTAMENTO | H215: LUGAR PRESTA SERVICIOS | I215: SUELDO BRUTO | J215: DEDUCCIONES | N215: SUELDO NETO | O215: FECHA
A216: 1 | B216: ANA MARIA | C216: VASQUEZ SANTANA | D216: 025-0041921-9 | E216: 200011110179067 | F216: Conserje | G216: Area el seibo | H216: Clinica las 500 | I216: 5,000.00 | J216: 143.50 | K216: 152.00 | N216: 4,704.50 | O216: 2007-06-01
A217: =A216+1 -> 2 | B217: OSVALDO ANTONIO | C217: CRUZ | D217: 029-0004372-6 | E217: 200011110179135 | F217: Sereno | G217: Area el seibo | H217: Unap Los Franceses | I217: 5,000.00 | J217: 143.50 | K217: 152.00 | N217: 4,704.50 | O217: 2007-07-09
A218: =A217+1 -> 3 | B218: MAXIMO | C218: DEL ROSARIO SILVESTRE | D218: 025-0027067-9 | E218: 200011101180725 | F218: Sereno | G218: Area el seibo | H218: Unap el guaral | I218: 5,000.00 | J218: 143.50 | K218: 152.00 | N218: 4,704.50 | O218: 2007-09-01
A219: 4 | B219: RAFAELA | C219: DIAZ DIAZ | D219: 025-0033097-8 | E219: 200011101294569 | F219: Conserje | G219: Area el seibo | H219: Clinica el Guaral | I219: 5,000.00 | J219: 143.50 | K219: 152.00 | N219: 4,704.50 | O219: 2009-08-14
A220: 5 | B220: YNIRIO MODESTO | C220: LEONARDO | D220: 025-0034927-5 | E220: 200011101393486 | F220: Sereno | G220: Area el seibo | H220: Unap el cerrito del seibo | I220: 5,000.00 | J220: 143.50 | K220: 152.00 | M220: 0.00 | N220: 4,704.50 | O220: 2011-01-01
A221: 6 | B221: AMPARO | C221: MOJICA | D221: 029-0010041-9 | E221: 200011101393554 | F221: Conserje | G221: Area el seibo | H221: Centro de zona Villa Guerrero | I221: 5,000.00 | J221: 143.50 | K221: 152.00 | N221: 4,704.50 | O221: 2011-01-01
A222: 7 | B222: SONIA ELENA | C222: PAREDES MARTINEZ | D222: 025-0008358-5 | E222: 200011101711741 | F222: Conserje | G222: Area el seibo | H222: Unap las guajabas | I222: 5,000.00 | J222: 143.50 | K222: 152.00 | N222: 4,704.50 | O222: 2016-04-01
A223: 8 | B223: LEONIDAS | C223: MOTA DE LA CRUZ | D223: 027-0034558-6 | E223: 200-01-110-176883-3 | F223: Conserje | G223: Area el seibo | H223: Unap las guajabas | I223: 5,000.00 | J223: =I223*2.87% -> 143.50 | K223: =I223*3.04% -> 152.00 | N223: =I223-J223-K223 -> 4,704.50 | O223: 2016-09-01
A224: 9 | B224: ROSANGELA | C224: SORIANO | D224: 025-0048387-6 | E224: 200-01-960056265-8 | F224: Medico asist. | G224: Area el seibo | H224: Unap los botado | I224: 28,000.00 | J224: 803.60 | K224: 851.20 | N224: =I224-J224-K224 -> 26,345.20 | O224: 2018-02-01
A225: 10 | B225: TATATIANA ROSANA | C225: AQUINO | D225: 402-3486379-9 | E225: 200-01-960-087688-5 | F225: Aux. de Farmacia | G225: Area el seibo | H225: Gerencia de area Seibo | I225: 9,835.00 | J225: 282.26 | K225: 298.98 | N225: =I225-J225-K225 -> 9,253.75 | O225: 2018-04-01
A226: 11 | B226: ANGELINA | C226: PEGUERO | D226: 029-0015408-5 | E226: 200-01-9603069101 | F226: Aux. de limpieza | G226: Area el seibo | H226: Unap la mina | I226: 5,000.00 | J226: 143.50 | K226: 152.00 | N226: =I226-J226-K226 -> 4,704.50 | O226: 2020-01-09
A227: 12 | B227: OSVIANNY | C227: ZORRILLA BERAS | D227: 402-2519711-6 | E227: 200-01-1101711657 | F227: Enc. De soporte tecnico | G227: Area el seibo | H227: Gerencia de area | I227: 30,000.00 | J227: 861.00 | K227: 912.00 | N227: 28,227.00 | O227: 2020-01-11
A228: 13 | B228: DIONILIA | C228: ZORRILLA | D228: 025-0009672-8 | E228: 200-01-9603798317 | F228: Conserje | G228: Area el seibo | H228: Unap Pedro Sanchez | I228: 5,000.00 | J228: 143.50 | K228: 152.00 | N228: 4,704.50 | O228: 2021-01-03
A229: 14 | B229: YEIRY NICAURY | C229: PELEGRIN UBIERA | D229: 402-3442135-8 | E229: 200-01-9603798318 | F229: Secretaria | G229: Area el seibo | H229: Gerencia de area | I229: 10,000.00 | J229: 287.00 | K229: 304.00 | N229: 9,409.00 | O229: 2021-01-06
A230: 15 | B230: MILOSY ARACELIS | C230: BAEZ APONTE | D230: 025-0032466-6 | E230: 200-01-9603883495 | F230: Aux. de Enfermeria | G230: Area el seibo | H230: Unap Cañada del Agua | I230: 10,000.00 | J230: 287.00 | K230: 304.00 | N230: 9,409.00 | O230: 2021-01-07
A231: 16 | B231: CARMEN DOLORES | C231: GARCIA | D231: 023-0075496-3 | E231: 200-01-9604074136 | F231: Conserje | G231: Area el seibo | H231: Unap Villa Guerrero | I231: 5,000.00 | J231: 143.50 | K231: 152.00 | N231: 4,704.50 | O231: 2021-09-01
A232: 17 | B232: CANDIDA | C232: DE LA CRUZ | D232: 065-0019411-0 | E232: 200-01-9604074312 | F232: Conserje | G232: Area el seibo | H232: Unap Los Franceses | I232: 5,000.00 | J232: 143.50 | K232: 152.00 | N232: 4,704.50
A233: 18 | B233: EDELKIN MARIA | C233: PEREZ PERALTA | D233: 029-0016608-9 | E233: 200-01-9604334569 | F233: Conserje | G233: Area el seibo | H233: Unap la Gina | I233: 5,000.00 | J233: 143.50 | K233: 152.00 | N233: 4,704.50 | O233: 2021-12-01
A234: 19 | B234: CAROLIN FERNANDA | C234: NIEVES CANELA | D234: 402-1825057-5 | E234: 200-01-960-464357-0 | F234: Digitadora | G234: Area el seibo | H234: Gerencia de area | I234: 10,000.00 | J234: 287.00 | K234: 304.00 | N234: 9,409.00 | O234: 2022-03-01
A235: 20 | B235: LUCIA | C235: DE JESUS | D235: 029-0007400-2 | E235: 200-01-960484399-2 | F235: Conserje | G235: Area el seibo | H235: Unap el cedro de miches | I235: 5,000.00 | J235: 143.50 | K235: 152.00 | N235: 4,704.50 | O235: 2022-05-01
A236: 21 | B236: CESAR ORLANDO | C236: MORALES VASQUEZ | D236: 029-0019287-9 | E236: 200-019605119375 | F236: Sereno | G236: Area el seibo | H236: Unap la Mina | I236: 5,000.00 | J236: 143.50 | K236: 152.00 | N236: 4,704.50 | O236: 2022-07-01
A237: 22 | B237: ANTONIO | C237: HERNANDEZ | D237: 025-0015700-9 | E237: 960-568646-3 | F237: Vigilante | G237: Area el seibo | H237: Unap Magarin | I237: 5,000.00 | J237: 143.50 | K237: 152.00 | N237: 4,704.50 | O237: 2023-03-01
A238: 23 | B238: DEMETRIO | C238: MEDINA | D238: 029-0009483-6 | E238: 960-5817459 | F238: Vigilante | G238: Area el seibo | H238: Unap el cerrito | I238: 5,000.00 | J238: 143.50 | K238: 152.00 | N238: 4,704.50 | O238: 2023-04-01
A239: 24 | B239: DOMINGO | C239: ESTEBAN | D239: 027-0028929-7 | E239: 110-1711806 | F239: Sereno | G239: Area el seibo | H239: Unap Magarin | I239: 5,000.00 | J239: 143.50 | K239: 152.00 | N239: 4,704.50 | O239: 2023-04-01
B240: TOTAL NOMINA EL SEIBO | I240: =SUM(I216:I239) -> 187,835.00 | J240: =SUM(J216:J239) -> 5,390.86 | K240: =SUM(K216:K239) -> 5,710.18 | M240: =SUM(M216:M225) -> 0.00 | N240: =SUM(N216:N239) -> 176,733.95
C243: LIC. YUDELKY JABALERA | H243: DR. RICARDO JULIO ROMERO
B244: ADMINISTRADORA | H244: DIRECTOR
B277: REGION V
B278: C/COLON No.28, CENTRO DE LA CIUDAD
B279: SAN PEDRO DE MACORIS, REPUBLICA DOMINICANA
B280: RNC 430041793
B282: NOMINA CORRESPONDIENTE AL 30 DE ENERO AÑO 2024
B283: PERSONAL LA ROMANA | J283: S/S | K283: SFS | L283: ISR | M283: D/A | N283: 0.00
B284: NOMBRE | C284: APELLIDO | D284: CEDULA | E284: No. CUENTA | F284: CARGO | G284: DEPARTAMENTO | H284: LUGAR PRESTA SERVICIOS | I284: SUELDO BRUTO | J284: DEDUCCIONES | N284: SUELDO NETO | O284: FECHA
A285: 1 | B285: SONIA MARGARITA | C285: HACEN MENOR | D285: 103-0005891-3 | E285: 200012700174020 | F285: Conserje | G285: Area Romana | H285: Clinica Higueral | I285: 5,000.00 | J285: 143.50 | K285: 152.00 | N285: 4,704.50 | O285: 2007-06-25
A286: =A285+1 -> 2 | B286: ANGELA | C286: MATEO VILLAR | D286: 026-0128058-5 | E286: 200011101189535 | F286: Conserje | G286: Area Romana | H286: Clinica Maria Trinidad Sanchez | I286: 5,000.00 | J286: 143.50 | K286: 152.00 | N286: 4,704.50 | O286: 2007-11-01
A287: =A286+1 -> 3 | B287: FRANCISCA | C287: NOLASCO | D287: 026-0031430-2 | E287: 200011101209541 | F287: Conserje | G287: Area Romana | H287: Unap Piedra Linda | I287: 5,000.00 | J287: 143.50 | K287: 152.00 | N287: 4,704.50 | O287: 2008-02-01
A288: 4 | B288: SANDRA | C288: CESPEDES PAYANO | D288: 026-0079070-9 | E288: 200011101209567 | F288: Conserje | G288: Area Romana | H288: Unap Cucama | I288: 5,000.00 | J288: 143.50 | K288: 152.00 | N288: 4,704.50 | O288: 2008-02-14
A289: 5 | B289: ROGELIO | C289: SOLANO SILVESTRE | D289: 026-0039613-5 | E289: 200011101253717 | F289: Sereno | G289: Area Romana | H289: Unap Los Mulos | I289: 5,000.00 | J289: 143.50 | K289: 152.00 | N289: 4,704.50 | O289: 2008-10-01
A290: 6 | B290: WARDIN | C290: SUERO GARCIA | D290: 026-0108716-2 | E290: 200011101253720 | F290: Sereno | G290: Area Romana | H290: Clinica Maria Trinidad Sanchez | I290: 5,000.00 | J290: 143.50 | K290: 152.00 | N290: 4,704.50 | O290: 2008-10-01
A291: 7 | B291: ELSA DEONICIA | C291: MERCEDES ORTIZ | D291: 026-0045084-1 | E291: 200011101292147 | F291: Lic.Enfermeria | G291: Area Romana | H291: Clinica Higueral | I291: 10,000.00 | J291: =I291*2.87% -> 287.00 | K291: =I291*3.04% -> 304.00 | N291: =I291-J291-K291 -> 9,409.00 | O291: 2009-08-03
A292: 8 | B292: MIGUEL RAMON | C292: TRAVIESO GARCIA | D292: 026-0063076-4 | E292: 200011101318814 | F292: Mayordomo | G292: Area Romana | H292: Clinica Villa Hermosa | I292: 5,000.00 | J292: =I292*2.87% -> 143.50 | K292: =I292*3.04% -> 152.00 | N292: =I292-J292-K292 -> 4,704.50 | O292: 2010-02-01
A293: 9 | B293: WANDA YUSIL | C293: DEL ROSARIO | D293: 026-0141280-8 | E293: 200011101318830 | F293: Aux. de Oficina | G293: Area Romana | H293: Clinica Villa Hermosa | I293: 5,000.00 | J293: 143.50 | K293: 152.00 | N293: 4,704.50 | O293: 2010-02-01
A294: 10 | B294: ENMA | C294: DE LOS SANTOS | D294: 026-0039834-7 | E294: 200011101326055 | F294: Conserje | G294: Area Romana | H294: UNAP Los Coco | I294: 5,000.00 | J294: 143.50 | K294: 152.00 | N294: 4,704.50 | O294: 2010-04-01
A295: 11 | B295: CARLOS ANT. | C295: CORDONES | D295: 295-0002936-7 | E295: 200011101479656 | F295: Sereno | G295: Area Romana | H295: UNAP KM 14 | I295: 5,000.00 | J295: 143.50 | K295: 152.00 | M295: 1,512.45 | N295: =I295-J295-K295-M295 -> 3,192.05 | O295: 2012-07-01
A296: 12 | B296: FERMIN | C296: RIJO | D296: 026-0061107-9 | E296: 200011101479481 | F296: Sereno | G296: Area Romana | H296: UNAP Luis J. Suarez | I296: 5,000.00 | J296: 143.50 | K296: 152.00 | N296: 4,704.50 | O296: 2012-08-01
A297: 13 | B297: DINORA E | C297: RAMIREZ DE LA CRUZ | D297: 026-0037001-5 | E297: 200011101561205 | F297: Seccretaria | G297: Area Romana | H297: Oficina area Romana | I297: 20,400.00 | J297: =I297*2.87% -> 585.48 | K297: =I297*3.04% -> 620.16 | M297: 0 | N297: =I297-J297-K297-M297 -> 19,194.36 | O297: 2014-03-01
A298: 14 | B298: MARGARITO | C298: CUETO ROSARIO | D298: 026-0043627-9 | E298: 200011101561218 | F298: Sereno | G298: Area Romana | H298: Clinica Villa Hermosa | I298: 5,000.00 | J298: 143.50 | K298: 152.00 | N298: 4,704.50 | O298: 2014-03-01
A299: 15 | B299: RAMONA GERTRUDIS | C299: HUNT S. | D299: 026-0044901-7 | E299: 200011101630699 | F299: Aux de farmacia | G299: Area Romana | H299: Unap Luis J. Suarez | I299: 7,750.00 | J299: 222.43 | K299: 235.60 | N299: 7,291.98 | O299: 2014-10-01
A300: 16 | B300: PROFECTA | C300: ACOSTA FERMIN | D300: 065-0018087-9 | E300: 20001110176884-6 | F300: Conserje | G300: Area Romana | H300: Unap Saona | I300: 5,000.00 | J300: 143.50 | K300: 152.00 | N300: 4,704.50 | O300: 2016-10-01
A301: 17 | B301: DOMINGA | C301: MEJIA | D301: 026-0079667-2 | E301: 20001110176885-9 | F301: Promotara | G301: Area Romana | H301: Unap conani | I301: 5,000.00 | J301: 143.50 | K301: 152.00 | N301: 4,704.50 | O301: 2016-12-01
A302: 18 | B302: MARIANO | C302: ANTONIO MARTE | D302: 026-0054441-1 | E302: 20001210107826-4 | F302: Sereno | G302: Area Romana | H302: Unap villa verde | I302: 5,000.00 | J302: 143.50 | K302: 152.00 | N302: 4,704.50 | O302: 2015-11-01
A303: 19 | B303: DAISY MARIA | C303: DE LEON FELIX | D303: 023-0088812-6 | E303: 200-01-960048617-0 | F303: Conserje | G303: Area Romana | H303: Unap villa hermosa | I303: 5,000.00 | J303: =I303*2.87% -> 143.50 | K303: =I303*3.04% -> 152.00 | N303: =I303-J303-K303 -> 4,704.50 | O303: 2017-08-01
... 59 more rows

Sheet Febrero 2024
B7: SERVICIOS REGIONALDE DE SALUD
B8: REGION V
B9: SAN PEDRO DE MACORIS, REPUBLICA DOMINICANA
B10: PERSONAL SPM
B11: Total de empleados contratado
B12: NOMINA CORRESPONDIENTE AL 30 DE FEBRERO AÑO 2024
B13: AREA SPM
B14: NOMBRE | C14: APELLIDO | D14: CEDULA | F14: CARGO | G14: DEPARTAMENTO | H14: LUGAR PRESTA SERVICIOS | I14: SUELDO BRUTO | J14: S/S | K14: SFS | L14: ISR | M14: D/A | N14: SUELDO NETO | O14: FECHA
A15: 1 | B15: PAULINO | C15: LUIS | D15: 024-0008005-3 | E15: 200011101179105 | F15: Vigilante | G15: Area SPM | H15: Clinica Quisqueya | I15: 5,000.00 | J15: =I15*2.87% -> 143.50 | K15: =I15*3.04% -> 152.00 | N15: =I15-J15-K15-M15 -> 4,704.50 | O15: 2007-05-08
A16: =A15+1 -> 2 | B16: PETRONILA ALT. | C16: PAYANO | D16: 023-0049840-5 | E16: 200011101178533 | F16: Conserje | G16: Area SPM | H16: Clinica Angelina | I16: 5,000.00 | J16: 143.50 | K16: 152.00 | M16: 0.00 | N16: 4,704.50 | O16: 2007-01-02
A17: =A16+1 -> 3 | B17: RUTH PRISCILA | C17: PEREZ | D17: 024-0009931-9 | E17: 200011101179118 | F17: Aux. Farmacia | G17: Area SPM | H17: Clinica Quisqueya | I17: 18,400.00 | J17: =I17*2.87% -> 528.08 | K17: =I17*3.04% -> 559.36 | M17: 0.00 | N17: 17,312.56 | O17: 2007-03-01
A18: 4 | B18: MARCELINO | C18: GUZMAN | D18: 024-0002608-0 | E18: 200011101179079 | F18: Sereno | G18: Area SPM | H18: Clinica El Puerto | I18: 5,000.00 | J18: 143.50 | K18: 152.00 | N18: 4,704.50 | O18: 2007-06-25
A19: 5 | B19: ANA MERCEDES | C19: DE LA CRUZ | D19: 023-0072812-4 | E19: 200011101178630 | F19: Conserje | G19: Area SPM | H19: Clinica Barrio Blanco | I19: 5,000.00 | J19: 143.50 | K19: 152.00 | N19: 4,704.50 | O19: 2007-06-01
A20: 6 | B20: FRANCISCA | C20: POMUCENO SORIANO | D20: 024-0004970-2 | E20: 200011101179095 | F20: Conserje | G20: Area SPM | H20: Clinica Guayabal | I20: 5,000.00 | J20: =I20*2.87% -> 143.50 | K20: =I20*3.04% -> 152.00 | N20: 4,704.50 | O20: 2007-07-02
A21: 7 | B21: SIMONA | C21: PEGUERO HERNANDEZ | D21: 024-0012760-7 | E21: 200011101179134 | F21: Conserje | G21: Area SPM | H21: Clinica Honduras | I21: 5,000.00 | J21: 143.50 | K21: 152.00 | N21: 4,704.50 | O21: 2007-07-02
A22: 8 | B22: LEONEL | C22: DE LA CRUZ HERNANDEZ | D22: 024-0013605-3 | E22: 200011101179150 | F22: Sereno | G22: Area SPM | H22: Clinica Honduras | I22: 5,000.00 | J22: 143.50 | K22: 152.00 | N22: 4,704.50 | O22: 2007-07-02
A23: 9 | B23: JUAN JOSE | C23: JUAN JEAN | D23: 023-0137052-0 | E23: 200011101179053 | F23: Sereno | G23: Area SPM | H23: Unap Batey Esperanza | I23: 5,000.00 | J23: 143.50 | K23: 152.00 | N23: 4,704.50 | O23: 2007-07-18
A24: 10 | B24: RAMON A. | C24: PEGUERO AQUINO | D24: 023-0057845-3 | E24: 200011101178591 | F24: Sereno | G24: Area SPM | H24: Unap Angelina | I24: 5,000.00 | J24: 143.50 | K24: 152.00 | N24: 4,704.50 | O24: 2007-07-23
A25: 11 | B25: MARIA DEL C. | C25: LARA MENDEZ | D25: 023-0064326-5 | E25: 200011101180686 | F25: Atencion al Usuario | G25: Area SPM | H25: Clinica Porvenir | I25: 7,000.00 | J25: 200.90 | K25: 212.80 | N25: 6,586.30 | O25: 2007-08-01
A26: 12 | B26: ALEX | C26: ROMBLEY | D26: 023-0126548-0 | E26: 200011101180709 | F26: Sereno | G26: Area SPM | H26: Clinica Porvenir | I26: 8,318.04 | J26: =I26*2.87% -> 238.73 | K26: =I26*3.04% -> 252.87 | N26: 7,826.44 | O26: 2007-09-13
A27: 13 | B27: REYNA ISABEL | C27: MORLA DE A. | D27: 023-0066599-5 | E27: 200011101253636 | F27: Bioanalista | G27: Area SPM | H27: Clinica Barrio Lindo | I27: 18,312.00 | J27: =I27*2.87% -> 525.55 | K27: =I27*3.04% -> 556.68 | L27: 0.00 | M27: 0.00 | N27: 17,229.76 | O27: 2008-09-11
A28: 14 | B28: EVA | C28: MATEO FERRERAS | D28: 023-0011428-3 | E28: 200012700173856 | F28: Medico General | G28: Area SPM | H28: UNAP Uasd | I28: 28,657.01 | J28: 822.46 | K28: 871.17 | M28: 0.00 | N28: 26,963.38 | O28: 2007-08-08
A29: 15 | B29: JOSE | C29: CALAZAN CALMONA | D29: 027-0013504-5 | E29: 200011101209570 | F29: Sereno | G29: Area SPM | H29: UNAP las colinas | I29: 5,000.00 | J29: 143.50 | K29: 152.00 | N29: 4,704.50 | O29: 2008-02-21
A30: 16 | B30: BEATRIZ ALT. | C30: SEVERINO | D30: 023-0084459-0 | E30: 200011101224225 | F30: Odontologa | G30: Area SPM | H30: UNAP Barrio Blanco | I30: 24,000.00 | J30: =I30*2.87% -> 688.80 | K30: =I30*3.04% -> 729.60 | M30: 0.00 | N30: 22,581.60 | O30: 2008-03-17
A31: 17 | B31: CARIDAD TODMAN | C31: DE LOS SANTOS | D31: 023-0041126-7 | E31: 200011101224209 | F31: Enfermera Aux. | G31: Area SPM | H31: unap Monte coca | I31: 11,596.60 | J31: =I31*2.87% -> 332.82 | K31: =I31*3.04% -> 352.54 | M31: 0.00 | N31: 10,911.24 | O31: 2008-04-01
A32: 18 | B32: PEDRO | C32: ZORRILLA | D32: 023-0017693-6 | E32: 200011101231865 | F32: Sereno Clinica | G32: Area SPM | H32: UNAP Barrio Blanco | I32: 5,000.00 | J32: =I32*2.87% -> 143.50 | K32: =I32*3.04% -> 152.00 | N32: 4,704.50 | O32: 2008-04-30
A33: 19 | B33: FRANCISCO A | C33: CASTRO R. | D33: 023-0005830-8 | E33: 200011101245945 | F33: Auxiliar de almacen | G33: Area SPM | H33: Almacen Regional | I33: 9,600.00 | J33: =I33*2.87% -> 275.52 | K33: =I33*3.04% -> 291.84 | N33: 9,032.64 | O33: 2008-08-01
A34: 20 | B34: ODILE A. | C34: MILIAN MCCABE | D34: 023-0025423-8 | E34: 200011101253597 | F34: Aux. de Bioanalisis | G34: Area SPM | H34: Unap porvenir | I34: 22,000.00 | J34: =I34*2.87% -> 631.40 | K34: =I34*3.04% -> 668.80 | M34: 3,024.90 | N34: 17,674.90 | O34: 2008-09-01
A35: 21 | B35: JUANA | C35: MORLA POLANCO | D35: 026-0113870-0 | E35: 200011101253733 | F35: Conseje | G35: Area SPM | H35: UNAP Batey Jagual | I35: 5,000.00 | J35: 143.50 | K35: 152.00 | N35: 4,704.50 | O35: 2008-09-01
A36: 22 | B36: ANA JULIA | C36: MENDEZ BRITO | D36: 011-0000744-0 | E36: 200011101253568 | F36: Aux. Enfermera | G36: Area SPM | H36: Unap Evangelina Rodriguez | I36: 13,000.00 | J36: =I36*2.87% -> 373.10 | K36: =I36*3.04% -> 395.20 | L36: 0.00 | M36: 0.00 | N36: 12,231.70 | O36: 2008-10-08
A37: 23 | B37: YVELISSE E. | C37: ASTACIO PEÑA | D37: 023-0003063-8 | E37: 200011101278064 | F37: Conserje | G37: SRS ESTE | H37: Oficina Regional | I37: 8,050.00 | J37: =I37*2.87% -> 231.04 | K37: =I37*3.04% -> 244.72 | L37: 0.00 | M37: 1,512.45 | N37: 6,061.80 | O37: 2009-01-19
A38: 24 | B38: EPIFANIO | C38: CALDERON | D38: 023-0058958-3 | E38: 200011101272633 | F38: Sereno | G38: Area SPM | H38: Clinica Santa fe | I38: 5,000.00 | J38: 143.50 | K38: 152.00 | N38: 4,704.50 | O38: 2009-02-01
A39: 25 | B39: FRANCISCO DE J. | C39: MATICH CASTRO | D39: 023-0028027-4 | E39: 200011101272688 | F39: Auxiliar de almacen | G39: SRS ESTE | H39: Almacen Regional | I39: 9,600.00 | J39: =I39*2.87% -> 275.52 | K39: =I39*3.04% -> 291.84 | N39: 9,032.64 | O39: 2009-02-01
A40: 26 | B40: YERNIS NOEMIS | C40: POCHE F. | D40: 024-0022376-0 | E40: 200011101294556 | F40: Secretaria | G40: Area SPM | H40: clinica Quisqueya | I40: 8,000.00 | J40: 229.60 | K40: 243.20 | N40: 7,527.20 | O40: 2009-08-03
A41: 27 | B41: JOAQUIN | C41: EUSEBIO | D41: 024-0013633-5 | E41: 200011101310155 | F41: Sereno | G41: Area SPM | H41: Clinica Cayacoa | I41: 5,000.00 | J41: 143.50 | K41: 152.00 | N41: 4,704.50 | O41: 2009-12-01
A42: 28 | B42: ROSA SANCHEZ | C42: CABRERA | D42: 023-0109901-2 | E42: 200011101318759 | F42: Conserje | G42: Area SPM | H42: Clinica Porvenir | I42: 8,000.00 | J42: 229.60 | K42: 243.20 | N42: 7,527.20 | O42: 2010-02-01
A43: 29 | B43: GENOVEVA | C43: WILLIAMS DE LA CRUZ | D43: 023-0016490-8 | E43: 200011101325962 | F43: Conserje | G43: Area SPM | H43: UNAP Santa Clara | I43: 6,000.00 | J43: 172.20 | K43: 182.40 | N43: 5,645.40 | O43: 2010-04-01
A44: 30 | B44: BIENVENIDO | C44: BUSTAMANTE GUZMAN | D44: 023-0074695-1 | E44: 200011101358201 | F44: Soporte tecnico | G44: SRS ESTE | H44: Dpto. Publicidad | I44: 6,000.00 | J44: 172.20 | K44: 182.40 | M44: 0.00 | N44: 5,645.40 | O44: 2010-09-01
A45: 31 | B45: VICTOR | C45: NATERA | D45: 024-0006526-0 | E45: 200011101393460 | F45: Sereno | G45: Area SPM | H45: Unap Quisquella | I45: 5,000.00 | J45: 143.50 | K45: 152.00 | N45: 4,704.50 | O45: 2011-03-01
A46: 32 | B46: MIKI | C46: HEREDIA | D46: 023-0115037-7 | E46: 200011101420074 | F46: Aux. de farmacia | G46: Area SPM | H46: Unap Villa Faro | I46: 15,187.50 | J46: 435.88 | K46: 461.70 | N46: 14,289.92 | O46: 2012-10-12
A47: 33 | B47: ESTHER | C47: HINOJOSA | D47: 025-0009474-9 | E47: 200011101419959 | F47: Laboratorio | G47: Area SPM | H47: Unap Povenir | I47: 13,312.00 | J47: 382.05 | K47: 404.68 | N47: 12,525.26 | O47: 2012-10-05
A48: 34 | B48: ANA LUISA | C48: JEAN JOSEPH | D48: 027-0039773-6 | E48: 200011101479562 | F48: Conserje | G48: Area SPM | H48: unap Monte coca | I48: 5,000.00 | J48: 143.50 | K48: 152.00 | N48: 4,704.50 | O48: 2012-04-01
A49: 35 | B49: FROILAN | C49: VALDEZ LORENZO | D49: 011-0028087-2 | E49: 200011101571020 | F49: Sonografista | G49: Area SPM | H49: Centro de Diagnostico | I49: 30,000.00 | J49: 861.00 | K49: 912.00 | N49: 28,227.00 | O49: 2013-01-02
A50: 36 | B50: JOSE | C50: CASIMIRO | D50: 023-0097175-7 | E50: 200011101619623 | F50: Sereno | G50: Area SPM | H50: unap porvenir | I50: 5,000.00 | J50: 143.50 | K50: 152.00 | N50: 4,704.50 | O50: 2014-09-01
A51: 37 | B51: CARY ROSEMARY | C51: SANTANA JABALERA | D51: 023-0117440-1 | E51: 200011101632914 | F51: Enfermera | G51: Area SPM | H51: unap San Martin de Pobre | I51: 8,000.00 | J51: 229.60 | K51: 243.20 | N51: 7,527.20 | O51: 2015-04-01
A52: 38 | B52: NICOLAS | C52: DIAZ VALENZUELA | D52: 023-0103775-6 | E52: 200011101711644 | F52: Sereno | G52: Area SPM | H52: Unap barrio lindo | I52: 6,000.00 | J52: 172.20 | K52: 182.40 | N52: 5,645.40 | O52: 2014-01-01
A53: 39 | B53: MARIA ALT. | C53: POLANCO | D53: 024-0011102-3 | E53: 200011101711592 | F53: Conserje | G53: Area SPM | H53: Unap Quisqueya | I53: 5,000.00 | J53: 143.50 | K53: 152.00 | N53: 4,704.50 | O53: 2014-09-01
A54: 40 | B54: YUDELKIS | C54: FLEMING HODGE | D54: 023-0092307-1 | E54: 200011101711903 | F54: Conserje | G54: Area SPM | H54: unap cachena | I54: 5,000.00 | J54: 143.50 | K54: 152.00 | N54: 4,704.50 | O54: 2014-11-01
A55: 41 | B55: LICETTE | C55: JIMENEZ GARCIA | D55: 023-0020559-4 | E55: 200011101711628 | F55: Conserje | G55: Area SPM | H55: Unap San Martin de Porre | I55: 5,000.00 | J55: 143.50 | K55: 152.00 | N55: 4,704.50 | O55: 2015-05-01
A56: 42 | B56: BASILIA E. | C56: JOSE CIRIACO | D56: 023-0040467-6 | E56: 200011101711796 | F56: Conserje | G56: Area SPM | H56: Unap cachena | I56: 5,000.00 | J56: 143.50 | K56: 152.00 | N56: 4,704.50 | O56: 2015-06-01
A57: 43 | B57: BASILIO | C57: CALDERON MEDINA | D57: 027-0018363-1 | E57: 200011101711631 | F57: Sereno | G57: Area SPM | H57: Unap camara Junior | I57: 5,000.00 | J57: 143.50 | K57: 152.00 | N57: 4,704.50 | O57: 2016-02-02
A58: 44 | B58: NELCIDA YOLADIS | C58: LINARES | D58: 023-0153307-7 | E58: 200011101711851 | F58: Enfermera | G58: Area SPM | H58: Unap brisal | I58: 8,000.00 | J58: 229.60 | K58: 243.20 | N58: 7,527.20 | O58: 2016-01-01
A59: 45 | B59: MARIA | C59: NIEVES MARTE | D59: 023-0084538-1 | E59: 200011101711848 | F59: Conserje | G59: Area SPM | H59: Unap Juan Dolio | I59: 5,000.00 | J59: 143.50 | K59: 152.00 | N59: 4,704.50 | O59: 2014-04-01
A60: 46 | B60: MERCEDES | C60: DANIEL DELGADO | D60: 024-0013600-4 | E60: 200-01-110-173833-9 | F60: Conserje | G60: Area SPM | H60: Unap Hondura | I60: 5,000.00 | J60: =I60*2.87% -> 143.50 | K60: =I60*3.04% -> 152.00 | M60: 0.00 | N60: 4,704.50 | O60: 2014-06-01
A61: 47 | B61: DARIO FRANCISCO | C61: PIE BLAKE | D61: 023-0128257-6 | E61: 200-01-110-176947-6 | F61: Sereno | G61: Area SPM | H61: Unap consuelito | I61: 5,000.00 | J61: 143.50 | K61: 152.00 | N61: 4,704.50 | O61: 2016-07-01
A62: 48 | B62: ALTAGRACIA MEDISA | C62: SEGUIILIS | D62: 023-0077279-1 | E62: 200-01-110-176946-3 | F62: Conserje | G62: Area SPM | H62: Unap consuelito | I62: 5,000.00 | J62: 143.50 | K62: 152.00 | N62: 4,704.50 | O62: 2016-07-01
A63: 49 | B63: ROSMERY | C63: SERRA HERNANDEZ | D63: 023-0138681-5 | E63: 200-01-110-176948-9 | F63: Conserje | G63: Area SPM | H63: Unap Bo. Mexico | I63: 5,000.00 | J63: 143.50 | K63: 152.00 | N63: 4,704.50 | O63: 2017-01-01
A64: 50 | B64: DIONICIO MADRIGAL | C64: GARCIA | D64: 023-0065771-1 | E64: 200-01-960048618-2 | F64: Sereno | G64: Area SPM | H64: UNAP punta de garza | I64: 5,000.00 | J64: 143.50 | K64: 152.00 | N64: 4,704.50 | O64: 2017-07-01
A65: 51 | B65: HECTOR MIGUEL | C65: A.MEDRANO | D65: 023-0012798-8 | E65: 200-01-960-087688-8 | F65: Seguridad | G65: Area SPM | H65: unap Evan Rodriguez | I65: 6,000.00 | J65: 172.20 | K65: 182.40 | N65: 5,645.40 | O65: 2018-04-01
A66: 52 | B66: ESTALIN MARIA | C66: I.MORALES | D66: 024-0026614-0 | E66: 200-01-960-087688-9 | F66: Promotora | G66: Area SPM | H66: unap el puerto | I66: 5,000.00 | J66: 143.50 | K66: 152.00 | N66: 4,704.50 | O66: 2018-04-01
A67: 53 | B67: RAY LUIS | C67: JUSTO | D67: 402-2391439-7 | E67: 200-01-9603556921 | F67: Bionalista | G67: Area SPM | H67: Hosp. Alejo Martinez | I67: 24,000.00 | J67: 688.80 | K67: 729.60 | M67: 1,512.45 | N67: 21,069.15 | O67: 2018-04-01
A68: 54 | B68: MARLENYS RAMONA | C68: QUEVEDO ENCARNACION | D68: 011-347480-3 | E68: 200-01-9601807866 | F68: Medico Asistente | G68: Area SPM | H68: UNAP Don Juan | I68: 30,000.00 | J68: 861.00 | K68: 912.00 | N68: 28,227.00 | O68: 2018-05-19
A69: 55 | B69: LICITANIA | C69: MADRIGAL TEJEDA | D69: 024-0016779-3 | E69: 200-01-9601807868 | F69: Conserje | G69: Area SPM | H69: UNAP Quisqueya | I69: 5,000.00 | J69: =I69*2.87% -> 143.50 | K69: =I69*3.04% -> 152.00 | N69: 4,704.50 | O69: 2018-07-01
A70: 56 | B70: VICTOR MANUEL | C70: POLANCO | D70: 023-0022044-5 | E70: 200-01-1101346666 | F70: Medico Asistente | G70: Area SPM | H70: Monte Coca | I70: 30,000.00 | J70: 861.00 | K70: 912.00 | N70: 28,227.00 | O70: 2019-04-01
A71: 57 | B71: OSCAR ANDRES | C71: ENCARNACION MORALES | D71: 402-4204417-6 | E71: 200-01-9603057742 | F71: Digitador | G71: Area SPM | H71: Centro de Diagnostico | I71: 8,000.00 | J71: =I71*2.87% -> 229.60 | K71: =I71*3.04% -> 243.20 | N71: 7,527.20 | O71: 2019-07-01
A72: 58 | B72: RAMON | C72: GIL | D72: 023-0007034-5 | E72: 200-01-9603057696 | F72: Licencia a sereno | G72: Area SPM | H72: Oficina de area | I72: 5,000.00 | J72: =I72*2.87% -> 143.50 | K72: =I72*3.04% -> 152.00 | N72: 4,704.50 | O72: 2019-04-01
A73: 59 | B73: JACINTO | C73: ORTEGA | D73: 023-0032092-2 | E73: 200-01-9603057701 | F73: Sereno | G73: Area SPM | H73: Uunap cumayasa | I73: 6,500.00 | J73: =I73*2.87% -> 186.55 | K73: =I73*3.04% -> 197.60 | N73: 6,115.85 | O73: 2019-08-31
A74: 60 | B74: YENI ALT. | C74: GUERRERO MENDEZ | D74: 023-0117014-4 | E74: 200-01-9603057694 | F74: Conserje | G74: Area SPM | H74: Unap aleman | I74: 4,000.00 | N74: 4,000.00 | O74: 2019-10-01
A75: 61 | B75: FLOR MARIA | C75: SALICHE | D75: 023-0015353-9 | E75: 200-01-9603057693 | F75: Conserje | G75: Area SPM | H75: Centro de Diagnostico | I75: 5,000.00 | J75: =I75*2.87% -> 143.50 | K75: =I75*3.04% -> 152.00 | L75: 0.00 | N75: 4,704.50 | O75: 2020-01-02
A76: 62 | B76: JEANINA | C76: CASTILLO MUÑOZ | D76: 023-0135235-3 | E76: 200-01-9603057692 | F76: Conserje | G76: Area SPM | H76: Unap barrio Lindo SPM | I76: 8,000.00 | J76: 229.60 | K76: 243.20 | N76: 7,527.20 | O76: 2020-01-04
A77: 63 | B77: MASILLON | C77: BENJAMIN | D77: 030-0001180-3 | E77: 200-01-9603140108 | F77: Sereno | G77: SRS ESTE | H77: Unap Margarita | I77: 5,000.00 | J77: 143.50 | K77: 152.00 | N77: 4,704.50 | O77: 13/10/2020
A78: 64 | B78: EUNICE ELAYNE | C78: DE LA CRUZ CASTRO | D78: 4022056974-9 | E78: 200-01-9603202129 | F78: Aux. de farmacia | G78: Area SPM | H78: Unap pedro justo carrion | I78: 12,000.00 | J78: 344.40 | K78: 364.80 | N78: =I78-J78-K78-M78 -> 11,290.80 | O78: 2020-11-01
A79: 65 | B79: SANTA | C79: MEDINA | D79: 023-0164982-4 | E79: 200-01-960-3396546 | F79: Conserje | G79: Area SPM | H79: UNAP punta pescadora | I79: 5,000.00 | J79: 143.50 | K79: 152.00 | N79: 4,704.50 | O79: 2/Enero/2021
A80: 66 | B80: PORFIRIO | C80: ZORRILLA | D80: 024-0010756-7 | E80: 200-01-9603356888 | F80: Sereno | G80: SRS-ESTE | H80: Oficina Regional | I80: 10,000.00 | J80: 287.00 | K80: 304.00 | N80: 9,409.00 | O80: 2/Enero/2021
A81: =A80+1 -> 67 | B81: ANA | C81: SOLANO | D81: 402-2667422-0 | E81: 200-01-9603403020 | F81: Conserje | G81: Area SPM | H81: Unap punta pescadora | I81: 5,000.00 | J81: 143.50 | K81: 152.00 | N81: 4,704.50 | O81: 2/Enero/2021
A82: 68 | B82: ANGELA | C82: DELONEY RINCON | D82: 023-0050103-4 | E82: 200-01-9603551741 | F82: Conserje | G82: Area SPM | H82: Unap Angelina | I82: 5,000.00 | J82: 143.50 | K82: 152.00 | N82: 4,704.50 | O82: 2021-01-04
A83: 69 | B83: ROLANDO GREGORIO | C83: PASCUAL | D83: 027-0034973-7 | E83: 200-01-9603648040 | F83: Sereno | G83: Area SPM | H83: unap Monte coca | I83: 5,000.00 | J83: 143.50 | K83: 152.00 | N83: 4,704.50 | O83: 2021-01-04
A84: 70 | B84: GUILLERMO | C84: BAUTISTA RAMIREZ | D84: 008-0024361-0 | E84: 200-01-9603798315 | F84: Sereno | G84: Area SPM | H84: unap alejandro bass | I84: 5,000.00 | J84: 143.50 | K84: 152.00 | N84: 4,704.50 | O84: 2021-01-05
A85: 71 | B85: SADRACK YRBIN | C85: GUILLEN | D85: 023-0116102-8 | E85: 200-01-9603798311 | F85: Sereno | G85: Area SPM | H85: Placer Bonito | I85: 5,000.00 | J85: 143.50 | K85: 152.00 | N85: 4,704.50 | O85: 2021-01-05
A86: 72 | B86: EMELY PATRICIA | C86: RODRIGUEZ ORTEGA | D86: 402-1141418-6 | E86: 200-01-9603808655 | F86: Asistente de informacion | G86: Area SPM | H86: Gerencia de area | I86: 8,000.00 | J86: 229.60 | K86: 243.20 | N86: 7,527.20 | O86: 2021-01-06
A87: 73 | B87: MANUEL | C87: LOPEZ GONZALEZ | D87: 001-1032723-6 | E87: 200-01-9603964966 | F87: Sereno | G87: Area SPM | H87: Unap Gautier | I87: 7,000.00 | J87: 200.90 | K87: 212.80 | N87: 6,586.30 | O87: 2021-01-06
A88: 74 | B88: ROBERTO ANTONIO | C88: DE LA CRUZ | D88: 023-0004082-7 | E88: 200-01-9604126996 | F88: Chofer | G88: SRS-ESTE | H88: Dpto. de Odontologia | I88: 18,000.00 | J88: 516.60 | K88: 547.20 | N88: 16,936.20 | O88: 2021-10-01
A89: 75 | B89: DOROTEO | C89: DE LA CRUZ CARRASCO | D89: 049-0042143-1 | E89: 200-01-9604126997 | F89: Seguridad | G89: Area SPM | H89: Placer Bonito | I89: 7,000.00 | J89: 200.90 | K89: 212.80 | N89: 6,586.30 | O89: 2021-10-01
A90: 76 | B90: MANOLO | C90: MARTINEZ | D90: 001-1040251-8 | E90: 200-01-9604266453 | F90: Seguridad | G90: Area SPM | H90: Unap Villa Faro | I90: 5,000.00 | J90: 143.50 | K90: 152.00 | N90: 4,704.50 | O90: 2021-09-01
A91: 77 | B91: JOSE ANIIBAL | C91: FRANCISCO DANIEL | D91: 024-0027728-7 | E91: 200-01-9604334570 | F91: Seguridad | G91: Area SPM | H91: Unap Paloma | I91: 5,000.00 | J91: 143.50 | K91: 152.00 | N91: 4,704.50 | O91: 2021-12-01
A92: 78 | B92: MIGUEL | C92: NUÑEZ MAZARA | D92: 025-0001585-0 | E92: 200-01-9604334568 | F92: Seguridad | G92: SRS-ESTE | H92: Oficina Regional | I92: 7,000.00 | J92: 200.90 | K92: 212.80 | N92: 6,586.30 | O92: 2021-12-01
A93: 79 | B93: JESUS MANUEL | C93: GARCIA | D93: 402-2376092-3 | E93: 200-01-120225003-6 | F93: Seguridad | G93: SRS-ESTE | H93: Almacen Regional | I93: 5,000.00 | J93: 143.50 | K93: 152.00 | N93: 4,704.50 | O93: 2016-07-01
A94: 80 | B94: HIPOLITO | C94: TOLENTINO | D94: 023-0084491-3 | E94: 960-455925-7 | F94: Seguridad | G94: Area SPM | H94: Unap Villa Faro | I94: 5,000.00 | J94: 143.50 | K94: 152.00 | N94: 4,704.50 | O94: 2022-02-08
A95: 81 | B95: STARLYN | C95: ALCANTARA | D95: 023-0166567-1 | E95: 960-514422-6 | F95: Seguridad | G95: Area SPM | H95: Unap el Brisal | I95: 5,000.00 | J95: 143.50 | K95: 152.00 | N95: 4,704.50 | O95: 2022-09-01
A96: 82 | B96: YAQUELIN AUDILIA | C96: RICHARSON PEÑA | D96: 030-0003307-0 | E96: 960-525593-0 | F96: Conserje | G96: Area SPM | H96: Unap Batey soco | I96: 5,000.00 | J96: 143.50 | K96: 152.00 | N96: 4,704.50 | O96: 2022-10-01
A97: 83 | B97: MANUEL DE JESUS | C97: LORA | D97: 023-0020611-3 | E97: 960-532825-5 | F97: Seguridad | G97: SRS-ESTE | H97: Oficina Regional | I97: 7,000.00 | J97: 200.90 | K97: 212.80 | N97: 6,586.30 | O97: 2022-11-01
A98: 84 | B98: DIGNA | C98: ROSARIO JAVIER | D98: 023-0143527-3 | E98: 960540890-2 | F98: Conserje | G98: Area SPM | H98: UNAP Santa Fe | I98: 5,000.00 | J98: 143.50 | K98: 152.00 | N98: 4,704.50 | O98: 2022-12-01
A99: 85 | B99: AIDA | C99: PEREZ NATERA | D99: 011-714807-2 | E99: 960-506293-3 | F99: Conserje | G99: Area SPM | H99: Unap las Goutier | I99: 5,000.00 | J99: 143.50 | K99: 152.00 | N99: 4,704.50 | O99: 2023-03-01
A100: 86 | B100: ESTEBANIA | C100: MELLA WILLIAMS | D100: 402-2020200-2 | E100: 9605815583 | F100: Conserje | G100: Area SPM | H100: CPN IDSS Consuelo | I100: 5,000.00 | J100: 143.50 | K100: 152.00 | N100: =I100-J100-K100-M100 -> 4,704.50 | O100: 2023-04-01
A101: 87 | B101: FREDDY | C101: FELICIANO | D101: 027-0022474-0 | E101: 9606189132 | F101: Sereno | G101: Area SPM | H101: CPN el Brisal | I101: 5,000.00 | J101: 143.50 | K101: 152.00 | N101: =I101-J101-K101-M101 -> 4,704.50 | O101: 2023-05-01
A102: 88 | B102: ROSA | C102: HERNANDEZ | D102: 023-01286841 | E102: 9606377959 | F102: Conserje | G102: Area SPM | H102: CPN Esperanza | I102: 5,000.00 | J102: 143.50 | K102: 152.00 | N102: =I102-J102-K102-M102 -> 4,704.50 | O102: 1//10/2023
B103: Total de empleados contratado | I103: =SUM(I15:I102) -> 729,533.15 | J103: =SUM(J15:J102) -> 20,822.80 | K103: =SUM(K15:K102) -> 22,056.21 | L103: =SUM(L15:L99) -> 0.00 | M103: =SUM(M15:M99) -> 6,049.80 | N103: =SUM(N15:N102) -> 680,604.34
C110: LIC. YUDELKY JABALERA | H110: DR. RICARDO JULIO ROMERO
B111: ADMINISTRADORA | H111: DIRECTOR
B137: REGION V
B138: SAN PEDRO DE MACORIS, REPUBLICA DOMINICANA
B139: RNC 430041793
B140: NOMINA CORRESPONDIENTE AL 30 DE FEBRERO AÑO 2024
B141: PERSONAL AREA DE HATO MAYOR
B142: NOMBRE | C142: APELLIDO | D142: CEDULA | E142: No. CUENTA | F142: CARGO | G142: DEPARTAMENTO | H142: LUGAR PRESTA SERVICIOS | I142: SUELDO BRUTO | J142: S/S | K142: SFS | L142: ISR | M142: D/A | N142: SUELDO NETO | O142: FECHA
A143: 1 | B143: CARMEN I. | C143: SANTANA P. | D143: 027-0005223-2 | E143: 200011120165796 | F143: Aux. de enfermeria | G143: Area Hato Mayor | H143: Clinica Morquecho | I143: 11,786.00 | J143: =I143*2.87% -> 338.26 | K143: =I143*3.04% -> 358.29 | M143: 0.00 | N143: =I143-J143-K143-M143 -> 11,089.45 | O143: 2006-09-11
A144: =A143+1 -> 2 | B144: SULINDA | C144: MOTA DE SALAS | D144: 100-0007282-6 | E144: 200011120165880 | F144: Conserje | G144: Area Hato Mayor | H144: Clinica Yanigua | I144: 5,000.00 | J144: 143.50 | K144: 152.00 | N144: 4,704.50 | O144: 2007-01-02
A145: =A144+1 -> 3 | B145: DOMINGO A. | C145: PEGUERO LUNA | D145: 100-0002222-7 | E145: 200011120165864 | F145: Viglante | G145: Area Hato Mayor | H145: Clinica Yanigua | I145: 5,000.00 | J145: 143.50 | K145: 152.00 | N145: 4,704.50 | O145: 2007-04-02
A146: 4 | B146: MARIA | C146: NOLASCO | D146: 100-0000817-6 | E146: 200011120166148 | F146: Conserje | G146: Area Hato Mayor | H146: Clinica El valle | I146: 7,000.00 | J146: 143.50 | K146: 152.00 | N146: 6,704.50 | O146: 2007-02-01
A147: 5 | B147: NIURKA A. | C147: AQUINO JAVIER | D147: 100-0000180-9 | E147: 200011120165848 | F147: Tecnica Farmacia | G147: Area Hato Mayor | H147: Hospital el Valle | I147: 11,786.00 | J147: =I147*2.87% -> 338.26 | K147: =I147*3.04% -> 358.29 | M147: 0.00 | N147: =I147-J147-K147-M147 -> 11,089.45 | O147: 2007-08-01
A148: 6 | B148: ZENOVIA | C148: TRINIDAD MARTINEZ | D148: 023-0002962-2 | E148: 200011120165738 | F148: Conserje | G148: Area Hato Mayor | H148: Villa Navarro | I148: 5,000.00 | J148: 143.50 | K148: 152.00 | N148: 4,704.50 | O148: 2007-08-08
A149: 7 | B149: MIGUEL ISABEL | C149: VASQUEZ | D149: 027-0003867-8 | E149: 200011120143844 | F149: Chofer | G149: Area Hato Mayor | H149: Oficina area | I149: 8,000.00 | J149: 229.60 | K149: 243.20 | N149: 7,527.20 | O149: 2010-02-01
A150: 8 | B150: ANGELA | C150: RIVERA | D150: 027-0004711-7 | E150: 200011101333637 | F150: Conserje | G150: Area Hato Mayor | H150: UNAP Ondina | I150: 5,000.00 | J150: 143.50 | K150: 152.00 | N150: 4,704.50 | O150: 2010-06-01
A151: 9 | B151: FELIX | C151: CANARIO | D151: 027-0003530-2 | E151: 200011101393509 | F151: Sereno | G151: Area Hato Mayor | H151: Unap Ondina | I151: 5,000.00 | J151: =I151*2.87% -> 143.50 | K151: =I151*3.04% -> 152.00 | N151: =I151-J151-K151 -> 4,704.50 | O151: 2011-03-01
A152: 10 | B152: ELSA AURORA | C152: ZORRILLA | D152: 027-0028845-5 | E152: 200011101479559 | F152: Conserje | G152: Area Hato Mayor | H152: UNAP Punta de Garza | I152: 5,000.00 | J152: 143.50 | K152: 152.00 | N152: 4,704.50 | O152: 2012-06-01
A153: 11 | B153: CARMEN | C153: DE LA CRUZ TORREZ | D153: 027-0002151-8 | E153: 200011101479546 | F153: Conserje | G153: Area Hato Mayor | H153: Unap La China | I153: 5,000.00 | J153: 143.50 | K153: 152.00 | N153: 4,704.50 | O153: 2012-11-01
A154: 12 | B154: YAQUELIN | C154: CASTILLO MONEGRO | D154: 027-0039926-0 | E154: 200011120292627 | F154: Conserje | G154: Area Hato Mayor | H154: Unap la Javilla | I154: 5,000.00 | J154: 143.50 | K154: 152.00 | N154: 4,704.50 | O154: 2014-07-01
A155: 13 | B155: YARELIS | C155: GOMEZ REYES | D155: 027-0042030-6 | E155: 200011120292588 | F155: Conserje | G155: Area Hato Mayor | H155: Unap la plaza | I155: 5,000.00 | J155: 143.50 | K155: 152.00 | N155: 4,704.50 | O155: 2014-10-01
A156: 14 | B156: RUDELANIA | C156: OVALLE VEGA | D156: 023-0110894-6 | E156: 200011120292601 | F156: Medico asistente | G156: Area Hato Mayor | H156: Unap la plaza | I156: 20,000.00 | J156: 574.00 | K156: 608.00 | N156: 18,818.00 | O156: 2014-10-01
A157: 15 | B157: CLAUDIA M. | C157: RINCON COLIN | D157: 027-0046976-6 | E157: 200011120292591 | F157: Enfermera | G157: Area Hato Mayor | H157: Unap la plaza | I157: 7,000.00 | J157: 200.90 | K157: 212.80 | N157: 6,586.30 | O157: 2014-10-01
A158: 16 | B158: RAFAEL | C158: GONZALEZ | D158: 027-0024756-8 | E158: 200011101717211 | F158: Sereno | G158: Area Hato Mayor | H158: Unap km 15 Hato Mayor | I158: 5,000.00 | J158: 143.50 | K158: 152.00 | N158: 4,704.50 | O158: 2015-08-01
A159: 17 | B159: CARINYS MARIEL | C159: LOPEZ | D159: 402-2032423-6 | E159: 200-01-960048617-1 | F159: Promotora de salud | G159: Area Hato Mayor | H159: Oficina area | I159: 6,900.00 | J159: =I159*2.87% -> 198.03 | K159: =I159*3.04% -> 209.76 | M159: 0.00 | N159: =I159-J159-K159-M159 -> 6,492.21 | O159: 2017-10-01
A160: 18 | B160: YOHARKY | C160: LORENZO ABREU | D160: 025-0037069-3 | E160: 200-01-960-087689-0 | F160: Aux. de enfermeria | G160: Area Hato Mayor | I160: 9,000.00 | J160: 258.30 | K160: 273.60 | N160: =I160-J160-K160 -> 8,468.10 | O160: 2018-05-01
A161: 19 | B161: TAIRA MARIA | C161: GONZALEZ | D161: 100-0004525-1 | E161: 200-01-270-017401-7 | F161: Farmaceutica | G161: Area Hato Mayor | H161: Hospital el valle | I161: 18,400.00 | J161: 528.08 | K161: 559.36 | N161: =I161-J161-K161 -> 17,312.56 | O161: 2018-07-01
A162: 20 | B162: ISRAEL | C162: VASQUEZ ALEXANDER | D162: 138-0007689-8 | E162: 200-01-9603065740 | F162: Sereno | G162: Area Hato Mayor | H162: Gerencia de area | I162: 5,000.00 | J162: 143.50 | K162: 152.00 | N162: =SUM(I162-J162-K162) -> 4,704.50 | O162: 2019-07-01
A163: 21 | B163: GAUDY | C163: CRISOSTOMO | D163: 402-4018039-4 | E163: 200-01-9604269997 | F163: Conjerje | G163: Area Hato Mayor | H163: Unap ondina | I163: 5,000.00 | J163: 143.50 | K163: 152.00 | N163: =SUM(I163-J163-K163) -> 4,704.50 | O163: 2021-10-01
A164: 22 | B164: SAMUEL CRISTINO | C164: SALAZAR SOSA | D164: 402-0900247-2 | E164: 200-01-9604395130 | F164: Tecnico | G164: Area Hato Mayor | H164: Gerencia de area | I164: 30,000.00 | J164: 861.00 | K164: 912.00 | M164: 1,512.45 | N164: =SUM(I164-J164-K164-M164) -> 26,714.55 | O164: 2022-01-07
A165: 23 | B165: RICHARD | C165: SANTANA PADILLA | D165: 402-1195588-1 | E165: 200-01-9604716221 | F165: Mensajero | G165: Area Hato Mayor | H165: Gerencia de area | I165: 7,000.00 | J165: 200.90 | K165: 212.80 | N165: =SUM(I165-J165-K165) -> 6,586.30 | O165: 2022-04-01
A166: 24 | B166: REMY RAFAEL | C166: GERVACIO LOPEZ | D166: 067-0011062-7 | E166: 960-5265770 | F166: Sereno | G166: Area Hato Mayor | H166: Unap cañitas | I166: 5,000.00 | J166: 143.50 | K166: 152.00 | N166: =SUM(I166-J166-K166) -> 4,704.50 | O166: 2022-10-01
A167: 25 | B167: FRANCIASCA | C167: REYES LOPEZ | D167: 027-0017851-6 | E167: 960-5265769 | F167: Conserje | G167: Area Hato Mayor | H167: Unap Morquecho | I167: 5,000.00 | J167: 143.50 | K167: 152.00 | N167: 4,704.50 | O167: 2022-10-01
A168: 26 | B168: MAGALIS | C168: JIMENEZ | D168: 027-0030140-7 | E168: 960-5265764 | F168: Conserje | G168: Area Hato Mayor | H168: Unap jalonga | I168: 5,000.00 | J168: 143.50 | K168: 152.00 | N168: 4,704.50 | O168: 2022-10-01
A169: 27 | B169: DULCE MARIA | C169: DOMINGUEZ PEÑA | D169: 027-0046696-0 | E169: 960-5265766 | F169: Conserje | G169: Area Hato Mayor | H169: Unap Km 15 | I169: 5,000.00 | J169: 143.50 | K169: 152.00 | N169: 4,704.50 | O169: 2022-10-01
A170: 28 | B170: IRMA GRISEL | C170: REYES FELICIANO | D170: 027-0012399-1 | E170: 960-5265765 | F170: Conserje | G170: Area Hato Mayor | H170: Unap la Sierra | I170: 5,000.00 | J170: 143.50 | K170: 152.00 | N170: 4,704.50 | O170: 2022-10-01
A171: 29 | B171: RAFAEL | C171: FLOYD POLICIA | D171: 402-1139481-8 | E171: 960-5354300 | F171: Sereno | G171: Area Hato Mayor | H171: Unap jalonga | I171: 5,000.00 | J171: 143.50 | K171: 152.00 | N171: 4,704.50 | O171: 2022-11-01
A172: 30 | B172: JULIO ADRIANO | C172: DIAZ ACOSTA | D172: 067-0013604-4 | E172: 9605408903 | F172: Sereno | G172: Area Hato Mayor | H172: Unap Magua | I172: 5,000.00 | J172: 143.50 | K172: 152.00 | N172: 4,704.50 | O172: 2022-12-01
A173: 31 | B173: JUAN | C173: JAVIER | D173: 027-0015148-9 | E173: 9606157607 | F173: Viglante | G173: Area Hato Mayor | H173: Unap jalonga | I173: 5,000.00 | J173: 143.50 | K173: 152.00 | N173: 4,704.50 | O173: 2023-08-01
A174: 32 | B174: ISMAEL | C174: GARCIA SEVERINO | D174: 402-1030578-1 | E174: 9606781220 | F174: Sereno | G174: Area Hato Mayor | H174: Yerba Buena | I174: 5,000.00 | J174: 143.50 | K174: 152.00 | N174: 4,704.50 | O174: 2024-02-01
B175: TOTAL NOMINA HATO MAYOR | I175: =SUM(I143:I174) -> 241,872.00 | J175: =SUM(J143:J174) -> 6,884.33 | K175: =SUM(K143:K174) -> 7,292.11 | M175: =SUM(M143:M173) -> 1,512.45 | N175: =SUM(N143:N174) -> 226,183.11
C181: LIC. YUDELKY JABALERA | H181: DR. RICARDO JULIO ROMERO
B182: ADMINISTRADORA | H182: DIRECTOR
B199: REGION V
B200: SAN PEDRO DE MACORIS, REPUBLICA DOMINICANA
B201: RNC 430041793
B202: NOMINA CORRESPONDIENTE AL 30 DE FEBRERO AÑO 2024
B203: PERSONAL AREA EL SEYBO | J203: S/S | K203: SFS | L203: ISR | M203: D/A
B204: NOMBRE | C204: APELLIDO | D204: CEDULA | E204: No. CUENTA | F204: CARGO | G204: DEPARTAMENTO | H204: LUGAR PRESTA SERVICIOS | I204: SUELDO BRUTO | J204: DEDUCCIONES | N204: SUELDO NETO | O204: FECHA
A205: 1 | B205: ANA MARIA | C205: VASQUEZ SANTANA | D205: 025-0041921-9 | E205: 200011110179067 | F205: Conserje | G205: Area el seibo | H205: Clinica las 500 | I205: 5,000.00 | J205: 143.50 | K205: 152.00 | N205: 4,704.50 | O205: 2007-06-01
A206: =A205+1 -> 2 | B206: OSVALDO ANTONIO | C206: CRUZ | D206: 029-0004372-6 | E206: 200011110179135 | F206: Sereno | G206: Area el seibo | H206: Unap Los Franceses | I206: 5,000.00 | J206: 143.50 | K206: 152.00 | N206: 4,704.50 | O206: 2007-07-09
A207: =A206+1 -> 3 | B207: MAXIMO | C207: DEL ROSARIO SILVESTRE | D207: 025-0027067-9 | E207: 200011101180725 | F207: Sereno | G207: Area el seibo | H207: Unap el guaral | I207: 5,000.00 | J207: 143.50 | K207: 152.00 | N207: 4,704.50 | O207: 2007-09-01
A208: 4 | B208: RAFAELA | C208: DIAZ DIAZ | D208: 025-0033097-8 | E208: 200011101294569 | F208: Conserje | G208: Area el seibo | H208: Clinica el Guaral | I208: 5,000.00 | J208: 143.50 | K208: 152.00 | N208: 4,704.50 | O208: 2009-08-14
A209: 5 | B209: YNIRIO MODESTO | C209: LEONARDO | D209: 025-0034927-5 | E209: 200011101393486 | F209: Sereno | G209: Area el seibo | H209: Unap el cerrito del seibo | I209: 5,000.00 | J209: 143.50 | K209: 152.00 | M209: 0.00 | N209: 4,704.50 | O209: 2011-01-01
A210: 6 | B210: AMPARO | C210: MOJICA | D210: 029-0010041-9 | E210: 200011101393554 | F210: Conserje | G210: Area el seibo | H210: Centro de zona Villa Guerrero | I210: 5,000.00 | J210: 143.50 | K210: 152.00 | N210: 4,704.50 | O210: 2011-01-01
A211: 7 | B211: SONIA ELENA | C211: PAREDES MARTINEZ | D211: 025-0008358-5 | E211: 200011101711741 | F211: Conserje | G211: Area el seibo | H211: Unap las guajabas | I211: 5,000.00 | J211: 143.50 | K211: 152.00 | N211: 4,704.50 | O211: 2016-04-01
A212: 8 | B212: LEONIDAS | C212: MOTA DE LA CRUZ | D212: 027-0034558-6 | E212: 200-01-110-176883-3 | F212: Conserje | G212: Area el seibo | H212: Unap las guajabas | I212: 5,000.00 | J212: =I212*2.87% -> 143.50 | K212: =I212*3.04% -> 152.00 | N212: =I212-J212-K212 -> 4,704.50 | O212: 2016-09-01
A213: 9 | B213: ROSANGELA | C213: SORIANO | D213: 025-0048387-6 | E213: 200-01-960056265-8 | F213: Medico asist. | G213: Area el seibo | H213: Unap los botado | I213: 28,000.00 | J213: 803.60 | K213: 851.20 | N213: =I213-J213-K213 -> 26,345.20 | O213: 2018-02-01
A214: 10 | B214: TATATIANA ROSANA | C214: AQUINO | D214: 402-3486379-9 | E214: 200-01-960-087688-5 | F214: Aux. de Farmacia | G214: Area el seibo | H214: Gerencia de area Seibo | I214: 9,835.00 | J214: 282.26 | K214: 298.98 | N214: =I214-J214-K214 -> 9,253.75 | O214: 2018-04-01
A215: 11 | B215: ANGELINA | C215: PEGUERO | D215: 029-0015408-5 | E215: 200-01-9603069101 | F215: Aux. de limpieza | G215: Area el seibo | H215: Unap la mina | I215: 5,000.00 | J215: 143.50 | K215: 152.00 | N215: =I215-J215-K215 -> 4,704.50 | O215: 2020-01-09
A216: 12 | B216: OSVIANNY | C216: ZORRILLA BERAS | D216: 402-2519711-6 | E216: 200-01-1101711657 | F216: Enc. De soporte tecnico | G216: Area el seibo | H216: Gerencia de area | I216: 30,000.00 | J216: 861.00 | K216: 912.00 | N216: 28,227.00 | O216: 2020-01-11
A217: 13 | B217: DIONILIA | C217: ZORRILLA | D217: 025-0009672-8 | E217: 200-01-9603798317 | F217: Conserje | G217: Area el seibo | H217: Unap Pedro Sanchez | I217: 5,000.00 | J217: 143.50 | K217: 152.00 | N217: 4,704.50 | O217: 2021-01-03
A218: 14 | B218: YEIRY NICAURY | C218: PELEGRIN UBIERA | D218: 402-3442135-8 | E218: 200-01-9603798318 | F218: Secretaria | G218: Area el seibo | H218: Gerencia de area | I218: 10,000.00 | J218: 287.00 | K218: 304.00 | N218: 9,409.00 | O218: 2021-01-06
A219: 15 | B219: MILOSY ARACELIS | C219: BAEZ APONTE | D219: 025-0032466-6 | E219: 200-01-9603883495 | F219: Aux. de Enfermeria | G219: Area el seibo | H219: Unap Cañada del Agua | I219: 10,000.00 | J219: 287.00 | K219: 304.00 | N219: 9,409.00 | O219: 2021-01-07
A220: 16 | B220: CARMEN DOLORES | C220: GARCIA | D220: 023-0075496-3 | E220: 200-01-9604074136 | F220: Conserje | G220: Area el seibo | H220: Unap Villa Guerrero | I220: 5,000.00 | J220: 143.50 | K220: 152.00 | N220: 4,704.50 | O220: 2021-09-01
A221: 17 | B221: CANDIDA | C221: DE LA CRUZ | D221: 065-0019411-0 | E221: 200-01-9604074312 | F221: Conserje | G221: Area el seibo | H221: Unap Los Franceses | I221: 5,000.00 | J221: 143.50 | K221: 152.00 | N221: 4,704.50
A222: 18 | B222: EDELKIN MARIA | C222: PEREZ PERALTA | D222: 029-0016608-9 | E222: 200-01-9604334569 | F222: Conserje | G222: Area el seibo | H222: Unap la Gina | I222: 5,000.00 | J222: 143.50 | K222: 152.00 | N222: 4,704.50 | O222: 2021-12-01
A223: 19 | B223: CAROLIN FERNANDA | C223: NIEVES CANELA | D223: 402-1825057-5 | E223: 200-01-960-464357-0 | F223: Digitadora | G223: Area el seibo | H223: Gerencia de area | I223: 10,000.00 | J223: 287.00 | K223: 304.00 | N223: 9,409.00 | O223: 2022-03-01
A224: 20 | B224: LUCIA | C224: DE JESUS | D224: 029-0007400-2 | E224: 200-01-960484399-2 | F224: Conserje | G224: Area el seibo | H224: Unap el cedro de miches | I224: 5,000.00 | J224: 143.50 | K224: 152.00 | N224: 4,704.50 | O224: 2022-05-01
A225: 21 | B225: CESAR ORLANDO | C225: MORALES VASQUEZ | D225: 029-0019287-9 | E225: 200-019605119375 | F225: Sereno | G225: Area el seibo | H225: Unap la Mina | I225: 5,000.00 | J225: 143.50 | K225: 152.00 | N225: 4,704.50 | O225: 2022-07-01
A226: 22 | B226: ANTONIO | C226: HERNANDEZ | D226: 025-0015700-9 | E226: 960-568646-3 | F226: Vigilante | G226: Area el seibo | H226: Unap Magarin | I226: 5,000.00 | J226: 143.50 | K226: 152.00 | N226: 4,704.50 | O226: 2023-03-01
A227: 23 | B227: DEMETRIO | C227: MEDINA | D227: 029-0009483-6 | E227: 960-5817459 | F227: Vigilante | G227: Area el seibo | H227: Unap el cerrito | I227: 5,000.00 | J227: 143.50 | K227: 152.00 | N227: 4,704.50 | O227: 2023-04-01
A228: 24 | B228: DOMINGO | C228: ESTEBAN | D228: 027-0028929-7 | E228: 110-1711806 | F228: Sereno | G228: Area el seibo | H228: Unap Magarin | I228: 5,000.00 | J228: 143.50 | K228: 152.00 | N228: 4,704.50 | O228: 2023-04-01
A229: 25 | B229: JULIO CRISTOBAL | C229: CASTRO MOTA | D229: 025-0049811-4 | E229: 9606781219 | F229: Chofer | G229: Area el seibo | H229: Gerencia de area | I229: 8,000.00 | J229: 229.60 | K229: 243.20 | N229: 7,527.20 | O229: 2024-01-02
B230: TOTAL NOMINA EL SEIBO | I230: =SUM(I205:I229) -> 195,835.00 | J230: =SUM(J205:J229) -> 5,620.46 | K230: =SUM(K205:K229) -> 5,953.38 | M230: =SUM(M205:M214) -> 0.00 | N230: =SUM(N205:N229) -> 184,261.15
C233: LIC. YUDELKY JABALERA | H233: DR. RICARDO JULIO ROMERO
B234: ADMINISTRADORA | H234: DIRECTOR
B263: REGION V
B264: C/COLON No.28, CENTRO DE LA CIUDAD
B265: SAN PEDRO DE MACORIS, REPUBLICA DOMINICANA
B266: RNC 430041793
B268: NOMINA CORRESPONDIENTE AL 30 DE FEBRERO AÑO 2024
B269: PERSONAL LA ROMANA | J269: S/S | K269: SFS | L269: ISR | M269: D/A | N269: 0.00
B270: NOMBRE | C270: APELLIDO | D270: CEDULA | E270: No. CUENTA | F270: CARGO | G270: DEPARTAMENTO | H270: LUGAR PRESTA SERVICIOS | I270: SUELDO BRUTO | J270: DEDUCCIONES | N270: SUELDO NETO | O270: FECHA
A271: 1 | B271: SONIA MARGARITA | C271: HACEN MENOR | D271: 103-0005891-3 | E271: 200012700174020 | F271: Conserje | G271: Area Romana | H271: Clinica Higueral | I271: 5,000.00 | J271: 143.50 | K271: 152.00 | N271: 4,704.50 | O271: 2007-06-25
A272: =A271+1 -> 2 | B272: ANGELA | C272: MATEO VILLAR | D272: 026-0128058-5 | E272: 200011101189535 | F272: Conserje | G272: Area Romana | H272: Clinica Maria Trinidad Sanchez | I272: 5,000.00 | J272: 143.50 | K272: 152.00 | N272: 4,704.50 | O272: 2007-11-01
A273: =A272+1 -> 3 | B273: FRANCISCA | C273: NOLASCO | D273: 026-0031430-2 | E273: 200011101209541 | F273: Conserje | G273: Area Romana | H273: Unap Piedra Linda | I273: 5,000.00 | J273: 143.50 | K273: 152.00 | N273: 4,704.50 | O273: 2008-02-01
A274: 4 | B274: SANDRA | C274: CESPEDES PAYANO | D274: 026-0079070-9 | E274: 200011101209567 | F274: Conserje | G274: Area Romana | H274: Unap Cucama | I274: 5,000.00 | J274: 143.50 | K274: 152.00 | N274: 4,704.50 | O274: 2008-02-14
A275: 5 | B275: ROGELIO | C275: SOLANO SILVESTRE | D275: 026-0039613-5 | E275: 200011101253717 | F275: Sereno | G275: Area Romana | H275: Unap Los Mulos | I275: 5,000.00 | J275: 143.50 | K275: 152.00 | N275: 4,704.50 | O275: 2008-10-01
A276: 6 | B276: WARDIN | C276: SUERO GARCIA | D276: 026-0108716-2 | E276: 200011101253720 | F276: Sereno | G276: Area Romana | H276: Clinica Maria Trinidad Sanchez | I276: 5,000.00 | J276: 143.50 | K276: 152.00 | N276: 4,704.50 | O276: 2008-10-01
A277: 7 | B277: ELSA DEONICIA | C277: MERCEDES ORTIZ | D277: 026-0045084-1 | E277: 200011101292147 | F277: Lic.Enfermeria | G277: Area Romana | H277: Clinica Higueral | I277: 10,000.00 | J277: =I277*2.87% -> 287.00 | K277: =I277*3.04% -> 304.00 | N277: =I277-J277-K277 -> 9,409.00 | O277: 2009-08-03
A278: 8 | B278: MIGUEL RAMON | C278: TRAVIESO GARCIA | D278: 026-0063076-4 | E278: 200011101318814 | F278: Mayordomo | G278: Area Romana | H278: Clinica Villa Hermosa | I278: 5,000.00 | J278: =I278*2.87% -> 143.50 | K278: =I278*3.04% -> 152.00 | N278: =I278-J278-K278 -> 4,704.50 | O278: 2010-02-01
A279: 9 | B279: WANDA YUSIL | C279: DEL ROSARIO | D279: 026-0141280-8 | E279: 200011101318830 | F279: Aux. de Oficina | G279: Area Romana | H279: Clinica Villa Hermosa | I279: 5,000.00 | J279: 143.50 | K279: 152.00 | N279: 4,704.50 | O279: 2010-02-01
A280: 10 | B280: ENMA | C280: DE LOS SANTOS | D280: 026-0039834-7 | E280: 200011101326055 | F280: Conserje | G280: Area Romana | H280: UNAP Los Coco | I280: 5,000.00 | J280: 143.50 | K280: 152.00 | N280: 4,704.50 | O280: 2010-04-01
A281: 11 | B281: CARLOS ANT. | C281: CORDONES | D281: 295-0002936-7 | E281: 200011101479656 | F281: Sereno | G281: Area Romana | H281: UNAP KM 14 | I281: 5,000.00 | J281: 143.50 | K281: 152.00 | M281: 1,512.45 | N281: =I281-J281-K281-M281 -> 3,192.05 | O281: 2012-07-01
A282: 12 | B282: FERMIN | C282: RIJO | D282: 026-0061107-9 | E282: 200011101479481 | F282: Sereno | G282: Area Romana | H282: UNAP Luis J. Suarez | I282: 5,000.00 | J282: 143.50 | K282: 152.00 | N282: 4,704.50 | O282: 2012-08-01
A283: 13 | B283: DINORA E | C283: RAMIREZ DE LA CRUZ | D283: 026-0037001-5 | E283: 200011101561205 | F283: Seccretaria | G283: Area Romana | H283: Oficina area Romana | I283: 20,400.00 | J283: =I283*2.87% -> 585.48 | K283: =I283*3.04% -> 620.16 | M283: 0 | N283: =I283-J283-K283-M283 -> 19,194.36 | O283: 2014-03-01
A284: 14 | B284: MARGARITO | C284: CUETO ROSARIO | D284: 026-0043627-9 | E284: 200011101561218 | F284: Sereno | G284: Area Romana | H284: Clinica Villa Hermosa | I284: 5,000.00 | J284: 143.50 | K284: 152.00 | N284: 4,704.50 | O284: 2014-03-01
A285: 15 | B285: RAMONA GERTRUDIS | C285: HUNT S. | D285: 026-0044901-7 | E285: 200011101630699 | F285: Aux de farmacia | G285: Area Romana | H285: Unap Luis J. Suarez | I285: 7,750.00 | J285: 222.43 | K285: 235.60 | N285: 7,291.98 | O285: 2014-10-01
A286: 16 | B286: PROFECTA | C286: ACOSTA FERMIN | D286: 065-0018087-9 | E286: 20001110176884-6 | F286: Conserje | G286: Area Romana | H286: Unap Saona | I286: 5,000.00 | J286: 143.50 | K286: 152.00 | N286: 4,704.50 | O286: 2016-10-01
A287: 17 | B287: DOMINGA | C287: MEJIA | D287: 026-0079667-2 | E287: 20001110176885-9 | F287: Promotara | G287: Area Romana | H287: Unap conani | I287: 5,000.00 | J287: 143.50 | K287: 152.00 | N287: 4,704.50 | O287: 2016-12-01
A288: 18 | B288: MARIANO | C288: ANTONIO MARTE | D288: 026-0054441-1 | E288: 20001210107826-4 | F288: Sereno | G288: Area Romana | H288: Unap villa verde | I288: 5,000.00 | J288: 143.50 | K288: 152.00 | N288: 4,704.50 | O288: 2015-11-01
A289: 19 | B289: DAISY MARIA | C289: DE LEON FELIX | D289: 023-0088812-6 | E289: 200-01-960048617-0 | F289: Conserje | G289: Area Romana | H289: Unap villa hermosa | I289: 5,000.00 | J289: =I289*2.87% -> 143.50 | K289: =I289*3.04% -> 152.00 | N289: =I289-J289-K289 -> 4,704.50 | O289: 2017-08-01
... 59 more rows

Sheet MARZO 2024
B3: SERVICIOS REGIONALDE DE SALUD
B4: REGION V
B5: SAN PEDRO DE MACORIS, REPUBLICA DOMINICANA
B6: PERSONAL SPM
B7: Total de empleados contratado
B8: NOMINA CORRESPONDIENTE AL 30 DE MARZO AÑO 2024
B9: AREA SPM
B10: NOMBRE | C10: APELLIDO | D10: CEDULA | F10: CARGO | G10: DEPARTAMENTO | H10: LUGAR PRESTA SERVICIOS | I10: SUELDO BRUTO | J10: S/S | K10: SFS | L10: ISR | M10: D/A | N10: SUELDO NETO | O10: FECHA
A11: 1 | B11: PAULINO | C11: LUIS | D11: 024-0008005-3 | E11: 200011101179105 | F11: Vigilante | G11: Area SPM | H11: Clinica Quisqueya | I11: 5,000.00 | J11: =I11*2.87% -> 143.50 | K11: =I11*3.04% -> 152.00 | N11: =I11-J11-K11-M11 -> 4,704.50 | O11: 2007-05-08
A12: =A11+1 -> 2 | B12: PETRONILA ALT. | C12: PAYANO | D12: 023-0049840-5 | E12: 200011101178533 | F12: Conserje | G12: Area SPM | H12: Clinica Angelina | I12: 5,000.00 | J12: 143.50 | K12: 152.00 | M12: 0.00 | N12: 4,704.50 | O12: 2007-01-02
A13: =A12+1 -> 3 | B13: RUTH PRISCILA | C13: PEREZ | D13: 024-0009931-9 | E13: 200011101179118 | F13: Aux. Farmacia | G13: Area SPM | H13: Clinica Quisqueya | I13: 18,400.00 | J13: =I13*2.87% -> 528.08 | K13: =I13*3.04% -> 559.36 | M13: 0.00 | N13: 17,312.56 | O13: 2007-03-01
A14: 4 | B14: MARCELINO | C14: GUZMAN | D14: 024-0002608-0 | E14: 200011101179079 | F14: Sereno | G14: Area SPM | H14: Clinica El Puerto | I14: 5,000.00 | J14: 143.50 | K14: 152.00 | N14: 4,704.50 | O14: 2007-06-25
A15: 5 | B15: ANA MERCEDES | C15: DE LA CRUZ | D15: 023-0072812-4 | E15: 200011101178630 | F15: Conserje | G15: Area SPM | H15: Clinica Barrio Blanco | I15: 5,000.00 | J15: 143.50 | K15: 152.00 | N15: 4,704.50 | O15: 2007-06-01
A16: 6 | B16: FRANCISCA | C16: POMUCENO SORIANO | D16: 024-0004970-2 | E16: 200011101179095 | F16: Conserje | G16: Area SPM | H16: Clinica Guayabal | I16: 5,000.00 | J16: =I16*2.87% -> 143.50 | K16: =I16*3.04% -> 152.00 | N16: 4,704.50 | O16: 2007-07-02
A17: 7 | B17: SIMONA | C17: PEGUERO HERNANDEZ | D17: 024-0012760-7 | E17: 200011101179134 | F17: Conserje | G17: Area SPM | H17: Clinica Honduras | I17: 5,000.00 | J17: 143.50 | K17: 152.00 | N17: 4,704.50 | O17: 2007-07-02
A18: 8 | B18: LEONEL | C18: DE LA CRUZ HERNANDEZ | D18: 024-0013605-3 | E18: 200011101179150 | F18: Sereno | G18: Area SPM | H18: Clinica Honduras | I18: 5,000.00 | J18: 143.50 | K18: 152.00 | N18: 4,704.50 | O18: 2007-07-02
A19: 9 | B19: JUAN JOSE | C19: JUAN JEAN | D19: 023-0137052-0 | E19: 200011101179053 | F19: Sereno | G19: Area SPM | H19: Unap Batey Esperanza | I19: 5,000.00 | J19: 143.50 | K19: 152.00 | N19: 4,704.50 | O19: 2007-07-18
A20: 10 | B20: RAMON A. | C20: PEGUERO AQUINO | D20: 023-0057845-3 | E20: 200011101178591 | F20: Sereno | G20: Area SPM | H20: Unap Angelina | I20: 5,000.00 | J20: 143.50 | K20: 152.00 | N20: 4,704.50 | O20: 2007-07-23
A21: 11 | B21: MARIA DEL C. | C21: LARA MENDEZ | D21: 023-0064326-5 | E21: 200011101180686 | F21: Atencion al Usuario | G21: Area SPM | H21: Clinica Porvenir | I21: 7,000.00 | J21: 200.90 | K21: 212.80 | N21: 6,586.30 | O21: 2007-08-01
A22: 12 | B22: ALEX | C22: ROMBLEY | D22: 023-0126548-0 | E22: 200011101180709 | F22: Sereno | G22: Area SPM | H22: Clinica Porvenir | I22: 8,318.04 | J22: =I22*2.87% -> 238.73 | K22: =I22*3.04% -> 252.87 | N22: 7,826.44 | O22: 2007-09-13
A23: 13 | B23: REYNA ISABEL | C23: MORLA DE A. | D23: 023-0066599-5 | E23: 200011101253636 | F23: Bioanalista | G23: Area SPM | H23: Clinica Barrio Lindo | I23: 18,312.00 | J23: =I23*2.87% -> 525.55 | K23: =I23*3.04% -> 556.68 | L23: 0.00 | M23: 0.00 | N23: 17,229.76 | O23: 2008-09-11
A24: 14 | B24: EVA | C24: MATEO FERRERAS | D24: 023-0011428-3 | E24: 200012700173856 | F24: Medico General | G24: Area SPM | H24: UNAP Uasd | I24: 28,657.01 | J24: 822.46 | K24: 871.17 | M24: 0.00 | N24: 26,963.38 | O24: 2007-08-08
A25: 15 | B25: JOSE | C25: CALAZAN CALMONA | D25: 027-0013504-5 | E25: 200011101209570 | F25: Sereno | G25: Area SPM | H25: UNAP las colinas | I25: 5,000.00 | J25: 143.50 | K25: 152.00 | N25: 4,704.50 | O25: 2008-02-21
A26: 16 | B26: BEATRIZ ALT. | C26: SEVERINO | D26: 023-0084459-0 | E26: 200011101224225 | F26: Odontologa | G26: Area SPM | H26: UNAP Barrio Blanco | I26: 24,000.00 | J26: =I26*2.87% -> 688.80 | K26: =I26*3.04% -> 729.60 | M26: 0.00 | N26: 22,581.60 | O26: 2008-03-17
A27: 17 | B27: CARIDAD TODMAN | C27: DE LOS SANTOS | D27: 023-0041126-7 | E27: 200011101224209 | F27: Enfermera Aux. | G27: Area SPM | H27: unap Monte coca | I27: 11,596.60 | J27: =I27*2.87% -> 332.82 | K27: =I27*3.04% -> 352.54 | M27: 0.00 | N27: 10,911.24 | O27: 2008-04-01
A28: 18 | B28: PEDRO | C28: ZORRILLA | D28: 023-0017693-6 | E28: 200011101231865 | F28: Sereno Clinica | G28: Area SPM | H28: UNAP Barrio Blanco | I28: 5,000.00 | J28: =I28*2.87% -> 143.50 | K28: =I28*3.04% -> 152.00 | N28: 4,704.50 | O28: 2008-04-30
A29: 19 | B29: FRANCISCO A | C29: CASTRO R. | D29: 023-0005830-8 | E29: 200011101245945 | F29: Auxiliar de almacen | G29: Area SPM | H29: Almacen Regional | I29: 9,600.00 | J29: =I29*2.87% -> 275.52 | K29: =I29*3.04% -> 291.84 | N29: 9,032.64 | O29: 2008-08-01
A30: 20 | B30: ODILE A. | C30: MILIAN MCCABE | D30: 023-0025423-8 | E30: 200011101253597 | F30: Aux. de Bioanalisis | G30: Area SPM | H30: Unap porvenir | I30: 22,000.00 | J30: =I30*2.87% -> 631.40 | K30: =I30*3.04% -> 668.80 | M30: 3,024.90 | N30: 17,674.90 | O30: 2008-09-01
A31: 21 | B31: JUANA | C31: MORLA POLANCO | D31: 026-0113870-0 | E31: 200011101253733 | F31: Conseje | G31: Area SPM | H31: UNAP Batey Jagual | I31: 5,000.00 | J31: 143.50 | K31: 152.00 | N31: 4,704.50 | O31: 2008-09-01
A32: 22 | B32: ANA JULIA | C32: MENDEZ BRITO | D32: 011-0000744-0 | E32: 200011101253568 | F32: Aux. Enfermera | G32: Area SPM | H32: Unap Evangelina Rodriguez | I32: 13,000.00 | J32: =I32*2.87% -> 373.10 | K32: =I32*3.04% -> 395.20 | L32: 0.00 | M32: 0.00 | N32: 12,231.70 | O32: 2008-10-08
A33: 23 | B33: YVELISSE E. | C33: ASTACIO PEÑA | D33: 023-0003063-8 | E33: 200011101278064 | F33: Conserje | G33: SRS ESTE | H33: Oficina Regional | I33: 8,050.00 | J33: =I33*2.87% -> 231.04 | K33: =I33*3.04% -> 244.72 | L33: 0.00 | M33: 1,512.45 | N33: 6,061.80 | O33: 2009-01-19
A34: 24 | B34: EPIFANIO | C34: CALDERON | D34: 023-0058958-3 | E34: 200011101272633 | F34: Sereno | G34: Area SPM | H34: Clinica Santa fe | I34: 5,000.00 | J34: 143.50 | K34: 152.00 | N34: 4,704.50 | O34: 2009-02-01
A35: 25 | B35: FRANCISCO DE J. | C35: MATICH CASTRO | D35: 023-0028027-4 | E35: 200011101272688 | F35: Auxiliar de almacen | G35: SRS ESTE | H35: Almacen Regional | I35: 9,600.00 | J35: =I35*2.87% -> 275.52 | K35: =I35*3.04% -> 291.84 | N35: 9,032.64 | O35: 2009-02-01
A36: 26 | B36: YERNIS NOEMIS | C36: POCHE F. | D36: 024-0022376-0 | E36: 200011101294556 | F36: Secretaria | G36: Area SPM | H36: clinica Quisqueya | I36: 8,000.00 | J36: 229.60 | K36: 243.20 | N36: 7,527.20 | O36: 2009-08-03
A37: 27 | B37: JOAQUIN | C37: EUSEBIO | D37: 024-0013633-5 | E37: 200011101310155 | F37: Sereno | G37: Area SPM | H37: Clinica Cayacoa | I37: 5,000.00 | J37: 143.50 | K37: 152.00 | N37: 4,704.50 | O37: 2009-12-01
A38: 28 | B38: ROSA SANCHEZ | C38: CABRERA | D38: 023-0109901-2 | E38: 200011101318759 | F38: Conserje | G38: Area SPM | H38: Clinica Porvenir | I38: 8,000.00 | J38: 229.60 | K38: 243.20 | N38: 7,527.20 | O38: 2010-02-01
A39: 29 | B39: BIENVENIDO | C39: BUSTAMANTE GUZMAN | D39: 023-0074695-1 | E39: 200011101358201 | F39: Soporte tecnico | G39: SRS ESTE | H39: Dpto. Publicidad | I39: 6,000.00 | J39: 172.20 | K39: 182.40 | M39: 0.00 | N39: 5,645.40 | O39: 2010-09-01
A40: 30 | B40: VICTOR | C40: NATERA | D40: 024-0006526-0 | E40: 200011101393460 | F40: Sereno | G40: Area SPM | H40: Unap Quisquella | I40: 5,000.00 | J40: 143.50 | K40: 152.00 | N40: 4,704.50 | O40: 2011-03-01
A41: 31 | B41: MIKI | C41: HEREDIA | D41: 023-0115037-7 | E41: 200011101420074 | F41: Aux. de farmacia | G41: Area SPM | H41: Unap Villa Faro | I41: 15,187.50 | J41: 435.88 | K41: 461.70 | N41: 14,289.92 | O41: 2012-10-12
A42: 32 | B42: ESTHER | C42: HINOJOSA | D42: 025-0009474-9 | E42: 200011101419959 | F42: Laboratorio | G42: Area SPM | H42: Unap Povenir | I42: 13,312.00 | J42: 382.05 | K42: 404.68 | N42: 12,525.26 | O42: 2012-10-05
A43: 33 | B43: ANA LUISA | C43: JEAN JOSEPH | D43: 027-0039773-6 | E43: 200011101479562 | F43: Conserje | G43: Area SPM | H43: unap Monte coca | I43: 5,000.00 | J43: 143.50 | K43: 152.00 | N43: 4,704.50 | O43: 2012-04-01
A44: =A43+1 -> 34 | B44: FROILAN | C44: VALDEZ LORENZO | D44: 011-0028087-2 | E44: 200011101571020 | F44: Sonografista | G44: Area SPM | H44: Centro de Diagnostico | I44: 30,000.00 | J44: 861.00 | K44: 912.00 | N44: 28,227.00 | O44: 2013-01-02
A45: 35 | B45: CARY ROSEMARY | C45: SANTANA JABALERA | D45: 023-0117440-1 | E45: 200011101632914 | F45: Enfermera | G45: Area SPM | H45: unap San Martin de Pobre | I45: 8,000.00 | J45: 229.60 | K45: 243.20 | N45: 7,527.20 | O45: 2015-04-01
A46: 36 | B46: JOSE | C46: CASIMIRO | D46: 023-0097175-7 | E46: 200011101619623 | F46: Sereno | G46: Area SPM | H46: unap porvenir | I46: 5,000.00 | J46: 143.50 | K46: 152.00 | N46: 4,704.50 | O46: 2014-09-01
A47: 37 | B47: NICOLAS | C47: DIAZ VALENZUELA | D47: 023-0103775-6 | E47: 200011101711644 | F47: Sereno | G47: Area SPM | H47: Unap barrio lindo | I47: 6,000.00 | J47: 172.20 | K47: 182.40 | N47: 5,645.40 | O47: 2014-01-01
A48: 38 | B48: MARIA ALT. | C48: POLANCO | D48: 024-0011102-3 | E48: 200011101711592 | F48: Conserje | G48: Area SPM | H48: Unap Quisqueya | I48: 5,000.00 | J48: 143.50 | K48: 152.00 | N48: 4,704.50 | O48: 2014-09-01
A49: 39 | B49: YUDELKIS | C49: FLEMING HODGE | D49: 023-0092307-1 | E49: 200011101711903 | F49: Conserje | G49: Area SPM | H49: unap cachena | I49: 5,000.00 | J49: 143.50 | K49: 152.00 | N49: 4,704.50 | O49: 2014-11-01
A50: 40 | B50: LICETTE | C50: JIMENEZ GARCIA | D50: 023-0020559-4 | E50: 200011101711628 | F50: Conserje | G50: Area SPM | H50: Unap San Martin de Porre | I50: 5,000.00 | J50: 143.50 | K50: 152.00 | N50: 4,704.50 | O50: 2015-05-01
A51: 41 | B51: BASILIA E. | C51: JOSE CIRIACO | D51: 023-0040467-6 | E51: 200011101711796 | F51: Conserje | G51: Area SPM | H51: Unap cachena | I51: 5,000.00 | J51: 143.50 | K51: 152.00 | N51: 4,704.50 | O51: 2015-06-01
A52: 42 | B52: BASILIO | C52: CALDERON MEDINA | D52: 027-0018363-1 | E52: 200011101711631 | F52: Sereno | G52: Area SPM | H52: Unap camara Junior | I52: 5,000.00 | J52: 143.50 | K52: 152.00 | N52: 4,704.50 | O52: 2016-02-02
A53: 43 | B53: NELCIDA YOLADIS | C53: LINARES | D53: 023-0153307-7 | E53: 200011101711851 | F53: Enfermera | G53: Area SPM | H53: Unap brisal | I53: 8,000.00 | J53: 229.60 | K53: 243.20 | N53: 7,527.20 | O53: 2016-01-01
A54: 44 | B54: MARIA | C54: NIEVES MARTE | D54: 023-0084538-1 | E54: 200011101711848 | F54: Conserje | G54: Area SPM | H54: Unap Juan Dolio | I54: 5,000.00 | J54: 143.50 | K54: 152.00 | N54: 4,704.50 | O54: 2014-04-01
A55: 45 | B55: MERCEDES | C55: DANIEL DELGADO | D55: 024-0013600-4 | E55: 200-01-110-173833-9 | F55: Conserje | G55: Area SPM | H55: Unap Hondura | I55: 5,000.00 | J55: =I55*2.87% -> 143.50 | K55: =I55*3.04% -> 152.00 | M55: 0.00 | N55: 4,704.50 | O55: 2014-06-01
A56: 46 | B56: DARIO FRANCISCO | C56: PIE BLAKE | D56: 023-0128257-6 | E56: 200-01-110-176947-6 | F56: Sereno | G56: Area SPM | H56: Unap consuelito | I56: 5,000.00 | J56: 143.50 | K56: 152.00 | N56: 4,704.50 | O56: 2016-07-01
A57: 47 | B57: ALTAGRACIA MEDISA | C57: SEGUIILIS | D57: 023-0077279-1 | E57: 200-01-110-176946-3 | F57: Conserje | G57: Area SPM | H57: Unap consuelito | I57: 5,000.00 | J57: 143.50 | K57: 152.00 | N57: 4,704.50 | O57: 2016-07-01
A58: 48 | B58: ROSMERY | C58: SERRA HERNANDEZ | D58: 023-0138681-5 | E58: 200-01-110-176948-9 | F58: Conserje | G58: Area SPM | H58: Unap Bo. Mexico | I58: 5,000.00 | J58: 143.50 | K58: 152.00 | N58: 4,704.50 | O58: 2017-01-01
A59: 49 | B59: DIONICIO MADRIGAL | C59: GARCIA | D59: 023-0065771-1 | E59: 200-01-960048618-2 | F59: Sereno | G59: Area SPM | H59: UNAP punta de garza | I59: 5,000.00 | J59: 143.50 | K59: 152.00 | N59: 4,704.50 | O59: 2017-07-01
A60: 50 | B60: HECTOR MIGUEL | C60: A.MEDRANO | D60: 023-0012798-8 | E60: 200-01-960-087688-8 | F60: Seguridad | G60: Area SPM | H60: unap Evan Rodriguez | I60: 6,000.00 | J60: 172.20 | K60: 182.40 | N60: 5,645.40 | O60: 2018-04-01
A61: 51 | B61: ESTALIN MARIA | C61: I.MORALES | D61: 024-0026614-0 | E61: 200-01-960-087688-9 | F61: Promotora | G61: Area SPM | H61: unap el puerto | I61: 5,000.00 | J61: 143.50 | K61: 152.00 | N61: 4,704.50 | O61: 2018-04-01
A62: 52 | B62: RAY LUIS | C62: JUSTO | D62: 402-2391439-7 | E62: 200-01-9603556921 | F62: Bionalista | G62: Area SPM | H62: Hosp. Alejo Martinez | I62: 24,000.00 | J62: 688.80 | K62: 729.60 | M62: 1,512.45 | N62: 21,069.15 | O62: 2018-04-01
A63: 53 | B63: MARLENYS RAMONA | C63: QUEVEDO ENCARNACION | D63: 011-347480-3 | E63: 200-01-9601807866 | F63: Medico Asistente | G63: Area SPM | H63: UNAP Don Juan | I63: 30,000.00 | J63: 861.00 | K63: 912.00 | N63: 28,227.00 | O63: 2018-05-19
A64: 54 | B64: LICITANIA | C64: MADRIGAL TEJEDA | D64: 024-0016779-3 | E64: 200-01-9601807868 | F64: Conserje | G64: Area SPM | H64: UNAP Quisqueya | I64: 5,000.00 | J64: =I64*2.87% -> 143.50 | K64: =I64*3.04% -> 152.00 | N64: 4,704.50 | O64: 2018-07-01
A65: 55 | B65: VICTOR MANUEL | C65: POLANCO | D65: 023-0022044-5 | E65: 200-01-1101346666 | F65: Medico Asistente | G65: Area SPM | H65: Monte Coca | I65: 30,000.00 | J65: 861.00 | K65: 912.00 | N65: 28,227.00 | O65: 2019-04-01
A66: 56 | B66: OSCAR ANDRES | C66: ENCARNACION MORALES | D66: 402-4204417-6 | E66: 200-01-9603057742 | F66: Digitador | G66: Area SPM | H66: Centro de Diagnostico | I66: 8,000.00 | J66: =I66*2.87% -> 229.60 | K66: =I66*3.04% -> 243.20 | N66: 7,527.20 | O66: 2019-07-01
A67: 57 | B67: RAMON | C67: GIL | D67: 023-0007034-5 | E67: 200-01-9603057696 | F67: Licencia a sereno | G67: Area SPM | H67: Oficina de area | I67: 5,000.00 | J67: =I67*2.87% -> 143.50 | K67: =I67*3.04% -> 152.00 | N67: 4,704.50 | O67: 2019-04-01
A68: 58 | B68: JACINTO | C68: ORTEGA | D68: 023-0032092-2 | E68: 200-01-9603057701 | F68: Sereno | G68: Area SPM | H68: Uunap cumayasa | I68: 6,500.00 | J68: =I68*2.87% -> 186.55 | K68: =I68*3.04% -> 197.60 | N68: 6,115.85 | O68: 2019-08-31
A69: 59 | B69: YENI ALT. | C69: GUERRERO MENDEZ | D69: 023-0117014-4 | E69: 200-01-9603057694 | F69: Conserje | G69: Area SPM | H69: Unap aleman | I69: 4,000.00 | N69: 4,000.00 | O69: 2019-10-01
A70: 60 | B70: FLOR MARIA | C70: SALICHE | D70: 023-0015353-9 | E70: 200-01-9603057693 | F70: Conserje | G70: Area SPM | H70: Centro de Diagnostico | I70: 5,000.00 | J70: =I70*2.87% -> 143.50 | K70: =I70*3.04% -> 152.00 | L70: 0.00 | N70: 4,704.50 | O70: 2020-01-02
A71: 61 | B71: JEANINA | C71: CASTILLO MUÑOZ | D71: 023-0135235-3 | E71: 200-01-9603057692 | F71: Conserje | G71: Area SPM | H71: Unap barrio Lindo SPM | I71: 8,000.00 | J71: 229.60 | K71: 243.20 | N71: 7,527.20 | O71: 2020-01-04
A72: 62 | B72: MASILLON | C72: BENJAMIN | D72: 030-0001180-3 | E72: 200-01-9603140108 | F72: Sereno | G72: SRS ESTE | H72: Unap Margarita | I72: 5,000.00 | J72: 143.50 | K72: 152.00 | N72: 4,704.50 | O72: 13/10/2020
A73: 63 | B73: EUNICE ELAYNE | C73: DE LA CRUZ CASTRO | D73: 4022056974-9 | E73: 200-01-9603202129 | F73: Aux. de farmacia | G73: Area SPM | H73: Unap pedro justo carrion | I73: 12,000.00 | J73: 344.40 | K73: 364.80 | N73: 11,290.80 | O73: 2020-11-01
A74: 64 | B74: SANTA | C74: MEDINA | D74: 023-0164982-4 | E74: 200-01-960-3396546 | F74: Conserje | G74: Area SPM | H74: UNAP punta pescadora | I74: 5,000.00 | J74: 143.50 | K74: 152.00 | N74: =I74-J74-K74-M74 -> 4,704.50 | O74: 2/Enero/2021
A75: 65 | B75: PORFIRIO | C75: ZORRILLA | D75: 024-0010756-7 | E75: 200-01-9603356888 | F75: Sereno | G75: SRS-ESTE | H75: Oficina Regional | I75: 10,000.00 | J75: 287.00 | K75: 304.00 | N75: 9,409.00 | O75: 2/Enero/2021
A76: 66 | B76: ANA | C76: SOLANO | D76: 402-2667422-0 | E76: 200-01-9603403020 | F76: Conserje | G76: Area SPM | H76: Unap punta pescadora | I76: 5,000.00 | J76: 143.50 | K76: 152.00 | N76: 4,704.50 | O76: 2/Enero/2021
A77: 67 | B77: ANGELA | C77: DELONEY RINCON | D77: 023-0050103-4 | E77: 200-01-9603551741 | F77: Conserje | G77: Area SPM | H77: Unap Angelina | I77: 5,000.00 | J77: 143.50 | K77: 152.00 | N77: 4,704.50 | O77: 2021-01-04
A78: =A77+1 -> 68 | B78: ROLANDO GREGORIO | C78: PASCUAL | D78: 027-0034973-7 | E78: 200-01-9603648040 | F78: Sereno | G78: Area SPM | H78: unap Monte coca | I78: 5,000.00 | J78: 143.50 | K78: 152.00 | N78: 4,704.50 | O78: 2021-01-04
A79: 69 | B79: GUILLERMO | C79: BAUTISTA RAMIREZ | D79: 008-0024361-0 | E79: 200-01-9603798315 | F79: Sereno | G79: Area SPM | H79: unap alejandro bass | I79: 5,000.00 | J79: 143.50 | K79: 152.00 | N79: 4,704.50 | O79: 2021-01-05
A80: 70 | B80: SADRACK YRBIN | C80: GUILLEN | D80: 023-0116102-8 | E80: 200-01-9603798311 | F80: Sereno | G80: Area SPM | H80: Placer Bonito | I80: 5,000.00 | J80: 143.50 | K80: 152.00 | N80: 4,704.50 | O80: 2021-01-05
A81: 71 | B81: EMELY PATRICIA | C81: RODRIGUEZ ORTEGA | D81: 402-1141418-6 | E81: 200-01-9603808655 | F81: Asistente de informacion | G81: Area SPM | H81: Gerencia de area | I81: 8,000.00 | J81: 229.60 | K81: 243.20 | N81: 7,527.20 | O81: 2021-01-06
A82: 72 | B82: MANUEL | C82: LOPEZ GONZALEZ | D82: 001-1032723-6 | E82: 200-01-9603964966 | F82: Sereno | G82: Area SPM | H82: Unap Gautier | I82: 7,000.00 | J82: 200.90 | K82: 212.80 | N82: 6,586.30 | O82: 2021-01-06
A83: 73 | B83: ROBERTO ANTONIO | C83: DE LA CRUZ | D83: 023-0004082-7 | E83: 200-01-9604126996 | F83: Chofer | G83: SRS-ESTE | H83: Dpto. de Odontologia | I83: 18,000.00 | J83: 516.60 | K83: 547.20 | N83: 16,936.20 | O83: 2021-10-01
A84: 74 | B84: DOROTEO | C84: DE LA CRUZ CARRASCO | D84: 049-0042143-1 | E84: 200-01-9604126997 | F84: Seguridad | G84: Area SPM | H84: Placer Bonito | I84: 7,000.00 | J84: 200.90 | K84: 212.80 | N84: 6,586.30 | O84: 2021-10-01
A85: 75 | B85: MANOLO | C85: MARTINEZ | D85: 001-1040251-8 | E85: 200-01-9604266453 | F85: Seguridad | G85: Area SPM | H85: Unap Villa Faro | I85: 5,000.00 | J85: 143.50 | K85: 152.00 | N85: 4,704.50 | O85: 2021-09-01
A86: 76 | B86: JOSE ANIIBAL | C86: FRANCISCO DANIEL | D86: 024-0027728-7 | E86: 200-01-9604334570 | F86: Seguridad | G86: Area SPM | H86: Unap Paloma | I86: 5,000.00 | J86: 143.50 | K86: 152.00 | N86: 4,704.50 | O86: 2021-12-01
A87: 77 | B87: MIGUEL | C87: NUÑEZ MAZARA | D87: 025-0001585-0 | E87: 200-01-9604334568 | F87: Seguridad | G87: SRS-ESTE | H87: Oficina Regional | I87: 7,000.00 | J87: 200.90 | K87: 212.80 | N87: 6,586.30 | O87: 2021-12-01
A88: 78 | B88: JESUS MANUEL | C88: GARCIA | D88: 402-2376092-3 | E88: 200-01-120225003-6 | F88: Seguridad | G88: SRS-ESTE | H88: Almacen Regional | I88: 5,000.00 | J88: 143.50 | K88: 152.00 | N88: 4,704.50 | O88: 2016-07-01
A89: 79 | B89: HIPOLITO | C89: TOLENTINO | D89: 023-0084491-3 | E89: 960-455925-7 | F89: Seguridad | G89: Area SPM | H89: Unap Villa Faro | I89: 5,000.00 | J89: 143.50 | K89: 152.00 | N89: 4,704.50 | O89: 2022-02-08
A90: 80 | B90: STARLYN | C90: ALCANTARA | D90: 023-0166567-1 | E90: 960-514422-6 | F90: Seguridad | G90: Area SPM | H90: Unap el Brisal | I90: 5,000.00 | J90: 143.50 | K90: 152.00 | N90: 4,704.50 | O90: 2022-09-01
A91: 81 | B91: YAQUELIN AUDILIA | C91: RICHARSON PEÑA | D91: 030-0003307-0 | E91: 960-525593-0 | F91: Conserje | G91: Area SPM | H91: Unap Batey soco | I91: 5,000.00 | J91: 143.50 | K91: 152.00 | N91: 4,704.50 | O91: 2022-10-01
A92: 82 | B92: MANUEL DE JESUS | C92: LORA | D92: 023-0020611-3 | E92: 960-532825-5 | F92: Seguridad | G92: SRS-ESTE | H92: Oficina Regional | I92: 7,000.00 | J92: 200.90 | K92: 212.80 | N92: 6,586.30 | O92: 2022-11-01
A93: 83 | B93: DIGNA | C93: ROSARIO JAVIER | D93: 023-0143527-3 | E93: 960540890-2 | F93: Conserje | G93: Area SPM | H93: UNAP Santa Fe | I93: 5,000.00 | J93: 143.50 | K93: 152.00 | N93: 4,704.50 | O93: 2022-12-01
A94: 84 | B94: AIDA | C94: PEREZ NATERA | D94: 011-714807-2 | E94: 960-506293-3 | F94: Conserje | G94: Area SPM | H94: Unap las Goutier | I94: 5,000.00 | J94: 143.50 | K94: 152.00 | N94: 4,704.50 | O94: 2023-03-01
A95: 85 | B95: ESTEBANIA | C95: MELLA WILLIAMS | D95: 402-2020200-2 | E95: 9605815583 | F95: Conserje | G95: Area SPM | H95: CPN IDSS Consuelo | I95: 5,000.00 | J95: 143.50 | K95: 152.00 | N95: =I95-J95-K95-M95 -> 4,704.50 | O95: 2023-04-01
A96: 86 | B96: FREDDY | C96: FELICIANO | D96: 027-0022474-0 | E96: 9606189132 | F96: Sereno | G96: Area SPM | H96: CPN el Brisal | I96: 5,000.00 | J96: 143.50 | K96: 152.00 | N96: =I96-J96-K96-M96 -> 4,704.50 | O96: 2023-05-01
A97: 87 | B97: ROSA | C97: HERNANDEZ | D97: 023-01286841 | E97: 9606377959 | F97: Conserje | G97: Area SPM | H97: CPN Esperanza | I97: 5,000.00 | J97: 143.50 | K97: 152.00 | N97: =I97-J97-K97-M97 -> 4,704.50 | O97: 1//10/2023
A98: =A97+1 -> 88 | B98: DARLENYS MARIA | C98: SANTANA JIMENEZ | D98: 402-1112745-7 | F98: Conserje | G98: Area SPM | H98: Unap Santa clara de Asis | I98: 6,000.00 | J98: 172.20 | K98: 182.40 | N98: =I98-J98-K98-M98 -> 5,645.40 | O98: 2023-03-19
B99: Total de empleados contratado | I99: =SUM(I11:I98) -> 729,533.15 | J99: =SUM(J11:J98) -> 20,822.80 | K99: =SUM(K11:K98) -> 22,056.21 | L99: =SUM(L11:L94) -> 0.00 | M99: =SUM(M11:M94) -> 6,049.80 | N99: =SUM(N11:N98) -> 680,604.34
C103: LIC. YUDELKY JABALERA | H103: DR. RICARDO JULIO ROMERO
B104: ADMINISTRADORA | H104: DIRECTOR
B116: REGION V
B117: SAN PEDRO DE MACORIS, REPUBLICA DOMINICANA
B118: RNC 430041793
B119: NOMINA CORRESPONDIENTE AL 30 DE MARZO AÑO 2024
B120: PERSONAL AREA DE HATO MAYOR
B121: NOMBRE | C121: APELLIDO | D121: CEDULA | E121: No. CUENTA | F121: CARGO | G121: DEPARTAMENTO | H121: LUGAR PRESTA SERVICIOS | I121: SUELDO BRUTO | J121: S/S | K121: SFS | L121: ISR | M121: D/A | N121: SUELDO NETO | O121: FECHA
A122: 1 | B122: CARMEN I. | C122: SANTANA P. | D122: 027-0005223-2 | E122: 200011120165796 | F122: Aux. de enfermeria | G122: Area Hato Mayor | H122: Clinica Morquecho | I122: 11,786.00 | J122: =I122*2.87% -> 338.26 | K122: =I122*3.04% -> 358.29 | M122: 0.00 | N122: =I122-J122-K122-M122 -> 11,089.45 | O122: 2006-09-11
A123: =A122+1 -> 2 | B123: SULINDA | C123: MOTA DE SALAS | D123: 100-0007282-6 | E123: 200011120165880 | F123: Conserje | G123: Area Hato Mayor | H123: Clinica Yanigua | I123: 5,000.00 | J123: 143.50 | K123: 152.00 | N123: 4,704.50 | O123: 2007-01-02
A124: =A123+1 -> 3 | B124: DOMINGO A. | C124: PEGUERO LUNA | D124: 100-0002222-7 | E124: 200011120165864 | F124: Viglante | G124: Area Hato Mayor | H124: Clinica Yanigua | I124: 5,000.00 | J124: 143.50 | K124: 152.00 | N124: 4,704.50 | O124: 2007-04-02
A125: 4 | B125: MARIA | C125: NOLASCO | D125: 100-0000817-6 | E125: 200011120166148 | F125: Conserje | G125: Area Hato Mayor | H125: Clinica El valle | I125: 7,000.00 | J125: 143.50 | K125: 152.00 | N125: 6,704.50 | O125: 2007-02-01
A126: 5 | B126: NIURKA A. | C126: AQUINO JAVIER | D126: 100-0000180-9 | E126: 200011120165848 | F126: Tecnica Farmacia | G126: Area Hato Mayor | H126: Hospital el Valle | I126: 11,786.00 | J126: =I126*2.87% -> 338.26 | K126: =I126*3.04% -> 358.29 | M126: 0.00 | N126: =I126-J126-K126-M126 -> 11,089.45 | O126: 2007-08-01
A127: 6 | B127: ZENOVIA | C127: TRINIDAD MARTINEZ | D127: 023-0002962-2 | E127: 200011120165738 | F127: Conserje | G127: Area Hato Mayor | H127: Villa Navarro | I127: 5,000.00 | J127: 143.50 | K127: 152.00 | N127: 4,704.50 | O127: 2007-08-08
A128: 7 | B128: MIGUEL ISABEL | C128: VASQUEZ | D128: 027-0003867-8 | E128: 200011120143844 | F128: Chofer | G128: Area Hato Mayor | H128: Oficina area | I128: 8,000.00 | J128: 229.60 | K128: 243.20 | N128: 7,527.20 | O128: 2010-02-01
A129: 8 | B129: ANGELA | C129: RIVERA | D129: 027-0004711-7 | E129: 200011101333637 | F129: Conserje | G129: Area Hato Mayor | H129: UNAP Ondina | I129: 5,000.00 | J129: 143.50 | K129: 152.00 | N129: 4,704.50 | O129: 2010-06-01
A130: 9 | B130: FELIX | C130: CANARIO | D130: 027-0003530-2 | E130: 200011101393509 | F130: Sereno | G130: Area Hato Mayor | H130: Unap Ondina | I130: 5,000.00 | J130: =I130*2.87% -> 143.50 | K130: =I130*3.04% -> 152.00 | N130: =I130-J130-K130 -> 4,704.50 | O130: 2011-03-01
A131: 10 | B131: ELSA AURORA | C131: ZORRILLA | D131: 027-0028845-5 | E131: 200011101479559 | F131: Conserje | G131: Area Hato Mayor | H131: UNAP Punta de Garza | I131: 5,000.00 | J131: 143.50 | K131: 152.00 | N131: 4,704.50 | O131: 2012-06-01
A132: 11 | B132: CARMEN | C132: DE LA CRUZ TORREZ | D132: 027-0002151-8 | E132: 200011101479546 | F132: Conserje | G132: Area Hato Mayor | H132: Unap La China | I132: 5,000.00 | J132: 143.50 | K132: 152.00 | N132: 4,704.50 | O132: 2012-11-01
A133: 12 | B133: YAQUELIN | C133: CASTILLO MONEGRO | D133: 027-0039926-0 | E133: 200011120292627 | F133: Conserje | G133: Area Hato Mayor | H133: Unap la Javilla | I133: 5,000.00 | J133: 143.50 | K133: 152.00 | N133: 4,704.50 | O133: 2014-07-01
A134: 13 | B134: YARELIS | C134: GOMEZ REYES | D134: 027-0042030-6 | E134: 200011120292588 | F134: Conserje | G134: Area Hato Mayor | H134: Unap la plaza | I134: 5,000.00 | J134: 143.50 | K134: 152.00 | N134: 4,704.50 | O134: 2014-10-01
A135: 14 | B135: RUDELANIA | C135: OVALLE VEGA | D135: 023-0110894-6 | E135: 200011120292601 | F135: Medico asistente | G135: Area Hato Mayor | H135: Unap la plaza | I135: 20,000.00 | J135: 574.00 | K135: 608.00 | N135: 18,818.00 | O135: 2014-10-01
A136: 15 | B136: CLAUDIA M. | C136: RINCON COLIN | D136: 027-0046976-6 | E136: 200011120292591 | F136: Enfermera | G136: Area Hato Mayor | H136: Unap la plaza | I136: 7,000.00 | J136: 200.90 | K136: 212.80 | N136: 6,586.30 | O136: 2014-10-01
A137: 16 | B137: RAFAEL | C137: GONZALEZ | D137: 027-0024756-8 | E137: 200011101717211 | F137: Sereno | G137: Area Hato Mayor | H137: Unap km 15 Hato Mayor | I137: 5,000.00 | J137: 143.50 | K137: 152.00 | N137: 4,704.50 | O137: 2015-08-01
A138: 17 | B138: CARINYS MARIEL | C138: LOPEZ | D138: 402-2032423-6 | E138: 200-01-960048617-1 | F138: Promotora de salud | G138: Area Hato Mayor | H138: Oficina area | I138: 6,900.00 | J138: =I138*2.87% -> 198.03 | K138: =I138*3.04% -> 209.76 | M138: 0.00 | N138: =I138-J138-K138-M138 -> 6,492.21 | O138: 2017-10-01
A139: 18 | B139: YOHARKY | C139: LORENZO ABREU | D139: 025-0037069-3 | E139: 200-01-960-087689-0 | F139: Aux. de enfermeria | G139: Area Hato Mayor | I139: 9,000.00 | J139: 258.30 | K139: 273.60 | N139: =I139-J139-K139 -> 8,468.10 | O139: 2018-05-01
A140: 19 | B140: TAIRA MARIA | C140: GONZALEZ | D140: 100-0004525-1 | E140: 200-01-270-017401-7 | F140: Farmaceutica | G140: Area Hato Mayor | H140: Hospital el valle | I140: 18,400.00 | J140: 528.08 | K140: 559.36 | N140: =I140-J140-K140 -> 17,312.56 | O140: 2018-07-01
A141: 20 | B141: ISRAEL | C141: VASQUEZ ALEXANDER | D141: 138-0007689-8 | E141: 200-01-9603065740 | F141: Sereno | G141: Area Hato Mayor | H141: Gerencia de area | I141: 5,000.00 | J141: 143.50 | K141: 152.00 | N141: =SUM(I141-J141-K141) -> 4,704.50 | O141: 2019-07-01
A142: 21 | B142: GAUDY | C142: CRISOSTOMO | D142: 402-4018039-4 | E142: 200-01-9604269997 | F142: Conjerje | G142: Area Hato Mayor | H142: Unap ondina | I142: 5,000.00 | J142: 143.50 | K142: 152.00 | N142: =SUM(I142-J142-K142) -> 4,704.50 | O142: 2021-10-01
A143: 22 | B143: SAMUEL CRISTINO | C143: SALAZAR SOSA | D143: 402-0900247-2 | E143: 200-01-9604395130 | F143: Tecnico | G143: Area Hato Mayor | H143: Gerencia de area | I143: 30,000.00 | J143: 861.00 | K143: 912.00 | M143: 1,512.45 | N143: =SUM(I143-J143-K143-M143) -> 26,714.55 | O143: 2022-01-07
A144: 23 | B144: RICHARD | C144: SANTANA PADILLA | D144: 402-1195588-1 | E144: 200-01-9604716221 | F144: Mensajero | G144: Area Hato Mayor | H144: Gerencia de area | I144: 7,000.00 | J144: 200.90 | K144: 212.80 | N144: =SUM(I144-J144-K144) -> 6,586.30 | O144: 2022-04-01
A145: 24 | B145: REMY RAFAEL | C145: GERVACIO LOPEZ | D145: 067-0011062-7 | E145: 960-5265770 | F145: Sereno | G145: Area Hato Mayor | H145: Unap cañitas | I145: 5,000.00 | J145: 143.50 | K145: 152.00 | N145: =SUM(I145-J145-K145) -> 4,704.50 | O145: 2022-10-01
A146: 25 | B146: FRANCIASCA | C146: REYES LOPEZ | D146: 027-0017851-6 | E146: 960-5265769 | F146: Conserje | G146: Area Hato Mayor | H146: Unap Morquecho | I146: 5,000.00 | J146: 143.50 | K146: 152.00 | N146: 4,704.50 | O146: 2022-10-01
A147: 26 | B147: MAGALIS | C147: JIMENEZ | D147: 027-0030140-7 | E147: 960-5265764 | F147: Conserje | G147: Area Hato Mayor | H147: Unap jalonga | I147: 5,000.00 | J147: 143.50 | K147: 152.00 | N147: 4,704.50 | O147: 2022-10-01
A148: 27 | B148: DULCE MARIA | C148: DOMINGUEZ PEÑA | D148: 027-0046696-0 | E148: 960-5265766 | F148: Conserje | G148: Area Hato Mayor | H148: Unap Km 15 | I148: 5,000.00 | J148: 143.50 | K148: 152.00 | N148: 4,704.50 | O148: 2022-10-01
A149: 28 | B149: IRMA GRISEL | C149: REYES FELICIANO | D149: 027-0012399-1 | E149: 960-5265765 | F149: Conserje | G149: Area Hato Mayor | H149: Unap la Sierra | I149: 5,000.00 | J149: 143.50 | K149: 152.00 | N149: 4,704.50 | O149: 2022-10-01
A150: 29 | B150: RAFAEL | C150: FLOYD POLICIA | D150: 402-1139481-8 | E150: 960-5354300 | F150: Sereno | G150: Area Hato Mayor | H150: Unap jalonga | I150: 5,000.00 | J150: 143.50 | K150: 152.00 | N150: 4,704.50 | O150: 2022-11-01
A151: 30 | B151: JULIO ADRIANO | C151: DIAZ ACOSTA | D151: 067-0013604-4 | E151: 9605408903 | F151: Sereno | G151: Area Hato Mayor | H151: Unap Magua | I151: 5,000.00 | J151: 143.50 | K151: 152.00 | N151: 4,704.50 | O151: 2022-12-01
A152: 31 | B152: JUAN | C152: JAVIER | D152: 027-0015148-9 | E152: 9606157607 | F152: Viglante | G152: Area Hato Mayor | H152: Unap jalonga | I152: 5,000.00 | J152: 143.50 | K152: 152.00 | N152: 4,704.50 | O152: 2023-08-01
A153: 32 | B153: ISMAEL | C153: GARCIA SEVERINO | D153: 402-1030578-1 | E153: 9606781220 | F153: Sereno | G153: Area Hato Mayor | H153: Yerba Buena | I153: 5,000.00 | J153: 143.50 | K153: 152.00 | N153: 4,704.50 | O153: 2024-02-01
B154: TOTAL NOMINA HATO MAYOR | I154: =SUM(I122:I153) -> 241,872.00 | J154: =SUM(J122:J153) -> 6,884.33 | K154: =SUM(K122:K153) -> 7,292.11 | M154: =SUM(M122:M152) -> 1,512.45 | N154: =SUM(N122:N153) -> 226,183.11
C160: LIC. YUDELKY JABALERA | H160: DR. RICARDO JULIO ROMERO
B161: ADMINISTRADORA | H161: DIRECTOR
B178: REGION V
B179: SAN PEDRO DE MACORIS, REPUBLICA DOMINICANA
B180: RNC 430041793
B181: NOMINA CORRESPONDIENTE AL 30 DE MARZO AÑO 2024
B182: PERSONAL AREA EL SEYBO | J182: S/S | K182: SFS | L182: ISR | M182: D/A
B183: NOMBRE | C183: APELLIDO | D183: CEDULA | E183: No. CUENTA | F183: CARGO | G183: DEPARTAMENTO | H183: LUGAR PRESTA SERVICIOS | I183: SUELDO BRUTO | J183: DEDUCCIONES | N183: SUELDO NETO | O183: FECHA
A184: 1 | B184: ANA MARIA | C184: VASQUEZ SANTANA | D184: 025-0041921-9 | E184: 200011110179067 | F184: Conserje | G184: Area el seibo | H184: Clinica las 500 | I184: 5,000.00 | J184: 143.50 | K184: 152.00 | N184: 4,704.50 | O184: 2007-06-01
A185: =A184+1 -> 2 | B185: OSVALDO ANTONIO | C185: CRUZ | D185: 029-0004372-6 | E185: 200011110179135 | F185: Sereno | G185: Area el seibo | H185: Unap Los Franceses | I185: 5,000.00 | J185: 143.50 | K185: 152.00 | N185: 4,704.50 | O185: 2007-07-09
A186: =A185+1 -> 3 | B186: MAXIMO | C186: DEL ROSARIO SILVESTRE | D186: 025-0027067-9 | E186: 200011101180725 | F186: Sereno | G186: Area el seibo | H186: Unap el guaral | I186: 5,000.00 | J186: 143.50 | K186: 152.00 | N186: 4,704.50 | O186: 2007-09-01
A187: 4 | B187: RAFAELA | C187: DIAZ DIAZ | D187: 025-0033097-8 | E187: 200011101294569 | F187: Conserje | G187: Area el seibo | H187: Clinica el Guaral | I187: 5,000.00 | J187: 143.50 | K187: 152.00 | N187: 4,704.50 | O187: 2009-08-14
A188: 5 | B188: YNIRIO MODESTO | C188: LEONARDO | D188: 025-0034927-5 | E188: 200011101393486 | F188: Sereno | G188: Area el seibo | H188: Unap el cerrito del seibo | I188: 5,000.00 | J188: 143.50 | K188: 152.00 | M188: 0.00 | N188: 4,704.50 | O188: 2011-01-01
A189: 6 | B189: AMPARO | C189: MOJICA | D189: 029-0010041-9 | E189: 200011101393554 | F189: Conserje | G189: Area el seibo | H189: Centro de zona Villa Guerrero | I189: 5,000.00 | J189: 143.50 | K189: 152.00 | N189: 4,704.50 | O189: 2011-01-01
A190: 7 | B190: SONIA ELENA | C190: PAREDES MARTINEZ | D190: 025-0008358-5 | E190: 200011101711741 | F190: Conserje | G190: Area el seibo | H190: Unap las guajabas | I190: 5,000.00 | J190: 143.50 | K190: 152.00 | N190: 4,704.50 | O190: 2016-04-01
A191: 8 | B191: LEONIDAS | C191: MOTA DE LA CRUZ | D191: 027-0034558-6 | E191: 200-01-110-176883-3 | F191: Conserje | G191: Area el seibo | H191: Unap las guajabas | I191: 5,000.00 | J191: =I191*2.87% -> 143.50 | K191: =I191*3.04% -> 152.00 | N191: =I191-J191-K191 -> 4,704.50 | O191: 2016-09-01
A192: 9 | B192: ROSANGELA | C192: SORIANO | D192: 025-0048387-6 | E192: 200-01-960056265-8 | F192: Medico asist. | G192: Area el seibo | H192: Unap los botado | I192: 28,000.00 | J192: 803.60 | K192: 851.20 | N192: =I192-J192-K192 -> 26,345.20 | O192: 2018-02-01
A193: 10 | B193: TATATIANA ROSANA | C193: AQUINO | D193: 402-3486379-9 | E193: 200-01-960-087688-5 | F193: Aux. de Farmacia | G193: Area el seibo | H193: Gerencia de area Seibo | I193: 9,835.00 | J193: 282.26 | K193: 298.98 | N193: =I193-J193-K193 -> 9,253.75 | O193: 2018-04-01
A194: 11 | B194: ANGELINA | C194: PEGUERO | D194: 029-0015408-5 | E194: 200-01-9603069101 | F194: Aux. de limpieza | G194: Area el seibo | H194: Unap la mina | I194: 5,000.00 | J194: 143.50 | K194: 152.00 | N194: =I194-J194-K194 -> 4,704.50 | O194: 2020-01-09
A195: 12 | B195: OSVIANNY | C195: ZORRILLA BERAS | D195: 402-2519711-6 | E195: 200-01-1101711657 | F195: Enc. De soporte tecnico | G195: Area el seibo | H195: Gerencia de area | I195: 30,000.00 | J195: 861.00 | K195: 912.00 | N195: 28,227.00 | O195: 2020-01-11
A196: 13 | B196: DIONILIA | C196: ZORRILLA | D196: 025-0009672-8 | E196: 200-01-9603798317 | F196: Conserje | G196: Area el seibo | H196: Unap Pedro Sanchez | I196: 5,000.00 | J196: 143.50 | K196: 152.00 | N196: 4,704.50 | O196: 2021-01-03
A197: 14 | B197: MILOSY ARACELIS | C197: BAEZ APONTE | D197: 025-0032466-6 | E197: 200-01-9603883495 | F197: Aux. de Enfermeria | G197: Area el seibo | H197: Unap Cañada del Agua | I197: 10,000.00 | J197: 287.00 | K197: 304.00 | N197: 9,409.00 | O197: 2021-01-07
A198: 15 | B198: CARMEN DOLORES | C198: GARCIA | D198: 023-0075496-3 | E198: 200-01-9604074136 | F198: Conserje | G198: Area el seibo | H198: Unap Villa Guerrero | I198: 5,000.00 | J198: 143.50 | K198: 152.00 | N198: 4,704.50 | O198: 2021-09-01
A199: 16 | B199: CANDIDA | C199: DE LA CRUZ | D199: 065-0019411-0 | E199: 200-01-9604074312 | F199: Conserje | G199: Area el seibo | H199: Unap Los Franceses | I199: 5,000.00 | J199: 143.50 | K199: 152.00 | N199: 4,704.50
A200: 17 | B200: EDELKIN MARIA | C200: PEREZ PERALTA | D200: 029-0016608-9 | E200: 200-01-9604334569 | F200: Conserje | G200: Area el seibo | H200: Unap la Gina | I200: 5,000.00 | J200: 143.50 | K200: 152.00 | N200: 4,704.50 | O200: 2021-12-01
A201: 18 | B201: CAROLIN FERNANDA | C201: NIEVES CANELA | D201: 402-1825057-5 | E201: 200-01-960-464357-0 | F201: Digitadora | G201: Area el seibo | H201: Gerencia de area | I201: 10,000.00 | J201: 287.00 | K201: 304.00 | N201: 9,409.00 | O201: 2022-03-01
A202: 19 | B202: LUCIA | C202: DE JESUS | D202: 029-0007400-2 | E202: 200-01-960484399-2 | F202: Conserje | G202: Area el seibo | H202: Unap el cedro de miches | I202: 5,000.00 | J202: 143.50 | K202: 152.00 | N202: 4,704.50 | O202: 2022-05-01
A203: 20 | B203: CESAR ORLANDO | C203: MORALES VASQUEZ | D203: 029-0019287-9 | E203: 200-019605119375 | F203: Sereno | G203: Area el seibo | H203: Unap la Mina | I203: 5,000.00 | J203: 143.50 | K203: 152.00 | N203: 4,704.50 | O203: 2022-07-01
A204: 21 | B204: ANTONIO | C204: HERNANDEZ | D204: 025-0015700-9 | E204: 960-568646-3 | F204: Vigilante | G204: Area el seibo | H204: Unap Magarin | I204: 5,000.00 | J204: 143.50 | K204: 152.00 | N204: 4,704.50 | O204: 2023-03-01
A205: 22 | B205: DEMETRIO | C205: MEDINA | D205: 029-0009483-6 | E205: 960-5817459 | F205: Vigilante | G205: Area el seibo | H205: Unap el cerrito | I205: 5,000.00 | J205: 143.50 | K205: 152.00 | N205: 4,704.50 | O205: 2023-04-01
A206: 23 | B206: DOMINGO | C206: ESTEBAN | D206: 027-0028929-7 | E206: 110-1711806 | F206: Sereno | G206: Area el seibo | H206: Unap Magarin | I206: 5,000.00 | J206: 143.50 | K206: 152.00 | N206: 4,704.50 | O206: 2023-04-01
A207: 24 | B207: JULIO CRISTOBAL | C207: CASTRO MOTA | D207: 025-0049811-4 | E207: 9606781219 | F207: Chofer | G207: Area el seibo | H207: Gerencia de area | I207: 8,000.00 | J207: 229.60 | K207: 243.20 | N207: 7,527.20 | O207: 2024-01-02
A208: 25 | B208: VANESSA | C208: MERCEDES BAEZ | D208: 402-4998424-2 | F208: Secretaria | G208: Area el seibo | H208: Gerencia de area | I208: 10,000.00 | J208: =I208*2.87% -> 287.00 | K208: =I208*3.04% -> 304.00 | N208: =I208-J208-K208 -> 9,409.00 | O208: 2024-03-01
B209: TOTAL NOMINA EL SEIBO | I209: =SUM(I184:I208) -> 195,835.00 | J209: 5,620.46 | K209: 5,953.38 | L209: 0.00 | M209: 0.00 | N209: 184,261.15
C212: LIC. YUDELKY JABALERA | H212: DR. RICARDO JULIO ROMERO
B213: ADMINISTRADORA | H213: DIRECTOR
B220: REGION V
B221: C/COLON No.28, CENTRO DE LA CIUDAD
B222: SAN PEDRO DE MACORIS, REPUBLICA DOMINICANA
B223: RNC 430041793
B225: NOMINA CORRESPONDIENTE AL 30 DE MARZO AÑO 2024
B226: PERSONAL LA ROMANA | J226: S/S | K226: SFS | L226: ISR | M226: D/A | N226: 0.00
B227: NOMBRE | C227: APELLIDO | D227: CEDULA | E227: No. CUENTA | F227: CARGO | G227: DEPARTAMENTO | H227: LUGAR PRESTA SERVICIOS | I227: SUELDO BRUTO | J227: DEDUCCIONES | N227: SUELDO NETO | O227: FECHA
A228: 1 | B228: SONIA MARGARITA | C228: HACEN MENOR | D228: 103-0005891-3 | E228: 200012700174020 | F228: Conserje | G228: Area Romana | H228: Clinica Higueral | I228: 5,000.00 | J228: 143.50 | K228: 152.00 | N228: 4,704.50 | O228: 2007-06-25
A229: =A228+1 -> 2 | B229: ANGELA | C229: MATEO VILLAR | D229: 026-0128058-5 | E229: 200011101189535 | F229: Conserje | G229: Area Romana | H229: Clinica Maria Trinidad Sanchez | I229: 5,000.00 | J229: 143.50 | K229: 152.00 | N229: 4,704.50 | O229: 2007-11-01
A230: =A229+1 -> 3 | B230: FRANCISCA | C230: NOLASCO | D230: 026-0031430-2 | E230: 200011101209541 | F230: Conserje | G230: Area Romana | H230: Unap Piedra Linda | I230: 5,000.00 | J230: 143.50 | K230: 152.00 | N230: 4,704.50 | O230: 2008-02-01
A231: 4 | B231: SANDRA | C231: CESPEDES PAYANO | D231: 026-0079070-9 | E231: 200011101209567 | F231: Conserje | G231: Area Romana | H231: Unap Cucama | I231: 5,000.00 | J231: 143.50 | K231: 152.00 | N231: 4,704.50 | O231: 2008-02-14
A232: 5 | B232: ROGELIO | C232: SOLANO SILVESTRE | D232: 026-0039613-5 | E232: 200011101253717 | F232: Sereno | G232: Area Romana | H232: Unap Los Mulos | I232: 5,000.00 | J232: 143.50 | K232: 152.00 | N232: 4,704.50 | O232: 2008-10-01
A233: 6 | B233: WARDIN | C233: SUERO GARCIA | D233: 026-0108716-2 | E233: 200011101253720 | F233: Sereno | G233: Area Romana | H233: Clinica Maria Trinidad Sanchez | I233: 5,000.00 | J233: 143.50 | K233: 152.00 | N233: 4,704.50 | O233: 2008-10-01
A234: 7 | B234: ELSA DEONICIA | C234: MERCEDES ORTIZ | D234: 026-0045084-1 | E234: 200011101292147 | F234: Lic.Enfermeria | G234: Area Romana | H234: Clinica Higueral | I234: 10,000.00 | J234: =I234*2.87% -> 287.00 | K234: =I234*3.04% -> 304.00 | N234: =I234-J234-K234 -> 9,409.00 | O234: 2009-08-03
A235: 8 | B235: MIGUEL RAMON | C235: TRAVIESO GARCIA | D235: 026-0063076-4 | E235: 200011101318814 | F235: Mayordomo | G235: Area Romana | H235: Clinica Villa Hermosa | I235: 5,000.00 | J235: =I235*2.87% -> 143.50 | K235: =I235*3.04% -> 152.00 | N235: =I235-J235-K235 -> 4,704.50 | O235: 2010-02-01
A236: 9 | B236: WANDA YUSIL | C236: DEL ROSARIO | D236: 026-0141280-8 | E236: 200011101318830 | F236: Aux. de Oficina | G236: Area Romana | H236: Clinica Villa Hermosa | I236: 5,000.00 | J236: 143.50 | K236: 152.00 | N236: 4,704.50 | O236: 2010-02-01
A237: 10 | B237: ENMA | C237: DE LOS SANTOS | D237: 026-0039834-7 | E237: 200011101326055 | F237: Conserje | G237: Area Romana | H237: UNAP Los Coco | I237: 5,000.00 | J237: 143.50 | K237: 152.00 | N237: 4,704.50 | O237: 2010-04-01
A238: 11 | B238: CARLOS ANT. | C238: CORDONES | D238: 295-0002936-7 | E238: 200011101479656 | F238: Sereno | G238: Area Romana | H238: UNAP KM 14 | I238: 5,000.00 | J238: 143.50 | K238: 152.00 | M238: 1,512.45 | N238: =I238-J238-K238-M238 -> 3,192.05 | O238: 2012-07-01
A239: 12 | B239: FERMIN | C239: RIJO | D239: 026-0061107-9 | E239: 200011101479481 | F239: Sereno | G239: Area Romana | H239: UNAP Luis J. Suarez | I239: 5,000.00 | J239: 143.50 | K239: 152.00 | N239: 4,704.50 | O239: 2012-08-01
A240: 13 | B240: DINORA E | C240: RAMIREZ DE LA CRUZ | D240: 026-0037001-5 | E240: 200011101561205 | F240: Seccretaria | G240: Area Romana | H240: Oficina area Romana | I240: 20,400.00 | J240: =I240*2.87% -> 585.48 | K240: =I240*3.04% -> 620.16 | M240: 0 | N240: =I240-J240-K240-M240 -> 19,194.36 | O240: 2014-03-01
A241: 14 | B241: MARGARITO | C241: CUETO ROSARIO | D241: 026-0043627-9 | E241: 200011101561218 | F241: Sereno | G241: Area Romana | H241: Clinica Villa Hermosa | I241: 5,000.00 | J241: 143.50 | K241: 152.00 | N241: 4,704.50 | O241: 2014-03-01
A242: 15 | B242: RAMONA GERTRUDIS | C242: HUNT S. | D242: 026-0044901-7 | E242: 200011101630699 | F242: Aux de farmacia | G242: Area Romana | H242: Unap Luis J. Suarez | I242: 7,750.00 | J242: 222.43 | K242: 235.60 | N242: 7,291.98 | O242: 2014-10-01
A243: 16 | B243: PROFECTA | C243: ACOSTA FERMIN | D243: 065-0018087-9 | E243: 20001110176884-6 | F243: Conserje | G243: Area Romana | H243: Unap Saona | I243: 5,000.00 | J243: 143.50 | K243: 152.00 | N243: 4,704.50 | O243: 2016-10-01
A244: 17 | B244: DOMINGA | C244: MEJIA | D244: 026-0079667-2 | E244: 20001110176885-9 | F244: Promotara | G244: Area Romana | H244: Unap conani | I244: 5,000.00 | J244: 143.50 | K244: 152.00 | N244: 4,704.50 | O244: 2016-12-01
A245: 18 | B245: MARIANO | C245: ANTONIO MARTE | D245: 026-0054441-1 | E245: 20001210107826-4 | F245: Sereno | G245: Area Romana | H245: Unap villa verde | I245: 5,000.00 | J245: 143.50 | K245: 152.00 | N245: 4,704.50 | O245: 2015-11-01
A246: 19 | B246: DAISY MARIA | C246: DE LEON FELIX | D246: 023-0088812-6 | E246: 200-01-960048617-0 | F246: Conserje | G246: Area Romana | H246: Unap villa hermosa | I246: 5,000.00 | J246: =I246*2.87% -> 143.50 | K246: =I246*3.04% -> 152.00 | N246: =I246-J246-K246 -> 4,704.50 | O246: 2017-08-01
... 58 more rows

Sheet ABRIL 2024
B4: REGION V
B5: SAN PEDRO DE MACORIS, REPUBLICA DOMINICANA
B6: PERSONAL SPM
B7: Total de empleados contratado
B8: NOMINA CORRESPONDIENTE AL 30 DE ABRIL AÑO 2024
B9: AREA SPM
B10: NOMBRE | C10: APELLIDO | D10: CEDULA | F10: CARGO | G10: DEPARTAMENTO | H10: LUGAR PRESTA SERVICIOS | I10: SUELDO BRUTO | J10: S/S | K10: SFS | L10: ISR | M10: D/A | N10: SUELDO NETO | O10: FECHA
A11: 1 | B11: PAULINO | C11: LUIS | D11: 024-0008005-3 | E11: 200011101179105 | F11: Vigilante | G11: Area SPM | H11: Clinica Quisqueya | I11: 1913-09-08 | J11: =I11*2.87% -> 143.50 | K11: =I11*3.04% -> 152.00 | N11: =I11-J11-K11-M11 -> 4,704.50 | O11: 2007-05-08
A12: =A11+1 -> 2 | B12: PETRONILA ALT. | C12: PAYANO | D12: 023-0049840-5 | E12: 200011101178533 | F12: Conserje | G12: Area SPM | H12: Clinica Angelina | I12: 1913-09-08 | J12: 0.00 | K12: 0.00 | M12: 0.00 | N12: 5,000.00 | O12: 2007-01-02
A13: =A12+1 -> 3 | B13: RUTH PRISCILA | C13: PEREZ | D13: 024-0009931-9 | E13: 200011101179118 | F13: Aux. Farmacia | G13: Area SPM | H13: Clinica Quisqueya | I13: 1950-05-17 | J13: =I13*2.87% -> 528.08 | K13: =I13*3.04% -> 559.36 | M13: 0.00 | N13: 17,312.56 | O13: 2007-03-01
A14: 4 | B14: MARCELINO | C14: GUZMAN | D14: 024-0002608-0 | E14: 200011101179079 | F14: Sereno | G14: Area SPM | H14: Clinica El Puerto | I14: 5,000.00 | J14: 143.50 | K14: 152.00 | N14: 4,704.50 | O14: 2007-06-25
A15: 5 | B15: ANA MERCEDES | C15: DE LA CRUZ | D15: 023-0072812-4 | E15: 200011101178630 | F15: Conserje | G15: Area SPM | H15: Clinica Barrio Blanco | I15: 5,000.00 | J15: 143.50 | K15: 152.00 | N15: 4,704.50 | O15: 2007-06-01
A16: 6 | B16: FRANCISCA | C16: POMUCENO SORIANO | D16: 024-0004970-2 | E16: 200011101179095 | F16: Conserje | G16: Area SPM | H16: Clinica Guayabal | I16: 5,000.00 | J16: =I16*2.87% -> 143.50 | K16: =I16*3.04% -> 152.00 | N16: 4,704.50 | O16: 2007-07-02
A17: 7 | B17: SIMONA | C17: PEGUERO HERNANDEZ | D17: 024-0012760-7 | E17: 200011101179134 | F17: Conserje | G17: Area SPM | H17: Clinica Honduras | I17: 5,000.00 | J17: 143.50 | K17: 152.00 | N17: 4,704.50 | O17: 2007-07-02
A18: 8 | B18: LEONEL | C18: DE LA CRUZ HERNANDEZ | D18: 024-0013605-3 | E18: 200011101179150 | F18: Sereno | G18: Area SPM | H18: Clinica Honduras | I18: 5,000.00 | J18: 143.50 | K18: 152.00 | N18: 4,704.50 | O18: 2007-07-02
A19: 9 | B19: JUAN JOSE | C19: JUAN JEAN | D19: 023-0137052-0 | E19: 200011101179053 | F19: Sereno | G19: Area SPM | H19: Unap Batey Esperanza | I19: 5,000.00 | J19: 143.50 | K19: 152.00 | N19: 4,704.50 | O19: 2007-07-18
A20: 10 | B20: RAMON A. | C20: PEGUERO AQUINO | D20: 023-0057845-3 | E20: 200011101178591 | F20: Sereno | G20: Area SPM | H20: Unap Angelina | I20: 5,000.00 | J20: 143.50 | K20: 152.00 | N20: 4,704.50 | O20: 2007-07-23
A21: 11 | B21: MARIA DEL C. | C21: LARA MENDEZ | D21: 023-0064326-5 | E21: 200011101180686 | F21: Atencion al Usuario | G21: Area SPM | H21: Clinica Porvenir | I21: 7,000.00 | J21: 200.90 | K21: 212.80 | N21: 6,586.30 | O21: 2007-08-01
A22: 12 | B22: ALEX | C22: ROMBLEY | D22: 023-0126548-0 | E22: 200011101180709 | F22: Sereno | G22: Area SPM | H22: Clinica Porvenir | I22: 8,318.04 | J22: =I22*2.87% -> 238.73 | K22: =I22*3.04% -> 252.87 | N22: 7,826.44 | O22: 2007-09-13
A23: 13 | B23: REYNA ISABEL | C23: MORLA DE A. | D23: 023-0066599-5 | E23: 200011101253636 | F23: Bioanalista | G23: Area SPM | H23: Clinica Barrio Lindo | I23: 18,312.00 | J23: =I23*2.87% -> 525.55 | K23: =I23*3.04% -> 556.68 | L23: 0.00 | M23: 0.00 | N23: 17,229.76 | O23: 2008-09-11
A24: 14 | B24: EVA | C24: MATEO FERRERAS | D24: 023-0011428-3 | E24: 200012700173856 | F24: Medico General | G24: Area SPM | H24: UNAP Uasd | I24: 28,657.01 | J24: 822.46 | K24: 871.17 | M24: 0.00 | N24: 26,963.38 | O24: 2007-08-08
A25: 15 | B25: JOSE | C25: CALAZAN CALMONA | D25: 027-0013504-5 | E25: 200011101209570 | F25: Sereno | G25: Area SPM | H25: UNAP las colinas | I25: 5,000.00 | J25: 143.50 | K25: 152.00 | N25: 4,704.50 | O25: 2008-02-21
A26: 16 | B26: BEATRIZ ALT. | C26: SEVERINO | D26: 023-0084459-0 | E26: 200011101224225 | F26: Odontologa | G26: Area SPM | H26: UNAP Barrio Blanco | I26: 24,000.00 | J26: =I26*2.87% -> 688.80 | K26: =I26*3.04% -> 729.60 | M26: 0.00 | N26: 22,581.60 | O26: 2008-03-17
A27: 17 | B27: CARIDAD TODMAN | C27: DE LOS SANTOS | D27: 023-0041126-7 | E27: 200011101224209 | F27: Enfermera Aux. | G27: Area SPM | H27: unap Monte coca | I27: 11,596.60 | J27: =I27*2.87% -> 332.82 | K27: =I27*3.04% -> 352.54 | M27: 0.00 | N27: 10,911.24 | O27: 2008-04-01
A28: 18 | B28: PEDRO | C28: ZORRILLA | D28: 023-0017693-6 | E28: 200011101231865 | F28: Sereno Clinica | G28: Area SPM | H28: UNAP Barrio Blanco | I28: 5,000.00 | J28: =I28*2.87% -> 143.50 | K28: =I28*3.04% -> 152.00 | N28: 4,704.50 | O28: 2008-04-30
A29: 19 | B29: FRANCISCO A | C29: CASTRO R. | D29: 023-0005830-8 | E29: 200011101245945 | F29: Auxiliar de almacen | G29: Area SPM | H29: Almacen Regional | I29: 9,600.00 | J29: =I29*2.87% -> 275.52 | K29: =I29*3.04% -> 291.84 | N29: 9,032.64 | O29: 2008-08-01
A30: 20 | B30: ODILE A. | C30: MILIAN MCCABE | D30: 023-0025423-8 | E30: 200011101253597 | F30: Aux. de Bioanalisis | G30: Area SPM | H30: Unap porvenir | I30: 22,000.00 | J30: =I30*2.87% -> 631.40 | K30: =I30*3.04% -> 668.80 | M30: 3,024.90 | N30: 17,674.90 | O30: 2008-09-01
A31: 21 | B31: JUANA | C31: MORLA POLANCO | D31: 026-0113870-0 | E31: 200011101253733 | F31: Conseje | G31: Area SPM | H31: UNAP Batey Jagual | I31: 5,000.00 | J31: 143.50 | K31: 152.00 | N31: 4,704.50 | O31: 2008-09-01
A32: 22 | B32: ANA JULIA | C32: MENDEZ BRITO | D32: 011-0000744-0 | E32: 200011101253568 | F32: Aux. Enfermera | G32: Area SPM | H32: Unap Evangelina Rodriguez | I32: 13,000.00 | J32: =I32*2.87% -> 373.10 | K32: =I32*3.04% -> 395.20 | L32: 0.00 | M32: 0.00 | N32: 12,231.70 | O32: 2008-10-08
A33: 23 | B33: YVELISSE E. | C33: ASTACIO PEÑA | D33: 023-0003063-8 | E33: 200011101278064 | F33: Conserje | G33: SRS ESTE | H33: Oficina Regional | I33: 8,050.00 | J33: =I33*2.87% -> 231.04 | K33: =I33*3.04% -> 244.72 | L33: 0.00 | M33: 1,512.45 | N33: 6,061.80 | O33: 2009-01-19
A34: 24 | B34: EPIFANIO | C34: CALDERON | D34: 023-0058958-3 | E34: 200011101272633 | F34: Sereno | G34: Area SPM | H34: Clinica Santa fe | I34: 5,000.00 | J34: 143.50 | K34: 152.00 | N34: 4,704.50 | O34: 2009-02-01
A35: 25 | B35: FRANCISCO DE J. | C35: MATICH CASTRO | D35: 023-0028027-4 | E35: 200011101272688 | F35: Auxiliar de almacen | G35: SRS ESTE | H35: Almacen Regional | I35: 9,600.00 | J35: =I35*2.87% -> 275.52 | K35: =I35*3.04% -> 291.84 | N35: 9,032.64 | O35: 2009-02-01
A36: 26 | B36: YERNIS NOEMIS | C36: POCHE F. | D36: 024-0022376-0 | E36: 200011101294556 | F36: Secretaria | G36: Area SPM | H36: clinica Quisqueya | I36: 8,000.00 | J36: 229.60 | K36: 243.20 | N36: 7,527.20 | O36: 2009-08-03
A37: 27 | B37: JOAQUIN | C37: EUSEBIO | D37: 024-0013633-5 | E37: 200011101310155 | F37: Sereno | G37: Area SPM | H37: Clinica Cayacoa | I37: 5,000.00 | J37: 143.50 | K37: 152.00 | N37: 4,704.50 | O37: 2009-12-01
A38: 28 | B38: ROSA SANCHEZ | C38: CABRERA | D38: 023-0109901-2 | E38: 200011101318759 | F38: Conserje | G38: Area SPM | H38: Clinica Porvenir | I38: 8,000.00 | J38: 229.60 | K38: 243.20 | N38: 7,527.20 | O38: 2010-02-01
A39: 29 | B39: BIENVENIDO | C39: BUSTAMANTE GUZMAN | D39: 023-0074695-1 | E39: 200011101358201 | F39: Soporte tecnico | G39: SRS ESTE | H39: Dpto. Publicidad | I39: 6,000.00 | J39: 172.20 | K39: 182.40 | M39: 0.00 | N39: 5,645.40 | O39: 2010-09-01
A40: 30 | B40: VICTOR | C40: NATERA | D40: 024-0006526-0 | E40: 200011101393460 | F40: Sereno | G40: Area SPM | H40: Unap Quisquella | I40: 5,000.00 | J40: 143.50 | K40: 152.00 | N40: 4,704.50 | O40: 2011-03-01
A41: 31 | B41: MIKI | C41: HEREDIA | D41: 023-0115037-7 | E41: 200011101420074 | F41: Aux. de farmacia | G41: Area SPM | H41: Unap Villa Faro | I41: 15,187.50 | J41: 435.88 | K41: 461.70 | N41: 14,289.92 | O41: 2012-10-12
A42: 32 | B42: ESTHER | C42: HINOJOSA | D42: 025-0009474-9 | E42: 200011101419959 | F42: Laboratorio | G42: Area SPM | H42: Unap Povenir | I42: 13,312.00 | J42: 382.05 | K42: 404.68 | N42: 12,525.26 | O42: 2012-10-05
A43: 33 | B43: ANA LUISA | C43: JEAN JOSEPH | D43: 027-0039773-6 | E43: 200011101479562 | F43: Conserje | G43: Area SPM | H43: unap Monte coca | I43: 5,000.00 | J43: 143.50 | K43: 152.00 | N43: 4,704.50 | O43: 2012-04-01
A44: =A43+1 -> 34 | B44: FROILAN | C44: VALDEZ LORENZO | D44: 011-0028087-2 | E44: 200011101571020 | F44: Sonografista | G44: Area SPM | H44: Centro de Diagnostico | I44: 30,000.00 | J44: 861.00 | K44: 912.00 | N44: 28,227.00 | O44: 2013-01-02
A45: 35 | B45: CARY ROSEMARY | C45: SANTANA JABALERA | D45: 023-0117440-1 | E45: 200011101632914 | F45: Enfermera | G45: Area SPM | H45: unap San Martin de Pobre | I45: 8,000.00 | J45: 229.60 | K45: 243.20 | N45: 7,527.20 | O45: 2015-04-01
A46: 36 | B46: NICOLAS | C46: DIAZ VALENZUELA | D46: 023-0103775-6 | E46: 200011101711644 | F46: Sereno | G46: Area SPM | H46: Unap barrio lindo | I46: 6,000.00 | J46: 172.20 | K46: 182.40 | N46: 5,645.40 | O46: 2014-01-01
A47: 37 | B47: MARIA ALT. | C47: POLANCO | D47: 024-0011102-3 | E47: 200011101711592 | F47: Conserje | G47: Area SPM | H47: Unap Quisqueya | I47: 5,000.00 | J47: 143.50 | K47: 152.00 | N47: 4,704.50 | O47: 2014-09-01
A48: 38 | B48: YUDELKIS | C48: FLEMING HODGE | D48: 023-0092307-1 | E48: 200011101711903 | F48: Conserje | G48: Area SPM | H48: unap cachena | I48: 5,000.00 | J48: 143.50 | K48: 152.00 | N48: 4,704.50 | O48: 2014-11-01
A49: 39 | B49: LICETTE | C49: JIMENEZ GARCIA | D49: 023-0020559-4 | E49: 200011101711628 | F49: Conserje | G49: Area SPM | H49: Unap San Martin de Porre | I49: 5,000.00 | J49: 143.50 | K49: 152.00 | N49: 4,704.50 | O49: 2015-05-01
A50: 40 | B50: BASILIA E. | C50: JOSE CIRIACO | D50: 023-0040467-6 | E50: 200011101711796 | F50: Conserje | G50: Area SPM | H50: Unap cachena | I50: 5,000.00 | J50: 143.50 | K50: 152.00 | N50: 4,704.50 | O50: 2015-06-01
A51: 41 | B51: BASILIO | C51: CALDERON MEDINA | D51: 027-0018363-1 | E51: 200011101711631 | F51: Sereno | G51: Area SPM | H51: Unap camara Junior | I51: 5,000.00 | J51: 143.50 | K51: 152.00 | N51: 4,704.50 | O51: 2016-02-02
A52: 42 | B52: NELCIDA YOLADIS | C52: LINARES | D52: 023-0153307-7 | E52: 200011101711851 | F52: Enfermera | G52: Area SPM | H52: Unap brisal | I52: 8,000.00 | J52: 229.60 | K52: 243.20 | N52: 7,527.20 | O52: 2016-01-01
A53: 43 | B53: MARIA | C53: NIEVES MARTE | D53: 023-0084538-1 | E53: 200011101711848 | F53: Conserje | G53: Area SPM | H53: Unap Juan Dolio | I53: 5,000.00 | J53: 143.50 | K53: 152.00 | N53: 4,704.50 | O53: 2014-04-01
A54: 44 | B54: MERCEDES | C54: DANIEL DELGADO | D54: 024-0013600-4 | E54: 200-01-110-173833-9 | F54: Conserje | G54: Area SPM | H54: Unap Hondura | I54: 5,000.00 | J54: =I54*2.87% -> 143.50 | K54: =I54*3.04% -> 152.00 | M54: 0.00 | N54: 4,704.50 | O54: 2014-06-01
A55: 45 | B55: DARIO FRANCISCO | C55: PIE BLAKE | D55: 023-0128257-6 | E55: 200-01-110-176947-6 | F55: Sereno | G55: Area SPM | H55: Unap consuelito | I55: 5,000.00 | J55: 143.50 | K55: 152.00 | N55: 4,704.50 | O55: 2016-07-01
A56: 46 | B56: ALTAGRACIA MEDISA | C56: SEGUIILIS | D56: 023-0077279-1 | E56: 200-01-110-176946-3 | F56: Conserje | G56: Area SPM | H56: Unap consuelito | I56: 5,000.00 | J56: 143.50 | K56: 152.00 | N56: 4,704.50 | O56: 2016-07-01
A57: 47 | B57: ROSMERY | C57: SERRA HERNANDEZ | D57: 023-0138681-5 | E57: 200-01-110-176948-9 | F57: Conserje | G57: Area SPM | H57: Unap Bo. Mexico | I57: 5,000.00 | J57: 143.50 | K57: 152.00 | N57: 4,704.50 | O57: 2017-01-01
A58: 48 | B58: DIONICIO MADRIGAL | C58: GARCIA | D58: 023-0065771-1 | E58: 200-01-960048618-2 | F58: Sereno | G58: Area SPM | H58: UNAP punta de garza | I58: 5,000.00 | J58: 143.50 | K58: 152.00 | N58: 4,704.50 | O58: 2017-07-01
A59: 49 | B59: HECTOR MIGUEL | C59: A.MEDRANO | D59: 023-0012798-8 | E59: 200-01-960-087688-8 | F59: Seguridad | G59: Area SPM | H59: unap Evan Rodriguez | I59: 6,000.00 | J59: 172.20 | K59: 182.40 | N59: 5,645.40 | O59: 2018-04-01
A60: 50 | B60: ESTALIN MARIA | C60: I.MORALES | D60: 024-0026614-0 | E60: 200-01-960-087688-9 | F60: Promotora | G60: Area SPM | H60: unap el puerto | I60: 5,000.00 | J60: 143.50 | K60: 152.00 | N60: 4,704.50 | O60: 2018-04-01
A61: 51 | B61: RAY LUIS | C61: JUSTO | D61: 402-2391439-7 | E61: 200-01-9603556921 | F61: Bionalista | G61: Area SPM | H61: Hosp. Alejo Martinez | I61: 24,000.00 | J61: 688.80 | K61: 729.60 | M61: 1,512.45 | N61: 21,069.15 | O61: 2018-04-01
A62: 52 | B62: MARLENYS RAMONA | C62: QUEVEDO ENCARNACION | D62: 011-347480-3 | E62: 200-01-9601807866 | F62: Medico Asistente | G62: Area SPM | H62: UNAP Don Juan | I62: 30,000.00 | J62: 861.00 | K62: 912.00 | N62: 28,227.00 | O62: 2018-05-19
A63: 53 | B63: LICITANIA | C63: MADRIGAL TEJEDA | D63: 024-0016779-3 | E63: 200-01-9601807868 | F63: Conserje | G63: Area SPM | H63: UNAP Quisqueya | I63: 5,000.00 | J63: =I63*2.87% -> 143.50 | K63: =I63*3.04% -> 152.00 | N63: 4,704.50 | O63: 2018-07-01
A64: 54 | B64: VICTOR MANUEL | C64: POLANCO | D64: 023-0022044-5 | E64: 200-01-1101346666 | F64: Medico Asistente | G64: Area SPM | H64: BO.BLANCO | I64: 30,000.00 | J64: 861.00 | K64: 912.00 | N64: 28,227.00 | O64: 2019-04-01
A65: 55 | B65: OSCAR ANDRES | C65: ENCARNACION MORALES | D65: 402-4204417-6 | E65: 200-01-9603057742 | F65: Digitador | G65: Area SPM | H65: Centro de Diagnostico | I65: 8,000.00 | J65: =I65*2.87% -> 229.60 | K65: =I65*3.04% -> 243.20 | N65: 7,527.20 | O65: 2019-07-01
A66: 56 | B66: RAMON | C66: GIL | D66: 023-0007034-5 | E66: 200-01-9603057696 | F66: Licencia a sereno | G66: Area SPM | H66: Oficina de area | I66: 5,000.00 | J66: =I66*2.87% -> 143.50 | K66: =I66*3.04% -> 152.00 | N66: 4,704.50 | O66: 2019-04-01
A67: 57 | B67: JACINTO | C67: ORTEGA | D67: 023-0032092-2 | E67: 200-01-9603057701 | F67: Sereno | G67: Area SPM | H67: Uunap cumayasa | I67: 6,500.00 | J67: =I67*2.87% -> 186.55 | K67: =I67*3.04% -> 197.60 | N67: 6,115.85 | O67: 2019-08-31
A68: 58 | B68: YENI ALT. | C68: GUERRERO MENDEZ | D68: 023-0117014-4 | E68: 200-01-9603057694 | F68: Conserje | G68: Area SPM | H68: Unap aleman | I68: 4,000.00 | N68: 4,000.00 | O68: 2019-10-01
A69: 59 | B69: FLOR MARIA | C69: SALICHE | D69: 023-0015353-9 | E69: 200-01-9603057693 | F69: Conserje | G69: Area SPM | H69: Centro de Diagnostico | I69: 5,000.00 | J69: =I69*2.87% -> 143.50 | K69: =I69*3.04% -> 152.00 | L69: 0.00 | N69: 4,704.50 | O69: 2020-01-02
A70: 60 | B70: JEANINA | C70: CASTILLO MUÑOZ | D70: 023-0135235-3 | E70: 200-01-9603057692 | F70: Conserje | G70: Area SPM | H70: Unap barrio Lindo SPM | I70: 8,000.00 | J70: 229.60 | K70: 243.20 | N70: 7,527.20 | O70: 2020-01-04
A71: 61 | B71: MASILLON | C71: BENJAMIN | D71: 030-0001180-3 | E71: 200-01-9603140108 | F71: Sereno | G71: SRS ESTE | H71: Unap Margarita | I71: 5,000.00 | J71: 143.50 | K71: 152.00 | N71: 4,704.50 | O71: 13/10/2020
A72: 62 | B72: EUNICE ELAYNE | C72: DE LA CRUZ CASTRO | D72: 4022056974-9 | E72: 200-01-9603202129 | F72: Aux. de farmacia | G72: Area SPM | H72: Unap pedro justo carrion | I72: 12,000.00 | J72: 344.40 | K72: 364.80 | N72: 11,290.80 | O72: 2020-11-01
A73: 63 | B73: SANTA | C73: MEDINA | D73: 023-0164982-4 | E73: 200-01-960-3396546 | F73: Conserje | G73: Area SPM | H73: UNAP punta pescadora | I73: 5,000.00 | J73: 143.50 | K73: 152.00 | N73: 4,704.50 | O73: 2/Enero/2021
A74: 64 | B74: PORFIRIO | C74: ZORRILLA | D74: 024-0010756-7 | E74: 200-01-9603356888 | F74: Sereno | G74: SRS-ESTE | H74: Oficina Regional | I74: 10,000.00 | J74: 287.00 | K74: 304.00 | N74: =I74-J74-K74-M74 -> 9,409.00 | O74: 2/Enero/2021
A75: 65 | B75: ANA | C75: SOLANO | D75: 402-2667422-0 | E75: 200-01-9603403020 | F75: Conserje | G75: Area SPM | H75: Unap punta pescadora | I75: 5,000.00 | J75: 143.50 | K75: 152.00 | N75: 4,704.50 | O75: 2/Enero/2021
A76: 66 | B76: ANGELA | C76: DELONEY RINCON | D76: 023-0050103-4 | E76: 200-01-9603551741 | F76: Conserje | G76: Area SPM | H76: Unap Angelina | I76: 5,000.00 | J76: 143.50 | K76: 152.00 | N76: 4,704.50 | O76: 2021-01-04
A77: =A76+1 -> 67 | B77: ROLANDO GREGORIO | C77: PASCUAL | D77: 027-0034973-7 | E77: 200-01-9603648040 | F77: Sereno | G77: Area SPM | H77: unap Monte coca | I77: 5,000.00 | J77: 143.50 | K77: 152.00 | N77: 4,704.50 | O77: 2021-01-04
A78: 68 | B78: GUILLERMO | C78: BAUTISTA RAMIREZ | D78: 008-0024361-0 | E78: 200-01-9603798315 | F78: Sereno | G78: Area SPM | H78: unap alejandro bass | I78: 5,000.00 | J78: 143.50 | K78: 152.00 | N78: 4,704.50 | O78: 2021-01-05
A79: 69 | B79: SADRACK YRBIN | C79: GUILLEN | D79: 023-0116102-8 | E79: 200-01-9603798311 | F79: Sereno | G79: Area SPM | H79: Placer Bonito | I79: 5,000.00 | J79: 143.50 | K79: 152.00 | N79: 4,704.50 | O79: 2021-01-05
A80: 70 | B80: EMELY PATRICIA | C80: RODRIGUEZ ORTEGA | D80: 402-1141418-6 | E80: 200-01-9603808655 | F80: Asistente de informacion | G80: Area SPM | H80: Gerencia de area | I80: 8,000.00 | J80: 229.60 | K80: 243.20 | N80: 7,527.20 | O80: 2021-01-06
A81: 71 | B81: MANUEL | C81: LOPEZ GONZALEZ | D81: 001-1032723-6 | E81: 200-01-9603964966 | F81: Sereno | G81: Area SPM | H81: Unap Gautier | I81: 7,000.00 | J81: 200.90 | K81: 212.80 | N81: 6,586.30 | O81: 2021-01-06
A82: 72 | B82: ROBERTO ANTONIO | C82: DE LA CRUZ | D82: 023-0004082-7 | E82: 200-01-9604126996 | F82: Chofer | G82: SRS-ESTE | H82: Dpto. de Odontologia | I82: 18,000.00 | J82: 516.60 | K82: 547.20 | N82: 16,936.20 | O82: 2021-10-01
A83: 73 | B83: DOROTEO | C83: DE LA CRUZ CARRASCO | D83: 049-0042143-1 | E83: 200-01-9604126997 | F83: Seguridad | G83: Area SPM | H83: Placer Bonito | I83: 7,000.00 | J83: 200.90 | K83: 212.80 | N83: 6,586.30 | O83: 2021-10-01
A84: 74 | B84: MANOLO | C84: MARTINEZ | D84: 001-1040251-8 | E84: 200-01-9604266453 | F84: Seguridad | G84: Area SPM | H84: Unap Villa Faro | I84: 5,000.00 | J84: 143.50 | K84: 152.00 | N84: 4,704.50 | O84: 2021-09-01
A85: 75 | B85: JOSE ANIIBAL | C85: FRANCISCO DANIEL | D85: 024-0027728-7 | E85: 200-01-9604334570 | F85: Seguridad | G85: Area SPM | H85: Unap Paloma | I85: 5,000.00 | J85: 143.50 | K85: 152.00 | N85: 4,704.50 | O85: 2021-12-01
A86: 76 | B86: MIGUEL | C86: NUÑEZ MAZARA | D86: 025-0001585-0 | E86: 200-01-9604334568 | F86: Seguridad | G86: SRS-ESTE | H86: Oficina Regional | I86: 7,000.00 | J86: 200.90 | K86: 212.80 | N86: 6,586.30 | O86: 2021-12-01
A87: 77 | B87: JESUS MANUEL | C87: GARCIA | D87: 402-2376092-3 | E87: 200-01-120225003-6 | F87: Seguridad | G87: SRS-ESTE | H87: Almacen Regional | I87: 5,000.00 | J87: 143.50 | K87: 152.00 | N87: 4,704.50 | O87: 2016-07-01
A88: 78 | B88: HIPOLITO | C88: TOLENTINO | D88: 023-0084491-3 | E88: 960-455925-7 | F88: Seguridad | G88: Area SPM | H88: Unap Villa Faro | I88: 5,000.00 | J88: 143.50 | K88: 152.00 | N88: 4,704.50 | O88: 2022-02-08
A89: 79 | B89: STARLYN | C89: ALCANTARA | D89: 023-0166567-1 | E89: 960-514422-6 | F89: Seguridad | G89: Area SPM | H89: Unap el Brisal | I89: 5,000.00 | J89: 143.50 | K89: 152.00 | N89: 4,704.50 | O89: 2022-09-01
A90: 80 | B90: YAQUELIN AUDILIA | C90: RICHARSON PEÑA | D90: 030-0003307-0 | E90: 960-525593-0 | F90: Conserje | G90: Area SPM | H90: Unap Batey soco | I90: 5,000.00 | J90: 143.50 | K90: 152.00 | N90: 4,704.50 | O90: 2022-10-01
A91: 81 | B91: MANUEL DE JESUS | C91: LORA | D91: 023-0020611-3 | E91: 960-532825-5 | F91: Seguridad | G91: SRS-ESTE | H91: Oficina Regional | I91: 7,000.00 | J91: 200.90 | K91: 212.80 | N91: 6,586.30 | O91: 2022-11-01
A92: 82 | B92: DIGNA | C92: ROSARIO JAVIER | D92: 023-0143527-3 | E92: 960540890-2 | F92: Conserje | G92: Area SPM | H92: UNAP Santa Fe | I92: 5,000.00 | J92: 143.50 | K92: 152.00 | N92: 4,704.50 | O92: 2022-12-01
A93: 83 | B93: AIDA | C93: PEREZ NATERA | D93: 011-714807-2 | E93: 960-506293-3 | F93: Conserje | G93: Area SPM | H93: Unap las Goutier | I93: 5,000.00 | J93: 143.50 | K93: 152.00 | N93: 4,704.50 | O93: 2023-03-01
A94: 84 | B94: ESTEBANIA | C94: MELLA WILLIAMS | D94: 402-2020200-2 | E94: 9605815583 | F94: Conserje | G94: Area SPM | H94: CPN IDSS Consuelo | I94: 5,000.00 | J94: 143.50 | K94: 152.00 | N94: =I94-J94-K94-M94 -> 4,704.50 | O94: 2023-04-01
A95: 85 | B95: FREDDY | C95: FELICIANO | D95: 027-0022474-0 | E95: 9606189132 | F95: Sereno | G95: Area SPM | H95: CPN el Brisal | I95: 5,000.00 | J95: 143.50 | K95: 152.00 | N95: =I95-J95-K95-M95 -> 4,704.50 | O95: 2023-05-01
A96: 86 | B96: ROSA | C96: HERNANDEZ | D96: 023-01286841 | E96: 9606377959 | F96: Conserje | G96: Area SPM | H96: CPN Esperanza | I96: 5,000.00 | J96: 143.50 | K96: 152.00 | N96: =I96-J96-K96-M96 -> 4,704.50 | O96: 1//10/2023
A97: =A96+1 -> 87 | B97: DARLENYS MARIA | C97: SANTANA JIMENEZ | D97: 402-1112745-7 | F97: Conserje | G97: Area SPM | H97: Unap Santa clara de Asis | I97: 6,000.00 | J97: 172.20 | K97: 182.40 | N97: =I97-J97-K97-M97 -> 5,645.40 | O97: 2023-03-19
B98: Total de empleados contratado | I98: =SUM(I11:I97) -> 724,533.15 | J98: =SUM(J11:J97) -> 20,535.80 | K98: =SUM(K11:K97) -> 21,752.21 | L98: =SUM(L11:L93) -> 0.00 | M98: =SUM(M11:M93) -> 6,049.80 | N98: =SUM(N11:N97) -> 676,195.34
B100: 36 NICOLAS DIAZ VALENZUELA SACAR EN ENERO. ENTRAR MIGUEL RIVERA EN SUSTITUCION
D101: LIC. YUDELKY JABALERA | I101: DR. RICARDO JULIO ROMERO
C102: ADMINISTRADORA | I102: DIRECTOR
B107: REGION V
B108: SAN PEDRO DE MACORIS, REPUBLICA DOMINICANA
B109: RNC 430041793
B110: NOMINA CORRESPONDIENTE AL 30 DE ABRIL AÑO 2024
B111: PERSONAL AREA DE HATO MAYOR
B112: NOMBRE | C112: APELLIDO | D112: CEDULA | E112: No. CUENTA | F112: CARGO | G112: DEPARTAMENTO | H112: LUGAR PRESTA SERVICIOS | I112: SUELDO BRUTO | J112: S/S | K112: SFS | L112: ISR | M112: D/A | N112: SUELDO NETO | O112: FECHA
A113: 1 | B113: CARMEN I. | C113: SANTANA P. | D113: 027-0005223-2 | E113: 200011120165796 | F113: Aux. de enfermeria | G113: Area Hato Mayor | H113: Clinica Morquecho | I113: 11,786.00 | J113: =I113*2.87% -> 338.26 | K113: =I113*3.04% -> 358.29 | M113: 0.00 | N113: =I113-J113-K113-M113 -> 11,089.45 | O113: 2006-09-11
A114: =A113+1 -> 2 | B114: SULINDA | C114: MOTA DE SALAS | D114: 100-0007282-6 | E114: 200011120165880 | F114: Conserje | G114: Area Hato Mayor | H114: Clinica Yanigua | I114: 5,000.00 | J114: 143.50 | K114: 152.00 | N114: 4,704.50 | O114: 2007-01-02
A115: =A114+1 -> 3 | B115: DOMINGO A. | C115: PEGUERO LUNA | D115: 100-0002222-7 | E115: 200011120165864 | F115: Viglante | G115: Area Hato Mayor | H115: Clinica Yanigua | I115: 5,000.00 | J115: 143.50 | K115: 152.00 | N115: 4,704.50 | O115: 2007-04-02
A116: 4 | B116: MARIA | C116: NOLASCO | D116: 100-0000817-6 | E116: 200011120166148 | F116: Conserje | G116: Area Hato Mayor | H116: Clinica El valle | I116: 7,000.00 | J116: 143.50 | K116: 152.00 | N116: 6,704.50 | O116: 2007-02-01
A117: 5 | B117: NIURKA A. | C117: AQUINO JAVIER | D117: 100-0000180-9 | E117: 200011120165848 | F117: Tecnica Farmacia | G117: Area Hato Mayor | H117: Hospital el Valle | I117: 11,786.00 | J117: =I117*2.87% -> 338.26 | K117: =I117*3.04% -> 358.29 | M117: 0.00 | N117: =I117-J117-K117-M117 -> 11,089.45 | O117: 2007-08-01
A118: 6 | B118: ZENOVIA | C118: TRINIDAD MARTINEZ | D118: 023-0002962-2 | E118: 200011120165738 | F118: Conserje | G118: Area Hato Mayor | H118: Villa Navarro | I118: 5,000.00 | J118: 143.50 | K118: 152.00 | N118: 4,704.50 | O118: 2007-08-08
A119: 7 | B119: MIGUEL ISABEL | C119: VASQUEZ | D119: 027-0003867-8 | E119: 200011120143844 | F119: Chofer | G119: Area Hato Mayor | H119: Oficina area | I119: 8,000.00 | J119: 229.60 | K119: 243.20 | N119: 7,527.20 | O119: 2010-02-01
A120: 8 | B120: ANGELA | C120: RIVERA | D120: 027-0004711-7 | E120: 200011101333637 | F120: Conserje | G120: Area Hato Mayor | H120: UNAP Ondina | I120: 5,000.00 | J120: 143.50 | K120: 152.00 | N120: 4,704.50 | O120: 2010-06-01
A121: 9 | B121: FELIX | C121: CANARIO | D121: 027-0003530-2 | E121: 200011101393509 | F121: Sereno | G121: Area Hato Mayor | H121: Unap Ondina | I121: 5,000.00 | J121: =I121*2.87% -> 143.50 | K121: =I121*3.04% -> 152.00 | N121: =I121-J121-K121 -> 4,704.50 | O121: 2011-03-01
A122: 10 | B122: ELSA AURORA | C122: ZORRILLA | D122: 027-0028845-5 | E122: 200011101479559 | F122: Conserje | G122: Area Hato Mayor | H122: UNAP Punta de Garza | I122: 5,000.00 | J122: 143.50 | K122: 152.00 | N122: 4,704.50 | O122: 2012-06-01
A123: 11 | B123: CARMEN | C123: DE LA CRUZ TORREZ | D123: 027-0002151-8 | E123: 200011101479546 | F123: Conserje | G123: Area Hato Mayor | H123: Unap La China | I123: 5,000.00 | J123: 143.50 | K123: 152.00 | N123: 4,704.50 | O123: 2012-11-01
A124: 12 | B124: YAQUELIN | C124: CASTILLO MONEGRO | D124: 027-0039926-0 | E124: 200011120292627 | F124: Conserje | G124: Area Hato Mayor | H124: Unap la Javilla | I124: 5,000.00 | J124: 143.50 | K124: 152.00 | N124: 4,704.50 | O124: 2014-07-01
A125: 13 | B125: YARELIS | C125: GOMEZ REYES | D125: 027-0042030-6 | E125: 200011120292588 | F125: Conserje | G125: Area Hato Mayor | H125: Unap la plaza | I125: 5,000.00 | J125: 143.50 | K125: 152.00 | N125: 4,704.50 | O125: 2014-10-01
A126: 14 | B126: RUDELANIA | C126: OVALLE VEGA | D126: 023-0110894-6 | E126: 200011120292601 | F126: Medico asistente | G126: Area Hato Mayor | H126: Unap la plaza | I126: 20,000.00 | J126: 574.00 | K126: 608.00 | N126: 18,818.00 | O126: 2014-10-01
A127: 15 | B127: CLAUDIA M. | C127: RINCON COLIN | D127: 027-0046976-6 | E127: 200011120292591 | F127: Enfermera | G127: Area Hato Mayor | H127: Unap la plaza | I127: 7,000.00 | J127: 200.90 | K127: 212.80 | N127: 6,586.30 | O127: 2014-10-01
A128: 16 | B128: RAFAEL | C128: GONZALEZ | D128: 027-0024756-8 | E128: 200011101717211 | F128: Sereno | G128: Area Hato Mayor | H128: Unap km 15 Hato Mayor | I128: 5,000.00 | J128: 143.50 | K128: 152.00 | N128: 4,704.50 | O128: 2015-08-01
A129: 17 | B129: CARINYS MARIEL | C129: LOPEZ | D129: 402-2032423-6 | E129: 200-01-960048617-1 | F129: Promotora de salud | G129: Area Hato Mayor | H129: Oficina area | I129: 6,900.00 | J129: =I129*2.87% -> 198.03 | K129: =I129*3.04% -> 209.76 | M129: 0.00 | N129: =I129-J129-K129-M129 -> 6,492.21 | O129: 2017-10-01
A130: 18 | B130: YOHARKY | C130: LORENZO ABREU | D130: 025-0037069-3 | E130: 200-01-960-087689-0 | F130: Aux. de enfermeria | G130: Area Hato Mayor | I130: 9,000.00 | J130: 258.30 | K130: 273.60 | N130: =I130-J130-K130 -> 8,468.10 | O130: 2018-05-01
A131: 19 | B131: TAIRA MARIA | C131: GONZALEZ | D131: 100-0004525-1 | E131: 200-01-270-017401-7 | F131: Farmaceutica | G131: Area Hato Mayor | H131: Hospital el valle | I131: 18,400.00 | J131: 528.08 | K131: 559.36 | N131: =I131-J131-K131 -> 17,312.56 | O131: 2018-07-01
A132: 20 | B132: ISRAEL | C132: VASQUEZ ALEXANDER | D132: 138-0007689-8 | E132: 200-01-9603065740 | F132: Sereno | G132: Area Hato Mayor | H132: Gerencia de area | I132: 5,000.00 | J132: 143.50 | K132: 152.00 | N132: =SUM(I132-J132-K132) -> 4,704.50 | O132: 2019-07-01
A133: 21 | B133: GAUDY | C133: CRISOSTOMO | D133: 402-4018039-4 | E133: 200-01-9604269997 | F133: Conjerje | G133: Area Hato Mayor | H133: Unap ondina | I133: 5,000.00 | J133: 143.50 | K133: 152.00 | N133: =SUM(I133-J133-K133) -> 4,704.50 | O133: 2021-10-01
A134: 22 | B134: SAMUEL CRISTINO | C134: SALZAR SOSA | D134: 402-0900247-2 | E134: 200-01-9604395130 | F134: Tecnico | G134: Area Hato Mayor | H134: Gerencia de area | I134: 30,000.00 | J134: 861.00 | K134: 912.00 | M134: 1,512.45 | N134: =SUM(I134-J134-K134-M134) -> 26,714.55 | O134: 2022-01-07
A135: 23 | B135: RICHARD | C135: SANTANA PADILLA | D135: 402-1195588-1 | E135: 200-01-9604716221 | F135: Mensajero | G135: Area Hato Mayor | H135: Gerencia de area | I135: 7,000.00 | J135: 200.90 | K135: 212.80 | N135: =SUM(I135-J135-K135) -> 6,586.30 | O135: 2022-04-01
A136: 24 | B136: REMY RAFAEL | C136: GEROVACIO LOPEZ | D136: 067-0011062-7 | E136: 960-5265770 | F136: Sereno | G136: Area Hato Mayor | H136: Unap cañitas | I136: 5,000.00 | J136: 143.50 | K136: 152.00 | N136: =SUM(I136-J136-K136) -> 4,704.50 | O136: 2022-10-01
A137: 25 | B137: FRANCIASCA | C137: REYES LOPEZ | D137: 027-0017851-6 | E137: 960-5265769 | F137: Conserje | G137: Area Hato Mayor | H137: Unap Morquecho | I137: 5,000.00 | J137: 143.50 | K137: 152.00 | N137: 4,704.50 | O137: 2022-10-01
A138: 26 | B138: MAGALIS | C138: JIMENEZ | D138: 027-0030140-7 | E138: 960-5265764 | F138: Conserje | G138: Area Hato Mayor | H138: Unap jalonga | I138: 5,000.00 | J138: 143.50 | K138: 152.00 | N138: 4,704.50 | O138: 2022-10-01
A139: 27 | B139: DULCE MARIA | C139: DOMINGUEZ PEÑA | D139: 027-0046696-0 | E139: 960-5265766 | F139: Conserje | G139: Area Hato Mayor | H139: Unap Km 15 | I139: 5,000.00 | J139: 143.50 | K139: 152.00 | N139: 4,704.50 | O139: 2022-10-01
A140: 28 | B140: IRMA GRISEL | C140: REYES FELICIANO | D140: 027-0012399-1 | E140: 960-5265765 | F140: Conserje | G140: Area Hato Mayor | H140: Unap la Sierra | I140: 5,000.00 | J140: 143.50 | K140: 152.00 | N140: 4,704.50 | O140: 2022-10-01
A141: 29 | B141: RAFAEL | C141: FLOID POLICIA | D141: 402-1139481-8 | E141: 960-5354300 | F141: Sereno | G141: Area Hato Mayor | H141: Unap jalonga | I141: 5,000.00 | J141: 143.50 | K141: 152.00 | N141: 4,704.50 | O141: 2022-11-01
A142: 30 | B142: JULIO ADRIANO | C142: DIAZ ACOSTA | D142: 067-0013604-4 | E142: 9605408903 | F142: Sereno | G142: Area Hato Mayor | H142: Unap Magua | I142: 5,000.00 | J142: 143.50 | K142: 152.00 | N142: 4,704.50 | O142: 2022-12-01
A143: 31 | B143: JUAN | C143: JAVIER | D143: 027-0015148-9 | E143: 9606157607 | F143: Viglante | G143: Area Hato Mayor | H143: Unap jalonga | I143: 5,000.00 | J143: 143.50 | K143: 152.00 | N143: 4,704.50 | O143: 2023-08-01
A144: 32 | B144: ISMAEL | C144: GARCIA SEVERINO | D144: 402-1030578-1 | E144: 9606781220 | F144: Sereno | G144: Area Hato Mayor | H144: Yerba Buena | I144: 5,000.00 | J144: 143.50 | K144: 152.00 | N144: 4,704.50 | O144: 2024-02-01
B145: TOTAL NOMINA HATO MAYOR | I145: =SUM(I113:I144) -> 241,872.00 | J145: =SUM(J113:J144) -> 6,884.33 | K145: =SUM(K113:K144) -> 7,292.11 | M145: =SUM(M113:M143) -> 1,512.45 | N145: =SUM(N113:N144) -> 226,183.11
C148: LIC. YUDELKY JABALERA | H148: DR. RICARDO JULIO ROMERO
B149: ADMINISTRADORA | H149: DIRECTOR
B154: REGION V
B155: SAN PEDRO DE MACORIS, REPUBLICA DOMINICANA
B156: RNC 430041793
B157: NOMINA CORRESPONDIENTE AL 30 DE ABRIL AÑO 2024
B158: PERSONAL AREA EL SEYBO | J158: S/S | K158: SFS | L158: ISR | M158: D/A
B159: NOMBRE | C159: APELLIDO | D159: CEDULA | E159: No. CUENTA | F159: CARGO | G159: DEPARTAMENTO | H159: LUGAR PRESTA SERVICIOS | I159: SUELDO BRUTO | J159: DEDUCCIONES | N159: SUELDO NETO | O159: FECHA
A160: 1 | B160: ANA MARIA | C160: VASQUEZ SANTANA | D160: 025-0041921-9 | E160: 200011110179067 | F160: Conserje | G160: Area el seibo | H160: Clinica las 500 | I160: 5,000.00 | J160: 143.50 | K160: 152.00 | N160: 4,704.50 | O160: 2007-06-01
A161: =A160+1 -> 2 | B161: OSVALDO ANTONIO | C161: CRUZ | D161: 029-0004372-6 | E161: 200011110179135 | F161: Sereno | G161: Area el seibo | H161: Unap Los Franceses | I161: 5,000.00 | J161: 143.50 | K161: 152.00 | N161: 4,704.50 | O161: 2007-07-09
A162: =A161+1 -> 3 | B162: MAXIMO | C162: DEL ROSARIO SILVESTRE | D162: 025-0027067-9 | E162: 200011101180725 | F162: Sereno | G162: Area el seibo | H162: Unap el guaral | I162: 5,000.00 | J162: 143.50 | K162: 152.00 | N162: 4,704.50 | O162: 2007-09-01
A163: 4 | B163: RAFAELA | C163: DIAZ DIAZ | D163: 025-0033097-8 | E163: 200011101294569 | F163: Conserje | G163: Area el seibo | H163: Clinica el Guaral | I163: 5,000.00 | J163: 143.50 | K163: 152.00 | N163: 4,704.50 | O163: 2009-08-14
A164: 5 | B164: YNIRIO MODESTO | C164: LEONARDO | D164: 025-0034927-5 | E164: 200011101393486 | F164: Sereno | G164: Area el seibo | H164: Unap el cerrito del seibo | I164: 5,000.00 | J164: 143.50 | K164: 152.00 | M164: 0.00 | N164: 4,704.50 | O164: 2011-01-01
A165: 6 | B165: AMPARO | C165: MOJICA | D165: 029-0010041-9 | E165: 200011101393554 | F165: Conserje | G165: Area el seibo | H165: Centro de zona Villa Guerrero | I165: 5,000.00 | J165: 143.50 | K165: 152.00 | N165: 4,704.50 | O165: 2011-01-01
A166: 7 | B166: SONIA ELENA | C166: PAREDES MARTINEZ | D166: 025-0008358-5 | E166: 200011101711741 | F166: Conserje | G166: Area el seibo | H166: Unap las guajabas | I166: 5,000.00 | J166: 143.50 | K166: 152.00 | N166: 4,704.50 | O166: 2016-04-01
A167: 8 | B167: LEONIDAS | C167: MOTA DE LA CRUZ | D167: 027-0034558-6 | E167: 200-01-110-176883-3 | F167: Conserje | G167: Area el seibo | H167: Unap las guajabas | I167: 5,000.00 | J167: =I167*2.87% -> 143.50 | K167: =I167*3.04% -> 152.00 | N167: =I167-J167-K167 -> 4,704.50 | O167: 2016-09-01
A168: 9 | B168: ROSANGELA | C168: SORIANO | D168: 025-0048387-6 | E168: 200-01-960056265-8 | F168: Medico asist. | G168: Area el seibo | H168: Unap los botado | I168: 28,000.00 | J168: 803.60 | K168: 851.20 | N168: =I168-J168-K168 -> 26,345.20 | O168: 2018-02-01
A169: 10 | B169: TATATIANA ROSANA | C169: AQUINO | D169: 402-3486379-9 | E169: 200-01-960-087688-5 | F169: Aux. de Farmacia | G169: Area el seibo | H169: Gerencia de area Seibo | I169: 9,835.00 | J169: 282.26 | K169: 298.98 | N169: =I169-J169-K169 -> 9,253.75 | O169: 2018-04-01
A170: 11 | B170: ANGELINA | C170: PEGUERO | D170: 029-0015408-5 | E170: 200-01-9603069101 | F170: Aux. de limpieza | G170: Area el seibo | H170: Unap la mina | I170: 5,000.00 | J170: 143.50 | K170: 152.00 | N170: =I170-J170-K170 -> 4,704.50 | O170: 2020-01-09
A171: 12 | B171: OSVIANNY | C171: ZORRILLA BERAS | D171: 402-2519711-6 | E171: 200-01-1101711657 | F171: Enc. De soporte tecnico | G171: Area el seibo | H171: Gerencia de area | I171: 30,000.00 | J171: 861.00 | K171: 912.00 | N171: 28,227.00 | O171: 2020-01-11
A172: 13 | B172: DIONILIA | C172: ZORRILLA | D172: 025-0009672-8 | E172: 200-01-9603798317 | F172: Conserje | G172: Area el seibo | H172: Unap Pedro Sanchez | I172: 5,000.00 | J172: 143.50 | K172: 152.00 | N172: 4,704.50 | O172: 2021-01-03
A173: 14 | B173: MILOSY ARACELIS | C173: BAEZ APONTE | D173: 025-0032466-6 | E173: 200-01-9603883495 | F173: Aux. de Enfermeria | G173: Area el seibo | H173: Unap Cañada del Agua | I173: 10,000.00 | J173: 287.00 | K173: 304.00 | N173: 9,409.00 | O173: 2021-01-07
A174: 15 | B174: CARMEN DOLORES | C174: GARCIA | D174: 023-0075496-3 | E174: 200-01-9604074136 | F174: Conserje | G174: Area el seibo | H174: Unap Villa Guerrero | I174: 5,000.00 | J174: 143.50 | K174: 152.00 | N174: 4,704.50 | O174: 2021-09-01
A175: 16 | B175: CANDIDA | C175: DE LA CRUZ | D175: 065-0019411-0 | E175: 200-01-9604074312 | F175: Conserje | G175: Area el seibo | H175: Unap Los Franceses | I175: 5,000.00 | J175: 143.50 | K175: 152.00 | N175: 4,704.50
A176: 17 | B176: EDELKIN MARIA | C176: PEREZ PERALTA | D176: 029-0016608-9 | E176: 200-01-9604334569 | F176: Conserje | G176: Area el seibo | H176: Unap la Gina | I176: 5,000.00 | J176: 143.50 | K176: 152.00 | N176: 4,704.50 | O176: 2021-12-01
A177: 18 | B177: CAROLIN FERNANDA | C177: NIEVES CANELA | D177: 402-1825057-5 | E177: 200-01-960-464357-0 | F177: Digitadora | G177: Area el seibo | H177: Gerencia de area | I177: 10,000.00 | J177: 287.00 | K177: 304.00 | N177: 9,409.00 | O177: 2022-03-01
A178: 19 | B178: LUCIA | C178: DE JESUS | D178: 029-0007400-2 | E178: 200-01-960484399-2 | F178: Conserje | G178: Area el seibo | H178: Unap el cedro de miches | I178: 5,000.00 | J178: 143.50 | K178: 152.00 | N178: 4,704.50 | O178: 2022-05-01
A179: 20 | B179: CESAR ORLANDO | C179: MORALES VASQUEZ | D179: 029-0019287-9 | E179: 200-019605119375 | F179: Sereno | G179: Area el seibo | H179: Unap la Mina | I179: 5,000.00 | J179: 143.50 | K179: 152.00 | N179: 4,704.50 | O179: 2022-07-01
A180: 21 | B180: ANTONIO | C180: HERNANDEZ | D180: 025-0015700-9 | E180: 960-568646-3 | F180: Vigilante | G180: Area el seibo | H180: Unap Magarin | I180: 5,000.00 | J180: 143.50 | K180: 152.00 | N180: 4,704.50 | O180: 2023-03-01
A181: 22 | B181: DEMETRIO | C181: MEDINA | D181: 029-0009483-6 | E181: 960-5817459 | F181: Vigilante | G181: Area el seibo | H181: Unap el cerrito | I181: 5,000.00 | J181: 143.50 | K181: 152.00 | N181: 4,704.50 | O181: 2023-04-01
A182: 23 | B182: DOMINGO | C182: ESTEBAN | D182: 027-0028929-7 | E182: 110-1711806 | F182: Sereno | G182: Area el seibo | H182: Unap Magarin | I182: 5,000.00 | J182: 143.50 | K182: 152.00 | N182: 4,704.50 | O182: 2023-04-01
A183: 24 | B183: JULIO CRISTOBAL | C183: CASTRO MOTA | D183: 025-0049811-4 | E183: 9606781219 | F183: Chofer | G183: Area el seibo | H183: Gerencia de area | I183: 8,000.00 | J183: 229.60 | K183: 243.20 | N183: 7,527.20 | O183: 2024-01-02
A184: 25 | B184: VANESSA | C184: MERCEDES BAEZ | D184: 402-4998424-2 | F184: Secretaria | G184: Area el seibo | H184: Gerencia de area | I184: 10,000.00 | J184: 287.00 | K184: 304.00 | N184: 9,409.00 | O184: 2024-03-01
B185: TOTAL NOMINA EL SEIBO | I185: =SUM(I160:I184) -> 195,835.00 | J185: 5,620.46 | K185: 5,953.38 | L185: 0.00 | M185: 0.00 | N185: 184,261.15
C188: LIC. YUDELKY JABALERA | H188: DR. RICARDO JULIO ROMERO
B189: ADMINISTRADORA | H189: DIRECTOR
B196: REGION V
B197: C/COLON No.28, CENTRO DE LA CIUDAD
B198: SAN PEDRO DE MACORIS, REPUBLICA DOMINICANA
B199: RNC 430041793
B201: NOMINA CORRESPONDIENTE AL 30 DE ABRIL AÑO 2024
B202: PERSONAL LA ROMANA | J202: S/S | K202: SFS | L202: ISR | M202: D/A | N202: 0.00
B203: NOMBRE | C203: APELLIDO | D203: CEDULA | E203: No. CUENTA | F203: CARGO | G203: DEPARTAMENTO | H203: LUGAR PRESTA SERVICIOS | I203: SUELDO BRUTO | J203: DEDUCCIONES | N203: SUELDO NETO | O203: FECHA
A204: 1 | B204: SONIA MARGARITA | C204: HACEN MENOR | D204: 103-0005891-3 | E204: 200012700174020 | F204: Conserje | G204: Area Romana | H204: Clinica Higueral | I204: 5,000.00 | J204: 143.50 | K204: 152.00 | N204: 4,704.50 | O204: 2007-06-25
A205: =A204+1 -> 2 | B205: ANGELA | C205: MATEO VILLAR | D205: 026-0128058-5 | E205: 200011101189535 | F205: Conserje | G205: Area Romana | H205: Clinica Maria Trinidad Sanchez | I205: 5,000.00 | J205: 143.50 | K205: 152.00 | N205: 4,704.50 | O205: 2007-11-01
A206: =A205+1 -> 3 | B206: FRANCISCA | C206: NOLASCO | D206: 026-0031430-2 | E206: 200011101209541 | F206: Conserje | G206: Area Romana | H206: Unap Piedra Linda | I206: 5,000.00 | J206: 143.50 | K206: 152.00 | N206: 4,704.50 | O206: 2008-02-01
A207: 4 | B207: SANDRA | C207: CESPEDES PAYANO | D207: 026-0079070-9 | E207: 200011101209567 | F207: Conserje | G207: Area Romana | H207: Unap Cucama | I207: 5,000.00 | J207: 143.50 | K207: 152.00 | N207: 4,704.50 | O207: 2008-02-14
A208: 5 | B208: ROGELIO | C208: SOLANO SILVESTRE | D208: 026-0039613-5 | E208: 200011101253717 | F208: Sereno | G208: Area Romana | H208: Unap Los Mulos | I208: 5,000.00 | J208: 143.50 | K208: 152.00 | N208: 4,704.50 | O208: 2008-10-01
A209: 6 | B209: WARDIN | C209: SUERO GARCIA | D209: 026-0108716-2 | E209: 200011101253720 | F209: Sereno | G209: Area Romana | H209: Clinica Maria Trinidad Sanchez | I209: 5,000.00 | J209: 143.50 | K209: 152.00 | N209: 4,704.50 | O209: 2008-10-01
A210: 7 | B210: ELSA DEONICIA | C210: MERCEDES ORTIZ | D210: 026-0045084-1 | E210: 200011101292147 | F210: Lic.Enfermeria | G210: Area Romana | H210: Clinica Higueral | I210: 10,000.00 | J210: =I210*2.87% -> 287.00 | K210: =I210*3.04% -> 304.00 | N210: =I210-J210-K210 -> 9,409.00 | O210: 2009-08-03
A211: 8 | B211: MIGUEL RAMON | C211: TRAVIESO GARCIA | D211: 026-0063076-4 | E211: 200011101318814 | F211: Mayordomo | G211: Area Romana | H211: Clinica Villa Hermosa | I211: 5,000.00 | J211: =I211*2.87% -> 143.50 | K211: =I211*3.04% -> 152.00 | N211: =I211-J211-K211 -> 4,704.50 | O211: 2010-02-01
A212: 9 | B212: WANDA YUSIL | C212: DEL ROSARIO | D212: 026-0141280-8 | E212: 200011101318830 | F212: Aux. de Oficina | G212: Area Romana | H212: Clinica Villa Hermosa | I212: 5,000.00 | J212: 143.50 | K212: 152.00 | N212: 4,704.50 | O212: 2010-02-01
A213: 10 | B213: ENMA | C213: DE LOS SANTOS | D213: 026-0039834-7 | E213: 200011101326055 | F213: Conserje | G213: Area Romana | H213: UNAP Los Coco | I213: 5,000.00 | J213: 143.50 | K213: 152.00 | N213: 4,704.50 | O213: 2010-04-01
A214: 11 | B214: CARLOS ANT. | C214: CORDONES | D214: 295-0002936-7 | E214: 200011101479656 | F214: Sereno | G214: Area Romana | H214: UNAP KM 14 | I214: 5,000.00 | J214: 143.50 | K214: 152.00 | M214: 1,512.45 | N214: =I214-J214-K214-M214 -> 3,192.05 | O214: 2012-07-01
A215: 12 | B215: FERMIN | C215: RIJO | D215: 026-0061107-9 | E215: 200011101479481 | F215: Sereno | G215: Area Romana | H215: UNAP Luis J. Suarez | I215: 5,000.00 | J215: 143.50 | K215: 152.00 | N215: 4,704.50 | O215: 2012-08-01
A216: 13 | B216: DINORA E | C216: RAMIREZ DE LA CRUZ | D216: 026-0037001-5 | E216: 200011101561205 | F216: Seccretaria | G216: Area Romana | H216: Oficina area Romana | I216: 20,400.00 | J216: =I216*2.87% -> 585.48 | K216: =I216*3.04% -> 620.16 | M216: 0 | N216: =I216-J216-K216-M216 -> 19,194.36 | O216: 2014-03-01
A217: 14 | B217: MARGARITO | C217: CUETO ROSARIO | D217: 026-0043627-9 | E217: 200011101561218 | F217: Sereno | G217: Area Romana | H217: Clinica Villa Hermosa | I217: 5,000.00 | J217: 143.50 | K217: 152.00 | N217: 4,704.50 | O217: 2014-03-01
A218: 15 | B218: RAMONA GERTRUDIS | C218: HUNT S. | D218: 026-0044901-7 | E218: 200011101630699 | F218: Aux de farmacia | G218: Area Romana | H218: Unap Luis J. Suarez | I218: 7,750.00 | J218: 222.43 | K218: 235.60 | N218: 7,291.98 | O218: 2014-10-01
A219: 16 | B219: PROFECTA | C219: ACOSTA FERMIN | D219: 065-0018087-9 | E219: 20001110176884-6 | F219: Conserje | G219: Area Romana | H219: Unap Saona | I219: 5,000.00 | J219: 143.50 | K219: 152.00 | N219: 4,704.50 | O219: 2016-10-01
A220: 17 | B220: DOMINGA | C220: MEJIA | D220: 026-0079667-2 | E220: 20001110176885-9 | F220: Promotara | G220: Area Romana | H220: Unap conani | I220: 5,000.00 | J220: 143.50 | K220: 152.00 | N220: 4,704.50 | O220: 2016-12-01
A221: 18 | B221: MARIANO | C221: ANTONIO MARTE | D221: 026-0054441-1 | E221: 20001210107826-4 | F221: Sereno | G221: Area Romana | H221: Unap villa verde | I221: 5,000.00 | J221: 143.50 | K221: 152.00 | N221: 4,704.50 | O221: 2015-11-01
A222: 19 | B222: DAISY MARIA | C222: DE LEON FELIX | D222: 023-0088812-6 | E222: 200-01-960048617-0 | F222: Conserje | G222: Area Romana | H222: Unap villa hermosa | I222: 5,000.00 | J222: =I222*2.87% -> 143.50 | K222: =I222*3.04% -> 152.00 | N222: =I222-J222-K222 -> 4,704.50 | O222: 2017-08-01
A223: 20 | B223: LIDIA S. | C223: FLORIMON | D223: 001-0414442-3 | E223: 200-01-960049850-5 | F223: Promotora de salud | G223: Area Romana | H223: Oficina area Romana | I223: 5,000.00 | J223: 143.50 | K223: 152.00 | N223: 4,704.50 | O223: 2017-11-01
... 57 more rows

Sheet MAYO 2024
B4: REGION V
B5: SAN PEDRO DE MACORIS, REPUBLICA DOMINICANA
B6: PERSONAL SPM
B7: Total de empleados contratado
B8: NOMINA CORRESPONDIENTE AL 30 DE MAYO AÑO 2024
B9: AREA SPM
B10: NOMBRE | C10: APELLIDO | D10: CEDULA | F10: CARGO | G10: DEPARTAMENTO | H10: LUGAR PRESTA SERVICIOS | I10: SUELDO BRUTO | J10: S/S | K10: SFS | L10: ISR | M10: D/A | N10: SUELDO NETO | O10: FECHA
A11: 1 | B11: PAULINO | C11: LUIS | D11: 024-0008005-3 | E11: 200011101179105 | F11: Vigilante | G11: Area SPM | H11: Clinica Quisqueya | I11: 5,000.00 | J11: =I11*2.87% -> 143.50 | K11: =I11*3.04% -> 152.00 | N11: =I11-J11-K11-M11 -> 4,704.50 | O11: 2007-05-08
A12: =A11+1 -> 2 | B12: PETRONILA ALT. | C12: PAYANO | D12: 023-0049840-5 | E12: 200011101178533 | F12: Conserje | G12: Area SPM | H12: Clinica Angelina | I12: 5,000.00 | J12: 0.00 | K12: 0.00 | M12: 0.00 | N12: 5,000.00 | O12: 2007-01-02
A13: =A12+1 -> 3 | B13: RUTH PRISCILA | C13: PEREZ | D13: 024-0009931-9 | E13: 200011101179118 | F13: Aux. Farmacia | G13: Area SPM | H13: Clinica Quisqueya | I13: 18,400.00 | J13: =I13*2.87% -> 528.08 | K13: =I13*3.04% -> 559.36 | M13: 0.00 | N13: 17,312.56 | O13: 2007-03-01
A14: 4 | B14: MARCELINO | C14: GUZMAN | D14: 024-0002608-0 | E14: 200011101179079 | F14: Sereno | G14: Area SPM | H14: Clinica El Puerto | I14: 5,000.00 | J14: 143.50 | K14: 152.00 | N14: 4,704.50 | O14: 2007-06-25
A15: 5 | B15: ANA MERCEDES | C15: DE LA CRUZ | D15: 023-0072812-4 | E15: 200011101178630 | F15: Conserje | G15: Area SPM | H15: Clinica Barrio Blanco | I15: 5,000.00 | J15: 143.50 | K15: 152.00 | N15: 4,704.50 | O15: 2007-06-01
A16: 6 | B16: FRANCISCA | C16: POMUCENO SORIANO | D16: 024-0004970-2 | E16: 200011101179095 | F16: Conserje | G16: Area SPM | H16: Clinica Guayabal | I16: 5,000.00 | J16: =I16*2.87% -> 143.50 | K16: =I16*3.04% -> 152.00 | N16: 4,704.50 | O16: 2007-07-02
A17: 7 | B17: SIMONA | C17: PEGUERO HERNANDEZ | D17: 024-0012760-7 | E17: 200011101179134 | F17: Conserje | G17: Area SPM | H17: Clinica Honduras | I17: 5,000.00 | J17: 143.50 | K17: 152.00 | N17: 4,704.50 | O17: 2007-07-02
A18: 8 | B18: LEONEL | C18: DE LA CRUZ HERNANDEZ | D18: 024-0013605-3 | E18: 200011101179150 | F18: Sereno | G18: Area SPM | H18: Clinica Honduras | I18: 5,000.00 | J18: 143.50 | K18: 152.00 | N18: 4,704.50 | O18: 2007-07-02
A19: 9 | B19: JUAN JOSE | C19: JUAN JEAN | D19: 023-0137052-0 | E19: 200011101179053 | F19: Sereno | G19: Area SPM | H19: Unap Batey Esperanza | I19: 5,000.00 | J19: 143.50 | K19: 152.00 | N19: 4,704.50 | O19: 2007-07-18
A20: 10 | B20: RAMON A. | C20: PEGUERO AQUINO | D20: 023-0057845-3 | E20: 200011101178591 | F20: Sereno | G20: Area SPM | H20: Unap Angelina | I20: 5,000.00 | J20: 143.50 | K20: 152.00 | N20: 4,704.50 | O20: 2007-07-23
A21: 11 | B21: MARIA DEL C. | C21: LARA MENDEZ | D21: 023-0064326-5 | E21: 200011101180686 | F21: Atencion al Usuario | G21: Area SPM | H21: Clinica Porvenir | I21: 7,000.00 | J21: 200.90 | K21: 212.80 | N21: 6,586.30 | O21: 2007-08-01
A22: 12 | B22: ALEX | C22: ROMBLEY | D22: 023-0126548-0 | E22: 200011101180709 | F22: Sereno | G22: Area SPM | H22: Clinica Porvenir | I22: 8,318.04 | J22: =I22*2.87% -> 238.73 | K22: =I22*3.04% -> 252.87 | N22: 7,826.44 | O22: 2007-09-13
A23: =A22+1 -> 13 | B23: REYNA ISABEL | C23: MORLA DE A. | D23: 023-0066599-5 | E23: 200011101253636 | F23: Bioanalista | G23: Area SPM | H23: Clinica Barrio Lindo | I23: 18,312.00 | J23: =I23*2.87% -> 525.55 | K23: =I23*3.04% -> 556.68 | L23: 0.00 | M23: 0.00 | N23: 17,229.76 | O23: 2008-09-11
A24: 14 | B24: EVA | C24: MATEO FERRERAS | D24: 023-0011428-3 | E24: 200012700173856 | F24: Medico General | G24: Area SPM | H24: UNAP Uasd | I24: 28,657.01 | J24: 822.46 | K24: 871.17 | M24: 0.00 | N24: 26,963.38 | O24: 2007-08-08
A25: 15 | B25: JOSE | C25: CALAZAN CALMONA | D25: 027-0013504-5 | E25: 200011101209570 | F25: Sereno | G25: Area SPM | H25: UNAP las colinas | I25: 5,000.00 | J25: 143.50 | K25: 152.00 | N25: 4,704.50 | O25: 2008-02-21
A26: 16 | B26: BEATRIZ ALT. | C26: SEVERINO | D26: 023-0084459-0 | E26: 200011101224225 | F26: Odontologa | G26: Area SPM | H26: UNAP Barrio Blanco | I26: 24,000.00 | J26: =I26*2.87% -> 688.80 | K26: =I26*3.04% -> 729.60 | M26: 0.00 | N26: 22,581.60 | O26: 2008-03-17
A27: 17 | B27: CARIDAD TODMAN | C27: DE LOS SANTOS | D27: 023-0041126-7 | E27: 200011101224209 | F27: Enfermera Aux. | G27: Area SPM | H27: unap Monte coca | I27: 11,596.60 | J27: =I27*2.87% -> 332.82 | K27: =I27*3.04% -> 352.54 | M27: 0.00 | N27: 10,911.24 | O27: 2008-04-01
A28: 18 | B28: PEDRO | C28: ZORRILLA | D28: 023-0017693-6 | E28: 200011101231865 | F28: Sereno Clinica | G28: Area SPM | H28: UNAP Barrio Blanco | I28: 5,000.00 | J28: =I28*2.87% -> 143.50 | K28: =I28*3.04% -> 152.00 | N28: 4,704.50 | O28: 2008-04-30
A29: 19 | B29: FRANCISCO A | C29: CASTRO R. | D29: 023-0005830-8 | E29: 200011101245945 | F29: Auxiliar de almacen | G29: Area SPM | H29: Almacen Regional | I29: 9,600.00 | J29: =I29*2.87% -> 275.52 | K29: =I29*3.04% -> 291.84 | N29: 9,032.64 | O29: 2008-08-01
A30: 20 | B30: ODILE A. | C30: MILIAN MCCABE | D30: 023-0025423-8 | E30: 200011101253597 | F30: Aux. de Bioanalisis | G30: Area SPM | H30: Unap porvenir | I30: 22,000.00 | J30: =I30*2.87% -> 631.40 | K30: =I30*3.04% -> 668.80 | M30: 3,024.90 | N30: 17,674.90 | O30: 2008-09-01
A31: 21 | B31: JUANA | C31: MORLA POLANCO | D31: 026-0113870-0 | E31: 200011101253733 | F31: Conseje | G31: Area SPM | H31: UNAP Batey Jagual | I31: 5,000.00 | J31: 143.50 | K31: 152.00 | N31: 4,704.50 | O31: 2008-09-01
A32: 22 | B32: ANA JULIA | C32: MENDEZ BRITO | D32: 011-0000744-0 | E32: 200011101253568 | F32: Aux. Enfermera | G32: Area SPM | H32: Unap Evangelina Rodriguez | I32: 13,000.00 | J32: =I32*2.87% -> 373.10 | K32: =I32*3.04% -> 395.20 | L32: 0.00 | M32: 0.00 | N32: 12,231.70 | O32: 2008-10-08
A33: 23 | B33: YVELISSE E. | C33: ASTACIO PEÑA | D33: 023-0003063-8 | E33: 200011101278064 | F33: Conserje | G33: SRS ESTE | H33: Oficina Regional | I33: 8,050.00 | J33: =I33*2.87% -> 231.04 | K33: =I33*3.04% -> 244.72 | L33: 0.00 | M33: 1,512.45 | N33: 6,061.80 | O33: 2009-01-19
A34: 24 | B34: EPIFANIO | C34: CALDERON | D34: 023-0058958-3 | E34: 200011101272633 | F34: Sereno | G34: Area SPM | H34: Clinica Santa fe | I34: 5,000.00 | J34: 143.50 | K34: 152.00 | N34: 4,704.50 | O34: 2009-02-01
A35: 25 | B35: FRANCISCO DE J. | C35: MATICH CASTRO | D35: 023-0028027-4 | E35: 200011101272688 | F35: Auxiliar de almacen | G35: SRS ESTE | H35: Almacen Regional | I35: 9,600.00 | J35: =I35*2.87% -> 275.52 | K35: =I35*3.04% -> 291.84 | N35: 9,032.64 | O35: 2009-02-01
A36: 26 | B36: YERNIS NOEMIS | C36: POCHE F. | D36: 024-0022376-0 | E36: 200011101294556 | F36: Secretaria | G36: Area SPM | H36: clinica Quisqueya | I36: 8,000.00 | J36: 229.60 | K36: 243.20 | N36: 7,527.20 | O36: 2009-08-03
A37: 27 | B37: JOAQUIN | C37: EUSEBIO | D37: 024-0013633-5 | E37: 200011101310155 | F37: Sereno | G37: Area SPM | H37: Clinica Cayacoa | I37: 5,000.00 | J37: 143.50 | K37: 152.00 | N37: 4,704.50 | O37: 2009-12-01
A38: 28 | B38: ROSA SANCHEZ | C38: CABRERA | D38: 023-0109901-2 | E38: 200011101318759 | F38: Conserje | G38: Area SPM | H38: Clinica Porvenir | I38: 8,000.00 | J38: 229.60 | K38: 243.20 | N38: 7,527.20 | O38: 2010-02-01
A39: 29 | B39: BIENVENIDO | C39: BUSTAMANTE GUZMAN | D39: 023-0074695-1 | E39: 200011101358201 | F39: Soporte tecnico | G39: SRS ESTE | H39: Dpto. Publicidad | I39: 6,000.00 | J39: 172.20 | K39: 182.40 | M39: 0.00 | N39: 5,645.40 | O39: 2010-09-01
A40: 30 | B40: VICTOR | C40: NATERA | D40: 024-0006526-0 | E40: 200011101393460 | F40: Sereno | G40: Area SPM | H40: Unap Quisquella | I40: 5,000.00 | J40: 143.50 | K40: 152.00 | N40: 4,704.50 | O40: 2011-03-01
A41: 31 | B41: ESTHER | C41: HINOJOSA | D41: 025-0009474-9 | E41: 200011101419959 | F41: Laboratorio | G41: Area SPM | H41: Unap Povenir | I41: 13,312.00 | J41: 382.05 | K41: 404.68 | N41: 12,525.26 | O41: 2012-10-05
A42: 32 | B42: ANA LUISA | C42: JEAN JOSEPH | D42: 027-0039773-6 | E42: 200011101479562 | F42: Conserje | G42: Area SPM | H42: unap Monte coca | I42: 5,000.00 | J42: 143.50 | K42: 152.00 | N42: 4,704.50 | O42: 2012-04-01
A43: 33 | B43: FROILAN | C43: VALDEZ LORENZO | D43: 011-0028087-2 | E43: 200011101571020 | F43: Sonografista | G43: Area SPM | H43: Centro de Diagnostico | I43: 30,000.00 | J43: 861.00 | K43: 912.00 | N43: 28,227.00 | O43: 2013-01-02
A44: 34 | B44: CARY ROSEMARY | C44: SANTANA JABALERA | D44: 023-0117440-1 | E44: 200011101632914 | F44: Enfermera | G44: Area SPM | H44: unap San Martin de Pobre | I44: 8,000.00 | J44: 229.60 | K44: 243.20 | N44: 7,527.20 | O44: 2015-04-01
A45: 35 | B45: NICOLAS | C45: DIAZ VALENZUELA | D45: 023-0103775-6 | E45: 200011101711644 | F45: Sereno | G45: Area SPM | H45: Unap barrio lindo | I45: 6,000.00 | J45: 172.20 | K45: 182.40 | N45: 5,645.40 | O45: 2014-01-01
A46: 36 | B46: MARIA ALT. | C46: POLANCO | D46: 024-0011102-3 | E46: 200011101711592 | F46: Conserje | G46: Area SPM | H46: Unap Quisqueya | I46: 5,000.00 | J46: 143.50 | K46: 152.00 | N46: 4,704.50 | O46: 2014-09-01
A47: 37 | B47: YUDELKIS | C47: FLEMING HODGE | D47: 023-0092307-1 | E47: 200011101711903 | F47: Conserje | G47: Area SPM | H47: unap cachena | I47: 5,000.00 | J47: 143.50 | K47: 152.00 | N47: 4,704.50 | O47: 2014-11-01
A48: 38 | B48: LICETTE | C48: JIMENEZ GARCIA | D48: 023-0020559-4 | E48: 200011101711628 | F48: Conserje | G48: Area SPM | H48: Unap San Martin de Porre | I48: 5,000.00 | J48: 143.50 | K48: 152.00 | N48: 4,704.50 | O48: 2015-05-01
A49: 39 | B49: BASILIA E. | C49: JOSE CIRIACO | D49: 023-0040467-6 | E49: 200011101711796 | F49: Conserje | G49: Area SPM | H49: Unap cachena | I49: 5,000.00 | J49: 143.50 | K49: 152.00 | N49: 4,704.50 | O49: 2015-06-01
A50: 40 | B50: BASILIO | C50: CALDERON MEDINA | D50: 027-0018363-1 | E50: 200011101711631 | F50: Sereno | G50: Area SPM | H50: Unap camara Junior | I50: 5,000.00 | J50: 143.50 | K50: 152.00 | N50: 4,704.50 | O50: 2016-02-02
A51: 41 | B51: NELCIDA YOLADIS | C51: LINARES | D51: 023-0153307-7 | E51: 200011101711851 | F51: Enfermera | G51: Area SPM | H51: Unap brisal | I51: 8,000.00 | J51: 229.60 | K51: 243.20 | N51: 7,527.20 | O51: 2016-01-01
A52: 42 | B52: MARIA | C52: NIEVES MARTE | D52: 023-0084538-1 | E52: 200011101711848 | F52: Conserje | G52: Area SPM | H52: Unap Juan Dolio | I52: 5,000.00 | J52: 143.50 | K52: 152.00 | N52: 4,704.50 | O52: 2014-04-01
A53: 43 | B53: MERCEDES | C53: DANIEL DELGADO | D53: 024-0013600-4 | E53: 200-01-110-173833-9 | F53: Conserje | G53: Area SPM | H53: Unap Hondura | I53: 5,000.00 | J53: =I53*2.87% -> 143.50 | K53: =I53*3.04% -> 152.00 | M53: 0.00 | N53: 4,704.50 | O53: 2014-06-01
A54: 44 | B54: DARIO FRANCISCO | C54: PIE BLAKE | D54: 023-0128257-6 | E54: 200-01-110-176947-6 | F54: Sereno | G54: Area SPM | H54: Unap consuelito | I54: 5,000.00 | J54: 143.50 | K54: 152.00 | N54: 4,704.50 | O54: 2016-07-01
A55: 45 | B55: ALTAGRACIA MEDISA | C55: SEGUIILIS | D55: 023-0077279-1 | E55: 200-01-110-176946-3 | F55: Conserje | G55: Area SPM | H55: Unap consuelito | I55: 5,000.00 | J55: 143.50 | K55: 152.00 | N55: 4,704.50 | O55: 2016-07-01
A56: 46 | B56: ROSMERY | C56: SERRA HERNANDEZ | D56: 023-0138681-5 | E56: 200-01-110-176948-9 | F56: Conserje | G56: Area SPM | H56: Unap Bo. Mexico | I56: 5,000.00 | J56: 143.50 | K56: 152.00 | N56: 4,704.50 | O56: 2017-01-01
A57: 47 | B57: DIONICIO MADRIGAL | C57: GARCIA | D57: 023-0065771-1 | E57: 200-01-960048618-2 | F57: Sereno | G57: Area SPM | H57: UNAP punta de garza | I57: 5,000.00 | J57: 143.50 | K57: 152.00 | N57: 4,704.50 | O57: 2017-07-01
A58: 48 | B58: HECTOR MIGUEL | C58: A.MEDRANO | D58: 023-0012798-8 | E58: 200-01-960-087688-8 | F58: Seguridad | G58: Area SPM | H58: unap Evan Rodriguez | I58: 6,000.00 | J58: 172.20 | K58: 182.40 | N58: 5,645.40 | O58: 2018-04-01
A59: 49 | B59: ESTALIN MARIA | C59: I.MORALES | D59: 024-0026614-0 | E59: 200-01-960-087688-9 | F59: Promotora | G59: Area SPM | H59: unap el puerto | I59: 5,000.00 | J59: 143.50 | K59: 152.00 | N59: 4,704.50 | O59: 2018-04-01
A60: 50 | B60: RAY LUIS | C60: JUSTO | D60: 402-2391439-7 | E60: 200-01-9603556921 | F60: Bionalista | G60: Area SPM | H60: Hosp. Alejo Martinez | I60: 24,000.00 | J60: 688.80 | K60: 729.60 | M60: 1,512.45 | N60: 21,069.15 | O60: 2018-04-01
A61: 51 | B61: MARLENYS RAMONA | C61: QUEVEDO ENCARNACION | D61: 011-347480-3 | E61: 200-01-9601807866 | F61: Medico Asistente | G61: Area SPM | H61: UNAP Don Juan | I61: 30,000.00 | J61: 861.00 | K61: 912.00 | N61: 28,227.00 | O61: 2018-05-19
A62: 52 | B62: LICITANIA | C62: MADRIGAL TEJEDA | D62: 024-0016779-3 | E62: 200-01-9601807868 | F62: Conserje | G62: Area SPM | H62: UNAP Quisqueya | I62: 5,000.00 | J62: =I62*2.87% -> 143.50 | K62: =I62*3.04% -> 152.00 | N62: 4,704.50 | O62: 2018-07-01
A63: 53 | B63: VICTOR MANUEL | C63: POLANCO | D63: 023-0022044-5 | E63: 200-01-1101346666 | F63: Medico Asistente | G63: Area SPM | H63: BO.BLANCO | I63: 30,000.00 | J63: 861.00 | K63: 912.00 | N63: 28,227.00 | O63: 2019-04-01
A64: 54 | B64: OSCAR ANDRES | C64: ENCARNACION MORALES | D64: 402-4204417-6 | E64: 200-01-9603057742 | F64: Digitador | G64: Area SPM | H64: Centro de Diagnostico | I64: 8,000.00 | J64: =I64*2.87% -> 229.60 | K64: =I64*3.04% -> 243.20 | N64: 7,527.20 | O64: 2019-07-01
A65: 55 | B65: RAMON | C65: GIL | D65: 023-0007034-5 | E65: 200-01-9603057696 | F65: Licencia a sereno | G65: Area SPM | H65: Oficina de area | I65: 5,000.00 | J65: =I65*2.87% -> 143.50 | K65: =I65*3.04% -> 152.00 | N65: 4,704.50 | O65: 2019-04-01
A66: 56 | B66: JACINTO | C66: ORTEGA | D66: 023-0032092-2 | E66: 200-01-9603057701 | F66: Sereno | G66: Area SPM | H66: Uunap cumayasa | I66: 6,500.00 | J66: =I66*2.87% -> 186.55 | K66: =I66*3.04% -> 197.60 | N66: 6,115.85 | O66: 2019-08-31
A67: 57 | B67: YENI ALT. | C67: GUERRERO MENDEZ | D67: 023-0117014-4 | E67: 200-01-9603057694 | F67: Conserje | G67: Area SPM | H67: Unap aleman | I67: 4,000.00 | N67: 4,000.00 | O67: 2019-10-01
A68: 58 | B68: FLOR MARIA | C68: SALICHE | D68: 023-0015353-9 | E68: 200-01-9603057693 | F68: Conserje | G68: Area SPM | H68: Centro de Diagnostico | I68: 5,000.00 | J68: =I68*2.87% -> 143.50 | K68: =I68*3.04% -> 152.00 | L68: 0.00 | N68: 4,704.50 | O68: 2020-01-02
A69: 59 | B69: JEANINA | C69: CASTILLO MUÑOZ | D69: 023-0135235-3 | E69: 200-01-9603057692 | F69: Conserje | G69: Area SPM | H69: Unap barrio Lindo SPM | I69: 8,000.00 | J69: 229.60 | K69: 243.20 | N69: 7,527.20 | O69: 2020-01-04
A70: 60 | B70: MASILLON | C70: BENJAMIN | D70: 030-0001180-3 | E70: 200-01-9603140108 | F70: Sereno | G70: SRS ESTE | H70: Unap Margarita | I70: 5,000.00 | J70: 143.50 | K70: 152.00 | N70: 4,704.50 | O70: 13/10/2020
A71: 61 | B71: EUNICE ELAYNE | C71: DE LA CRUZ CASTRO | D71: 4022056974-9 | E71: 200-01-9603202129 | F71: Aux. de farmacia | G71: Area SPM | H71: Unap pedro justo carrion | I71: 12,000.00 | J71: 344.40 | K71: 364.80 | N71: 11,290.80 | O71: 2020-11-01
A72: 62 | B72: SANTA | C72: MEDINA | D72: 023-0164982-4 | E72: 200-01-960-3396546 | F72: Conserje | G72: Area SPM | H72: UNAP punta pescadora | I72: 5,000.00 | J72: 143.50 | K72: 152.00 | N72: 4,704.50 | O72: 2/Enero/2021
A73: 63 | B73: PORFIRIO | C73: ZORRILLA | D73: 024-0010756-7 | E73: 200-01-9603356888 | F73: Sereno | G73: SRS-ESTE | H73: Oficina Regional | I73: 10,000.00 | J73: 287.00 | K73: 304.00 | N73: 9,409.00 | O73: 2/Enero/2021
A74: 64 | B74: ANA | C74: SOLANO | D74: 402-2667422-0 | E74: 200-01-9603403020 | F74: Conserje | G74: Area SPM | H74: Unap punta pescadora | I74: 5,000.00 | J74: 143.50 | K74: 152.00 | N74: =I74-J74-K74-M74 -> 4,704.50 | O74: 2/Enero/2021
A75: 65 | B75: ANGELA | C75: DELONEY RINCON | D75: 023-0050103-4 | E75: 200-01-9603551741 | F75: Conserje | G75: Area SPM | H75: Unap Angelina | I75: 5,000.00 | J75: 143.50 | K75: 152.00 | N75: 4,704.50 | O75: 2021-01-04
A76: 66 | B76: ROLANDO GREGORIO | C76: PASCUAL | D76: 027-0034973-7 | E76: 200-01-9603648040 | F76: Sereno | G76: Area SPM | H76: unap Monte coca | I76: 5,000.00 | J76: 143.50 | K76: 152.00 | N76: 4,704.50 | O76: 2021-01-04
A77: =A76+1 -> 67 | B77: GUILLERMO | C77: BAUTISTA RAMIREZ | D77: 008-0024361-0 | E77: 200-01-9603798315 | F77: Sereno | G77: Area SPM | H77: unap alejandro bass | I77: 5,000.00 | J77: 143.50 | K77: 152.00 | N77: 4,704.50 | O77: 2021-01-05
A78: 68 | B78: SADRACK YRBIN | C78: GUILLEN | D78: 023-0116102-8 | E78: 200-01-9603798311 | F78: Sereno | G78: Area SPM | H78: Placer Bonito | I78: 5,000.00 | J78: 143.50 | K78: 152.00 | N78: 4,704.50 | O78: 2021-01-05
A79: 69 | B79: EMELY PATRICIA | C79: RODRIGUEZ ORTEGA | D79: 402-1141418-6 | E79: 200-01-9603808655 | F79: Asistente de informacion | G79: Area SPM | H79: Gerencia de area | I79: 8,000.00 | J79: 229.60 | K79: 243.20 | N79: 7,527.20 | O79: 2021-01-06
A80: 70 | B80: MANUEL | C80: LOPEZ GONZALEZ | D80: 001-1032723-6 | E80: 200-01-9603964966 | F80: Sereno | G80: Area SPM | H80: Unap Gautier | I80: 7,000.00 | J80: 200.90 | K80: 212.80 | N80: 6,586.30 | O80: 2021-01-06
A81: 71 | B81: ROBERTO ANTONIO | C81: DE LA CRUZ | D81: 023-0004082-7 | E81: 200-01-9604126996 | F81: Chofer | G81: SRS-ESTE | H81: Dpto. de Odontologia | I81: 18,000.00 | J81: 516.60 | K81: 547.20 | N81: 16,936.20 | O81: 2021-10-01
A82: 72 | B82: DOROTEO | C82: DE LA CRUZ CARRASCO | D82: 049-0042143-1 | E82: 200-01-9604126997 | F82: Seguridad | G82: Area SPM | H82: Placer Bonito | I82: 7,000.00 | J82: 200.90 | K82: 212.80 | N82: 6,586.30 | O82: 2021-10-01
A83: 73 | B83: MANOLO | C83: MARTINEZ | D83: 001-1040251-8 | E83: 200-01-9604266453 | F83: Seguridad | G83: Area SPM | H83: Unap Villa Faro | I83: 5,000.00 | J83: 143.50 | K83: 152.00 | N83: 4,704.50 | O83: 2021-09-01
A84: 74 | B84: JOSE ANIIBAL | C84: FRANCISCO DANIEL | D84: 024-0027728-7 | E84: 200-01-9604334570 | F84: Seguridad | G84: Area SPM | H84: Unap Paloma | I84: 5,000.00 | J84: 143.50 | K84: 152.00 | N84: 4,704.50 | O84: 2021-12-01
A85: 75 | B85: MIGUEL | C85: NUÑEZ MAZARA | D85: 025-0001585-0 | E85: 200-01-9604334568 | F85: Seguridad | G85: SRS-ESTE | H85: Oficina Regional | I85: 7,000.00 | J85: 200.90 | K85: 212.80 | N85: 6,586.30 | O85: 2021-12-01
A86: 76 | B86: JESUS MANUEL | C86: GARCIA | D86: 402-2376092-3 | E86: 200-01-120225003-6 | F86: Seguridad | G86: SRS-ESTE | H86: Almacen Regional | I86: 5,000.00 | J86: 143.50 | K86: 152.00 | N86: 4,704.50 | O86: 2016-07-01
A87: 77 | B87: HIPOLITO | C87: TOLENTINO | D87: 023-0084491-3 | E87: 960-455925-7 | F87: Seguridad | G87: Area SPM | H87: Unap Villa Faro | I87: 5,000.00 | J87: 143.50 | K87: 152.00 | N87: 4,704.50 | O87: 2022-02-08
A88: 78 | B88: STARLYN | C88: ALCANTARA | D88: 023-0166567-1 | E88: 960-514422-6 | F88: Seguridad | G88: Area SPM | H88: Unap el Brisal | I88: 5,000.00 | J88: 143.50 | K88: 152.00 | N88: 4,704.50 | O88: 2022-09-01
A89: 79 | B89: YAQUELIN AUDILIA | C89: RICHARSON PEÑA | D89: 030-0003307-0 | E89: 960-525593-0 | F89: Conserje | G89: Area SPM | H89: Unap Batey soco | I89: 5,000.00 | J89: 143.50 | K89: 152.00 | N89: 4,704.50 | O89: 2022-10-01
A90: 80 | B90: MANUEL DE JESUS | C90: LORA | D90: 023-0020611-3 | E90: 960-532825-5 | F90: Seguridad | G90: SRS-ESTE | H90: Oficina Regional | I90: 7,000.00 | J90: 200.90 | K90: 212.80 | N90: 6,586.30 | O90: 2022-11-01
A91: 81 | B91: DIGNA | C91: ROSARIO JAVIER | D91: 023-0143527-3 | E91: 960540890-2 | F91: Conserje | G91: Area SPM | H91: UNAP Santa Fe | I91: 5,000.00 | J91: 143.50 | K91: 152.00 | N91: 4,704.50 | O91: 2022-12-01
A92: 82 | B92: AIDA | C92: PEREZ NATERA | D92: 011-714807-2 | E92: 960-506293-3 | F92: Conserje | G92: Area SPM | H92: Unap las Goutier | I92: 5,000.00 | J92: 143.50 | K92: 152.00 | N92: 4,704.50 | O92: 2023-03-01
A93: 83 | B93: ESTEBANIA | C93: MELLA WILLIAMS | D93: 402-2020200-2 | E93: 9605815583 | F93: Conserje | G93: Area SPM | H93: CPN IDSS Consuelo | I93: 5,000.00 | J93: 143.50 | K93: 152.00 | N93: =I93-J93-K93-M93 -> 4,704.50 | O93: 2023-04-01
A94: 84 | B94: FREDDY | C94: FELICIANO | D94: 027-0022474-0 | E94: 9606189132 | F94: Sereno | G94: Area SPM | H94: CPN el Brisal | I94: 5,000.00 | J94: 143.50 | K94: 152.00 | N94: =I94-J94-K94-M94 -> 4,704.50 | O94: 2023-05-01
A95: 85 | B95: ROSA | C95: HERNANDEZ | D95: 023-01286841 | E95: 9606377959 | F95: Conserje | G95: Area SPM | H95: CPN Esperanza | I95: 5,000.00 | J95: 143.50 | K95: 152.00 | N95: =I95-J95-K95-M95 -> 4,704.50 | O95: 1//10/2023
A96: 86 | B96: Darlenys Maria | C96: Santana Jimenez | D96: 402-1112745-7 | F96: Conserje | G96: Area SPM | H96: Unap Santa clara de Asis | I96: 6,000.00 | J96: 172.20 | K96: 182.40 | N96: =I96-J96-K96-M96 -> 5,645.40 | O96: 2023-03-19
B97: Total de empleados contratado | I97: =SUM(I11:I96) -> 709,345.65 | J97: =SUM(J11:J96) -> 20,099.92 | K97: =SUM(K11:K96) -> 21,290.51 | L97: =SUM(L11:L92) -> 0.00 | M97: =SUM(M11:M92) -> 6,049.80 | N97: =SUM(N11:N96) -> 661,905.42
D100: LIC. YUDELKY JABALERA | I100: DR. RICARDO JULIO ROMERO
C101: ADMINISTRADORA | I101: DIRECTOR
B109: REGION V
B110: SAN PEDRO DE MACORIS, REPUBLICA DOMINICANA
B111: RNC 430041793
B112: NOMINA CORRESPONDIENTE AL 30 DE MAYO AÑO 2024
B113: PERSONAL AREA DE HATO MAYOR
B114: NOMBRE | C114: APELLIDO | D114: CEDULA | E114: No. CUENTA | F114: CARGO | G114: DEPARTAMENTO | H114: LUGAR PRESTA SERVICIOS | I114: SUELDO BRUTO | J114: S/S | K114: SFS | L114: ISR | M114: D/A | N114: SUELDO NETO | O114: FECHA
A115: 1 | B115: CARMEN I. | C115: SANTANA P. | D115: 027-0005223-2 | E115: 200011120165796 | F115: Aux. de enfermeria | G115: Area Hato Mayor | H115: Clinica Morquecho | I115: 11,786.00 | J115: =I115*2.87% -> 338.26 | K115: =I115*3.04% -> 358.29 | M115: 0.00 | N115: =I115-J115-K115-M115 -> 11,089.45 | O115: 2006-09-11
A116: =A115+1 -> 2 | B116: SULINDA | C116: MOTA DE SALAS | D116: 100-0007282-6 | E116: 200011120165880 | F116: Conserje | G116: Area Hato Mayor | H116: Clinica Yanigua | I116: 5,000.00 | J116: 143.50 | K116: 152.00 | N116: 4,704.50 | O116: 2007-01-02
A117: =A116+1 -> 3 | B117: DOMINGO A. | C117: PEGUERO LUNA | D117: 100-0002222-7 | E117: 200011120165864 | F117: Viglante | G117: Area Hato Mayor | H117: Clinica Yanigua | I117: 5,000.00 | J117: 143.50 | K117: 152.00 | N117: 4,704.50 | O117: 2007-04-02
A118: 4 | B118: MARIA | C118: NOLASCO | D118: 100-0000817-6 | E118: 200011120166148 | F118: Conserje | G118: Area Hato Mayor | H118: Clinica El valle | I118: 7,000.00 | J118: 143.50 | K118: 152.00 | N118: 6,704.50 | O118: 2007-02-01
A119: 5 | B119: NIURKA A. | C119: AQUINO JAVIER | D119: 100-0000180-9 | E119: 200011120165848 | F119: Tecnica Farmacia | G119: Area Hato Mayor | H119: Hospital el Valle | I119: 11,786.00 | J119: =I119*2.87% -> 338.26 | K119: =I119*3.04% -> 358.29 | M119: 0.00 | N119: =I119-J119-K119-M119 -> 11,089.45 | O119: 2007-08-01
A120: 6 | B120: ZENOVIA | C120: TRINIDAD MARTINEZ | D120: 023-0002962-2 | E120: 200011120165738 | F120: Conserje | G120: Area Hato Mayor | H120: Villa Navarro | I120: 5,000.00 | J120: 143.50 | K120: 152.00 | N120: 4,704.50 | O120: 2007-08-08
A121: 7 | B121: MIGUEL ISABEL | C121: VASQUEZ | D121: 027-0003867-8 | E121: 200011120143844 | F121: Chofer | G121: Area Hato Mayor | H121: Oficina area | I121: 8,000.00 | J121: 229.60 | K121: 243.20 | N121: 7,527.20 | O121: 2010-02-01
A122: 8 | B122: ANGELA | C122: RIVERA | D122: 027-0004711-7 | E122: 200011101333637 | F122: Conserje | G122: Area Hato Mayor | H122: UNAP Ondina | I122: 5,000.00 | J122: 143.50 | K122: 152.00 | N122: 4,704.50 | O122: 2010-06-01
A123: 9 | B123: FELIX | C123: CANARIO | D123: 027-0003530-2 | E123: 200011101393509 | F123: Sereno | G123: Area Hato Mayor | H123: Unap Ondina | I123: 5,000.00 | J123: =I123*2.87% -> 143.50 | K123: =I123*3.04% -> 152.00 | N123: =I123-J123-K123 -> 4,704.50 | O123: 2011-03-01
A124: 10 | B124: ELSA AURORA | C124: ZORRILLA | D124: 027-0028845-5 | E124: 200011101479559 | F124: Conserje | G124: Area Hato Mayor | H124: UNAP Punta de Garza | I124: 5,000.00 | J124: 143.50 | K124: 152.00 | N124: 4,704.50 | O124: 2012-06-01
A125: 11 | B125: CARMEN | C125: DE LA CRUZ TORREZ | D125: 027-0002151-8 | E125: 200011101479546 | F125: Conserje | G125: Area Hato Mayor | H125: Unap La China | I125: 5,000.00 | J125: 143.50 | K125: 152.00 | N125: 4,704.50 | O125: 2012-11-01
A126: 12 | B126: YAQUELIN | C126: CASTILLO MONEGRO | D126: 027-0039926-0 | E126: 200011120292627 | F126: Conserje | G126: Area Hato Mayor | H126: Unap la Javilla | I126: 5,000.00 | J126: 143.50 | K126: 152.00 | N126: 4,704.50 | O126: 2014-07-01
A127: 13 | B127: YARELIS | C127: GOMEZ REYES | D127: 027-0042030-6 | E127: 200011120292588 | F127: Conserje | G127: Area Hato Mayor | H127: Unap la plaza | I127: 5,000.00 | J127: 143.50 | K127: 152.00 | N127: 4,704.50 | O127: 2014-10-01
A128: 14 | B128: RUDELANIA | C128: OVALLE VEGA | D128: 023-0110894-6 | E128: 200011120292601 | F128: Medico asistente | G128: Area Hato Mayor | H128: Unap la plaza | I128: 20,000.00 | J128: 574.00 | K128: 608.00 | N128: 18,818.00 | O128: 2014-10-01
A129: 15 | B129: CLAUDIA M. | C129: RINCON COLIN | D129: 027-0046976-6 | E129: 200011120292591 | F129: Enfermera | G129: Area Hato Mayor | H129: Unap la plaza | I129: 7,000.00 | J129: 200.90 | K129: 212.80 | N129: 6,586.30 | O129: 2014-10-01
A130: 16 | B130: RAFAEL | C130: GONZALEZ | D130: 027-0024756-8 | E130: 200011101717211 | F130: Sereno | G130: Area Hato Mayor | H130: Unap km 15 Hato Mayor | I130: 5,000.00 | J130: 143.50 | K130: 152.00 | N130: 4,704.50 | O130: 2015-08-01
A131: 17 | B131: CARINYS MARIEL | C131: LOPEZ | D131: 402-2032423-6 | E131: 200-01-960048617-1 | F131: Promotora de salud | G131: Area Hato Mayor | H131: Oficina area | I131: 6,900.00 | J131: =I131*2.87% -> 198.03 | K131: =I131*3.04% -> 209.76 | M131: 0.00 | N131: =I131-J131-K131-M131 -> 6,492.21 | O131: 2017-10-01
A132: 18 | B132: YOHARKY | C132: LORENZO ABREU | D132: 025-0037069-3 | E132: 200-01-960-087689-0 | F132: Aux. de enfermeria | G132: Area Hato Mayor | I132: 9,000.00 | J132: 258.30 | K132: 273.60 | N132: =I132-J132-K132 -> 8,468.10 | O132: 2018-05-01
A133: 19 | B133: TAIRA MARIA | C133: GONZALEZ | D133: 100-0004525-1 | E133: 200-01-270-017401-7 | F133: Farmaceutica | G133: Area Hato Mayor | H133: Hospital el valle | I133: 18,400.00 | J133: 528.08 | K133: 559.36 | N133: =I133-J133-K133 -> 17,312.56 | O133: 2018-07-01
A134: 20 | B134: ISRAEL | C134: VASQUEZ ALEXANDER | D134: 138-0007689-8 | E134: 200-01-9603065740 | F134: Sereno | G134: Area Hato Mayor | H134: Gerencia de area | I134: 5,000.00 | J134: 143.50 | K134: 152.00 | N134: =SUM(I134-J134-K134) -> 4,704.50 | O134: 2019-07-01
A135: 21 | B135: GAUDY | C135: CRISOSTOMO | D135: 402-4018039-4 | E135: 200-01-9604269997 | F135: Conjerje | G135: Area Hato Mayor | H135: Unap ondina | I135: 5,000.00 | J135: 143.50 | K135: 152.00 | N135: =SUM(I135-J135-K135) -> 4,704.50 | O135: 2021-10-01
A136: 22 | B136: SAMUEL CRISTINO | C136: SALZAR SOSA | D136: 402-0900247-2 | E136: 200-01-9604395130 | F136: Tecnico | G136: Area Hato Mayor | H136: Gerencia de area | I136: 30,000.00 | J136: 861.00 | K136: 912.00 | M136: 1,512.45 | N136: =SUM(I136-J136-K136-M136) -> 26,714.55 | O136: 2022-01-07
A137: 23 | B137: RICHARD | C137: SANTANA PADILLA | D137: 402-1195588-1 | E137: 200-01-9604716221 | F137: Mensajero | G137: Area Hato Mayor | H137: Gerencia de area | I137: 7,000.00 | J137: 200.90 | K137: 212.80 | N137: =SUM(I137-J137-K137) -> 6,586.30 | O137: 2022-04-01
A138: 24 | B138: REMY RAFAEL | C138: GEROVACIO LOPEZ | D138: 067-0011062-7 | E138: 960-5265770 | F138: Sereno | G138: Area Hato Mayor | H138: Unap cañitas | I138: 5,000.00 | J138: 143.50 | K138: 152.00 | N138: =SUM(I138-J138-K138) -> 4,704.50 | O138: 2022-10-01
A139: 25 | B139: FRANCIASCA | C139: REYES LOPEZ | D139: 027-0017851-6 | E139: 960-5265769 | F139: Conserje | G139: Area Hato Mayor | H139: Unap Morquecho | I139: 5,000.00 | J139: 143.50 | K139: 152.00 | N139: 4,704.50 | O139: 2022-10-01
A140: 26 | B140: MAGALIS | C140: JIMENEZ | D140: 027-0030140-7 | E140: 960-5265764 | F140: Conserje | G140: Area Hato Mayor | H140: Unap jalonga | I140: 5,000.00 | J140: 143.50 | K140: 152.00 | N140: 4,704.50 | O140: 2022-10-01
A141: 27 | B141: DULCE MARIA | C141: DOMINGUEZ PEÑA | D141: 027-0046696-0 | E141: 960-5265766 | F141: Conserje | G141: Area Hato Mayor | H141: Unap Km 15 | I141: 5,000.00 | J141: 143.50 | K141: 152.00 | N141: 4,704.50 | O141: 2022-10-01
A142: 28 | B142: IRMA GRISEL | C142: REYES FELICIANO | D142: 027-0012399-1 | E142: 960-5265765 | F142: Conserje | G142: Area Hato Mayor | H142: Unap la Sierra | I142: 5,000.00 | J142: 143.50 | K142: 152.00 | N142: 4,704.50 | O142: 2022-10-01
A143: 29 | B143: RAFAEL | C143: FLOID POLICIA | D143: 402-1139481-8 | E143: 960-5354300 | F143: Sereno | G143: Area Hato Mayor | H143: Unap jalonga | I143: 5,000.00 | J143: 143.50 | K143: 152.00 | N143: 4,704.50 | O143: 2022-11-01
A144: 30 | B144: JULIO ADRIANO | C144: DIAZ ACOSTA | D144: 067-0013604-4 | E144: 9605408903 | F144: Sereno | G144: Area Hato Mayor | H144: Unap Magua | I144: 5,000.00 | J144: 143.50 | K144: 152.00 | N144: 4,704.50 | O144: 2022-12-01
A145: 31 | B145: JUAN | C145: JAVIER | D145: 027-0015148-9 | E145: 9606157607 | F145: Viglante | G145: Area Hato Mayor | H145: Unap jalonga | I145: 5,000.00 | J145: 143.50 | K145: 152.00 | N145: 4,704.50 | O145: 2023-08-01
A146: 32 | B146: ISMAEL | C146: GARCIA SEVERINO | D146: 402-1030578-1 | E146: 9606781220 | F146: Sereno | G146: Area Hato Mayor | H146: Yerba Buena | I146: 5,000.00 | J146: 143.50 | K146: 152.00 | N146: 4,704.50 | O146: 2024-02-01
B147: TOTAL NOMINA HATO MAYOR | I147: =SUM(I115:I146) -> 241,872.00 | J147: =SUM(J115:J146) -> 6,884.33 | K147: =SUM(K115:K146) -> 7,292.11 | M147: =SUM(M115:M145) -> 1,512.45 | N147: =SUM(N115:N146) -> 226,183.11
C150: LIC. YUDELKY JABALERA | H150: DR. RICARDO JULIO ROMERO
B151: ADMINISTRADORA | H151: DIRECTOR
B161: REGION V
B162: SAN PEDRO DE MACORIS, REPUBLICA DOMINICANA
B163: RNC 430041793
B164: NOMINA CORRESPONDIENTE AL 30 DE MAYO AÑO 2024
B165: PERSONAL AREA EL SEYBO | J165: S/S | K165: SFS | L165: ISR | M165: D/A
B166: NOMBRE | C166: APELLIDO | D166: CEDULA | E166: No. CUENTA | F166: CARGO | G166: DEPARTAMENTO | H166: LUGAR PRESTA SERVICIOS | I166: SUELDO BRUTO | J166: DEDUCCIONES | N166: SUELDO NETO | O166: FECHA
A167: 1 | B167: ANA MARIA | C167: VASQUEZ SANTANA | D167: 025-0041921-9 | E167: 200011110179067 | F167: Conserje | G167: Area el seibo | H167: Clinica las 500 | I167: 5,000.00 | J167: 143.50 | K167: 152.00 | N167: 4,704.50 | O167: 2007-06-01
A168: =A167+1 -> 2 | B168: OSVALDO ANTONIO | C168: CRUZ | D168: 029-0004372-6 | E168: 200011110179135 | F168: Sereno | G168: Area el seibo | H168: Unap Los Franceses | I168: 5,000.00 | J168: 143.50 | K168: 152.00 | N168: 4,704.50 | O168: 2007-07-09
A169: =A168+1 -> 3 | B169: MAXIMO | C169: DEL ROSARIO SILVESTRE | D169: 025-0027067-9 | E169: 200011101180725 | F169: Sereno | G169: Area el seibo | H169: Unap el guaral | I169: 5,000.00 | J169: 143.50 | K169: 152.00 | N169: 4,704.50 | O169: 2007-09-01
A170: 4 | B170: RAFAELA | C170: DIAZ DIAZ | D170: 025-0033097-8 | E170: 200011101294569 | F170: Conserje | G170: Area el seibo | H170: Clinica el Guaral | I170: 5,000.00 | J170: 143.50 | K170: 152.00 | N170: 4,704.50 | O170: 2009-08-14
A171: 5 | B171: YNIRIO MODESTO | C171: LEONARDO | D171: 025-0034927-5 | E171: 200011101393486 | F171: Sereno | G171: Area el seibo | H171: Unap el cerrito del seibo | I171: 5,000.00 | J171: 143.50 | K171: 152.00 | M171: 0.00 | N171: 4,704.50 | O171: 2011-01-01
A172: 6 | B172: AMPARO | C172: MOJICA | D172: 029-0010041-9 | E172: 200011101393554 | F172: Conserje | G172: Area el seibo | H172: Centro de zona Villa Guerrero | I172: 5,000.00 | J172: 143.50 | K172: 152.00 | N172: 4,704.50 | O172: 2011-01-01
A173: 7 | B173: SONIA ELENA | C173: PAREDES MARTINEZ | D173: 025-0008358-5 | E173: 200011101711741 | F173: Conserje | G173: Area el seibo | H173: Unap las guajabas | I173: 5,000.00 | J173: 143.50 | K173: 152.00 | N173: 4,704.50 | O173: 2016-04-01
A174: 8 | B174: LEONIDAS | C174: MOTA DE LA CRUZ | D174: 027-0034558-6 | E174: 200-01-110-176883-3 | F174: Conserje | G174: Area el seibo | H174: Unap las guajabas | I174: 5,000.00 | J174: =I174*2.87% -> 143.50 | K174: =I174*3.04% -> 152.00 | N174: =I174-J174-K174 -> 4,704.50 | O174: 2016-09-01
A175: 9 | B175: ROSANGELA | C175: SORIANO | D175: 025-0048387-6 | E175: 200-01-960056265-8 | F175: Medico asist. | G175: Area el seibo | H175: Unap los botado | I175: 28,000.00 | J175: 803.60 | K175: 851.20 | N175: =I175-J175-K175 -> 26,345.20 | O175: 2018-02-01
A176: 10 | B176: TATATIANA ROSANA | C176: AQUINO | D176: 402-3486379-9 | E176: 200-01-960-087688-5 | F176: Aux. de Farmacia | G176: Area el seibo | H176: Gerencia de area Seibo | I176: 9,835.00 | J176: 282.26 | K176: 298.98 | N176: =I176-J176-K176 -> 9,253.75 | O176: 2018-04-01
A177: 11 | B177: ANGELINA | C177: PEGUERO | D177: 029-0015408-5 | E177: 200-01-9603069101 | F177: Aux. de limpieza | G177: Area el seibo | H177: Unap la mina | I177: 5,000.00 | J177: 143.50 | K177: 152.00 | N177: =I177-J177-K177 -> 4,704.50 | O177: 2020-01-09
A178: 12 | B178: OSVIANNY | C178: ZORRILLA BERAS | D178: 402-2519711-6 | E178: 200-01-1101711657 | F178: Enc. De soporte tecnico | G178: Area el seibo | H178: Gerencia de area | I178: 30,000.00 | J178: 861.00 | K178: 912.00 | N178: 28,227.00 | O178: 2020-01-11
A179: 13 | B179: DIONILIA | C179: ZORRILLA | D179: 025-0009672-8 | E179: 200-01-9603798317 | F179: Conserje | G179: Area el seibo | H179: Unap Pedro Sanchez | I179: 5,000.00 | J179: 143.50 | K179: 152.00 | N179: 4,704.50 | O179: 2021-01-03
A180: 14 | B180: MILOSY ARACELIS | C180: BAEZ APONTE | D180: 025-0032466-6 | E180: 200-01-9603883495 | F180: Aux. de Enfermeria | G180: Area el seibo | H180: Unap Cañada del Agua | I180: 10,000.00 | J180: 287.00 | K180: 304.00 | N180: 9,409.00 | O180: 2021-01-07
A181: 15 | B181: CARMEN DOLORES | C181: GARCIA | D181: 023-0075496-3 | E181: 200-01-9604074136 | F181: Conserje | G181: Area el seibo | H181: Unap Villa Guerrero | I181: 5,000.00 | J181: 143.50 | K181: 152.00 | N181: 4,704.50 | O181: 2021-09-01
A182: 16 | B182: CANDIDA | C182: DE LA CRUZ | D182: 065-0019411-0 | E182: 200-01-9604074312 | F182: Conserje | G182: Area el seibo | H182: Unap Los Franceses | I182: 5,000.00 | J182: 143.50 | K182: 152.00 | N182: 4,704.50
A183: 17 | B183: EDELKIN MARIA | C183: PEREZ PERALTA | D183: 029-0016608-9 | E183: 200-01-9604334569 | F183: Conserje | G183: Area el seibo | H183: Unap la Gina | I183: 5,000.00 | J183: 143.50 | K183: 152.00 | N183: 4,704.50 | O183: 2021-12-01
A184: 18 | B184: CAROLIN FERNANDA | C184: NIEVES CANELA | D184: 402-1825057-5 | E184: 200-01-960-464357-0 | F184: Digitadora | G184: Area el seibo | H184: Gerencia de area | I184: 10,000.00 | J184: 287.00 | K184: 304.00 | N184: 9,409.00 | O184: 2022-03-01
A185: 19 | B185: LUCIA | C185: DE JESUS | D185: 029-0007400-2 | E185: 200-01-960484399-2 | F185: Conserje | G185: Area el seibo | H185: Unap el cedro de miches | I185: 5,000.00 | J185: 143.50 | K185: 152.00 | N185: 4,704.50 | O185: 2022-05-01
A186: 20 | B186: CESAR ORLANDO | C186: MORALES VASQUEZ | D186: 029-0019287-9 | E186: 200-019605119375 | F186: Sereno | G186: Area el seibo | H186: Unap la Mina | I186: 5,000.00 | J186: 143.50 | K186: 152.00 | N186: 4,704.50 | O186: 2022-07-01
A187: 21 | B187: ANTONIO | C187: HERNANDEZ | D187: 025-0015700-9 | E187: 960-568646-3 | F187: Vigilante | G187: Area el seibo | H187: Unap Magarin | I187: 5,000.00 | J187: 143.50 | K187: 152.00 | N187: 4,704.50 | O187: 2023-03-01
A188: 22 | B188: DEMETRIO | C188: MEDINA | D188: 029-0009483-6 | E188: 960-5817459 | F188: Vigilante | G188: Area el seibo | H188: Unap el cerrito | I188: 5,000.00 | J188: 143.50 | K188: 152.00 | N188: 4,704.50 | O188: 2023-04-01
A189: 23 | B189: DOMINGO | C189: ESTEBAN | D189: 027-0028929-7 | E189: 110-1711806 | F189: Sereno | G189: Area el seibo | H189: Unap Magarin | I189: 5,000.00 | J189: 143.50 | K189: 152.00 | N189: 4,704.50 | O189: 2023-04-01
A190: 24 | B190: JULIO CRISTOBAL | C190: CASTRO MOTA | D190: 025-0049811-4 | E190: 9606781219 | F190: Chofer | G190: Area el seibo | H190: Gerencia de area | I190: 8,000.00 | J190: 229.60 | K190: 243.20 | N190: 7,527.20 | O190: 2024-01-02
A191: 25 | B191: VANESSA | C191: MERCEDES BAEZ | D191: 402-4998424-2 | F191: Secretaria | G191: Area el seibo | H191: Gerencia de area | I191: 10,000.00 | J191: 287.00 | K191: 304.00 | N191: 9,409.00 | O191: 2024-03-01
B192: TOTAL NOMINA EL SEIBO | I192: =SUM(I167:I191) -> 195,835.00 | J192: 5,620.46 | K192: 5,953.38 | L192: 0.00 | M192: 0.00 | N192: 184,261.15
C195: LIC. YUDELKY JABALERA | H195: DR. RICARDO JULIO ROMERO
B196: ADMINISTRADORA | H196: DIRECTOR
B203: REGION V
B204: C/COLON No.28, CENTRO DE LA CIUDAD
B205: SAN PEDRO DE MACORIS, REPUBLICA DOMINICANA
B206: RNC 430041793
B208: NOMINA CORRESPONDIENTE AL 30 DE MAYO AÑO 2024
B209: PERSONAL LA ROMANA | J209: S/S | K209: SFS | L209: ISR | M209: D/A | N209: 0.00
B210: NOMBRE | C210: APELLIDO | D210: CEDULA | E210: No. CUENTA | F210: CARGO | G210: DEPARTAMENTO | H210: LUGAR PRESTA SERVICIOS | I210: SUELDO BRUTO | J210: DEDUCCIONES | N210: SUELDO NETO | O210: FECHA
A211: 1 | B211: SONIA MARGARITA | C211: HACEN MENOR | D211: 103-0005891-3 | E211: 200012700174020 | F211: Conserje | G211: Area Romana | H211: Clinica Higueral | I211: 5,000.00 | J211: 143.50 | K211: 152.00 | N211: 4,704.50 | O211: 2007-06-25
A212: =A211+1 -> 2 | B212: ANGELA | C212: MATEO VILLAR | D212: 026-0128058-5 | E212: 200011101189535 | F212: Conserje | G212: Area Romana | H212: Clinica Maria Trinidad Sanchez | I212: 5,000.00 | J212: 143.50 | K212: 152.00 | N212: 4,704.50 | O212: 2007-11-01
A213: =A212+1 -> 3 | B213: FRANCISCA | C213: NOLASCO | D213: 026-0031430-2 | E213: 200011101209541 | F213: Conserje | G213: Area Romana | H213: Unap Piedra Linda | I213: 5,000.00 | J213: 143.50 | K213: 152.00 | N213: 4,704.50 | O213: 2008-02-01
A214: 4 | B214: SANDRA | C214: CESPEDES PAYANO | D214: 026-0079070-9 | E214: 200011101209567 | F214: Conserje | G214: Area Romana | H214: Unap Cucama | I214: 5,000.00 | J214: 143.50 | K214: 152.00 | N214: 4,704.50 | O214: 2008-02-14
A215: 5 | B215: ROGELIO | C215: SOLANO SILVESTRE | D215: 026-0039613-5 | E215: 200011101253717 | F215: Sereno | G215: Area Romana | H215: Unap Los Mulos | I215: 5,000.00 | J215: 143.50 | K215: 152.00 | N215: 4,704.50 | O215: 2008-10-01
A216: 6 | B216: WARDIN | C216: SUERO GARCIA | D216: 026-0108716-2 | E216: 200011101253720 | F216: Sereno | G216: Area Romana | H216: Clinica Maria Trinidad Sanchez | I216: 5,000.00 | J216: 143.50 | K216: 152.00 | N216: 4,704.50 | O216: 2008-10-01
A217: 7 | B217: ELSA DEONICIA | C217: MERCEDES ORTIZ | D217: 026-0045084-1 | E217: 200011101292147 | F217: Lic.Enfermeria | G217: Area Romana | H217: Clinica Higueral | I217: 10,000.00 | J217: =I217*2.87% -> 287.00 | K217: =I217*3.04% -> 304.00 | N217: =I217-J217-K217 -> 9,409.00 | O217: 2009-08-03
A218: 8 | B218: MIGUEL RAMON | C218: TRAVIESO GARCIA | D218: 026-0063076-4 | E218: 200011101318814 | F218: Mayordomo | G218: Area Romana | H218: Clinica Villa Hermosa | I218: 5,000.00 | J218: =I218*2.87% -> 143.50 | K218: =I218*3.04% -> 152.00 | N218: =I218-J218-K218 -> 4,704.50 | O218: 2010-02-01
A219: 9 | B219: WANDA YUSIL | C219: DEL ROSARIO | D219: 026-0141280-8 | E219: 200011101318830 | F219: Aux. de Oficina | G219: Area Romana | H219: Clinica Villa Hermosa | I219: 5,000.00 | J219: 143.50 | K219: 152.00 | N219: 4,704.50 | O219: 2010-02-01
A220: 10 | B220: ENMA | C220: DE LOS SANTOS | D220: 026-0039834-7 | E220: 200011101326055 | F220: Conserje | G220: Area Romana | H220: UNAP Los Coco | I220: 5,000.00 | J220: 143.50 | K220: 152.00 | N220: 4,704.50 | O220: 2010-04-01
A221: 11 | B221: CARLOS ANT. | C221: CORDONES | D221: 295-0002936-7 | E221: 200011101479656 | F221: Sereno | G221: Area Romana | H221: UNAP KM 14 | I221: 5,000.00 | J221: 143.50 | K221: 152.00 | M221: 1,512.45 | N221: =I221-J221-K221-M221 -> 3,192.05 | O221: 2012-07-01
A222: 12 | B222: FERMIN | C222: RIJO | D222: 026-0061107-9 | E222: 200011101479481 | F222: Sereno | G222: Area Romana | H222: UNAP Luis J. Suarez | I222: 5,000.00 | J222: 143.50 | K222: 152.00 | N222: 4,704.50 | O222: 2012-08-01
A223: 13 | B223: DINORA E | C223: RAMIREZ DE LA CRUZ | D223: 026-0037001-5 | E223: 200011101561205 | F223: Seccretaria | G223: Area Romana | H223: Oficina area Romana | I223: 20,400.00 | J223: =I223*2.87% -> 585.48 | K223: =I223*3.04% -> 620.16 | M223: 0 | N223: =I223-J223-K223-M223 -> 19,194.36 | O223: 2014-03-01
A224: 14 | B224: MARGARITO | C224: CUETO ROSARIO | D224: 026-0043627-9 | E224: 200011101561218 | F224: Sereno | G224: Area Romana | H224: Clinica Villa Hermosa | I224: 5,000.00 | J224: 143.50 | K224: 152.00 | N224: 4,704.50 | O224: 2014-03-01
A225: 15 | B225: RAMONA GERTRUDIS | C225: HUNT S. | D225: 026-0044901-7 | E225: 200011101630699 | F225: Aux de farmacia | G225: Area Romana | H225: Unap Luis J. Suarez | I225: 7,750.00 | J225: 222.43 | K225: 235.60 | N225: 7,291.98 | O225: 2014-10-01
A226: 16 | B226: PROFECTA | C226: ACOSTA FERMIN | D226: 065-0018087-9 | E226: 20001110176884-6 | F226: Conserje | G226: Area Romana | H226: Unap Saona | I226: 5,000.00 | J226: 143.50 | K226: 152.00 | N226: 4,704.50 | O226: 2016-10-01
A227: 17 | B227: DOMINGA | C227: MEJIA | D227: 026-0079667-2 | E227: 20001110176885-9 | F227: Promotara | G227: Area Romana | H227: Unap conani | I227: 5,000.00 | J227: 143.50 | K227: 152.00 | N227: 4,704.50 | O227: 2016-12-01
A228: 18 | B228: MARIANO | C228: ANTONIO MARTE | D228: 026-0054441-1 | E228: 20001210107826-4 | F228: Sereno | G228: Area Romana | H228: Unap villa verde | I228: 5,000.00 | J228: 143.50 | K228: 152.00 | N228: 4,704.50 | O228: 2015-11-01
A229: 19 | B229: DAISY MARIA | C229: DE LEON FELIX | D229: 023-0088812-6 | E229: 200-01-960048617-0 | F229: Conserje | G229: Area Romana | H229: Unap villa hermosa | I229: 5,000.00 | J229: =I229*2.87% -> 143.50 | K229: =I229*3.04% -> 152.00 | N229: =I229-J229-K229 -> 4,704.50 | O229: 2017-08-01
A230: 20 | B230: LIDIA S. | C230: FLORIMON | D230: 001-0414442-3 | E230: 200-01-960049850-5 | F230: Promotora de salud | G230: Area Romana | H230: Oficina area Romana | I230: 5,000.00 | J230: 143.50 | K230: 152.00 | N230: 4,704.50 | O230: 2017-11-01
A231: 21 | B231: RAQUEL | C231: REYES GONZALEZ | D231: 026-0074489-6 | E231: 200-01-960049850-6 | F231: Conserje | G231: Area Romana | H231: Oficina area Romana | I231: 5,000.00 | J231: 143.50 | K231: 152.00 | N231: 4,704.50 | O231: 2017-11-01
A232: 22 | B232: PAULA CATHERINE | C232: REYES | D232: 026-0123128-1 | E232: 200-01-960049850-4 | F232: Secretaria | G232: Area Romana | H232: Oficina area Romana | I232: 5,000.00 | J232: 143.50 | K232: 152.00 | N232: 4,704.50 | O232: 2017-11-01
... 56 more rows

Sheet JUNIO 2024
B4: REGION V
B5: PEDRO DE MACORIS, REPUBLICA DOMINICANA
B6: PERSONAL SPM
B7: Total de empleados contratado | E7: RNC 430041793
B8: NOMINA CORRESPONDIENTE AL 30 DE JUNIO AÑO 2024
B9: AREA SPM
B10: NOMBRE | C10: APELLIDO | D10: CEDULA | F10: CARGO | G10: DEPARTAMENTO | H10: LUGAR PRESTA SERVICIOS | I10: SUELDO BRUTO | J10: S/S | K10: SFS | L10: ISR | M10: D/A | N10: SUELDO NETO | O10: FECHA
A11: 1 | B11: PAULINO | C11: LUIS | D11: 024-0008005-3 | E11: 200011101179105 | F11: Vigilante | G11: Area SPM | H11: Clinica Quisqueya | I11: 5,000.00 | J11: =I11*2.87% -> 143.50 | K11: =I11*3.04% -> 152.00 | N11: =I11-J11-K11-M11 -> 4,704.50 | O11: 2007-05-08
A12: =A11+1 -> 2 | B12: PETRONILA ALT. | C12: PAYANO | D12: 023-0049840-5 | E12: 200011101178533 | F12: Conserje | G12: Area SPM | H12: Clinica Angelina | I12: 5,000.00 | J12: 0.00 | K12: 0.00 | M12: 0.00 | N12: 5,000.00 | O12: 2007-01-02
A13: =A12+1 -> 3 | B13: RUTH PRISCILA | C13: PEREZ | D13: 024-0009931-9 | E13: 200011101179118 | F13: Aux. Farmacia | G13: Area SPM | H13: Clinica Quisqueya | I13: 18,400.00 | J13: =I13*2.87% -> 528.08 | K13: =I13*3.04% -> 559.36 | M13: 0.00 | N13: 17,312.56 | O13: 2007-03-01
A14: 4 | B14: MARCELINO | C14: GUZMAN | D14: 024-0002608-0 | E14: 200011101179079 | F14: Sereno | G14: Area SPM | H14: Clinica El Puerto | I14: 5,000.00 | J14: 143.50 | K14: 152.00 | N14: 4,704.50 | O14: 2007-06-25
A15: 5 | B15: ANA MERCEDES | C15: DE LA CRUZ | D15: 023-0072812-4 | E15: 200011101178630 | F15: Conserje | G15: Area SPM | H15: Clinica Barrio Blanco | I15: 5,000.00 | J15: 143.50 | K15: 152.00 | N15: 4,704.50 | O15: 2007-06-01
A16: 6 | B16: FRANCISCA | C16: POMUCENO SORIANO | D16: 024-0004970-2 | E16: 200011101179095 | F16: Conserje | G16: Area SPM | H16: Clinica Guayabal | I16: 5,000.00 | J16: =I16*2.87% -> 143.50 | K16: =I16*3.04% -> 152.00 | N16: 4,704.50 | O16: 2007-07-02
A17: 7 | B17: SIMONA | C17: PEGUERO HERNANDEZ | D17: 024-0012760-7 | E17: 200011101179134 | F17: Conserje | G17: Area SPM | H17: Clinica Honduras | I17: 5,000.00 | J17: 143.50 | K17: 152.00 | N17: 4,704.50 | O17: 2007-07-02
A18: 8 | B18: LEONEL | C18: DE LA CRUZ HERNANDEZ | D18: 024-0013605-3 | E18: 200011101179150 | F18: Sereno | G18: Area SPM | H18: Clinica Honduras | I18: 5,000.00 | J18: 143.50 | K18: 152.00 | N18: 4,704.50 | O18: 2007-07-02
A19: 9 | B19: JUAN JOSE | C19: JUAN JEAN | D19: 023-0137052-0 | E19: 200011101179053 | F19: Sereno | G19: Area SPM | H19: Unap Batey Esperanza | I19: 5,000.00 | J19: 143.50 | K19: 152.00 | N19: 4,704.50 | O19: 2007-07-18
A20: 10 | B20: RAMON A. | C20: PEGUERO AQUINO | D20: 023-0057845-3 | E20: 200011101178591 | F20: Sereno | G20: Area SPM | H20: Unap Angelina | I20: 5,000.00 | J20: 143.50 | K20: 152.00 | N20: 4,704.50 | O20: 2007-07-23
A21: 11 | B21: MARIA DEL C. | C21: LARA MENDEZ | D21: 023-0064326-5 | E21: 200011101180686 | F21: Atencion al Usuario | G21: Area SPM | H21: Clinica Porvenir | I21: 7,000.00 | J21: 200.90 | K21: 212.80 | N21: 6,586.30 | O21: 2007-08-01
A22: 12 | B22: ALEX | C22: ROMBLEY | D22: 023-0126548-0 | E22: 200011101180709 | F22: Sereno | G22: Area SPM | H22: Clinica Porvenir | I22: 8,318.04 | J22: =I22*2.87% -> 238.73 | K22: =I22*3.04% -> 252.87 | N22: 7,826.44 | O22: 2007-09-13
A23: =A22+1 -> 13 | B23: REYNA ISABEL | C23: MORLA DE A. | D23: 023-0066599-5 | E23: 200011101253636 | F23: Bioanalista | G23: Area SPM | H23: Clinica Barrio Lindo | I23: 18,312.00 | J23: =I23*2.87% -> 525.55 | K23: =I23*3.04% -> 556.68 | L23: 0.00 | M23: 0.00 | N23: 17,229.76 | O23: 2008-09-11
A24: 14 | B24: EVA | C24: MATEO FERRERAS | D24: 023-0011428-3 | E24: 200012700173856 | F24: Medico General | G24: Area SPM | H24: UNAP Uasd | I24: 28,657.01 | J24: 822.46 | K24: 871.17 | M24: 0.00 | N24: 26,963.38 | O24: 2007-08-08
A25: 15 | B25: JOSE | C25: CALAZAN CALMONA | D25: 027-0013504-5 | E25: 200011101209570 | F25: Sereno | G25: Area SPM | H25: UNAP las colinas | I25: 5,000.00 | J25: 143.50 | K25: 152.00 | N25: 4,704.50 | O25: 2008-02-21
A26: 16 | B26: BEATRIZ ALT. | C26: SEVERINO | D26: 023-0084459-0 | E26: 200011101224225 | F26: Odontologa | G26: Area SPM | H26: UNAP Barrio Blanco | I26: 24,000.00 | J26: =I26*2.87% -> 688.80 | K26: =I26*3.04% -> 729.60 | M26: 0.00 | N26: 22,581.60 | O26: 2008-03-17
A27: 17 | B27: CARIDAD TODMAN | C27: DE LOS SANTOS | D27: 023-0041126-7 | E27: 200011101224209 | F27: Enfermera Aux. | G27: Area SPM | H27: unap Monte coca | I27: 11,596.60 | J27: =I27*2.87% -> 332.82 | K27: =I27*3.04% -> 352.54 | M27: 0.00 | N27: 10,911.24 | O27: 2008-04-01
A28: 18 | B28: PEDRO | C28: ZORRILLA | D28: 023-0017693-6 | E28: 200011101231865 | F28: Sereno Clinica | G28: Area SPM | H28: UNAP Barrio Blanco | I28: 5,000.00 | J28: =I28*2.87% -> 143.50 | K28: =I28*3.04% -> 152.00 | N28: 4,704.50 | O28: 2008-04-30
A29: 19 | B29: FRANCISCO A | C29: CASTRO R. | D29: 023-0005830-8 | E29: 200011101245945 | F29: Auxiliar de almacen | G29: Area SPM | H29: Almacen Regional | I29: 9,600.00 | J29: =I29*2.87% -> 275.52 | K29: =I29*3.04% -> 291.84 | N29: 9,032.64 | O29: 2008-08-01
A30: 20 | B30: ODILE A. | C30: MILIAN MCCABE | D30: 023-0025423-8 | E30: 200011101253597 | F30: Aux. de Bioanalisis | G30: Area SPM | H30: Unap porvenir | I30: 22,000.00 | J30: =I30*2.87% -> 631.40 | K30: =I30*3.04% -> 668.80 | M30: 3,024.90 | N30: 17,674.90 | O30: 2008-09-01
A31: 21 | B31: JUANA | C31: MORLA POLANCO | D31: 026-0113870-0 | E31: 200011101253733 | F31: Conseje | G31: Area SPM | H31: UNAP Batey Jagual | I31: 5,000.00 | J31: 143.50 | K31: 152.00 | N31: 4,704.50 | O31: 2008-09-01
A32: 22 | B32: ANA JULIA | C32: MENDEZ BRITO | D32: 011-0000744-0 | E32: 200011101253568 | F32: Aux. Enfermera | G32: Area SPM | H32: Unap Evangelina Rodriguez | I32: 13,000.00 | J32: =I32*2.87% -> 373.10 | K32: =I32*3.04% -> 395.20 | L32: 0.00 | M32: 0.00 | N32: 12,231.70 | O32: 2008-10-08
A33: 23 | B33: YVELISSE E. | C33: ASTACIO PEÑA | D33: 023-0003063-8 | E33: 200011101278064 | F33: Conserje | G33: SRS ESTE | H33: Oficina Regional | I33: 8,050.00 | J33: =I33*2.87% -> 231.04 | K33: =I33*3.04% -> 244.72 | L33: 0.00 | M33: 1,512.45 | N33: 6,061.80 | O33: 2009-01-19
A34: 24 | B34: EPIFANIO | C34: CALDERON | D34: 023-0058958-3 | E34: 200011101272633 | F34: Sereno | G34: Area SPM | H34: Clinica Santa fe | I34: 5,000.00 | J34: 143.50 | K34: 152.00 | N34: 4,704.50 | O34: 2009-02-01
A35: 25 | B35: FRANCISCO DE J. | C35: MATICH CASTRO | D35: 023-0028027-4 | E35: 200011101272688 | F35: Auxiliar de almacen | G35: SRS ESTE | H35: Almacen Regional | I35: 9,600.00 | J35: =I35*2.87% -> 275.52 | K35: =I35*3.04% -> 291.84 | N35: 9,032.64 | O35: 2009-02-01
A36: 26 | B36: YERNIS NOEMIS | C36: POCHE F. | D36: 024-0022376-0 | E36: 200011101294556 | F36: Secretaria | G36: Area SPM | H36: clinica Quisqueya | I36: 8,000.00 | J36: 229.60 | K36: 243.20 | N36: 7,527.20 | O36: 2009-08-03
A37: 27 | B37: JOAQUIN | C37: EUSEBIO | D37: 024-0013633-5 | E37: 200011101310155 | F37: Sereno | G37: Area SPM | H37: Clinica Cayacoa | I37: 5,000.00 | J37: 143.50 | K37: 152.00 | N37: 4,704.50 | O37: 2009-12-01
A38: 28 | B38: ROSA SANCHEZ | C38: CABRERA | D38: 023-0109901-2 | E38: 200011101318759 | F38: Conserje | G38: Area SPM | H38: Clinica Porvenir | I38: 8,000.00 | J38: 229.60 | K38: 243.20 | N38: 7,527.20 | O38: 2010-02-01
A39: 29 | B39: BIENVENIDO | C39: BUSTAMANTE GUZMAN | D39: 023-0074695-1 | E39: 200011101358201 | F39: Soporte tecnico | G39: SRS ESTE | H39: Dpto. Publicidad | I39: 6,000.00 | J39: 172.20 | K39: 182.40 | M39: 0.00 | N39: 5,645.40 | O39: 2010-09-01
A40: 30 | B40: VICTOR | C40: NATERA | D40: 024-0006526-0 | E40: 200011101393460 | F40: Sereno | G40: Area SPM | H40: Unap Quisquella | I40: 5,000.00 | J40: 143.50 | K40: 152.00 | N40: 4,704.50 | O40: 2011-03-01
A41: 31 | B41: ESTHER | C41: HINOJOSA | D41: 025-0009474-9 | E41: 200011101419959 | F41: Laboratorio | G41: Area SPM | H41: Unap Povenir | I41: 13,312.00 | J41: 382.05 | K41: 404.68 | N41: 12,525.26 | O41: 2012-10-05
A42: 32 | B42: ANA LUISA | C42: JEAN JOSEPH | D42: 027-0039773-6 | E42: 200011101479562 | F42: Conserje | G42: Area SPM | H42: unap Monte coca | I42: 5,000.00 | J42: 143.50 | K42: 152.00 | N42: 4,704.50 | O42: 2012-04-01
A43: 33 | B43: FROILAN | C43: VALDEZ LORENZO | D43: 011-0028087-2 | E43: 200011101571020 | F43: Sonografista | G43: Area SPM | H43: Centro de Diagnostico | I43: 30,000.00 | J43: 861.00 | K43: 912.00 | N43: 28,227.00 | O43: 2013-01-02
A44: 34 | B44: CARY ROSEMARY | C44: SANTANA JABALERA | D44: 023-0117440-1 | E44: 200011101632914 | F44: Enfermera | G44: Area SPM | H44: unap San Martin de Pobre | I44: 8,000.00 | J44: 229.60 | K44: 243.20 | N44: 7,527.20 | O44: 2015-04-01
A45: 35 | B45: NICOLAS | C45: DIAZ VALENZUELA | D45: 023-0103775-6 | E45: 200011101711644 | F45: Sereno | G45: Area SPM | H45: Unap barrio lindo | I45: 6,000.00 | J45: 172.20 | K45: 182.40 | N45: 5,645.40 | O45: 2014-01-01
A46: 36 | B46: MARIA ALT. | C46: POLANCO | D46: 024-0011102-3 | E46: 200011101711592 | F46: Conserje | G46: Area SPM | H46: Unap Quisqueya | I46: 5,000.00 | J46: 143.50 | K46: 152.00 | N46: 4,704.50 | O46: 2014-09-01
A47: 37 | B47: YUDELKIS | C47: FLEMING HODGE | D47: 023-0092307-1 | E47: 200011101711903 | F47: Conserje | G47: Area SPM | H47: unap cachena | I47: 5,000.00 | J47: 143.50 | K47: 152.00 | N47: 4,704.50 | O47: 2014-11-01
A48: 38 | B48: LICETTE | C48: JIMENEZ GARCIA | D48: 023-0020559-4 | E48: 200011101711628 | F48: Conserje | G48: Area SPM | H48: Unap San Martin de Porre | I48: 5,000.00 | J48: 143.50 | K48: 152.00 | N48: 4,704.50 | O48: 2015-05-01
A49: 39 | B49: BASILIA E. | C49: JOSE CIRIACO | D49: 023-0040467-6 | E49: 200011101711796 | F49: Conserje | G49: Area SPM | H49: Unap cachena | I49: 5,000.00 | J49: 143.50 | K49: 152.00 | N49: 4,704.50 | O49: 2015-06-01
A50: 40 | B50: BASILIO | C50: CALDERON MEDINA | D50: 027-0018363-1 | E50: 200011101711631 | F50: Sereno | G50: Area SPM | H50: Unap camara Junior | I50: 5,000.00 | J50: 143.50 | K50: 152.00 | N50: 4,704.50 | O50: 2016-02-02
A51: 41 | B51: NELCIDA YOLADIS | C51: LINARES | D51: 023-0153307-7 | E51: 200011101711851 | F51: Enfermera | G51: Area SPM | H51: Unap brisal | I51: 8,000.00 | J51: 229.60 | K51: 243.20 | N51: 7,527.20 | O51: 2016-01-01
A52: 42 | B52: MARIA | C52: NIEVES MARTE | D52: 023-0084538-1 | E52: 200011101711848 | F52: Conserje | G52: Area SPM | H52: Unap Juan Dolio | I52: 5,000.00 | J52: 143.50 | K52: 152.00 | N52: 4,704.50 | O52: 2014-04-01
A53: 43 | B53: MERCEDES | C53: DANIEL DELGADO | D53: 024-0013600-4 | E53: 200-01-110-173833-9 | F53: Conserje | G53: Area SPM | H53: Unap Hondura | I53: 5,000.00 | J53: =I53*2.87% -> 143.50 | K53: =I53*3.04% -> 152.00 | M53: 0.00 | N53: 4,704.50 | O53: 2014-06-01
A54: 44 | B54: DARIO FRANCISCO | C54: PIE BLAKE | D54: 023-0128257-6 | E54: 200-01-110-176947-6 | F54: Sereno | G54: Area SPM | H54: Unap consuelito | I54: 5,000.00 | J54: 143.50 | K54: 152.00 | N54: 4,704.50 | O54: 2016-07-01
A55: 45 | B55: ALTAGRACIA MEDISA | C55: SEGUIILIS | D55: 023-0077279-1 | E55: 200-01-110-176946-3 | F55: Conserje | G55: Area SPM | H55: Unap consuelito | I55: 5,000.00 | J55: 143.50 | K55: 152.00 | N55: 4,704.50 | O55: 2016-07-01
A56: 46 | B56: ROSMERY | C56: SERRA HERNANDEZ | D56: 023-0138681-5 | E56: 200-01-110-176948-9 | F56: Conserje | G56: Area SPM | H56: Unap Bo. Mexico | I56: 5,000.00 | J56: 143.50 | K56: 152.00 | N56: 4,704.50 | O56: 2017-01-01
A57: 47 | B57: DIONICIO MADRIGAL | C57: GARCIA | D57: 023-0065771-1 | E57: 200-01-960048618-2 | F57: Sereno | G57: Area SPM | H57: UNAP punta de garza | I57: 5,000.00 | J57: 143.50 | K57: 152.00 | N57: 4,704.50 | O57: 2017-07-01
A58: 48 | B58: HECTOR MIGUEL | C58: A.MEDRANO | D58: 023-0012798-8 | E58: 200-01-960-087688-8 | F58: Seguridad | G58: Area SPM | H58: unap Evan Rodriguez | I58: 6,000.00 | J58: 172.20 | K58: 182.40 | N58: 5,645.40 | O58: 2018-04-01
A59: 49 | B59: ESTALIN MARIA | C59: I.MORALES | D59: 024-0026614-0 | E59: 200-01-960-087688-9 | F59: Promotora | G59: Area SPM | H59: unap el puerto | I59: 5,000.00 | J59: 143.50 | K59: 152.00 | N59: 4,704.50 | O59: 2018-04-01
A60: 50 | B60: RAY LUIS | C60: JUSTO | D60: 402-2391439-7 | E60: 200-01-9603556921 | F60: Bionalista | G60: Area SPM | H60: Hosp. Alejo Martinez | I60: 24,000.00 | J60: 688.80 | K60: 729.60 | M60: 1,512.45 | N60: 21,069.15 | O60: 2018-04-01
A61: =A60+1 -> 51 | B61: MARLENYS RAMONA | C61: QUEVEDO ENCARNACION | D61: 011-347480-3 | E61: 200-01-9601807866 | F61: Medico Asistente | G61: Area SPM | H61: UNAP Don Juan | I61: 30,000.00 | J61: 861.00 | K61: 912.00 | N61: 28,227.00 | O61: 2018-05-19
A62: 52 | B62: LICITANIA | C62: MADRIGAL TEJEDA | D62: 024-0016779-3 | E62: 200-01-9601807868 | F62: Conserje | G62: Area SPM | H62: UNAP Quisqueya | I62: 5,000.00 | J62: =I62*2.87% -> 143.50 | K62: =I62*3.04% -> 152.00 | N62: 4,704.50 | O62: 2018-07-01
A63: 53 | B63: VICTOR MANUEL | C63: POLANCO | D63: 023-0022044-5 | E63: 200-01-1101346666 | F63: Medico Asistente | G63: Area SPM | H63: BO.BLANCO | I63: 30,000.00 | J63: 861.00 | K63: 912.00 | N63: 28,227.00 | O63: 2019-04-01
A64: 54 | B64: OSCAR ANDRES | C64: ENCARNACION MORALES | D64: 402-4204417-6 | E64: 200-01-9603057742 | F64: Digitador | G64: Area SPM | H64: Centro de Diagnostico | I64: 8,000.00 | J64: =I64*2.87% -> 229.60 | K64: =I64*3.04% -> 243.20 | N64: 7,527.20
A65: 55 | B65: RAMON | C65: GIL | D65: 023-0007034-5 | E65: 200-01-9603057696 | F65: Licencia a sereno | G65: Area SPM | H65: Oficina de area | I65: 5,000.00 | J65: =I65*2.87% -> 143.50 | K65: =I65*3.04% -> 152.00 | N65: 4,704.50 | O65: 2019-04-01
A66: 56 | B66: JACINTO | C66: ORTEGA | D66: 023-0032092-2 | E66: 200-01-9603057701 | F66: Sereno | G66: Area SPM | H66: Uunap cumayasa | I66: 6,500.00 | J66: =I66*2.87% -> 186.55 | K66: =I66*3.04% -> 197.60 | N66: 6,115.85 | O66: 2019-08-31
A67: 57 | B67: YENI ALT. | C67: GUERRERO MENDEZ | D67: 023-0117014-4 | E67: 200-01-9603057694 | F67: Conserje | G67: Area SPM | H67: Unap aleman | I67: 4,000.00 | N67: 4,000.00 | O67: 2019-10-01
A68: 58 | B68: FLOR MARIA | C68: SALICHE | D68: 023-0015353-9 | E68: 200-01-9603057693 | F68: Conserje | G68: Area SPM | H68: Centro de Diagnostico | I68: 5,000.00 | J68: =I68*2.87% -> 143.50 | K68: =I68*3.04% -> 152.00 | L68: 0.00 | N68: 4,704.50 | O68: 2020-01-02
A69: 59 | B69: JEANINA | C69: CASTILLO MUÑOZ | D69: 023-0135235-3 | E69: 200-01-9603057692 | F69: Conserje | G69: Area SPM | H69: Unap barrio Lindo SPM | I69: 8,000.00 | J69: 229.60 | K69: 243.20 | N69: 7,527.20 | O69: 2020-01-04
A70: 60 | B70: MASILLON | C70: BENJAMIN | D70: 030-0001180-3 | E70: 200-01-9603140108 | F70: Sereno | G70: SRS ESTE | H70: Unap Margarita | I70: 5,000.00 | J70: 143.50 | K70: 152.00 | N70: 4,704.50 | O70: 13/10/2020
A71: 61 | B71: EUNICE ELAYNE | C71: DE LA CRUZ CASTRO | D71: 4022056974-9 | E71: 200-01-9603202129 | F71: Aux. de farmacia | G71: Area SPM | H71: Unap pedro justo carrion | I71: 12,000.00 | J71: 344.40 | K71: 364.80 | N71: 11,290.80 | O71: 2020-11-01
A72: 62 | B72: SANTA | C72: MEDINA | D72: 023-0164982-4 | E72: 200-01-960-3396546 | F72: Conserje | G72: Area SPM | H72: UNAP punta pescadora | I72: 5,000.00 | J72: 143.50 | K72: 152.00 | N72: 4,704.50 | O72: 2/Enero/2021
A73: 63 | B73: PORFIRIO | C73: ZORRILLA | D73: 024-0010756-7 | E73: 200-01-9603356888 | F73: Sereno | G73: SRS-ESTE | H73: Oficina Regional | I73: 10,000.00 | J73: 287.00 | K73: 304.00 | N73: 9,409.00 | O73: 2/Enero/2021
A74: 64 | B74: ANA | C74: SOLANO | D74: 402-2667422-0 | E74: 200-01-9603403020 | F74: Conserje | G74: Area SPM | H74: Unap punta pescadora | I74: 5,000.00 | J74: 143.50 | K74: 152.00 | N74: 4,704.50 | O74: 2/Enero/2021
A75: 65 | B75: ANGELA | C75: DELONEY RINCON | D75: 023-0050103-4 | E75: 200-01-9603551741 | F75: Conserje | G75: Area SPM | H75: Unap Angelina | I75: 5,000.00 | J75: 143.50 | K75: 152.00 | N75: =I75-J75-K75-M75 -> 4,704.50 | O75: 2021-01-04
A76: 66 | B76: ROLANDO GREGORIO | C76: PASCUAL | D76: 027-0034973-7 | E76: 200-01-9603648040 | F76: Sereno | G76: Area SPM | H76: unap Monte coca | I76: 5,000.00 | J76: 143.50 | K76: 152.00 | N76: 4,704.50 | O76: 2021-01-04
A77: =A76+1 -> 67 | B77: GUILLERMO | C77: BAUTISTA RAMIREZ | D77: 008-0024361-0 | E77: 200-01-9603798315 | F77: Sereno | G77: Area SPM | H77: unap alejandro bass | I77: 5,000.00 | J77: 143.50 | K77: 152.00 | N77: 4,704.50 | O77: 2021-01-05
A78: 68 | B78: SADRACK YRBIN | C78: GUILLEN | D78: 023-0116102-8 | E78: 200-01-9603798311 | F78: Sereno | G78: Area SPM | H78: Placer Bonito | I78: 5,000.00 | J78: 143.50 | K78: 152.00 | N78: 4,704.50 | O78: 2021-01-05
A79: 69 | B79: EMELY PATRICIA | C79: RODRIGUEZ ORTEGA | D79: 402-1141418-6 | E79: 200-01-9603808655 | F79: Asistente de informacion | G79: Area SPM | H79: Gerencia de area | I79: 8,000.00 | J79: 229.60 | K79: 243.20 | N79: 7,527.20 | O79: 2021-01-06
A80: 70 | B80: MANUEL | C80: LOPEZ GONZALEZ | D80: 001-1032723-6 | E80: 200-01-9603964966 | F80: Sereno | G80: Area SPM | H80: Unap Gautier | I80: 7,000.00 | J80: 200.90 | K80: 212.80 | N80: 6,586.30 | O80: 2021-01-06
A81: 71 | B81: ROBERTO ANTONIO | C81: DE LA CRUZ | D81: 023-0004082-7 | E81: 200-01-9604126996 | F81: Chofer | G81: SRS-ESTE | H81: Dpto. de Odontologia | I81: 18,000.00 | J81: 516.60 | K81: 547.20 | N81: 16,936.20 | O81: 2021-10-01
A82: 72 | B82: DOROTEO | C82: DE LA CRUZ CARRASCO | D82: 049-0042143-1 | E82: 200-01-9604126997 | F82: Seguridad | G82: Area SPM | H82: Placer Bonito | I82: 7,000.00 | J82: 200.90 | K82: 212.80 | N82: 6,586.30 | O82: 2021-10-01
A83: 73 | B83: MANOLO | C83: MARTINEZ | D83: 001-1040251-8 | E83: 200-01-9604266453 | F83: Seguridad | G83: Area SPM | H83: Unap Villa Faro | I83: 5,000.00 | J83: 143.50 | K83: 152.00 | N83: 4,704.50 | O83: 2021-09-01
A84: 74 | B84: JOSE ANIIBAL | C84: FRANCISCO DANIEL | D84: 024-0027728-7 | E84: 200-01-9604334570 | F84: Seguridad | G84: Area SPM | H84: Unap Paloma | I84: 5,000.00 | J84: 143.50 | K84: 152.00 | N84: 4,704.50 | O84: 2021-12-01
A85: 75 | B85: MIGUEL | C85: NUÑEZ MAZARA | D85: 025-0001585-0 | E85: 200-01-9604334568 | F85: Seguridad | G85: SRS-ESTE | H85: Oficina Regional | I85: 7,000.00 | J85: 200.90 | K85: 212.80 | N85: 6,586.30 | O85: 2021-12-01
A86: 76 | B86: JESUS MANUEL | C86: GARCIA | D86: 402-2376092-3 | E86: 200-01-120225003-6 | F86: Seguridad | G86: SRS-ESTE | H86: Almacen Regional | I86: 5,000.00 | J86: 143.50 | K86: 152.00 | N86: 4,704.50 | O86: 2016-07-01
A87: 77 | B87: HIPOLITO | C87: TOLENTINO | D87: 023-0084491-3 | E87: 960-455925-7 | F87: Seguridad | G87: Area SPM | H87: Unap Villa Faro | I87: 5,000.00 | J87: 143.50 | K87: 152.00 | N87: 4,704.50 | O87: 2022-02-08
A88: 78 | B88: STARLYN | C88: ALCANTARA | D88: 023-0166567-1 | E88: 960-514422-6 | F88: Seguridad | G88: Area SPM | H88: Unap el Brisal | I88: 5,000.00 | J88: 143.50 | K88: 152.00 | N88: 4,704.50 | O88: 2022-09-01
A89: 79 | B89: YAQUELIN AUDILIA | C89: RICHARSON PEÑA | D89: 030-0003307-0 | E89: 960-525593-0 | F89: Conserje | G89: Area SPM | H89: Unap Batey soco | I89: 5,000.00 | J89: 143.50 | K89: 152.00 | N89: 4,704.50 | O89: 2022-10-01
A90: 80 | B90: MANUEL DE JESUS | C90: LORA | D90: 023-0020611-3 | E90: 960-532825-5 | F90: Seguridad | G90: SRS-ESTE | H90: Oficina Regional | I90: 7,000.00 | J90: 200.90 | K90: 212.80 | N90: 6,586.30 | O90: 2022-11-01
A91: 81 | B91: DIGNA | C91: ROSARIO JAVIER | D91: 023-0143527-3 | E91: 960540890-2 | F91: Conserje | G91: Area SPM | H91: UNAP Santa Fe | I91: 5,000.00 | J91: 143.50 | K91: 152.00 | N91: 4,704.50 | O91: 2022-12-01
A92: 82 | B92: AIDA | C92: PEREZ NATERA | D92: 011-714807-2 | E92: 960-506293-3 | F92: Conserje | G92: Area SPM | H92: Unap las Goutier | I92: 5,000.00 | J92: 143.50 | K92: 152.00 | N92: 4,704.50 | O92: 2023-03-01
A93: 83 | B93: ESTEBANIA | C93: MELLA WILLIAMS | D93: 402-2020200-2 | E93: 9605815583 | F93: Conserje | G93: Area SPM | H93: CPN IDSS Consuelo | I93: 5,000.00 | J93: 143.50 | K93: 152.00 | N93: =I93-J93-K93-M93 -> 4,704.50 | O93: 2023-04-01
A94: 84 | B94: FREDDY | C94: FELICIANO | D94: 027-0022474-0 | E94: 9606189132 | F94: Sereno | G94: Area SPM | H94: CPN el Brisal | I94: 5,000.00 | J94: 143.50 | K94: 152.00 | N94: 4,704.50 | O94: 2023-05-01
A95: 85 | B95: ROSA | C95: HERNANDEZ | D95: 023-01286841 | E95: 9606377959 | F95: Conserje | G95: Area SPM | H95: CPN Esperanza | I95: 5,000.00 | J95: 143.50 | K95: 152.00 | N95: 4,704.50 | O95: 1//10/2023
A96: =A95+1 -> 86 | B96: Darlenys Maria | C96: Santana Jimenez | D96: 402-1112745-7 | F96: Conserje | G96: Area SPM | H96: Unap Santa clara de Asis | I96: 6,000.00 | J96: 172.20 | K96: 182.40 | N96: 5,645.40 | O96: 2023-03-19
A97: =A96+1 -> 87 | B97: ANGELA ALTAGRACIA | C97: VALENZUELA DE ACOSTA | D97: 017-0019300-4 | F97: CONSERJE | G97: Area SPM | H97: CPN EL BUEN PASTOR | I97: 5,000.00 | J97: 143.50 | K97: 152.00 | N97: 4,704.50 | O97: 2024-07-05
A98: 88 | B98: PASCUALA ESTEBANIA | C98: MARCHENA SABINO | D98: 023-0030748-1 | F98: CONSERJE | G98: Area SPM | H98: LAS PIEDRAS (CONANI) | I98: 5,000.00 | J98: 143.50 | K98: 152.00 | N98: 4,704.50 | O98: 2024-07-05
A99: 89 | B99: WILFIDA YOLENNY | C99: ROSADO CALDERON | D99: 402-2489583-5 | F99: CONSERJE | G99: Area SPM | H99: UNAP JAPON | I99: 5,000.00 | J99: 143.50 | K99: 152.00 | N99: 4,704.50 | O99: 2024-07-05
A100: 90 | B100: MARITZA | C100: GONZALEZ FRIAS | D100: 023-0091971-5 | F100: CONSERJE | G100: Area SPM | H100: UNAL VILLA FARO | I100: 5,000.00 | J100: 143.50 | K100: 152.00 | N100: 4,704.50 | O100: 2024-07-05
B101: Total de empleados contratado | I101: =SUM(I11:I100) -> 729,345.65 | J101: =SUM(J11:J100) -> 20,673.92 | K101: =SUM(K11:K100) -> 21,898.51 | L101: =SUM(L11:L92) -> 0.00 | M101: =SUM(M11:M92) -> 6,049.80 | N101: =SUM(N11:N100) -> 680,723.42
D104: LIC. YUDELKY JABALERA | I104: DR. RICARDO JULIO ROMERO
C105: ADMINISTRADORA | I105: DIRECTOR
B113: REGION V
B114: SAN PEDRO DE MACORIS, REPUBLICA DOMINICANA
B115: RNC 430041793
B116: NOMINA CORRESPONDIENTE AL 30 DE JUNIO AÑO 2024
B117: AREA DE HATO MAYOR
B118: NOMBRE | C118: APELLIDO | D118: CEDULA | E118: No. CUENTA | F118: CARGO | G118: DEPARTAMENTO | H118: LUGAR PRESTA SERVICIOS | I118: SUELDO BRUTO | J118: S/S | K118: SFS | L118: ISR | M118: D/A | N118: SUELDO NETO | O118: FECHA
A119: 1 | B119: CARMEN I. | C119: SANTANA P. | D119: 027-0005223-2 | E119: 200011120165796 | F119: Aux. de enfermeria | G119: Area Hato Mayor | H119: Clinica Morquecho | I119: 11,786.00 | J119: =I119*2.87% -> 338.26 | K119: =I119*3.04% -> 358.29 | M119: 0.00 | N119: =I119-J119-K119-M119 -> 11,089.45 | O119: 2006-09-11
A120: =A119+1 -> 2 | B120: SULINDA | C120: MOTA DE SALAS | D120: 100-0007282-6 | E120: 200011120165880 | F120: Conserje | G120: Area Hato Mayor | H120: Clinica Yanigua | I120: 5,000.00 | J120: 143.50 | K120: 152.00 | N120: 4,704.50 | O120: 2007-01-02
A121: =A120+1 -> 3 | B121: DOMINGO A. | C121: PEGUERO LUNA | D121: 100-0002222-7 | E121: 200011120165864 | F121: Viglante | G121: Area Hato Mayor | H121: Clinica Yanigua | I121: 5,000.00 | J121: 143.50 | K121: 152.00 | N121: 4,704.50 | O121: 2007-04-02
A122: 4 | B122: MARIA | C122: NOLASCO | D122: 100-0000817-6 | E122: 200011120166148 | F122: Conserje | G122: Area Hato Mayor | H122: Clinica El valle | I122: 7,000.00 | J122: 143.50 | K122: 152.00 | N122: 6,704.50 | O122: 2007-02-01
A123: 5 | B123: NIURKA A. | C123: AQUINO JAVIER | D123: 100-0000180-9 | E123: 200011120165848 | F123: Tecnica Farmacia | G123: Area Hato Mayor | H123: Hospital el Valle | I123: 11,786.00 | J123: =I123*2.87% -> 338.26 | K123: =I123*3.04% -> 358.29 | M123: 0.00 | N123: =I123-J123-K123-M123 -> 11,089.45 | O123: 2007-08-01
A124: 6 | B124: ZENOVIA | C124: TRINIDAD MARTINEZ | D124: 023-0002962-2 | E124: 200011120165738 | F124: Conserje | G124: Area Hato Mayor | H124: Villa Navarro | I124: 5,000.00 | J124: 143.50 | K124: 152.00 | N124: 4,704.50 | O124: 2007-08-08
A125: 7 | B125: MIGUEL ISABEL | C125: VASQUEZ | D125: 027-0003867-8 | E125: 200011120143844 | F125: Chofer | G125: Area Hato Mayor | H125: Oficina area | I125: 8,000.00 | J125: 229.60 | K125: 243.20 | N125: 7,527.20 | O125: 2010-02-01
A126: 8 | B126: FELIX | C126: CANARIO | D126: 027-0003530-2 | E126: 200011101393509 | F126: Sereno | G126: Area Hato Mayor | H126: Unap Ondina | I126: 5,000.00 | J126: =I126*2.87% -> 143.50 | K126: =I126*3.04% -> 152.00 | N126: =I126-J126-K126 -> 4,704.50 | O126: 2011-03-01
A127: 9 | B127: ELSA AURORA | C127: ZORRILLA | D127: 027-0028845-5 | E127: 200011101479559 | F127: Conserje | G127: Area Hato Mayor | H127: UNAP Punta de Garza | I127: 5,000.00 | J127: 143.50 | K127: 152.00 | N127: 4,704.50 | O127: 2012-06-01
A128: 10 | B128: CARMEN | C128: DE LA CRUZ TORREZ | D128: 027-0002151-8 | E128: 200011101479546 | F128: Conserje | G128: Area Hato Mayor | H128: Unap La China | I128: 5,000.00 | J128: 143.50 | K128: 152.00 | N128: 4,704.50 | O128: 2012-11-01
A129: 11 | B129: YAQUELIN | C129: CASTILLO MONEGRO | D129: 027-0039926-0 | E129: 200011120292627 | F129: Conserje | G129: Area Hato Mayor | H129: Unap la Javilla | I129: 5,000.00 | J129: 143.50 | K129: 152.00 | N129: 4,704.50 | O129: 2014-07-01
A130: 12 | B130: YARELIS | C130: GOMEZ REYES | D130: 027-0042030-6 | E130: 200011120292588 | F130: Conserje | G130: Area Hato Mayor | H130: Unap la plaza | I130: 5,000.00 | J130: 143.50 | K130: 152.00 | N130: 4,704.50 | O130: 2014-10-01
A131: 13 | B131: RUDELANIA | C131: OVALLE VEGA | D131: 023-0110894-6 | E131: 200011120292601 | F131: Medico asistente | G131: Area Hato Mayor | H131: Unap la plaza | I131: 20,000.00 | J131: 574.00 | K131: 608.00 | N131: 18,818.00 | O131: 2014-10-01
A132: 14 | B132: CLAUDIA M. | C132: RINCON COLIN | D132: 027-0046976-6 | E132: 200011120292591 | F132: Enfermera | G132: Area Hato Mayor | H132: Unap la plaza | I132: 7,000.00 | J132: 200.90 | K132: 212.80 | N132: 6,586.30 | O132: 2014-10-01
A133: 15 | B133: RAFAEL | C133: GONZALEZ | D133: 027-0024756-8 | E133: 200011101717211 | F133: Sereno | G133: Area Hato Mayor | H133: Unap km 15 Hato Mayor | I133: 5,000.00 | J133: 143.50 | K133: 152.00 | N133: 4,704.50 | O133: 2015-08-01
A134: 16 | B134: CARINYS MARIEL | C134: LOPEZ | D134: 402-2032423-6 | E134: 200-01-960048617-1 | F134: Promotora de salud | G134: Area Hato Mayor | H134: Oficina area | I134: 6,900.00 | J134: =I134*2.87% -> 198.03 | K134: =I134*3.04% -> 209.76 | M134: 0.00 | N134: =I134-J134-K134-M134 -> 6,492.21 | O134: 2017-10-01
A135: 17 | B135: YOHARKY | C135: LORENZO ABREU | D135: 025-0037069-3 | E135: 200-01-960-087689-0 | F135: Aux. de enfermeria | G135: Area Hato Mayor | I135: 9,000.00 | J135: 258.30 | K135: 273.60 | N135: =I135-J135-K135 -> 8,468.10 | O135: 2018-05-01
A136: 18 | B136: TAIRA MARIA | C136: GONZALEZ | D136: 100-0004525-1 | E136: 200-01-270-017401-7 | F136: Farmaceutica | G136: Area Hato Mayor | H136: Hospital el valle | I136: 18,400.00 | J136: 528.08 | K136: 559.36 | N136: =I136-J136-K136 -> 17,312.56 | O136: 2018-07-01
A137: 19 | B137: ISRAEL | C137: VASQUEZ ALEXANDER | D137: 138-0007689-8 | E137: 200-01-9603065740 | F137: Sereno | G137: Area Hato Mayor | H137: Gerencia de area | I137: 5,000.00 | J137: 143.50 | K137: 152.00 | N137: =SUM(I137-J137-K137) -> 4,704.50 | O137: 2019-07-01
A138: 20 | B138: GAUDY | C138: CRISOSTOMO | D138: 402-4018039-4 | E138: 200-01-9604269997 | F138: Conjerje | G138: Area Hato Mayor | H138: Unap ondina | I138: 5,000.00 | J138: 143.50 | K138: 152.00 | N138: =SUM(I138-J138-K138) -> 4,704.50 | O138: 2021-10-01
A139: 21 | B139: SAMUEL CRISTINO | C139: SALZAR SOSA | D139: 402-0900247-2 | E139: 200-01-9604395130 | F139: Tecnico | G139: Area Hato Mayor | H139: Gerencia de area | I139: 30,000.00 | J139: 861.00 | K139: 912.00 | M139: 1,512.45 | N139: =SUM(I139-J139-K139-M139) -> 26,714.55 | O139: 2022-01-07
A140: 22 | B140: RICHARD | C140: SANTANA PADILLA | D140: 402-1195588-1 | E140: 200-01-9604716221 | F140: Mensajero | G140: Area Hato Mayor | H140: Gerencia de area | I140: 7,000.00 | J140: 200.90 | K140: 212.80 | N140: =SUM(I140-J140-K140) -> 6,586.30 | O140: 2022-04-01
A141: 23 | B141: REMY RAFAEL | C141: GEROVACIO LOPEZ | D141: 067-0011062-7 | E141: 960-5265770 | F141: Sereno | G141: Area Hato Mayor | H141: Unap cañitas | I141: 5,000.00 | J141: 143.50 | K141: 152.00 | N141: =SUM(I141-J141-K141) -> 4,704.50 | O141: 2022-10-01
A142: 24 | B142: FRANCIASCA | C142: REYES LOPEZ | D142: 027-0017851-6 | E142: 960-5265769 | F142: Conserje | G142: Area Hato Mayor | H142: Unap Morquecho | I142: 5,000.00 | J142: 143.50 | K142: 152.00 | N142: 4,704.50 | O142: 2022-10-01
A143: 25 | B143: MAGALIS | C143: JIMENEZ | D143: 027-0030140-7 | E143: 960-5265764 | F143: Conserje | G143: Area Hato Mayor | H143: Unap jalonga | I143: 5,000.00 | J143: 143.50 | K143: 152.00 | N143: 4,704.50 | O143: 2022-10-01
A144: 26 | B144: DULCE MARIA | C144: DOMINGUEZ PEÑA | D144: 027-0046696-0 | E144: 960-5265766 | F144: Conserje | G144: Area Hato Mayor | H144: Unap Km 15 | I144: 5,000.00 | J144: 143.50 | K144: 152.00 | N144: 4,704.50 | O144: 2022-10-01
A145: 27 | B145: IRMA GRISEL | C145: REYES FELICIANO | D145: 027-0012399-1 | E145: 960-5265765 | F145: Conserje | G145: Area Hato Mayor | H145: Unap la Sierra | I145: 5,000.00 | J145: 143.50 | K145: 152.00 | N145: 4,704.50 | O145: 2022-10-01
A146: 28 | B146: RAFAEL | C146: FLOID POLICIA | D146: 402-1139481-8 | E146: 960-5354300 | F146: Sereno | G146: Area Hato Mayor | H146: Unap jalonga | I146: 5,000.00 | J146: 143.50 | K146: 152.00 | N146: 4,704.50 | O146: 2022-11-01
A147: 29 | B147: JULIO ADRIANO | C147: DIAZ ACOSTA | D147: 067-0013604-4 | E147: 9605408903 | F147: Sereno | G147: Area Hato Mayor | H147: Unap Magua | I147: 5,000.00 | J147: 143.50 | K147: 152.00 | N147: 4,704.50 | O147: 2022-12-01
A148: 30 | B148: JUAN | C148: JAVIER | D148: 027-0015148-9 | E148: 9606157607 | F148: Viglante | G148: Area Hato Mayor | H148: Unap jalonga | I148: 5,000.00 | J148: 143.50 | K148: 152.00 | N148: 4,704.50 | O148: 2023-08-01
A149: 31 | B149: ISMAEL | C149: GARCIA SEVERINO | D149: 402-1030578-1 | E149: 9606781220 | F149: Sereno | G149: Area Hato Mayor | H149: Yerba Buena | I149: 5,000.00 | J149: 143.50 | K149: 152.00 | N149: 4,704.50 | O149: 2024-02-01
B150: TOTAL NOMINA HATO MAYOR | I150: =SUM(I119:I149) -> 236,872.00 | J150: =SUM(J119:J149) -> 6,740.83 | K150: =SUM(K119:K149) -> 7,140.11 | M150: =SUM(M119:M148) -> 1,512.45 | N150: =SUM(N119:N149) -> 221,478.61
C153: LIC. YUDELKY JABALERA | H153: DR. RICARDO JULIO ROMERO
B154: ADMINISTRADORA | H154: DIRECTOR
B164: REGION V
B165: SAN PEDRO DE MACORIS, REPUBLICA DOMINICANA
B166: RNC 430041793
B167: NOMINA CORRESPONDIENTE AL 30 DE JUNIO AÑO 2024
B168: PERSONAL AREA EL SEYBO | J168: S/S | K168: SFS | L168: ISR | M168: D/A
B169: NOMBRE | C169: APELLIDO | D169: CEDULA | E169: No. CUENTA | F169: CARGO | G169: DEPARTAMENTO | H169: LUGAR PRESTA SERVICIOS | I169: SUELDO BRUTO | J169: DEDUCCIONES | N169: SUELDO NETO | O169: FECHA
A170: 1 | B170: ANA MARIA | C170: VASQUEZ SANTANA | D170: 025-0041921-9 | E170: 200011110179067 | F170: Conserje | G170: Area el seibo | H170: Clinica las 500 | I170: 5,000.00 | J170: 143.50 | K170: 152.00 | N170: 4,704.50 | O170: 2007-06-01
A171: =A170+1 -> 2 | B171: OSVALDO ANTONIO | C171: CRUZ | D171: 029-0004372-6 | E171: 200011110179135 | F171: Sereno | G171: Area el seibo | H171: Unap Los Franceses | I171: 5,000.00 | J171: 143.50 | K171: 152.00 | N171: 4,704.50 | O171: 2007-07-09
A172: =A171+1 -> 3 | B172: MAXIMO | C172: DEL ROSARIO SILVESTRE | D172: 025-0027067-9 | E172: 200011101180725 | F172: Sereno | G172: Area el seibo | H172: Unap el guaral | I172: 5,000.00 | J172: 143.50 | K172: 152.00 | N172: 4,704.50 | O172: 2007-09-01
A173: 4 | B173: RAFAELA | C173: DIAZ DIAZ | D173: 025-0033097-8 | E173: 200011101294569 | F173: Conserje | G173: Area el seibo | H173: Clinica el Guaral | I173: 5,000.00 | J173: 143.50 | K173: 152.00 | N173: 4,704.50 | O173: 2009-08-14
A174: 5 | B174: YNIRIO MODESTO | C174: LEONARDO | D174: 025-0034927-5 | E174: 200011101393486 | F174: Sereno | G174: Area el seibo | H174: Unap el cerrito del seibo | I174: 5,000.00 | J174: 143.50 | K174: 152.00 | M174: 0.00 | N174: 4,704.50 | O174: 2011-01-01
A175: 6 | B175: AMPARO | C175: MOJICA | D175: 029-0010041-9 | E175: 200011101393554 | F175: Conserje | G175: Area el seibo | H175: Centro de zona Villa Guerrero | I175: 5,000.00 | J175: 143.50 | K175: 152.00 | N175: 4,704.50 | O175: 2011-01-01
A176: 7 | B176: SONIA ELENA | C176: PAREDES MARTINEZ | D176: 025-0008358-5 | E176: 200011101711741 | F176: Conserje | G176: Area el seibo | H176: Unap las guajabas | I176: 5,000.00 | J176: 143.50 | K176: 152.00 | N176: 4,704.50 | O176: 2016-04-01
A177: 8 | B177: LEONIDAS | C177: MOTA DE LA CRUZ | D177: 027-0034558-6 | E177: 200-01-110-176883-3 | F177: Conserje | G177: Area el seibo | H177: Unap las guajabas | I177: 5,000.00 | J177: =I177*2.87% -> 143.50 | K177: =I177*3.04% -> 152.00 | N177: =I177-J177-K177 -> 4,704.50 | O177: 2016-09-01
A178: 9 | B178: ROSANGELA | C178: SORIANO | D178: 025-0048387-6 | E178: 200-01-960056265-8 | F178: Medico asist. | G178: Area el seibo | H178: Unap los botado | I178: 28,000.00 | J178: 803.60 | K178: 851.20 | N178: =I178-J178-K178 -> 26,345.20 | O178: 2018-02-01
A179: 10 | B179: TATATIANA ROSANA | C179: AQUINO | D179: 402-3486379-9 | E179: 200-01-960-087688-5 | F179: Aux. de Farmacia | G179: Area el seibo | H179: Gerencia de area Seibo | I179: 9,835.00 | J179: 282.26 | K179: 298.98 | N179: =I179-J179-K179 -> 9,253.75 | O179: 2018-04-01
A180: 11 | B180: ANGELINA | C180: PEGUERO | D180: 029-0015408-5 | E180: 200-01-9603069101 | F180: Aux. de limpieza | G180: Area el seibo | H180: Unap la mina | I180: 5,000.00 | J180: 143.50 | K180: 152.00 | N180: =I180-J180-K180 -> 4,704.50 | O180: 2020-01-09
A181: 12 | B181: OSVIANNY | C181: ZORRILLA BERAS | D181: 402-2519711-6 | E181: 200-01-1101711657 | F181: Enc. De soporte tecnico | G181: Area el seibo | H181: Gerencia de area | I181: 30,000.00 | J181: 861.00 | K181: 912.00 | N181: 28,227.00 | O181: 2020-01-11
A182: 13 | B182: DIONILIA | C182: ZORRILLA | D182: 025-0009672-8 | E182: 200-01-9603798317 | F182: Conserje | G182: Area el seibo | H182: Unap Pedro Sanchez | I182: 5,000.00 | J182: 143.50 | K182: 152.00 | N182: 4,704.50 | O182: 2021-01-03
A183: 14 | B183: MILOSY ARACELIS | C183: BAEZ APONTE | D183: 025-0032466-6 | E183: 200-01-9603883495 | F183: Aux. de Enfermeria | G183: Area el seibo | H183: Unap Cañada del Agua | I183: 10,000.00 | J183: 287.00 | K183: 304.00 | N183: 9,409.00 | O183: 2021-01-07
A184: 15 | B184: CARMEN DOLORES | C184: GARCIA | D184: 023-0075496-3 | E184: 200-01-9604074136 | F184: Conserje | G184: Area el seibo | H184: Unap Villa Guerrero | I184: 5,000.00 | J184: 143.50 | K184: 152.00 | N184: 4,704.50 | O184: 2021-09-01
A185: 16 | B185: CANDIDA | C185: DE LA CRUZ | D185: 065-0019411-0 | E185: 200-01-9604074312 | F185: Conserje | G185: Area el seibo | H185: Unap Los Franceses | I185: 5,000.00 | J185: 143.50 | K185: 152.00 | N185: 4,704.50
A186: 17 | B186: CAROLIN FERNANDA | C186: NIEVES CANELA | D186: 402-1825057-5 | E186: 200-01-960-464357-0 | F186: Digitadora | G186: Area el seibo | H186: Gerencia de area | I186: 10,000.00 | J186: 287.00 | K186: 304.00 | N186: 9,409.00 | O186: 2022-03-01
A187: 18 | B187: LUCIA | C187: DE JESUS | D187: 029-0007400-2 | E187: 200-01-960484399-2 | F187: Conserje | G187: Area el seibo | H187: Unap el cedro de miches | I187: 5,000.00 | J187: 143.50 | K187: 152.00 | N187: 4,704.50 | O187: 2022-05-01
A188: 19 | B188: CESAR ORLANDO | C188: MORALES VASQUEZ | D188: 029-0019287-9 | E188: 200-019605119375 | F188: Sereno | G188: Area el seibo | H188: Unap la Mina | I188: 5,000.00 | J188: 143.50 | K188: 152.00 | N188: 4,704.50 | O188: 2022-07-01
A189: 20 | B189: ANTONIO | C189: HERNANDEZ | D189: 025-0015700-9 | E189: 960-568646-3 | F189: Vigilante | G189: Area el seibo | H189: Unap Magarin | I189: 5,000.00 | J189: 143.50 | K189: 152.00 | N189: 4,704.50 | O189: 2023-03-01
A190: 21 | B190: DEMETRIO | C190: MEDINA | D190: 029-0009483-6 | E190: 960-5817459 | F190: Vigilante | G190: Area el seibo | H190: Unap el cerrito | I190: 5,000.00 | J190: 143.50 | K190: 152.00 | N190: 4,704.50 | O190: 2023-04-01
A191: 22 | B191: DOMINGO | C191: ESTEBAN | D191: 027-0028929-7 | E191: 110-1711806 | F191: Sereno | G191: Area el seibo | H191: Unap Magarin | I191: 5,000.00 | J191: 143.50 | K191: 152.00 | N191: 4,704.50 | O191: 2023-04-01
A192: 23 | B192: JULIO CRISTOBAL | C192: CASTRO MOTA | D192: 025-0049811-4 | E192: 9606781219 | F192: Chofer | G192: Area el seibo | H192: Gerencia de area | I192: 8,000.00 | J192: 229.60 | K192: 243.20 | N192: 7,527.20 | O192: 2024-01-02
A193: 24 | B193: VIRGIA | C193: SANTANA MENDOZA | D193: 029-0016683-2 | F193: Conserje | G193: Area el seibo | H193: Unap La Gina | I193: 5,000.00 | J193: 143.50 | K193: 152.00 | N193: 4,704.50 | O193: 2024-06-06
A194: 25 | B194: VANESSA | C194: MERCEDES BAEZ | D194: 402-4998424-2 | F194: Secretaria | G194: Area el seibo | H194: Gerencia de area | I194: 10,000.00 | J194: 287.00 | K194: 304.00 | N194: 9,409.00 | O194: 2024-03-01
B195: TOTAL NOMINA EL SEIBO | I195: =SUM(I170:I194) -> 195,835.00 | J195: 5,620.46 | K195: 5,953.38 | L195: 0.00 | M195: 0.00 | N195: 184,261.15
C198: LIC. YUDELKY JABALERA | H198: DR. RICARDO JULIO ROMERO
B199: ADMINISTRADORA | H199: DIRECTOR
B206: REGION V
B207: C/COLON No.28, CENTRO DE LA CIUDAD
B208: SAN PEDRO DE MACORIS, REPUBLICA DOMINICANA
B209: RNC 430041793
B211: NOMINA CORRESPONDIENTE AL 30 DE JUNIO AÑO 2024
B212: PERSONAL LA ROMANA | J212: S/S | K212: SFS | L212: ISR | M212: D/A | N212: 0.00
B213: NOMBRE | C213: APELLIDO | D213: CEDULA | E213: No. CUENTA | F213: CARGO | G213: DEPARTAMENTO | H213: LUGAR PRESTA SERVICIOS | I213: SUELDO BRUTO | J213: DEDUCCIONES | N213: SUELDO NETO | O213: FECHA
A214: 1 | B214: SONIA MARGARITA | C214: HACEN MENOR | D214: 103-0005891-3 | E214: 200012700174020 | F214: Conserje | G214: Area Romana | H214: Clinica Higueral | I214: 5,000.00 | J214: 143.50 | K214: 152.00 | N214: 4,704.50 | O214: 2007-06-25
A215: =A214+1 -> 2 | B215: ANGELA | C215: MATEO VILLAR | D215: 026-0128058-5 | E215: 200011101189535 | F215: Conserje | G215: Area Romana | H215: Clinica Maria Trinidad Sanchez | I215: 5,000.00 | J215: 143.50 | K215: 152.00 | N215: 4,704.50 | O215: 2007-11-01
A216: =A215+1 -> 3 | B216: FRANCISCA | C216: NOLASCO | D216: 026-0031430-2 | E216: 200011101209541 | F216: Conserje | G216: Area Romana | H216: Unap Piedra Linda | I216: 5,000.00 | J216: 143.50 | K216: 152.00 | N216: 4,704.50 | O216: 2008-02-01
A217: 4 | B217: SANDRA | C217: CESPEDES PAYANO | D217: 026-0079070-9 | E217: 200011101209567 | F217: Conserje | G217: Area Romana | H217: Unap Cucama | I217: 5,000.00 | J217: 143.50 | K217: 152.00 | N217: 4,704.50 | O217: 2008-02-14
A218: 5 | B218: ROGELIO | C218: SOLANO SILVESTRE | D218: 026-0039613-5 | E218: 200011101253717 | F218: Sereno | G218: Area Romana | H218: Unap Los Mulos | I218: 5,000.00 | J218: 143.50 | K218: 152.00 | N218: 4,704.50 | O218: 2008-10-01
A219: 6 | B219: WARDIN | C219: SUERO GARCIA | D219: 026-0108716-2 | E219: 200011101253720 | F219: Sereno | G219: Area Romana | H219: Clinica Maria Trinidad Sanchez | I219: 5,000.00 | J219: 143.50 | K219: 152.00 | N219: 4,704.50 | O219: 2008-10-01
A220: 7 | B220: ELSA DEONICIA | C220: MERCEDES ORTIZ | D220: 026-0045084-1 | E220: 200011101292147 | F220: Lic.Enfermeria | G220: Area Romana | H220: Clinica Higueral | I220: 10,000.00 | J220: =I220*2.87% -> 287.00 | K220: =I220*3.04% -> 304.00 | N220: =I220-J220-K220 -> 9,409.00 | O220: 2009-08-03
A221: 8 | B221: MIGUEL RAMON | C221: TRAVIESO GARCIA | D221: 026-0063076-4 | E221: 200011101318814 | F221: Mayordomo | G221: Area Romana | H221: Clinica Villa Hermosa | I221: 5,000.00 | J221: =I221*2.87% -> 143.50 | K221: =I221*3.04% -> 152.00 | N221: =I221-J221-K221 -> 4,704.50 | O221: 2010-02-01
A222: 9 | B222: WANDA YUSIL | C222: DEL ROSARIO | D222: 026-0141280-8 | E222: 200011101318830 | F222: Aux. de Oficina | G222: Area Romana | H222: Clinica Villa Hermosa | I222: 5,000.00 | J222: 143.50 | K222: 152.00 | N222: 4,704.50 | O222: 2010-02-01
A223: 10 | B223: ENMA | C223: DE LOS SANTOS | D223: 026-0039834-7 | E223: 200011101326055 | F223: Conserje | G223: Area Romana | H223: UNAP Los Coco | I223: 5,000.00 | J223: 143.50 | K223: 152.00 | N223: 4,704.50 | O223: 2010-04-01
A224: 11 | B224: CARLOS ANT. | C224: CORDONES | D224: 295-0002936-7 | E224: 200011101479656 | F224: Sereno | G224: Area Romana | H224: UNAP KM 14 | I224: 5,000.00 | J224: 143.50 | K224: 152.00 | M224: 1,512.45 | N224: =I224-J224-K224-M224 -> 3,192.05 | O224: 2012-07-01
A225: 12 | B225: FERMIN | C225: RIJO | D225: 026-0061107-9 | E225: 200011101479481 | F225: Sereno | G225: Area Romana | H225: UNAP Luis J. Suarez | I225: 5,000.00 | J225: 143.50 | K225: 152.00 | N225: 4,704.50 | O225: 2012-08-01
A226: 13 | B226: DINORA E | C226: RAMIREZ DE LA CRUZ | D226: 026-0037001-5 | E226: 200011101561205 | F226: Seccretaria | G226: Area Romana | H226: Oficina area Romana | I226: 20,400.00 | J226: =I226*2.87% -> 585.48 | K226: =I226*3.04% -> 620.16 | M226: 0 | N226: =I226-J226-K226-M226 -> 19,194.36 | O226: 2014-03-01
A227: 14 | B227: MARGARITO | C227: CUETO ROSARIO | D227: 026-0043627-9 | E227: 200011101561218 | F227: Sereno | G227: Area Romana | H227: Clinica Villa Hermosa | I227: 5,000.00 | J227: 143.50 | K227: 152.00 | N227: 4,704.50 | O227: 2014-03-01
A228: 15 | B228: RAMONA GERTRUDIS | C228: HUNT S. | D228: 026-0044901-7 | E228: 200011101630699 | F228: Aux de farmacia | G228: Area Romana | H228: Unap Luis J. Suarez | I228: 7,750.00 | J228: 222.43 | K228: 235.60 | N228: 7,291.98 | O228: 2014-10-01
A229: 16 | B229: PROFECTA | C229: ACOSTA FERMIN | D229: 065-0018087-9 | E229: 20001110176884-6 | F229: Conserje | G229: Area Romana | H229: Unap Saona | I229: 5,000.00 | J229: 143.50 | K229: 152.00 | N229: 4,704.50 | O229: 2016-10-01
A230: 17 | B230: DOMINGA | C230: MEJIA | D230: 026-0079667-2 | E230: 20001110176885-9 | F230: Promotara | G230: Area Romana | H230: Unap conani | I230: 5,000.00 | J230: 143.50 | K230: 152.00 | N230: 4,704.50 | O230: 2016-12-01
A231: 18 | B231: MARIANO | C231: ANTONIO MARTE | D231: 026-0054441-1 | E231: 20001210107826-4 | F231: Sereno | G231: Area Romana | H231: Unap villa verde | I231: 5,000.00 | J231: 143.50 | K231: 152.00 | N231: 4,704.50 | O231: 2015-11-01
A232: 19 | B232: DAISY MARIA | C232: DE LEON FELIX | D232: 023-0088812-6 | E232: 200-01-960048617-0 | F232: Conserje | G232: Area Romana | H232: Unap villa hermosa | I232: 5,000.00 | J232: =I232*2.87% -> 143.50 | K232: =I232*3.04% -> 152.00 | N232: =I232-J232-K232 -> 4,704.50 | O232: 2017-08-01
... 59 more rows

Sheet JULIO 2024
B4: REGION V
B5: PEDRO DE MACORIS, REPUBLICA DOMINICANA
B6: PERSONAL SPM
B7: Total de empleados contratado | E7: RNC 430041793
B8: NOMINA CORRESPONDIENTE AL 30 DE JULIO AÑO 2024
B9: AREA SPM
B10: NOMBRE | C10: APELLIDO | D10: CEDULA | F10: CARGO | G10: DEPARTAMENTO | H10: LUGAR PRESTA SERVICIOS | I10: SUELDO BRUTO | J10: S/S | K10: SFS | L10: ISR | M10: D/A | N10: SUELDO NETO | O10: FECHA
A11: 1 | B11: PAULINO | C11: LUIS | D11: 024-0008005-3 | E11: 200011101179105 | F11: Vigilante | G11: Area SPM | H11: Clinica Quisqueya | I11: 5,000.00 | J11: =I11*2.87% -> 143.50 | K11: =I11*3.04% -> 152.00 | N11: =I11-J11-K11-M11 -> 4,704.50 | O11: 2007-05-08
A12: =A11+1 -> 2 | B12: PETRONILA ALT. | C12: PAYANO | D12: 023-0049840-5 | E12: 200011101178533 | F12: Conserje | G12: Area SPM | H12: Clinica Angelina | I12: 5,000.00 | J12: 0.00 | K12: 0.00 | M12: 0.00 | N12: 5,000.00 | O12: 2007-01-02
A13: =A12+1 -> 3 | B13: RUTH PRISCILA | C13: PEREZ | D13: 024-0009931-9 | E13: 200011101179118 | F13: Aux. Farmacia | G13: Area SPM | H13: Clinica Quisqueya | I13: 18,400.00 | J13: =I13*2.87% -> 528.08 | K13: =I13*3.04% -> 559.36 | M13: 0.00 | N13: 17,312.56 | O13: 2007-03-01
A14: 4 | B14: MARCELINO | C14: GUZMAN | D14: 024-0002608-0 | E14: 200011101179079 | F14: Sereno | G14: Area SPM | H14: Clinica El Puerto | I14: 5,000.00 | J14: 143.50 | K14: 152.00 | N14: 4,704.50 | O14: 2007-06-25
A15: 5 | B15: ANA MERCEDES | C15: DE LA CRUZ | D15: 023-0072812-4 | E15: 200011101178630 | F15: Conserje | G15: Area SPM | H15: Clinica Barrio Blanco | I15: 5,000.00 | J15: 143.50 | K15: 152.00 | N15: 4,704.50 | O15: 2007-06-01
A16: 6 | B16: FRANCISCA | C16: POMUCENO SORIANO | D16: 024-0004970-2 | E16: 200011101179095 | F16: Conserje | G16: Area SPM | H16: Clinica Guayabal | I16: 5,000.00 | J16: =I16*2.87% -> 143.50 | K16: =I16*3.04% -> 152.00 | N16: 4,704.50 | O16: 2007-07-02
A17: 7 | B17: SIMONA | C17: PEGUERO HERNANDEZ | D17: 024-0012760-7 | E17: 200011101179134 | F17: Conserje | G17: Area SPM | H17: Clinica Honduras | I17: 5,000.00 | J17: 143.50 | K17: 152.00 | N17: 4,704.50 | O17: 2007-07-02
A18: 8 | B18: LEONEL | C18: DE LA CRUZ HERNANDEZ | D18: 024-0013605-3 | E18: 200011101179150 | F18: Sereno | G18: Area SPM | H18: Clinica Honduras | I18: 5,000.00 | J18: 143.50 | K18: 152.00 | N18: 4,704.50 | O18: 2007-07-02
A19: 9 | B19: JUAN JOSE | C19: JUAN JEAN | D19: 023-0137052-0 | E19: 200011101179053 | F19: Sereno | G19: Area SPM | H19: Unap Batey Esperanza | I19: 5,000.00 | J19: 143.50 | K19: 152.00 | N19: 4,704.50 | O19: 2007-07-18
A20: 10 | B20: RAMON A. | C20: PEGUERO AQUINO | D20: 023-0057845-3 | E20: 200011101178591 | F20: Sereno | G20: Area SPM | H20: Unap Angelina | I20: 5,000.00 | J20: 143.50 | K20: 152.00 | N20: 4,704.50 | O20: 2007-07-23
A21: 11 | B21: MARIA DEL C. | C21: LARA MENDEZ | D21: 023-0064326-5 | E21: 200011101180686 | F21: Atencion al Usuario | G21: Area SPM | H21: Clinica Porvenir | I21: 7,000.00 | J21: 200.90 | K21: 212.80 | N21: 6,586.30 | O21: 2007-08-01
A22: 12 | B22: ALEX | C22: ROMBLEY | D22: 023-0126548-0 | E22: 200011101180709 | F22: Sereno | G22: Area SPM | H22: Clinica Porvenir | I22: 8,318.04 | J22: =I22*2.87% -> 238.73 | K22: =I22*3.04% -> 252.87 | N22: 7,826.44 | O22: 2007-09-13
A23: =A22+1 -> 13 | B23: REYNA ISABEL | C23: MORLA DE A. | D23: 023-0066599-5 | E23: 200011101253636 | F23: Bioanalista | G23: Area SPM | H23: Clinica Barrio Lindo | I23: 18,312.00 | J23: =I23*2.87% -> 525.55 | K23: =I23*3.04% -> 556.68 | L23: 0.00 | M23: 0.00 | N23: 17,229.76 | O23: 2008-09-11
A24: 14 | B24: EVA | C24: MATEO FERRERAS | D24: 023-0011428-3 | E24: 200012700173856 | F24: Medico General | G24: Area SPM | H24: UNAP Uasd | I24: 28,657.01 | J24: 822.46 | K24: 871.17 | M24: 0.00 | N24: 26,963.38 | O24: 2007-08-08
A25: 15 | B25: JOSE | C25: CALAZAN CALMONA | D25: 027-0013504-5 | E25: 200011101209570 | F25: Sereno | G25: Area SPM | H25: UNAP las colinas | I25: 5,000.00 | J25: 143.50 | K25: 152.00 | N25: 4,704.50 | O25: 2008-02-21
A26: 16 | B26: BEATRIZ ALT. | C26: SEVERINO | D26: 023-0084459-0 | E26: 200011101224225 | F26: Odontologa | G26: Area SPM | H26: UNAP Barrio Blanco | I26: 24,000.00 | J26: =I26*2.87% -> 688.80 | K26: =I26*3.04% -> 729.60 | M26: 0.00 | N26: 22,581.60 | O26: 2008-03-17
A27: 17 | B27: CARIDAD TODMAN | C27: DE LOS SANTOS | D27: 023-0041126-7 | E27: 200011101224209 | F27: Enfermera Aux. | G27: Area SPM | H27: unap Monte coca | I27: 11,596.60 | J27: =I27*2.87% -> 332.82 | K27: =I27*3.04% -> 352.54 | M27: 0.00 | N27: 10,911.24 | O27: 2008-04-01
A28: 18 | B28: PEDRO | C28: ZORRILLA | D28: 023-0017693-6 | E28: 200011101231865 | F28: Sereno Clinica | G28: Area SPM | H28: UNAP Barrio Blanco | I28: 5,000.00 | J28: =I28*2.87% -> 143.50 | K28: =I28*3.04% -> 152.00 | N28: 4,704.50 | O28: 2008-04-30
A29: 19 | B29: FRANCISCO A | C29: CASTRO R. | D29: 023-0005830-8 | E29: 200011101245945 | F29: Auxiliar de almacen | G29: Area SPM | H29: Almacen Regional | I29: 9,600.00 | J29: =I29*2.87% -> 275.52 | K29: =I29*3.04% -> 291.84 | N29: 9,032.64 | O29: 2008-08-01
A30: 20 | B30: ODILE A. | C30: MILIAN MCCABE | D30: 023-0025423-8 | E30: 200011101253597 | F30: Aux. de Bioanalisis | G30: Area SPM | H30: Unap porvenir | I30: 22,000.00 | J30: =I30*2.87% -> 631.40 | K30: =I30*3.04% -> 668.80 | M30: 3,024.90 | N30: 17,674.90 | O30: 2008-09-01
A31: 21 | B31: JUANA | C31: MORLA POLANCO | D31: 026-0113870-0 | E31: 200011101253733 | F31: Conseje | G31: Area SPM | H31: UNAP Batey Jagual | I31: 5,000.00 | J31: 143.50 | K31: 152.00 | N31: 4,704.50 | O31: 2008-09-01
A32: 22 | B32: ANA JULIA | C32: MENDEZ BRITO | D32: 011-0000744-0 | E32: 200011101253568 | F32: Aux. Enfermera | G32: Area SPM | H32: Unap Evangelina Rodriguez | I32: 13,000.00 | J32: =I32*2.87% -> 373.10 | K32: =I32*3.04% -> 395.20 | L32: 0.00 | M32: 0.00 | N32: 12,231.70 | O32: 2008-10-08
A33: 23 | B33: YVELISSE E. | C33: ASTACIO PEÑA | D33: 023-0003063-8 | E33: 200011101278064 | F33: Conserje | G33: SRS ESTE | H33: Oficina Regional | I33: 8,050.00 | J33: =I33*2.87% -> 231.04 | K33: =I33*3.04% -> 244.72 | L33: 0.00 | M33: 1,512.45 | N33: 6,061.80 | O33: 2009-01-19
A34: 24 | B34: EPIFANIO | C34: CALDERON | D34: 023-0058958-3 | E34: 200011101272633 | F34: Sereno | G34: Area SPM | H34: Clinica Santa fe | I34: 5,000.00 | J34: 143.50 | K34: 152.00 | N34: 4,704.50 | O34: 2009-02-01
A35: 25 | B35: FRANCISCO DE J. | C35: MATICH CASTRO | D35: 023-0028027-4 | E35: 200011101272688 | F35: Auxiliar de almacen | G35: SRS ESTE | H35: Almacen Regional | I35: 9,600.00 | J35: =I35*2.87% -> 275.52 | K35: =I35*3.04% -> 291.84 | N35: 9,032.64 | O35: 2009-02-01
A36: 26 | B36: YERNIS NOEMIS | C36: POCHE F. | D36: 024-0022376-0 | E36: 200011101294556 | F36: Secretaria | G36: Area SPM | H36: clinica Quisqueya | I36: 8,000.00 | J36: 229.60 | K36: 243.20 | N36: 7,527.20 | O36: 2009-08-03
A37: 27 | B37: JOAQUIN | C37: EUSEBIO | D37: 024-0013633-5 | E37: 200011101310155 | F37: Sereno | G37: Area SPM | H37: Clinica Cayacoa | I37: 5,000.00 | J37: 143.50 | K37: 152.00 | N37: 4,704.50 | O37: 2009-12-01
A38: 28 | B38: ROSA SANCHEZ | C38: CABRERA | D38: 023-0109901-2 | E38: 200011101318759 | F38: Conserje | G38: Area SPM | H38: Clinica Porvenir | I38: 8,000.00 | J38: 229.60 | K38: 243.20 | N38: 7,527.20 | O38: 2010-02-01
A39: 29 | B39: BIENVENIDO | C39: BUSTAMANTE GUZMAN | D39: 023-0074695-1 | E39: 200011101358201 | F39: Soporte tecnico | G39: SRS ESTE | H39: Dpto. Publicidad | I39: 6,000.00 | J39: 172.20 | K39: 182.40 | M39: 0.00 | N39: 5,645.40 | O39: 2010-09-01
A40: 30 | B40: VICTOR | C40: NATERA | D40: 024-0006526-0 | E40: 200011101393460 | F40: Sereno | G40: Area SPM | H40: Unap Quisquella | I40: 5,000.00 | J40: 143.50 | K40: 152.00 | N40: 4,704.50 | O40: 2011-03-01
A41: 31 | B41: ESTHER | C41: HINOJOSA | D41: 025-0009474-9 | E41: 200011101419959 | F41: Laboratorio | G41: Area SPM | H41: Unap Povenir | I41: 13,312.00 | J41: 382.05 | K41: 404.68 | N41: 12,525.26 | O41: 2012-10-05
A42: 32 | B42: ANA LUISA | C42: JEAN JOSEPH | D42: 027-0039773-6 | E42: 200011101479562 | F42: Conserje | G42: Area SPM | H42: unap Monte coca | I42: 5,000.00 | J42: 143.50 | K42: 152.00 | N42: 4,704.50 | O42: 2012-04-01
A43: 33 | B43: FROILAN | C43: VALDEZ LORENZO | D43: 011-0028087-2 | E43: 200011101571020 | F43: Sonografista | G43: Area SPM | H43: Centro de Diagnostico | I43: 30,000.00 | J43: 861.00 | K43: 912.00 | N43: 28,227.00 | O43: 2013-01-02
A44: 34 | B44: CARY ROSEMARY | C44: SANTANA JABALERA | D44: 023-0117440-1 | E44: 200011101632914 | F44: Enfermera | G44: Area SPM | H44: unap San Martin de Pobre | I44: 8,000.00 | J44: 229.60 | K44: 243.20 | N44: 7,527.20 | O44: 2015-04-01
A45: 35 | B45: NICOLAS | C45: DIAZ VALENZUELA | D45: 023-0103775-6 | E45: 200011101711644 | F45: Sereno | G45: Area SPM | H45: Unap barrio lindo | I45: 6,000.00 | J45: 172.20 | K45: 182.40 | N45: 5,645.40 | O45: 2014-01-01
A46: 36 | B46: MARIA ALT. | C46: POLANCO | D46: 024-0011102-3 | E46: 200011101711592 | F46: Conserje | G46: Area SPM | H46: Unap Quisqueya | I46: 5,000.00 | J46: 143.50 | K46: 152.00 | N46: 4,704.50 | O46: 2014-09-01
A47: 37 | B47: YUDELKIS | C47: FLEMING HODGE | D47: 023-0092307-1 | E47: 200011101711903 | F47: Conserje | G47: Area SPM | H47: unap cachena | I47: 5,000.00 | J47: 143.50 | K47: 152.00 | N47: 4,704.50 | O47: 2014-11-01
A48: 38 | B48: LICETTE | C48: JIMENEZ GARCIA | D48: 023-0020559-4 | E48: 200011101711628 | F48: Conserje | G48: Area SPM | H48: Unap San Martin de Porre | I48: 5,000.00 | J48: 143.50 | K48: 152.00 | N48: 4,704.50 | O48: 2015-05-01
A49: 39 | B49: BASILIA E. | C49: JOSE CIRIACO | D49: 023-0040467-6 | E49: 200011101711796 | F49: Conserje | G49: Area SPM | H49: Unap cachena | I49: 5,000.00 | J49: 143.50 | K49: 152.00 | N49: 4,704.50 | O49: 2015-06-01
A50: 40 | B50: BASILIO | C50: CALDERON MEDINA | D50: 027-0018363-1 | E50: 200011101711631 | F50: Sereno | G50: Area SPM | H50: Unap camara Junior | I50: 5,000.00 | J50: 143.50 | K50: 152.00 | N50: 4,704.50 | O50: 2016-02-02
A51: 41 | B51: NELCIDA YOLADIS | C51: LINARES | D51: 023-0153307-7 | E51: 200011101711851 | F51: Enfermera | G51: Area SPM | H51: Unap brisal | I51: 8,000.00 | J51: 229.60 | K51: 243.20 | N51: 7,527.20 | O51: 2016-01-01
A52: 42 | B52: MARIA | C52: NIEVES MARTE | D52: 023-0084538-1 | E52: 200011101711848 | F52: Conserje | G52: Area SPM | H52: Unap Juan Dolio | I52: 5,000.00 | J52: 143.50 | K52: 152.00 | N52: 4,704.50 | O52: 2014-04-01
A53: 43 | B53: MERCEDES | C53: DANIEL DELGADO | D53: 024-0013600-4 | E53: 200-01-110-173833-9 | F53: Conserje | G53: Area SPM | H53: Unap Hondura | I53: 5,000.00 | J53: =I53*2.87% -> 143.50 | K53: =I53*3.04% -> 152.00 | M53: 0.00 | N53: 4,704.50 | O53: 2014-06-01
A54: 44 | B54: DARIO FRANCISCO | C54: PIE BLAKE | D54: 023-0128257-6 | E54: 200-01-110-176947-6 | F54: Sereno | G54: Area SPM | H54: Unap consuelito | I54: 5,000.00 | J54: 143.50 | K54: 152.00 | N54: 4,704.50 | O54: 2016-07-01
A55: 45 | B55: ALTAGRACIA MEDISA | C55: SEGUIILIS | D55: 023-0077279-1 | E55: 200-01-110-176946-3 | F55: Conserje | G55: Area SPM | H55: Unap consuelito | I55: 5,000.00 | J55: 143.50 | K55: 152.00 | N55: 4,704.50 | O55: 2016-07-01
A56: 46 | B56: ROSMERY | C56: SERRA HERNANDEZ | D56: 023-0138681-5 | E56: 200-01-110-176948-9 | F56: Conserje | G56: Area SPM | H56: Unap Bo. Mexico | I56: 5,000.00 | J56: 143.50 | K56: 152.00 | N56: 4,704.50 | O56: 2017-01-01
A57: 47 | B57: DIONICIO MADRIGAL | C57: GARCIA | D57: 023-0065771-1 | E57: 200-01-960048618-2 | F57: Sereno | G57: Area SPM | H57: UNAP punta de garza | I57: 5,000.00 | J57: 143.50 | K57: 152.00 | N57: 4,704.50 | O57: 2017-07-01
A58: 48 | B58: HECTOR MIGUEL | C58: A.MEDRANO | D58: 023-0012798-8 | E58: 200-01-960-087688-8 | F58: Seguridad | G58: Area SPM | H58: unap Evan Rodriguez | I58: 6,000.00 | J58: 172.20 | K58: 182.40 | N58: 5,645.40 | O58: 2018-04-01
A59: 49 | B59: ESTALIN MARIA | C59: I.MORALES | D59: 024-0026614-0 | E59: 200-01-960-087688-9 | F59: Promotora | G59: Area SPM | H59: unap el puerto | I59: 5,000.00 | J59: 143.50 | K59: 152.00 | N59: 4,704.50 | O59: 2018-04-01
A60: 50 | B60: MARLENYS RAMONA | C60: QUEVEDO ENCARNACION | D60: 011-347480-3 | E60: 200-01-9601807866 | F60: Medico Asistente | G60: Area SPM | H60: UNAP Don Juan | I60: 30,000.00 | J60: 861.00 | K60: 912.00 | N60: 28,227.00 | O60: 2018-05-19
A61: 51 | B61: LICITANIA | C61: MADRIGAL TEJEDA | D61: 024-0016779-3 | E61: 200-01-9601807868 | F61: Conserje | G61: Area SPM | H61: UNAP Quisqueya | I61: 5,000.00 | J61: =I61*2.87% -> 143.50 | K61: =I61*3.04% -> 152.00 | N61: 4,704.50 | O61: 2018-07-01
A62: 52 | B62: VICTOR MANUEL | C62: POLANCO | D62: 023-0022044-5 | E62: 200-01-1101346666 | F62: Medico Asistente | G62: Area SPM | H62: BO.BLANCO | I62: 30,000.00 | J62: 861.00 | K62: 912.00 | N62: 28,227.00 | O62: 2019-04-01
A63: 53 | B63: RAMON | C63: GIL | D63: 023-0007034-5 | E63: 200-01-9603057696 | F63: Licencia a sereno | G63: Area SPM | H63: Oficina de area | I63: 5,000.00 | J63: =I63*2.87% -> 143.50 | K63: =I63*3.04% -> 152.00 | N63: 4,704.50 | O63: 2019-04-01
A64: 54 | B64: JACINTO | C64: ORTEGA | D64: 023-0032092-2 | E64: 200-01-9603057701 | F64: Sereno | G64: Area SPM | H64: Uunap cumayasa | I64: 6,500.00 | J64: =I64*2.87% -> 186.55 | K64: =I64*3.04% -> 197.60 | N64: 6,115.85 | O64: 2019-08-31
A65: 55 | B65: YENI ALT. | C65: GUERRERO MENDEZ | D65: 023-0117014-4 | E65: 200-01-9603057694 | F65: Conserje | G65: Area SPM | H65: Unap aleman | I65: 4,000.00 | N65: 4,000.00 | O65: 2019-10-01
A66: 56 | B66: FLOR MARIA | C66: SALICHE | D66: 023-0015353-9 | E66: 200-01-9603057693 | F66: Conserje | G66: Area SPM | H66: Centro de Diagnostico | I66: 5,000.00 | J66: =I66*2.87% -> 143.50 | K66: =I66*3.04% -> 152.00 | L66: 0.00 | N66: 4,704.50 | O66: 2020-01-02
A67: 57 | B67: JEANINA | C67: CASTILLO MUÑOZ | D67: 023-0135235-3 | E67: 200-01-9603057692 | F67: Conserje | G67: Area SPM | H67: Unap barrio Lindo SPM | I67: 8,000.00 | J67: 229.60 | K67: 243.20 | N67: 7,527.20 | O67: 2020-01-04
A68: 58 | B68: MASILLON | C68: BENJAMIN | D68: 030-0001180-3 | E68: 200-01-9603140108 | F68: Sereno | G68: SRS ESTE | H68: Unap Margarita | I68: 5,000.00 | J68: 143.50 | K68: 152.00 | N68: 4,704.50 | O68: 13/10/2020
A69: 59 | B69: EUNICE ELAYNE | C69: DE LA CRUZ CASTRO | D69: 4022056974-9 | E69: 200-01-9603202129 | F69: Aux. de farmacia | G69: Area SPM | H69: Unap pedro justo carrion | I69: 12,000.00 | J69: 344.40 | K69: 364.80 | N69: 11,290.80 | O69: 2020-11-01
A70: 60 | B70: SANTA | C70: MEDINA | D70: 023-0164982-4 | E70: 200-01-960-3396546 | F70: Conserje | G70: Area SPM | H70: UNAP punta pescadora | I70: 5,000.00 | J70: 143.50 | K70: 152.00 | N70: 4,704.50 | O70: 2/Enero/2021
A71: 61 | B71: PORFIRIO | C71: ZORRILLA | D71: 024-0010756-7 | E71: 200-01-9603356888 | F71: Sereno | G71: SRS-ESTE | H71: Oficina Regional | I71: 10,000.00 | J71: 287.00 | K71: 304.00 | N71: 9,409.00 | O71: 2/Enero/2021
A72: 62 | B72: ANA | C72: SOLANO | D72: 402-2667422-0 | E72: 200-01-9603403020 | F72: Conserje | G72: Area SPM | H72: Unap punta pescadora | I72: 5,000.00 | J72: 143.50 | K72: 152.00 | N72: 4,704.50 | O72: 2/Enero/2021
A73: 63 | B73: ANGELA | C73: DELONEY RINCON | D73: 023-0050103-4 | E73: 200-01-9603551741 | F73: Conserje | G73: Area SPM | H73: Unap Angelina | I73: 5,000.00 | J73: 143.50 | K73: 152.00 | N73: =I73-J73-K73-M73 -> 4,704.50 | O73: 2021-01-04
A74: 64 | B74: ROLANDO GREGORIO | C74: PASCUAL | D74: 027-0034973-7 | E74: 200-01-9603648040 | F74: Sereno | G74: Area SPM | H74: unap Monte coca | I74: 5,000.00 | J74: 143.50 | K74: 152.00 | N74: 4,704.50 | O74: 2021-01-04
A75: 65 | B75: GUILLERMO | C75: BAUTISTA RAMIREZ | D75: 008-0024361-0 | E75: 200-01-9603798315 | F75: Sereno | G75: Area SPM | H75: unap alejandro bass | I75: 5,000.00 | J75: 143.50 | K75: 152.00 | N75: 4,704.50 | O75: 2021-01-05
A76: 66 | B76: SADRACK YRBIN | C76: GUILLEN | D76: 023-0116102-8 | E76: 200-01-9603798311 | F76: Sereno | G76: Area SPM | H76: Placer Bonito | I76: 5,000.00 | J76: 143.50 | K76: 152.00 | N76: 4,704.50 | O76: 2021-01-05
A77: =A76+1 -> 67 | B77: EMELY PATRICIA | C77: RODRIGUEZ ORTEGA | D77: 402-1141418-6 | E77: 200-01-9603808655 | F77: Asistente de informacion | G77: Area SPM | H77: Gerencia de area | I77: 8,000.00 | J77: 229.60 | K77: 243.20 | N77: 7,527.20 | O77: 2021-01-06
A78: 68 | B78: MANUEL | C78: LOPEZ GONZALEZ | D78: 001-1032723-6 | E78: 200-01-9603964966 | F78: Sereno | G78: Area SPM | H78: Unap Gautier | I78: 7,000.00 | J78: 200.90 | K78: 212.80 | N78: 6,586.30 | O78: 2021-01-06
A79: 69 | B79: DOROTEO | C79: DE LA CRUZ CARRASCO | D79: 049-0042143-1 | E79: 200-01-9604126997 | F79: Seguridad | G79: Area SPM | H79: Placer Bonito | I79: 7,000.00 | J79: 200.90 | K79: 212.80 | N79: 6,586.30 | O79: 2021-10-01
A80: 70 | B80: MANOLO | C80: MARTINEZ | D80: 001-1040251-8 | E80: 200-01-9604266453 | F80: Seguridad | G80: Area SPM | H80: Unap Villa Faro | I80: 5,000.00 | J80: 143.50 | K80: 152.00 | N80: 4,704.50 | O80: 2021-09-01
A81: 71 | B81: ROBERTO ANTONIO | C81: DE LA CRUZ | D81: 023-0004082-7 | E81: 200-01-9604126996 | F81: Chofer | G81: SRS-ESTE | H81: Dpto. de Odontologia | I81: 18,000.00 | J81: 516.60 | K81: 547.20 | N81: 16,936.20 | O81: 2021-10-01
A82: 72 | B82: JOSE ANIIBAL | C82: FRANCISCO DANIEL | D82: 024-0027728-7 | E82: 200-01-9604334570 | F82: Seguridad | G82: Area SPM | H82: Unap Paloma | I82: 5,000.00 | J82: 143.50 | K82: 152.00 | N82: 4,704.50 | O82: 2021-12-01
A83: 73 | B83: MIGUEL | C83: NUÑEZ MAZARA | D83: 025-0001585-0 | E83: 200-01-9604334568 | F83: Seguridad | G83: SRS-ESTE | H83: Oficina Regional | I83: 7,000.00 | J83: 200.90 | K83: 212.80 | N83: 6,586.30 | O83: 2021-12-01
A84: 74 | B84: HIPOLITO | C84: TOLENTINO | D84: 023-0084491-3 | E84: 960-455925-7 | F84: Seguridad | G84: Area SPM | H84: Unap Villa Faro | I84: 5,000.00 | J84: 143.50 | K84: 152.00 | N84: 4,704.50 | O84: 2022-02-08
A85: 75 | B85: STARLYN | C85: ALCANTARA | D85: 023-0166567-1 | E85: 960-514422-6 | F85: Seguridad | G85: Area SPM | H85: Unap el Brisal | I85: 5,000.00 | J85: 143.50 | K85: 152.00 | N85: 4,704.50 | O85: 2022-09-01
A86: 76 | B86: YAQUELIN AUDILIA | C86: RICHARSON PEÑA | D86: 030-0003307-0 | E86: 960-525593-0 | F86: Conserje | G86: Area SPM | H86: Unap Batey soco | I86: 5,000.00 | J86: 143.50 | K86: 152.00 | N86: 4,704.50 | O86: 2022-10-01
A87: 77 | B87: MANUEL DE JESUS | C87: LORA | D87: 023-0020611-3 | E87: 960-532825-5 | F87: Seguridad | G87: SRS-ESTE | H87: Oficina Regional | I87: 7,000.00 | J87: 200.90 | K87: 212.80 | N87: 6,586.30 | O87: 2022-11-01
A88: 78 | B88: DIGNA | C88: ROSARIO JAVIER | D88: 023-0143527-3 | E88: 960540890-2 | F88: Conserje | G88: Area SPM | H88: UNAP Santa Fe | I88: 5,000.00 | J88: 143.50 | K88: 152.00 | N88: 4,704.50 | O88: 2022-12-01
A89: 79 | B89: AIDA | C89: PEREZ NATERA | D89: 011-714807-2 | E89: 960-506293-3 | F89: Conserje | G89: Area SPM | H89: Unap las Goutier | I89: 5,000.00 | J89: 143.50 | K89: 152.00 | N89: 4,704.50 | O89: 2023-03-01
A90: 80 | B90: ESTEBANIA | C90: MELLA WILLIAMS | D90: 402-2020200-2 | E90: 9605815583 | F90: Conserje | G90: Area SPM | H90: CPN IDSS Consuelo | I90: 5,000.00 | J90: 143.50 | K90: 152.00 | N90: =I90-J90-K90-M90 -> 4,704.50 | O90: 2023-04-01
A91: 81 | B91: FREDDY | C91: FELICIANO | D91: 027-0022474-0 | E91: 9606189132 | F91: Sereno | G91: Area SPM | H91: CPN el Brisal | I91: 5,000.00 | J91: 143.50 | K91: 152.00 | N91: 4,704.50 | O91: 2023-05-01
A92: 82 | B92: ROSA | C92: HERNANDEZ | D92: 023-01286841 | E92: 9606377959 | F92: Conserje | G92: Area SPM | H92: CPN Esperanza | I92: 5,000.00 | J92: 143.50 | K92: 152.00 | N92: 4,704.50 | O92: 1//10/2023
A93: 83 | B93: Darlenys Maria | C93: Santana Jimenez | D93: 402-1112745-7 | F93: Conserje | G93: Area SPM | H93: Unap Santa clara de Asis | I93: 6,000.00 | J93: 172.20 | K93: 182.40 | N93: 5,645.40 | O93: 2023-03-19
A94: 84 | B94: ANTELINA ENEROLIZA | C94: CANDELARIO BAEZ | D94: 402-2555106-4 | E94: 9607302138 | F94: CONSERJE | G94: Area SPM | H94: CENTRO DE DIAGNOSTICO | I94: 5,000.00 | J94: 143.50 | K94: 152.00 | N94: 4,704.50 | O94: 2024-07-10
A95: 85 | B95: JUAN ANTONIO | C95: YERIX DAVIMAR | D95: 402-2418758-9 | E95: 9607302140 | F95: CONSERJE | G95: Area SPM | H95: CENTRO DE DIAGNOSTICO | I95: 5,000.00 | J95: 143.50 | K95: 152.00 | N95: 4,704.50 | O95: 2024-07-10
A96: 86 | B96: ANGELA ALTAGARCIA | C96: VALENZUELA DE ACOSTA | D96: 017-0019300-4 | E96: 9607302139 | F96: CONSERJE | G96: Area SPM | H96: CPN BUEN PASTOR | I96: 5,000.00 | J96: 143.50 | K96: 152.00 | N96: 4,704.50 | O96: 2024-07-11
A97: 87 | B97: PASCUALA ESTEBANIA | C97: MARCHENA SABINO | D97: 023-0030748-1 | E97: 9607302135 | F97: CONSERJE | G97: Area SPM | H97: UNAP LAS PIEDAS(CONANI) | I97: 5,000.00 | J97: 143.50 | K97: 152.00 | N97: 4,704.50 | O97: 2024-07-11
A98: 88 | B98: WILFRIDA YOLENNY | C98: ROSADO CALDERON | D98: 402-2489583-5 | E98: 9607302136 | F98: CONSERJE | G98: Area SPM | H98: UNAP JAPON | I98: 5,000.00 | J98: 143.50 | K98: 152.00 | N98: 4,704.50 | O98: 2024-07-11
A99: 89 | B99: MARITZA | C99: GONZALEZ FRIAS | D99: 023-0091971-5 | E99: 9607302137 | F99: CONSERJE | G99: Area SPM | H99: Unap Villa Faro | I99: 5,000.00 | J99: 143.50 | K99: 152.00 | N99: 4,704.50 | O99: 2024-07-11
A100: 90 | B100: JULIO | C100: NAVARRO | D100: 027-0011810-8 | E100: 9607302134 | F100: SERENO | G100: Area SPM | H100: UNAP PORVENIR | I100: 5,000.00 | J100: 143.50 | K100: 152.00 | N100: 4,704.50 | O100: 2024-07-12
B101: Total de empleados contratado | I101: =SUM(I11:I100) -> 707,345.65 | J101: =SUM(J11:J100) -> 20,042.52 | K101: =SUM(K11:K100) -> 21,229.71 | L101: =SUM(L11:L89) -> 0.00 | M101: =SUM(M11:M89) -> 4,537.35 | N101: =SUM(N11:N100) -> 661,536.07
D104: LIC. YUDELKY JABALERA | I104: DR. RICARDO JULIO ROMERO
C105: ADMINISTRADORA | I105: DIRECTOR
B113: REGION V
B114: SAN PEDRO DE MACORIS, REPUBLICA DOMINICANA
B115: RNC 430041793
B116: NOMINA CORRESPONDIENTE AL 30 DE JULIO AÑO 2024
B117: AREA DE HATO MAYOR
B118: NOMBRE | C118: APELLIDO | D118: CEDULA | E118: No. CUENTA | F118: CARGO | G118: DEPARTAMENTO | H118: LUGAR PRESTA SERVICIOS | I118: SUELDO BRUTO | J118: S/S | K118: SFS | L118: ISR | M118: D/A | N118: SUELDO NETO | O118: FECHA
A119: 1 | B119: CARMEN I. | C119: SANTANA P. | D119: 027-0005223-2 | E119: 200011120165796 | F119: Aux. de enfermeria | G119: Area Hato Mayor | H119: Clinica Morquecho | I119: 11,786.00 | J119: =I119*2.87% -> 338.26 | K119: =I119*3.04% -> 358.29 | M119: 0.00 | N119: =I119-J119-K119-M119 -> 11,089.45 | O119: 2006-09-11
A120: =A119+1 -> 2 | B120: SULINDA | C120: MOTA DE SALAS | D120: 100-0007282-6 | E120: 200011120165880 | F120: Conserje | G120: Area Hato Mayor | H120: Clinica Yanigua | I120: 5,000.00 | J120: 143.50 | K120: 152.00 | N120: 4,704.50 | O120: 2007-01-02
A121: =A120+1 -> 3 | B121: DOMINGO A. | C121: PEGUERO LUNA | D121: 100-0002222-7 | E121: 200011120165864 | F121: Viglante | G121: Area Hato Mayor | H121: Clinica Yanigua | I121: 5,000.00 | J121: 143.50 | K121: 152.00 | N121: 4,704.50 | O121: 2007-04-02
A122: 4 | B122: MARIA | C122: NOLASCO | D122: 100-0000817-6 | E122: 200011120166148 | F122: Conserje | G122: Area Hato Mayor | H122: Clinica El valle | I122: 7,000.00 | J122: 143.50 | K122: 152.00 | N122: 6,704.50 | O122: 2007-02-01
A123: 5 | B123: NIURKA A. | C123: AQUINO JAVIER | D123: 100-0000180-9 | E123: 200011120165848 | F123: Tecnica Farmacia | G123: Area Hato Mayor | H123: Hospital el Valle | I123: 11,786.00 | J123: =I123*2.87% -> 338.26 | K123: =I123*3.04% -> 358.29 | M123: 0.00 | N123: =I123-J123-K123-M123 -> 11,089.45 | O123: 2007-08-01
A124: 6 | B124: ZENOVIA | C124: TRINIDAD MARTINEZ | D124: 023-0002962-2 | E124: 200011120165738 | F124: Conserje | G124: Area Hato Mayor | H124: Villa Navarro | I124: 5,000.00 | J124: 143.50 | K124: 152.00 | N124: 4,704.50 | O124: 2007-08-08
A125: 7 | B125: MIGUEL ISABEL | C125: VASQUEZ | D125: 027-0003867-8 | E125: 200011120143844 | F125: Chofer | G125: Area Hato Mayor | H125: Oficina area | I125: 8,000.00 | J125: 229.60 | K125: 243.20 | N125: 7,527.20 | O125: 2010-02-01
A126: 8 | B126: ANGELA | C126: RIVERA | D126: 027-0004711-7 | E126: 200011101333637 | F126: Conserje | G126: Area Hato Mayor | H126: UNAP Ondina | I126: 5,000.00 | J126: 143.50 | K126: 152.00 | N126: 4,704.50 | O126: 2010-06-01
A127: 9 | B127: FELIX | C127: CANARIO | D127: 027-0003530-2 | E127: 200011101393509 | F127: Sereno | G127: Area Hato Mayor | H127: Unap Ondina | I127: 5,000.00 | J127: =I127*2.87% -> 143.50 | K127: =I127*3.04% -> 152.00 | N127: =I127-J127-K127 -> 4,704.50 | O127: 2011-03-01
A128: 10 | B128: ELSA AURORA | C128: ZORRILLA | D128: 027-0028845-5 | E128: 200011101479559 | F128: Conserje | G128: Area Hato Mayor | H128: UNAP Punta de Garza | I128: 5,000.00 | J128: 143.50 | K128: 152.00 | N128: 4,704.50 | O128: 2012-06-01
A129: 11 | B129: CARMEN | C129: DE LA CRUZ TORREZ | D129: 027-0002151-8 | E129: 200011101479546 | F129: Conserje | G129: Area Hato Mayor | H129: Unap La China | I129: 5,000.00 | J129: 143.50 | K129: 152.00 | N129: 4,704.50 | O129: 2012-11-01
A130: 12 | B130: YAQUELIN | C130: CASTILLO MONEGRO | D130: 027-0039926-0 | E130: 200011120292627 | F130: Conserje | G130: Area Hato Mayor | H130: Unap la Javilla | I130: 5,000.00 | J130: 143.50 | K130: 152.00 | N130: 4,704.50 | O130: 2014-07-01
A131: 13 | B131: YARELIS | C131: GOMEZ REYES | D131: 027-0042030-6 | E131: 200011120292588 | F131: Conserje | G131: Area Hato Mayor | H131: Unap la plaza | I131: 5,000.00 | J131: 143.50 | K131: 152.00 | N131: 4,704.50 | O131: 2014-10-01
A132: 14 | B132: RUDELANIA | C132: OVALLE VEGA | D132: 023-0110894-6 | E132: 200011120292601 | F132: Medico asistente | G132: Area Hato Mayor | H132: Unap la plaza | I132: 20,000.00 | J132: 574.00 | K132: 608.00 | N132: 18,818.00 | O132: 2014-10-01
A133: 15 | B133: CLAUDIA M. | C133: RINCON COLIN | D133: 027-0046976-6 | E133: 200011120292591 | F133: Enfermera | G133: Area Hato Mayor | H133: Unap la plaza | I133: 7,000.00 | J133: 200.90 | K133: 212.80 | N133: 6,586.30 | O133: 2014-10-01
A134: 16 | B134: RAFAEL | C134: GONZALEZ | D134: 027-0024756-8 | E134: 200011101717211 | F134: Sereno | G134: Area Hato Mayor | H134: Unap km 15 Hato Mayor | I134: 5,000.00 | J134: 143.50 | K134: 152.00 | N134: 4,704.50 | O134: 2015-08-01
A135: 17 | B135: CARINYS MARIEL | C135: LOPEZ | D135: 402-2032423-6 | E135: 200-01-960048617-1 | F135: Promotora de salud | G135: Area Hato Mayor | H135: Oficina area | I135: 6,900.00 | J135: =I135*2.87% -> 198.03 | K135: =I135*3.04% -> 209.76 | M135: 0.00 | N135: =I135-J135-K135-M135 -> 6,492.21 | O135: 2017-10-01
A136: 18 | B136: YOHARKY | C136: LORENZO ABREU | D136: 025-0037069-3 | E136: 200-01-960-087689-0 | F136: Aux. de enfermeria | G136: Area Hato Mayor | I136: 9,000.00 | J136: 258.30 | K136: 273.60 | N136: =I136-J136-K136 -> 8,468.10 | O136: 2018-05-01
A137: 19 | B137: TAIRA MARIA | C137: GONZALEZ | D137: 100-0004525-1 | E137: 200-01-270-017401-7 | F137: Farmaceutica | G137: Area Hato Mayor | H137: Hospital el valle | I137: 18,400.00 | J137: 528.08 | K137: 559.36 | N137: =I137-J137-K137 -> 17,312.56 | O137: 2018-07-01
A138: 20 | B138: ISRAEL | C138: VASQUEZ ALEXANDER | D138: 138-0007689-8 | E138: 200-01-9603065740 | F138: Sereno | G138: Area Hato Mayor | H138: Gerencia de area | I138: 5,000.00 | J138: 143.50 | K138: 152.00 | N138: =SUM(I138-J138-K138) -> 4,704.50 | O138: 2019-07-01
A139: 21 | B139: GAUDY | C139: CRISOSTOMO | D139: 402-4018039-4 | E139: 200-01-9604269997 | F139: Conjerje | G139: Area Hato Mayor | H139: Unap ondina | I139: 5,000.00 | J139: 143.50 | K139: 152.00 | N139: =SUM(I139-J139-K139) -> 4,704.50 | O139: 2021-10-01
A140: 22 | B140: SAMUEL CRISTINO | C140: SALZAR SOSA | D140: 402-0900247-2 | E140: 200-01-9604395130 | F140: Tecnico | G140: Area Hato Mayor | H140: Gerencia de area | I140: 30,000.00 | J140: 861.00 | K140: 912.00 | M140: 1,512.45 | N140: =SUM(I140-J140-K140-M140) -> 26,714.55 | O140: 2022-01-07
A141: 23 | B141: RICHARD | C141: SANTANA PADILLA | D141: 402-1195588-1 | E141: 200-01-9604716221 | F141: Mensajero | G141: Area Hato Mayor | H141: Gerencia de area | I141: 7,000.00 | J141: 200.90 | K141: 212.80 | N141: =SUM(I141-J141-K141) -> 6,586.30 | O141: 2022-04-01
A142: 24 | B142: REMY RAFAEL | C142: GEROVACIO LOPEZ | D142: 067-0011062-7 | E142: 960-5265770 | F142: Sereno | G142: Area Hato Mayor | H142: Unap cañitas | I142: 5,000.00 | J142: 143.50 | K142: 152.00 | N142: =SUM(I142-J142-K142) -> 4,704.50 | O142: 2022-10-01
A143: 25 | B143: FRANCIASCA | C143: REYES LOPEZ | D143: 027-0017851-6 | E143: 960-5265769 | F143: Conserje | G143: Area Hato Mayor | H143: Unap Morquecho | I143: 5,000.00 | J143: 143.50 | K143: 152.00 | N143: 4,704.50 | O143: 2022-10-01
A144: 26 | B144: MAGALIS | C144: JIMENEZ | D144: 027-0030140-7 | E144: 960-5265764 | F144: Conserje | G144: Area Hato Mayor | H144: Unap jalonga | I144: 5,000.00 | J144: 143.50 | K144: 152.00 | N144: 4,704.50 | O144: 2022-10-01
A145: 27 | B145: DULCE MARIA | C145: DOMINGUEZ PEÑA | D145: 027-0046696-0 | E145: 960-5265766 | F145: Conserje | G145: Area Hato Mayor | H145: Unap Km 15 | I145: 5,000.00 | J145: 143.50 | K145: 152.00 | N145: 4,704.50 | O145: 2022-10-01
A146: 28 | B146: IRMA GRISEL | C146: REYES FELICIANO | D146: 027-0012399-1 | E146: 960-5265765 | F146: Conserje | G146: Area Hato Mayor | H146: Unap la Sierra | I146: 5,000.00 | J146: 143.50 | K146: 152.00 | N146: 4,704.50 | O146: 2022-10-01
A147: 29 | B147: RAFAEL | C147: FLOID POLICIA | D147: 402-1139481-8 | E147: 960-5354300 | F147: Sereno | G147: Area Hato Mayor | H147: Unap jalonga | I147: 5,000.00 | J147: 143.50 | K147: 152.00 | N147: 4,704.50 | O147: 2022-11-01
A148: 30 | B148: JULIO ADRIANO | C148: DIAZ ACOSTA | D148: 067-0013604-4 | E148: 9605408903 | F148: Sereno | G148: Area Hato Mayor | H148: Unap Magua | I148: 5,000.00 | J148: 143.50 | K148: 152.00 | N148: 4,704.50 | O148: 2022-12-01
A149: 31 | B149: JUAN | C149: JAVIER | D149: 027-0015148-9 | E149: 9606157607 | F149: Viglante | G149: Area Hato Mayor | H149: Unap jalonga | I149: 5,000.00 | J149: 143.50 | K149: 152.00 | N149: 4,704.50 | O149: 2023-08-01
A150: =A149+1 -> 32 | B150: ISMAEL | C150: GARCIA SEVERINO | D150: 402-1030578-1 | E150: 9606781220 | F150: Sereno | G150: Area Hato Mayor | H150: Yerba Buena | I150: 5,000.00 | J150: 143.50 | K150: 152.00 | N150: 4,704.50 | O150: 2024-02-01
B151: TOTAL NOMINA HATO MAYOR | I151: =SUM(I119:I150) -> 241,872.00 | J151: =SUM(J119:J150) -> 6,884.33 | K151: =SUM(K119:K150) -> 7,292.11 | M151: =SUM(M119:M149) -> 1,512.45 | N151: =SUM(N119:N150) -> 226,183.11
C154: LIC. YUDELKY JABALERA | H154: DR. RICARDO JULIO ROMERO
B155: ADMINISTRADORA | H155: DIRECTOR
B165: REGION V
B166: SAN PEDRO DE MACORIS, REPUBLICA DOMINICANA
B167: RNC 430041793
B168: NOMINA CORRESPONDIENTE AL 30 DE JULIO AÑO 2024
B169: PERSONAL AREA EL SEYBO | J169: S/S | K169: SFS | L169: ISR | M169: D/A
B170: NOMBRE | C170: APELLIDO | D170: CEDULA | E170: No. CUENTA | F170: CARGO | G170: DEPARTAMENTO | H170: LUGAR PRESTA SERVICIOS | I170: SUELDO BRUTO | J170: DEDUCCIONES | N170: SUELDO NETO | O170: FECHA
A171: 1 | B171: ANA MARIA | C171: VASQUEZ SANTANA | D171: 025-0041921-9 | E171: 200011110179067 | F171: Conserje | G171: Area el seibo | H171: Clinica las 500 | I171: 5,000.00 | J171: 143.50 | K171: 152.00 | N171: 4,704.50 | O171: 2007-06-01
A172: =A171+1 -> 2 | B172: OSVALDO ANTONIO | C172: CRUZ | D172: 029-0004372-6 | E172: 200011110179135 | F172: Sereno | G172: Area el seibo | H172: Unap Los Franceses | I172: 5,000.00 | J172: 143.50 | K172: 152.00 | N172: 4,704.50 | O172: 2007-07-09
A173: =A172+1 -> 3 | B173: MAXIMO | C173: DEL ROSARIO SILVESTRE | D173: 025-0027067-9 | E173: 200011101180725 | F173: Sereno | G173: Area el seibo | H173: Unap el guaral | I173: 5,000.00 | J173: 143.50 | K173: 152.00 | N173: 4,704.50 | O173: 2007-09-01
A174: 4 | B174: RAFAELA | C174: DIAZ DIAZ | D174: 025-0033097-8 | E174: 200011101294569 | F174: Conserje | G174: Area el seibo | H174: Clinica el Guaral | I174: 5,000.00 | J174: 143.50 | K174: 152.00 | N174: 4,704.50 | O174: 2009-08-14
A175: 5 | B175: YNIRIO MODESTO | C175: LEONARDO | D175: 025-0034927-5 | E175: 200011101393486 | F175: Sereno | G175: Area el seibo | H175: Unap el cerrito del seibo | I175: 5,000.00 | J175: 143.50 | K175: 152.00 | M175: 0.00 | N175: 4,704.50 | O175: 2011-01-01
A176: 6 | B176: AMPARO | C176: MOJICA | D176: 029-0010041-9 | E176: 200011101393554 | F176: Conserje | G176: Area el seibo | H176: Centro de zona Villa Guerrero | I176: 5,000.00 | J176: 143.50 | K176: 152.00 | N176: 4,704.50 | O176: 2011-01-01
A177: 7 | B177: SONIA ELENA | C177: PAREDES MARTINEZ | D177: 025-0008358-5 | E177: 200011101711741 | F177: Conserje | G177: Area el seibo | H177: Unap las guajabas | I177: 5,000.00 | J177: 143.50 | K177: 152.00 | N177: 4,704.50 | O177: 2016-04-01
A178: 8 | B178: LEONIDAS | C178: MOTA DE LA CRUZ | D178: 027-0034558-6 | E178: 200-01-110-176883-3 | F178: Conserje | G178: Area el seibo | H178: Unap las guajabas | I178: 5,000.00 | J178: =I178*2.87% -> 143.50 | K178: =I178*3.04% -> 152.00 | N178: =I178-J178-K178 -> 4,704.50 | O178: 2016-09-01
A179: 9 | B179: ROSANGELA | C179: SORIANO | D179: 025-0048387-6 | E179: 200-01-960056265-8 | F179: Medico asist. | G179: Area el seibo | H179: Unap los botado | I179: 28,000.00 | J179: 803.60 | K179: 851.20 | N179: =I179-J179-K179 -> 26,345.20 | O179: 2018-02-01
A180: 10 | B180: TATATIANA ROSANA | C180: AQUINO | D180: 402-3486379-9 | E180: 200-01-960-087688-5 | F180: Aux. de Farmacia | G180: Area el seibo | H180: Gerencia de area Seibo | I180: 9,835.00 | J180: 282.26 | K180: 298.98 | N180: =I180-J180-K180 -> 9,253.75 | O180: 2018-04-01
A181: 11 | B181: ANGELINA | C181: PEGUERO | D181: 029-0015408-5 | E181: 200-01-9603069101 | F181: Aux. de limpieza | G181: Area el seibo | H181: Unap la mina | I181: 5,000.00 | J181: 143.50 | K181: 152.00 | N181: =I181-J181-K181 -> 4,704.50 | O181: 2020-01-09
A182: 12 | B182: OSVIANNY | C182: ZORRILLA BERAS | D182: 402-2519711-6 | E182: 200-01-1101711657 | F182: Enc. De soporte tecnico | G182: Area el seibo | H182: Gerencia de area | I182: 30,000.00 | J182: 861.00 | K182: 912.00 | N182: 28,227.00 | O182: 2020-01-11
A183: 13 | B183: DIONILIA | C183: ZORRILLA | D183: 025-0009672-8 | E183: 200-01-9603798317 | F183: Conserje | G183: Area el seibo | H183: Unap Pedro Sanchez | I183: 5,000.00 | J183: 143.50 | K183: 152.00 | N183: 4,704.50 | O183: 2021-01-03
A184: 14 | B184: MILOSY ARACELIS | C184: BAEZ APONTE | D184: 025-0032466-6 | E184: 200-01-9603883495 | F184: Aux. de Enfermeria | G184: Area el seibo | H184: Unap Cañada del Agua | I184: 10,000.00 | J184: 287.00 | K184: 304.00 | N184: 9,409.00 | O184: 2021-01-07
A185: 15 | B185: CARMEN DOLORES | C185: GARCIA | D185: 023-0075496-3 | E185: 200-01-9604074136 | F185: Conserje | G185: Area el seibo | H185: Unap Villa Guerrero | I185: 5,000.00 | J185: 143.50 | K185: 152.00 | N185: 4,704.50 | O185: 2021-09-01
A186: 16 | B186: CANDIDA | C186: DE LA CRUZ | D186: 065-0019411-0 | E186: 200-01-9604074312 | F186: Conserje | G186: Area el seibo | H186: Unap Los Franceses | I186: 5,000.00 | J186: 143.50 | K186: 152.00 | N186: 4,704.50
A187: 17 | B187: CAROLIN FERNANDA | C187: NIEVES CANELA | D187: 402-1825057-5 | E187: 200-01-960-464357-0 | F187: Digitadora | G187: Area el seibo | H187: Gerencia de area | I187: 10,000.00 | J187: 287.00 | K187: 304.00 | N187: 9,409.00 | O187: 2022-03-01
A188: 18 | B188: LUCIA | C188: DE JESUS | D188: 029-0007400-2 | E188: 200-01-960484399-2 | F188: Conserje | G188: Area el seibo | H188: Unap el cedro de miches | I188: 5,000.00 | J188: 143.50 | K188: 152.00 | N188: 4,704.50 | O188: 2022-05-01
A189: 19 | B189: CESAR ORLANDO | C189: MORALES VASQUEZ | D189: 029-0019287-9 | E189: 200-019605119375 | F189: Sereno | G189: Area el seibo | H189: Unap la Mina | I189: 5,000.00 | J189: 143.50 | K189: 152.00 | N189: 4,704.50 | O189: 2022-07-01
A190: 20 | B190: ANTONIO | C190: HERNANDEZ | D190: 025-0015700-9 | E190: 960-568646-3 | F190: Vigilante | G190: Area el seibo | H190: Unap Magarin | I190: 5,000.00 | J190: 143.50 | K190: 152.00 | N190: 4,704.50 | O190: 2023-03-01
A191: 21 | B191: DEMETRIO | C191: MEDINA | D191: 029-0009483-6 | E191: 960-5817459 | F191: Vigilante | G191: Area el seibo | H191: Unap el cerrito | I191: 5,000.00 | J191: 143.50 | K191: 152.00 | N191: 4,704.50 | O191: 2023-04-01
A192: 22 | B192: DOMINGO | C192: ESTEBAN | D192: 027-0028929-7 | E192: 110-1711806 | F192: Sereno | G192: Area el seibo | H192: Unap Magarin | I192: 5,000.00 | J192: 143.50 | K192: 152.00 | N192: 4,704.50 | O192: 2023-04-01
A193: 23 | B193: JULIO CRISTOBAL | C193: CASTRO MOTA | D193: 025-0049811-4 | E193: 9606781219 | F193: Chofer | G193: Area el seibo | H193: Gerencia de area | I193: 8,000.00 | J193: 229.60 | K193: 243.20 | N193: 7,527.20 | O193: 2024-01-02
A194: 24 | B194: VIRGIA | C194: SANTANA MENDOZA | D194: 029-0016683-2 | F194: Conserje | G194: Area el seibo | H194: Unap La Gina | I194: 5,000.00 | J194: 143.50 | K194: 152.00 | N194: 4,704.50 | O194: 2024-06-06
A195: 25 | B195: VANESSA | C195: MERCEDES BAEZ | D195: 402-4998424-2 | F195: Secretaria | G195: Area el seibo | H195: Gerencia de area | I195: 10,000.00 | J195: 287.00 | K195: 304.00 | N195: 9,409.00 | O195: 2024-03-01
B196: TOTAL NOMINA EL SEIBO | I196: =SUM(I171:I195) -> 195,835.00 | J196: 5,620.46 | K196: 5,953.38 | L196: 0.00 | M196: 0.00 | N196: =SUM(N171:N195) -> 184,261.15
C199: LIC. YUDELKY JABALERA | H199: DR. RICARDO JULIO ROMERO
B200: ADMINISTRADORA | H200: DIRECTOR
B207: REGION V
B208: C/COLON No.28, CENTRO DE LA CIUDAD
B209: SAN PEDRO DE MACORIS, REPUBLICA DOMINICANA
B210: RNC 430041793
B212: NOMINA CORRESPONDIENTE AL 30 DE JULIO AÑO 2024
B213: PERSONAL LA ROMANA | J213: S/S | K213: SFS | L213: ISR | M213: D/A | N213: 0.00
B214: NOMBRE | C214: APELLIDO | D214: CEDULA | E214: No. CUENTA | F214: CARGO | G214: DEPARTAMENTO | H214: LUGAR PRESTA SERVICIOS | I214: SUELDO BRUTO | J214: DEDUCCIONES | N214: SUELDO NETO | O214: FECHA
A215: 1 | B215: SONIA MARGARITA | C215: HACEN MENOR | D215: 103-0005891-3 | E215: 200012700174020 | F215: Conserje | G215: Area Romana | H215: Clinica Higueral | I215: 5,000.00 | J215: 143.50 | K215: 152.00 | N215: 4,704.50 | O215: 2007-06-25
A216: =A215+1 -> 2 | B216: ANGELA | C216: MATEO VILLAR | D216: 026-0128058-5 | E216: 200011101189535 | F216: Conserje | G216: Area Romana | H216: Clinica Maria Trinidad Sanchez | I216: 5,000.00 | J216: 143.50 | K216: 152.00 | N216: 4,704.50 | O216: 2007-11-01
A217: =A216+1 -> 3 | B217: FRANCISCA | C217: NOLASCO | D217: 026-0031430-2 | E217: 200011101209541 | F217: Conserje | G217: Area Romana | H217: Unap Piedra Linda | I217: 5,000.00 | J217: 143.50 | K217: 152.00 | N217: 4,704.50 | O217: 2008-02-01
A218: 4 | B218: SANDRA | C218: CESPEDES PAYANO | D218: 026-0079070-9 | E218: 200011101209567 | F218: Conserje | G218: Area Romana | H218: Unap Cucama | I218: 5,000.00 | J218: 143.50 | K218: 152.00 | N218: 4,704.50 | O218: 2008-02-14
A219: 5 | B219: ROGELIO | C219: SOLANO SILVESTRE | D219: 026-0039613-5 | E219: 200011101253717 | F219: Sereno | G219: Area Romana | H219: Unap Los Mulos | I219: 5,000.00 | J219: 143.50 | K219: 152.00 | N219: 4,704.50 | O219: 2008-10-01
A220: 6 | B220: WARDIN | C220: SUERO GARCIA | D220: 026-0108716-2 | E220: 200011101253720 | F220: Sereno | G220: Area Romana | H220: Clinica Maria Trinidad Sanchez | I220: 5,000.00 | J220: 143.50 | K220: 152.00 | N220: 4,704.50 | O220: 2008-10-01
A221: 7 | B221: ELSA DEONICIA | C221: MERCEDES ORTIZ | D221: 026-0045084-1 | E221: 200011101292147 | F221: Lic.Enfermeria | G221: Area Romana | H221: Clinica Higueral | I221: 10,000.00 | J221: =I221*2.87% -> 287.00 | K221: =I221*3.04% -> 304.00 | N221: =I221-J221-K221 -> 9,409.00 | O221: 2009-08-03
A222: 8 | B222: MIGUEL RAMON | C222: TRAVIESO GARCIA | D222: 026-0063076-4 | E222: 200011101318814 | F222: Mayordomo | G222: Area Romana | H222: Clinica Villa Hermosa | I222: 5,000.00 | J222: =I222*2.87% -> 143.50 | K222: =I222*3.04% -> 152.00 | N222: =I222-J222-K222 -> 4,704.50 | O222: 2010-02-01
A223: 9 | B223: WANDA YUSIL | C223: DEL ROSARIO | D223: 026-0141280-8 | E223: 200011101318830 | F223: Aux. de Oficina | G223: Area Romana | H223: Clinica Villa Hermosa | I223: 5,000.00 | J223: 143.50 | K223: 152.00 | N223: 4,704.50 | O223: 2010-02-01
A224: 10 | B224: ENMA | C224: DE LOS SANTOS | D224: 026-0039834-7 | E224: 200011101326055 | F224: Conserje | G224: Area Romana | H224: UNAP Los Coco | I224: 5,000.00 | J224: 143.50 | K224: 152.00 | N224: 4,704.50 | O224: 2010-04-01
A225: 11 | B225: CARLOS ANT. | C225: CORDONES | D225: 295-0002936-7 | E225: 200011101479656 | F225: Sereno | G225: Area Romana | H225: UNAP KM 14 | I225: 5,000.00 | J225: 143.50 | K225: 152.00 | M225: 1,512.45 | N225: =I225-J225-K225-M225 -> 3,192.05 | O225: 2012-07-01
A226: 12 | B226: FERMIN | C226: RIJO | D226: 026-0061107-9 | E226: 200011101479481 | F226: Sereno | G226: Area Romana | H226: UNAP Luis J. Suarez | I226: 5,000.00 | J226: 143.50 | K226: 152.00 | N226: 4,704.50 | O226: 2012-08-01
A227: 13 | B227: DINORA E | C227: RAMIREZ DE LA CRUZ | D227: 026-0037001-5 | E227: 200011101561205 | F227: Seccretaria | G227: Area Romana | H227: Oficina area Romana | I227: 20,400.00 | J227: =I227*2.87% -> 585.48 | K227: =I227*3.04% -> 620.16 | M227: 0 | N227: =I227-J227-K227-M227 -> 19,194.36 | O227: 2014-03-01
A228: 14 | B228: MARGARITO | C228: CUETO ROSARIO | D228: 026-0043627-9 | E228: 200011101561218 | F228: Sereno | G228: Area Romana | H228: Clinica Villa Hermosa | I228: 5,000.00 | J228: 143.50 | K228: 152.00 | N228: 4,704.50 | O228: 2014-03-01
A229: 15 | B229: RAMONA GERTRUDIS | C229: HUNT S. | D229: 026-0044901-7 | E229: 200011101630699 | F229: Aux de farmacia | G229: Area Romana | H229: Unap Luis J. Suarez | I229: 7,750.00 | J229: 222.43 | K229: 235.60 | N229: 7,291.98 | O229: 2014-10-01
A230: 16 | B230: PROFECTA | C230: ACOSTA FERMIN | D230: 065-0018087-9 | E230: 20001110176884-6 | F230: Conserje | G230: Area Romana | H230: Unap Saona | I230: 5,000.00 | J230: 143.50 | K230: 152.00 | N230: 4,704.50 | O230: 2016-10-01
A231: 17 | B231: DOMINGA | C231: MEJIA | D231: 026-0079667-2 | E231: 20001110176885-9 | F231: Promotara | G231: Area Romana | H231: Unap conani | I231: 5,000.00 | J231: 143.50 | K231: 152.00 | N231: 4,704.50 | O231: 2016-12-01
A232: 18 | B232: MARIANO | C232: ANTONIO MARTE | D232: 026-0054441-1 | E232: 20001210107826-4 | F232: Sereno | G232: Area Romana | H232: Unap villa verde | I232: 5,000.00 | J232: 143.50 | K232: 152.00 | N232: 4,704.50 | O232: 2015-11-01
... 59 more rows

Sheet AGOSTO 2024
B4: REGION V
B5: PEDRO DE MACORIS, REPUBLICA DOMINICANA
B6: PERSONAL SPM
B7: Total de empleados contratado | E7: RNC 430041793
B8: NOMINA CORRESPONDIENTE AL 30 DE AGOSTO AÑO 2024
B9: AREA SPM
B10: NOMBRE | C10: APELLIDO | D10: CEDULA | F10: CARGO | G10: DEPARTAMENTO | H10: LUGAR PRESTA SERVICIOS | I10: SUELDO BRUTO | J10: S/S | K10: SFS | L10: ISR | M10: D/A | N10: SUELDO NETO | O10: FECHA
A11: 1 | B11: PAULINO | C11: LUIS | D11: 024-0008005-3 | E11: 200011101179105 | F11: Vigilante | G11: Area SPM | H11: Clinica Quisqueya | I11: 5,000.00 | J11: =I11*2.87% -> 143.50 | K11: =I11*3.04% -> 152.00 | N11: =I11-J11-K11-M11 -> 4,704.50 | O11: 2007-05-08
A12: =A11+1 -> 2 | B12: PETRONILA ALT. | C12: PAYANO | D12: 023-0049840-5 | E12: 200011101178533 | F12: Conserje | G12: Area SPM | H12: Clinica Angelina | I12: 5,000.00 | J12: 0.00 | K12: 0.00 | M12: 0.00 | N12: 5,000.00 | O12: 2007-01-02
A13: =A12+1 -> 3 | B13: RUTH PRISCILA | C13: PEREZ | D13: 024-0009931-9 | E13: 200011101179118 | F13: Aux. Farmacia | G13: Area SPM | H13: Clinica Quisqueya | I13: 18,400.00 | J13: =I13*2.87% -> 528.08 | K13: =I13*3.04% -> 559.36 | M13: 0.00 | N13: 17,312.56 | O13: 2007-03-01
A14: 4 | B14: MARCELINO | C14: GUZMAN | D14: 024-0002608-0 | E14: 200011101179079 | F14: Sereno | G14: Area SPM | H14: Clinica El Puerto | I14: 5,000.00 | J14: 143.50 | K14: 152.00 | N14: 4,704.50 | O14: 2007-06-25
A15: 5 | B15: ANA MERCEDES | C15: DE LA CRUZ | D15: 023-0072812-4 | E15: 200011101178630 | F15: Conserje | G15: Area SPM | H15: Clinica Barrio Blanco | I15: 5,000.00 | J15: 143.50 | K15: 152.00 | N15: 4,704.50 | O15: 2007-06-01
A16: 6 | B16: FRANCISCA | C16: POMUCENO SORIANO | D16: 024-0004970-2 | E16: 200011101179095 | F16: Conserje | G16: Area SPM | H16: Clinica Guayabal | I16: 5,000.00 | J16: =I16*2.87% -> 143.50 | K16: =I16*3.04% -> 152.00 | N16: 4,704.50 | O16: 2007-07-02
A17: 7 | B17: SIMONA | C17: PEGUERO HERNANDEZ | D17: 024-0012760-7 | E17: 200011101179134 | F17: Conserje | G17: Area SPM | H17: Clinica Honduras | I17: 5,000.00 | J17: 143.50 | K17: 152.00 | N17: 4,704.50 | O17: 2007-07-02
A18: 8 | B18: LEONEL | C18: DE LA CRUZ HERNANDEZ | D18: 024-0013605-3 | E18: 200011101179150 | F18: Sereno | G18: Area SPM | H18: Clinica Honduras | I18: 5,000.00 | J18: 143.50 | K18: 152.00 | N18: 4,704.50 | O18: 2007-07-02
